Workbook

Sheet Dane Firmy
C5: Dane Wnioskodawcy
C7: Pełna nazwa | F7: Numer telefonu
C8: Ulica | F8: Numer faxu
C9: Miasto | F9: Adres e-mail
C10: Kod pocztowy | F10: Firma jest MŚP
C11: Województwo
C13: Tytuł projektu
G15: Skoroszyt nie jest zabezpieczony
G16: =IF(G15="Skoroszyt nie jest zabezpieczony","Przed wysłaniem pliku do oceny pamiętaj, aby zabezpieczyć skoroszyt przed zmianami","") -> Przed wysłaniem pliku do oceny pamiętaj, aby zabezpieczyć skoroszyt przed zmianami
G21: Model finansowy v. 1.6

Sheet Założenia
B2: =IF(ISBLANK(Firma),"Wstaw nazwę firmy",Firma) -> Wstaw nazwę firmy
B12: Data rozpoczęcia bieżącego roku obrotowego | G12: =IF(ISBLANK(RokObrotowyPoczatek),"",IF(MONTH(RokObrotowyPoczatek)<>1,"Rok obrotowy różny od roku kalendarzowego","Rok obrotowy zgodny z rokiem kalendarzowym")) -> 
B14: Data ostatniego sporządzonego sprawozdania finansowego | G14: =IF(OR(ISBLANK(C12),ISBLANK(Poczatek),ISBLANK(C20),ISBLANK(D16),ISBLANK(D20),G21<0),"Uzupełnij wszystkie wymagane pola: datę rozpoczęcia bieżącego roku obrotowego oraz rok i miesiąc rozpoczęcia i zakończenia Projektu","") -> Uzupełnij wszystkie wymagane pola: datę rozpoczęcia bieżącego roku obrotowego oraz rok i miesiąc rozpoczęcia i zakończenia Projektu
B16: Rok i miesiąc rozpoczęcia realizacji Projektu
B17: Ostatni rok kwalifikowalności wydatków | C17: 2023
B18: Maksymalny okres realizacji Projektu | C18: =IF(ISBLANK(C16),0,C17-C16+1) -> 0
B19: Okres realizacji Projektu (lata) | C19: =IF(OR(ISBLANK(Poczatek),ISBLANK(Koniec_Projekt)),0,Koniec_Projekt-Poczatek+1) -> 0
B20: Rok i miesiąc zakończenia realizacji Projektu | G20: Okres realizacji Projektu
B21: Obligatoryjny okres trwałości Projektu | C21: =IF(C148=TRUE,3,5) -> 5 | G21: =IF(OR(ISBLANK(D16),ISBLANK(D20),ISBLANK(Poczatek),ISBLANK(Koniec_Projekt)),0,IFERROR(((Koniec_Projekt-Poczatek)*12)+(D20-D16)+1,0)) -> 0 | H21: tj. | I21: =ROUNDDOWN(G21/12,0) -> 0 | J21: =G21-(12*I21) -> 0
B22: Rok zakończenia projekcji finansowej | C22: =IF(ISNUMBER(Koniec_Projekt),IFERROR(MAX(D141:D145),"Uzupełnij dane"),"Uzupełnij dane") -> Uzupełnij dane | G22: =IF(G21=1,"miesiąc",IF(AND(G21>1,G21<5),"miesiące","miesięcy")) -> miesięcy | I22: =IF(I21=1,"rok",IF(AND(I21>1,I21<5),"lata","lat")) -> lat | J22: =IF(J21=1,"miesiąc",IF(AND(J21>1,J21<5),"miesiące","miesięcy")) -> miesięcy
I25: 0 | J25: 0 | K25: 1 | L25: 2 | M25: 3 | N25: 4 | O25: 5 | P25: 6 | Q25: 7 | R25: 8 | S25: 9 | T25: 10 | U25: 11 | V25: 12 | W25: 13
B26: Lata projekcji | F26: =IF(G26=0,0,G26-1) -> 0 | G26: =IF(H26=0,0,H26-1) -> 0 | H26: =IF(OR(ISBLANK(C12),ISBLANK(Poczatek),ISBLANK(C20),ISBLANK(D16),ISBLANK(D20),G21<0),0,IF(ISBLANK(DaneBiezace),YEAR(RokObrotowyPoczatek)-1,IF(ISNUMBER(I26),YEAR(I26)-1,IF(ISBLANK(C12),0,IF(OR(AND(YEAR(TODAY())=YEAR(C12),ISBLANK(DaneBiezace)),AND((YEAR(C12)-YEAR(DaneBiezace)=1),(YEAR(TODAY())-YEAR(DaneBiezace)=1))),YEAR(C12)-2,YEAR(C12)-1))))) -> 0 | I26: =IF(OR(ISBLANK(DaneBiezace),YEAR(C12)-YEAR(DaneBiezace)>1),"",DaneBiezace) ->  | J26: =IF(ISBLANK(C16),"Uzupełnij dane",IF(D118=0,D130,D118)) -> Uzupełnij dane | K26: =IFERROR(J26+1,"") ->  | L26: =IFERROR(K26+1,"") -> 
F27: n-3 | G27: n-2 | H27: n-1 | I27: n | J27: =IFERROR(VLOOKUP(J26,$D$118:$E$145,2,),"") -> 
B29: Liczba dni w okresie | F29: =IFERROR(IF(F30=12,IF(OR(F26=2012,F26=2016,F26=2020,F26=2024,F26=2028,F26=2032,F26=2036,F26=2040),366,365),ROUND(30.4166*F30,0)),"") -> 365 | G29: =IFERROR(IF(G30=12,IF(OR(G26=2012,G26=2016,G26=2020,G26=2024,G26=2028,G26=2032,G26=2036,G26=2040),366,365),ROUND(30.4166*G30,0)),"") -> 365 | H29: 365 | I29: =IFERROR(IF(Rok_n="","",IF(I30=12,IF(OR(I26=2012,I26=2016,I26=2020,I26=2024,I26=2028,I26=2032,I26=2036,I26=2040),366,365),ROUND(30.4166*I30,0))),"") ->  | S29: =IFERROR(IF(S30=12,IF(OR(S26=2012,S26=2016,S26=2020,S26=2024,S26=2028,S26=2032,S26=2036,S26=2040),366,365),ROUND(30.4166*S30,0)),"") ->  | T29: =IFERROR(IF(T30=12,IF(OR(T26=2012,T26=2016,T26=2020,T26=2024,T26=2028,T26=2032,T26=2036,T26=2040),366,365),ROUND(30.4166*T30,0)),"") ->  | U29: =IFERROR(IF(U30=12,IF(OR(U26=2012,U26=2016,U26=2020,U26=2024,U26=2028,U26=2032,U26=2036,U26=2040),366,365),ROUND(30.4166*U30,0)),"") ->  | V29: =IFERROR(IF(V30=12,IF(OR(V26=2012,V26=2016,V26=2020,V26=2024,V26=2028,V26=2032,V26=2036,V26=2040),366,365),ROUND(30.4166*V30,0)),"") ->  | W29: =IFERROR(IF(W30=12,IF(OR(W26=2012,W26=2016,W26=2020,W26=2024,W26=2028,W26=2032,W26=2036,W26=2040),366,365),ROUND(30.4166*W30,0)),"") -> 
B30: Liczba miesięcy | F30: 12 | G30: 12 | H30: 12 | I30: =IF(Rok_n="","",IF(ISBLANK(DaneBiezace),"",IF((MONTH(DaneBiezace)-MONTH(C12))<0,((MONTH(DaneBiezace)-MONTH(C12))+1)+12,(MONTH(DaneBiezace)-MONTH(C12))+1))) ->  | J30: =IF(ISNUMBER(J26),12,"") ->  | K30: =IF(ISNUMBER(K26),12,"") ->  | S30: =IF(ISNUMBER(S26),12,"") ->  | T30: =IF(ISNUMBER(T26),12,"") ->  | U30: =IF(ISNUMBER(U26),12,"") ->  | V30: =IF(ISNUMBER(V26),12,"") ->  | W30: =IF(ISNUMBER(W26),12,"") -> 
B32: Stopa dyskonta
B33: Współczynnik dyskonta | I33: =IFERROR(NPV!J24,"") -> 1 | J33: =IFERROR(NPV!J24,"") -> 1 | K33: =IFERROR(NPV!K24,"") -> 1 | L33: =IFERROR(NPV!L24,"") -> 1 | M33: =IFERROR(NPV!M24,"") -> 1 | N33: =IFERROR(NPV!N24,"") -> 1 | O33: =IFERROR(NPV!O24,"") -> 1 | P33: =IFERROR(NPV!P24,"") -> 1 | Q33: =IFERROR(NPV!Q24,"") -> 1 | R33: =IFERROR(NPV!R24,"") -> 1 | S33: =IFERROR(NPV!S24,"") -> 1 | T33: =IFERROR(NPV!T24,"") -> 1 | U33: =IFERROR(NPV!U24,"") -> 1 | V33: =IFERROR(NPV!V24,"") -> 1 | W33: =IFERROR(NPV!W24,"") -> 1
B35: Stopa podatku dochodowego
B37: ZUS jako % płac
B40: Kapitał pracujący (dla Projektu)
B41: Rotacja należności | C41: dni
B42: Rotacja zapasów | C42: dni
B43: Rotacja zobowiązań | C43: dni
B45: Stawki amortyzacji
B46: koszty zakończonych prac rozwojowych | C46: %
B47: wartość firmy | C47: %
B48: inne wartości niematerialne i prawne | C48: %
B49: grunty (w tym prawo użytkowania wieczystego gruntu) | C49: %
B50: budynki i budowle | C50: %
B51: urządzenia techniczne i maszyny | C51: %
B52: środki transportu | C52: %
B53: inne środki trwałe | C53: %
B56: Finansowanie
B57: Koszt pożyczek od udziałowców | C57: %
B58: Koszt kredytów krótkoterminowych | C58: %
B59: Koszt kredytów długoterminowych | C59: %
B60: Przychody z tytułu oprocentowania środków pieniężnych | C60: %
B61: Przychody z tytułu oprocentowania depozytów | C61: %
B65: Komentarz
B118: PrzedRealizacją | C118: 1 | D118: =IF(ISTEXT(I26),H26+1,IF(RokObrotowyPoczatek-DaneBiezace=1,H26+2,IF($C$16<=YEAR(DaneBiezace),0,YEAR(DaneBiezace)))) -> 1 | E118: pr1
C119: 2 | D119: =IF(OR(($C$16<=(D118+1)),(D118=0)),0,(D118+1)) -> 0 | E119: pr2
C120: 3 | D120: 0 | E120: pr3
C121: 4 | D121: 0 | E121: pr4
C122: 5 | D122: 0 | E122: pr5
C123: 6 | D123: 0 | E123: pr6
C124: 7 | D124: 0 | E124: pr7
C125: 8 | D125: 0 | E125: pr8
C126: 9 | D126: 0 | E126: pr9
B130: Realizacja | C130: 1 | D130: =IF(C130>$C$19,0,$C$16+C130-1) -> 0 | E130: r1
C131: 2 | D131: 0 | E131: r2
C132: 3 | D132: 0 | E132: r3
C133: 4 | D133: 0 | E133: r4
C134: 5 | D134: 0 | E134: r5
C135: 6 | D135: 0 | E135: r6
C136: 7 | D136: 0 | E136: r7
C137: 8 | D137: 0 | E137: r8
C138: 9 | D138: 0 | E138: r9
B141: Trwałość | C141: 1 | D141: =VLOOKUP($C$19,C130:D138,2)+1 ->  | E141: t1
C142: 2 | D142: =IF(C142>$C$21,0,D141+1) ->  | E142: t2
C143: 3 | D143: =IF(C143>$C$21,0,D142+1) ->  | E143: t3
C144: 4 | D144: =IF(C144>$C$21,0,D143+1) ->  | E144: t4
C145: 5 | D145: =IF(C145>$C$21,0,D144+1) ->  | E145: t5
B148: MŚP | C148: FALSE
B150: czy rok realizacji nie jest wcześniejszy niż bieżący okres | C150: =IF(AND((C16>=YEAR(C12)),(C16<=$C$17)),1,0) -> 0
B151: Okres realizacji projektu | C151: =IF(C18=0,0,IF(C19=0,0,IF(C19>C18,0,1))) -> 0

Sheet Poziom dofinansowania (hidden)
B2: =IF(ISBLANK(Firma),"Wstaw nazwę firmy",Firma) -> Wstaw nazwę firmy
B12: Czy Wnioskodawca jest MŚP? | D12: =IF(Założenia!C148,"Tak","Nie") -> Nie | H12: =IF(proj_gen_doch="tak","Projekt kwalifikuje się jako Projekt generujący dochód, dlatego w modelu należy stosować poniższy poziom dofinansowania","") -> 
B14: Czy wartość projektu przekracza równowartość 1 mln EUR? | D14: =IF(ISTEXT(D16),"Uzupełnij dane",IFERROR(IF(D16>=1000000,"Tak","Nie"),"Uzupełnij dane")) -> Uzupełnij dane
B16: Równowartość projektu w EUR | D16: =IFERROR(IF(OR(ISBLANK(D18),D60=0),"Uzupełnij dane",ROUND(D60/D18,2)),"Uzupełnij dane") -> Uzupełnij dane
B18: Średni kurs NBP PLN/EUR
H19: ß
B20: Czy Projekt kwalifikuje się jako Projekt generujący dochdód? | D20: =IF(D14="uzupełnij dane","Uzupełnij dane",IFERROR(IF(AND(D12="nie",D14="tak"),"Tak","Nie"),"Uzupełnij dane")) -> Uzupełnij dane
B22: Uwaga! Dane liczbowe w poniższej tabeli należy podać w PLN, BEZ ZAOKRĄGLEŃ
C23: Nakłady kwalifikowane | E23: Skorygowane nakłady kwalifikowane o zryczałtowaną stopę dochodów | F23: Poziom dofinansowania zgodnie z pomocą publiczną (w %) | G23: Rzeczywisty poziom dofinansowania (w PLN) | H23: Rzeczywisty poziom dofinansowania (w %)
C24: [opis] | D24: [kwota w PLN]
B25: Wydatki inwestycyjne finansowane zgodnie z mapą pomocy regionalnej | E25: =IF(proj_gen_doch="tak",ROUND(D25*0.8,2),D25) -> 0 | G25: =IFERROR(ROUND(E25*F25,2),0) -> 0 | H25: =IFERROR(ROUND(G25/D25,4),0) -> 0
E26: 0 | G26: =IFERROR(ROUND(E26*F26,2),0) -> 0 | H26: =IFERROR(ROUND(G26/D26,4),0) -> 0
E27: 0 | G27: 0 | H27: 0
E28: =IF(proj_gen_doch="tak",ROUND(D28*0.8,2),D28) -> 0 | G28: 0 | H28: 0
E29: 0 | G29: 0 | H29: 0
E30: 0 | G30: 0 | H30: 0
E31: 0 | G31: 0 | H31: 0
E32: 0 | G32: 0 | H32: 0
E33: 0 | G33: 0 | H33: 0
E34: 0 | G34: 0 | H34: 0
C35: Razem | D35: =SUM(D25:D34) -> 0 | E35: =SUM(E25:E34) -> 0 | G35: =SUM(G25:G34) -> 0 | H35: 0
B37: Wydatki na prace badawczo-rozwojowe (B+R) | E37: =IF(proj_gen_doch="tak",ROUND(D37*0.8,2),D37) -> 0 | G37: =IFERROR(ROUND(E37*F37,2),0) -> 0 | H37: =IFERROR(ROUND(G37/D37,4),0) -> 0
E38: 0 | G38: =IFERROR(ROUND(E38*F38,2),0) -> 0 | H38: =IFERROR(ROUND(G38/D38,4),0) -> 0
E39: 0 | G39: 0 | H39: 0
E40: 0 | G40: 0 | H40: 0
E41: 0 | G41: 0 | H41: 0
E42: 0 | G42: 0 | H42: 0
E43: 0 | G43: 0 | H43: 0
E44: 0 | G44: 0 | H44: 0
E45: 0 | G45: 0 | H45: 0
E46: 0 | G46: 0 | H46: 0
C47: Razem | D47: =SUM(D37:D46) -> 0 | E47: =SUM(E37:E46) -> 0 | G47: =SUM(G37:G46) -> 0 | H47: 0
B49: Wydatki finansowane z pomocy de minimis | E49: =IF(proj_gen_doch="tak",ROUND(D49*1,2),D49) -> 0 | G49: =IFERROR(ROUND(E49*F49,2),0) -> 0 | H49: =IFERROR(ROUND(G49/D49,4),0) -> 0
E50: 0 | G50: =IFERROR(ROUND(E50*F50,2),0) -> 0 | H50: =IFERROR(ROUND(G50/D50,4),0) -> 0
E51: =IF(proj_gen_doch="tak",ROUND(D51*1,2),D51) -> 0 | G51: 0 | H51: 0
E52: 0 | G52: 0 | H52: 0
E53: 0 | G53: 0 | H53: 0
E54: 0 | G54: 0 | H54: 0
E55: 0 | G55: 0 | H55: 0
E56: 0 | G56: 0 | H56: 0
E57: 0 | G57: 0 | H57: 0
E58: 0 | G58: 0 | H58: 0
C59: Razem | D59: =SUM(D49:D58) -> 0 | E59: =SUM(E49:E58) -> 0 | G59: =SUM(G49:G58) -> 0 | H59: 0
C60: Razem | D60: =D59+D47+D35 -> 0 | E60: =E59+E47+E35 -> 0 | G60: =G59+G47+G35 -> 0 | H60: 0

Sheet Sprawozdania finansowe
B2: =IF(ISBLANK(Firma),"Wstaw nazwę firmy",Firma) -> Wstaw nazwę firmy
B11: Bilans (w tys. PLN) | C11: =Założenia!F26 -> 0 | D11: =Założenia!G26 -> 0 | E11: =Założenia!H26 -> 0 | F11: =Założenia!I26 -> 
B13: A. Aktywa trwałe | C13: =C14+C19+C28+C31+C46 -> 0 | D13: =D14+D19+D28+D31+D46 -> 0 | E13: =E14+E19+E28+E31+E46 -> 0 | F13: =F14+F19+F28+F31+F46 -> 0
B14: I. Wartości niematerialne i prawne | C14: =SUM(C15:C18) -> 0 | D14: =SUM(D15:D18) -> 0 | E14: =SUM(E15:E18) -> 0 | F14: =SUM(F15:F18) -> 0
B15: 1. Koszty zakończonych prac rozwojowych
B16: 2. Wartość firmy
B17: 3. Inne wartości niematerialne i prawne
B18: 4. Zaliczki na wartości niematerialne i prawne
B19: II. Rzeczowe aktywa trwałe | C19: =C20+C26+C27 -> 0 | D19: =D20+D26+D27 -> 0 | E19: =E20+E26+E27 -> 0 | F19: =F20+F26+F27 -> 0
B20: 1. Środki trwałe | C20: =SUM(C21:C25) -> 0 | D20: =SUM(D21:D25) -> 0 | E20: =SUM(E21:E25) -> 0 | F20: =SUM(F21:F25) -> 0
B21: a) grunty (w tym prawo użytk. wiecz. gruntu)
B22: b) budynki, lokale i obiekty inż. lądowej i wodnej
B23: c) urządzenia techniczne i maszyny
B24: d) środki transportu
B25: e) inne środki trwałe
B26: 2. Środki trwałe w budowie
B27: 3. Zaliczki na środki trwałe w budowie
B28: III. Należności długoterminowe | C28: =C29+C30 -> 0 | D28: =D29+D30 -> 0 | E28: =E29+E30 -> 0 | F28: =F29+F30 -> 0
B29: 1. Od jednostek powiązanych
B30: 2. Od pozostałych jednostek
B31: IV. Inwestycje długoterminowe | C31: =C32+C33+C34+C45 -> 0 | D31: =D32+D33+D34+D45 -> 0 | E31: =E32+E33+E34+E45 -> 0 | F31: =F32+F33+F34+F45 -> 0
B32: 1. Nieruchomości
B33: 2. Wartości niematerialne i prawne
B34: 3. Długoterminowe aktywa finansowe | C34: =C35+C40 -> 0 | D34: =D35+D40 -> 0 | E34: =E35+E40 -> 0 | F34: =F35+F40 -> 0
B35: a) w jednostkach powiązanych | C35: =SUM(C36:C39) -> 0 | D35: =SUM(D36:D39) -> 0 | E35: =SUM(E36:E39) -> 0 | F35: =SUM(F36:F39) -> 0
B36: - udziały lub akcje
B37: - inne papiery wartościowe
B38: - udzielone pożyczki
B39: - inne długoterminowe aktywa finansowe
B40: b) w pozostałych jednostkach | C40: =SUM(C41:C44) -> 0 | D40: =SUM(D41:D44) -> 0 | E40: =SUM(E41:E44) -> 0 | F40: =SUM(F41:F44) -> 0
B41: - udziały lub akcje
B42: - inne papiery wartościowe
B43: - udzielone pożyczki
B44: - inne długoterminowe aktywa finansowe
B45: 4. Inne inwestycje długoterminowe
B46: V. Długoterminowe rozliczenia międzyokresowe | C46: =SUM(C47:C48) -> 0 | D46: =SUM(D47:D48) -> 0 | E46: =SUM(E47:E48) -> 0 | F46: =SUM(F47:F48) -> 0
B47: 1. Aktywa z tytułu odroczonego pod. dochodowego
B48: 2. Inne rozliczenia międzyokresowe
B49: B. Aktywa obrotowe | C49: =C50+C56+C69+C86 -> 0 | D49: =D50+D56+D69+D86 -> 0 | E49: =E50+E56+E69+E86 -> 0 | F49: =F50+F56+F69+F86 -> 0
B50: I. Zapasy | C50: =SUM(C51:C55) -> 0 | D50: =SUM(D51:D55) -> 0 | E50: =SUM(E51:E55) -> 0 | F50: =SUM(F51:F55) -> 0
B51: 1. Materiały
B52: 2. Półprodukty i produkty w toku
B53: 3. Produkty gotowe
B54: 4. Towary
B55: 5. Zaliczki na dostawy
B56: II. Należności krótkoterminowe | C56: =C57+C62 -> 0 | D56: =D57+D62 -> 0 | E56: =E57+E62 -> 0 | F56: =F57+F62 -> 0
B57: 1. Należności od jednostek powiązanych | C57: =C58+C61 -> 0 | D57: =D58+D61 -> 0 | E57: =E58+E61 -> 0 | F57: =F58+F61 -> 0
B58: a) z tytułu dostaw i usług o okresie spłaty | C58: =SUM(C59:C60) -> 0 | D58: =SUM(D59:D60) -> 0 | E58: =SUM(E59:E60) -> 0 | F58: =SUM(F59:F60) -> 0
B59: - do 12 miesięcy
B60: - powyżej 12 miesięcy
B61: b) inne
B62: 2. Należności od pozostałych jednostek | C62: =C63+C66+C67+C68 -> 0 | D62: =D63+D66+D67+D68 -> 0 | E62: =E63+E66+E67+E68 -> 0 | F62: =F63+F66+F67+F68 -> 0
B63: a) z tytułu dostaw i usług o okresie spłaty | C63: =SUM(C64:C65) -> 0 | D63: =SUM(D64:D65) -> 0 | E63: =SUM(E64:E65) -> 0 | F63: =SUM(F64:F65) -> 0
B64: - do 12 miesięcy
B65: - powyżej 12 miesięcy
B66: b) z tytułu podatków, dotacji, ceł, ubezp.społ i zdrowotnych oraz innych świadczeń
B67: c) inne
B68: d) dochodzone na drodze sądowej
B69: III. Inwestycje krótkoterminowe | C69: =C70+C85 -> 0 | D69: =D70+D85 -> 0 | E69: =E70+E85 -> 0 | F69: =F70+F85 -> 0
B70: 1. Krótkoterminowe aktywa finansowe | C70: =C71+C76+C81 -> 0 | D70: =D71+D76+D81 -> 0 | E70: =E71+E76+E81 -> 0 | F70: =F71+F76+F81 -> 0
B71: a) w jednostkach powiązanych | C71: =SUM(C72:C75) -> 0 | D71: =SUM(D72:D75) -> 0 | E71: =SUM(E72:E75) -> 0 | F71: =SUM(F72:F75) -> 0
B72: - udziały lub akcje
B73: - inne papiery wartościowe
B74: - udzielone pożyczki
B75: - inne krótkoterminowe aktywa finansowe
B76: b) w pozostałych jednostkach | C76: =SUM(C77:C80) -> 0 | D76: =SUM(D77:D80) -> 0 | E76: =SUM(E77:E80) -> 0 | F76: =SUM(F77:F80) -> 0
B77: - udziały lub akcje
B78: - inne papiery wartościowe
B79: - udzielone pożyczki
B80: - inne krótkoterminowe aktywa finansowe
B81: c) środki pieniężne i inne aktywa pieniężne | C81: =SUM(C82:C84) -> 0 | D81: =SUM(D82:D84) -> 0 | E81: =SUM(E82:E84) -> 0 | F81: =SUM(F82:F84) -> 0
B82: - środki pieniężne w kasie i na rachunkach
B83: - inne środki pieniężne
B84: - inne aktywa pieniężne
B85: 2. Inne inwestycje krótkoterminowe
B86: IV. Krótkoterminowe rozliczenia międzyokresowe
B87: Aktywa razem | C87: =C13+C49 -> 0 | D87: =D13+D49 -> 0 | E87: =E13+E49 -> 0 | F87: =F13+F49 -> 0
B92: Aktywa - Pasywa: jeżeli 0 to OK | C92: =IF(C144=C87,"OK",C87-C144) -> OK | D92: =IF(D144=D87,"OK",D87-D144) -> OK | E92: =IF(E144=E87,"OK",E87-E144) -> OK | F92: =IF(F144=F87,"OK",F87-F144) -> OK
B93: Bilans (w tys. PLN) | C93: =C11 -> 0 | D93: =D11 -> 0 | E93: =E11 -> 0 | F93: =F11 -> 
B94: A. Kapitał (fundusz) własny | C94: =SUM(C95:C103) -> 0 | D94: =SUM(D95:D103) -> 0 | E94: =SUM(E95:E103) -> 0 | F94: =SUM(F95:F103) -> 0
B95: I. Kapitał (fundusz) podstawowy
B96: II. Należne wpłaty na kapitał podstawowy (wielkość ujemna)
B97: III. Udziały (akcje) własne (wielkość ujemna)
B98: IV. Kapitał (fundusz) zapasowy
B99: V. Kapitał (fundusz) z aktualizacji wyceny
B100: VI. Pozostałe kapitały (fundusze) rezerwowe
B101: VII. Zysk (strata) z lat ubiegłych
B102: VIII. Zysk (strata) netto | C102: =C197 -> 0 | D102: =D197 -> 0 | E102: =E197 -> 0 | F102: =F197 -> 0
B103: IX. Odpisy z zysku netto w ciągu roku obrotowego (wielkość ujemna)
B104: B. Zobowiązania i rezerwy na zobowiązania | C104: =C105+C113+C120+C139 -> 0 | D104: =D105+D113+D120+D139 -> 0 | E104: =E105+E113+E120+E139 -> 0 | F104: =F105+F113+F120+F139 -> 0
B105: I. Rezerwy na zobowiązania | C105: =C106+C107+C110 -> 0 | D105: =D106+D107+D110 -> 0 | E105: =E106+E107+E110 -> 0 | F105: =F106+F107+F110 -> 0
B106: 1. Rezerwa z tytułu odroczonego pod. doch.
B107: 2. Rezerwa na świadczenia emerytalne i podobne | C107: =C108+C109 -> 0 | D107: =D108+D109 -> 0 | E107: =E108+E109 -> 0 | F107: =F108+F109 -> 0
B108: - długoterminowa
B109: - krótkoterminowa
B110: 3. Pozostałe rezerwy | C110: =C111+C112 -> 0 | D110: =D111+D112 -> 0 | E110: =E111+E112 -> 0 | F110: =F111+F112 -> 0
B111: - długoterminowe
B112: - krótkoterminowe
B113: II. Zobowiązania długoterminowe | C113: =C114+C115 -> 0 | D113: =D114+D115 -> 0 | E113: =E114+E115 -> 0 | F113: =F114+F115 -> 0
B114: 1. Wobec jednostek powiązanych
B115: 2. Wobec pozostałych jednostek | C115: =SUM(C116:C119) -> 0 | D115: =SUM(D116:D119) -> 0 | E115: =SUM(E116:E119) -> 0 | F115: =SUM(F116:F119) -> 0
B116: a) kredyty i pożyczki
B117: b) z tytułu emisji dłużnych papierów wart.
B118: c) inne zobowiązania finansowe
B119: d) inne
B120: III. Zobowiązania krótkoterminowe | C120: =C121+C126+C138 -> 0 | D120: =D121+D126+D138 -> 0 | E120: =E121+E126+E138 -> 0 | F120: =F121+F126+F138 -> 0
B121: 1. Wobec jednostek powiązanych | C121: =C122+C125 -> 0 | D121: =D122+D125 -> 0 | E121: =E122+E125 -> 0 | F121: =F122+F125 -> 0
B122: a) z tytułu dostaw i usług o okresie wymagalności | C122: =C123+C124 -> 0 | D122: =D123+D124 -> 0 | E122: =E123+E124 -> 0 | F122: =F123+F124 -> 0
B123: - do 12 miesięcy
B124: - powyżej 12 miesięcy
B125: b) inne
B126: 2. Wobec pozostałych jednostek | C126: =C127+C128+C129+C130+C133+C134+C135+C136+C137 -> 0 | D126: =D127+D128+D129+D130+D133+D134+D135+D136+D137 -> 0 | E126: =E127+E128+E129+E130+E133+E134+E135+E136+E137 -> 0 | F126: =F127+F128+F129+F130+F133+F134+F135+F136+F137 -> 0
B127: a) kredyty i pożyczki
B128: b) z tytułu emisji dłużnych papierów wart.
B129: c) inne zobowiązania finansowe
B130: d) z tytułu dostaw i usług o okresie wymagalności | C130: =C131+C132 -> 0 | D130: =D131+D132 -> 0 | E130: =E131+E132 -> 0 | F130: =F131+F132 -> 0
B131: - do 12 miesięcy
B132: - powyżej 12 miesięcy
B133: e) zaliczki otrzymane na dostawy
B134: f) zobowiązania wekslowe
B135: g) z tytułu podatków, ceł, ubezp. i innych świadczeń
B136: h) z tytułu wynagrodzeń
B137: i) inne
B138: 3. Fundusze specjalne
B139: IV. Rozliczenia międzyokresowe | C139: =C140+C141 -> 0 | D139: =D140+D141 -> 0 | E139: =E140+E141 -> 0 | F139: =F140+F141 -> 0
B140: 1. Ujemna wartość firmy
B141: 2. Inne rozliczenia międzyokresowe | C141: =C142+C143 -> 0 | D141: =D142+D143 -> 0 | E141: =E142+E143 -> 0 | F141: =F142+F143 -> 0
B142: - długoterminowe
B143: - krótkoterminowe
B144: Pasywa razem | C144: =C104+C94 -> 0 | D144: =D104+D94 -> 0 | E144: =E104+E94 -> 0 | F144: =F104+F94 -> 0
B146: Aktywa - Pasywa: jeżeli 0 to OK | C146: =IF(C144=C87,"OK",C87-C144) -> OK | D146: =IF(D144=D87,"OK",D87-D144) -> OK | E146: =IF(E144=E87,"OK",E87-E144) -> OK | F146: =IF(F144=F87,"OK",F87-F144) -> OK
B149: Rachunek zysków i strat (w tys. PLN) | C149: =C11 -> 0 | D149: =D11 -> 0 | E149: =E11 -> 0 | F149: =F11 -> 
B150: A. Przychody netto ze sprzedaży i zrównane z nimi, w tym | C150: =C152+C153+C154+C155 -> 0 | D150: =D152+D153+D154+D155 -> 0 | E150: =E152+E153+E154+E155 -> 0 | F150: =F152+F153+F154+F155 -> 0
B151: - od jednostek powiązanych
B152: I. Przychody netto ze sprzedaży produktów
B153: II. Zmiana stanu produktów (zwiększenie - wartość dodatnia, zmniejszenie - wartość ujemna)
B154: III. Koszt wytworzenia produktów na własne potrzeby jednostki
B155: IV. Przychody netto ze sprzedaży towarów i materiałów
B156: B. Koszty działalności operacyjnej | C156: =SUM(C157:C165)-C161 -> 0 | D156: =SUM(D157:D165)-D161 -> 0 | E156: =SUM(E157:E165)-E161 -> 0 | F156: =SUM(F157:F165)-F161 -> 0
B157: I. Amortyzacja
B158: II. Zużycie materiałów i energii
B159: III. Usługi obce
B160: IV. Podatki i opłaty, w tym
B161: - podatek akcyzowy
B162: V. Wynagrodzenia
B163: VI. Ubezpieczenia społeczne i inne świadczenia
B164: VII. Pozostałe koszty rodzajowe
B165: VIII. Wartość sprzedanych towarów i materiałów
B166: C. Zysk (strata) ze sprzedaży (A-B) | C166: =C150-C156 -> 0 | D166: =D150-D156 -> 0 | E166: =E150-E156 -> 0 | F166: =F150-F156 -> 0
B167: D. Pozostałe przychody operacyjne | C167: =SUM(C168:C170) -> 0 | D167: =SUM(D168:D170) -> 0 | E167: =SUM(E168:E170) -> 0 | F167: =SUM(F168:F170) -> 0
B168: I. Zysk ze zbycia niefinansowych aktywów trwałych
B169: II. Dotacje
B170: III. Inne przychody operacyjne
B171: E. Pozostałe koszty operacyjne | C171: =SUM(C172:C174) -> 0 | D171: =SUM(D172:D174) -> 0 | E171: =SUM(E172:E174) -> 0 | F171: =SUM(F172:F174) -> 0
B172: I. Strata ze zbycia niefinansowych aktywów trwałych
B173: II. Aktualizacja wartości aktywów niefinansowych
B174: III. Inne koszty operacyjne
B175: F. Zysk (strata) z działalności operacyjnej (C+D-E) | C175: =C166+C167-C171 -> 0 | D175: =D166+D167-D171 -> 0 | E175: =E166+E167-E171 -> 0 | F175: =F166+F167-F171 -> 0
B176: G. Przychody finansowe | C176: =C177+C179+C181+C182+C183 -> 0 | D176: =D177+D179+D181+D182+D183 -> 0 | E176: =E177+E179+E181+E182+E183 -> 0 | F176: =F177+F179+F181+F182+F183 -> 0
B177: I. Dywidendy i udziały w zyskach, w tym
B178: - od jednostek powiązanych
B179: II. Odsetki, w tym
B180: - od jednostek powiązanych
B181: III. Zysk ze zbycia inwestycji
B182: IV. Aktualizacja wartości inwestycji
B183: V. Inne
B184: H. Koszty finansowe | C184: =SUM(C185:C189)-C186 -> 0 | D184: =SUM(D185:D189)-D186 -> 0 | E184: =SUM(E185:E189)-E186 -> 0 | F184: =SUM(F185:F189)-F186 -> 0
B185: I. Odsetki, w tym
B186: - od jednostek powiązanych
B187: II. Strata ze zbycia inwestycji
B188: III. Aktualizacja wartości inwestycji
B189: IV. Inne
B190: I. Zysk (strata) z działalności gospodarczej (F+G-H) | C190: =C175+C176-C184 -> 0 | D190: =D175+D176-D184 -> 0 | E190: =E175+E176-E184 -> 0 | F190: =F175+F176-F184 -> 0
B191: J. Wynik zdarzeń nadzwyczajnych (J.I. - J.II.) | C191: =C192-C193 -> 0 | D191: =D192-D193 -> 0 | E191: =E192-E193 -> 0 | F191: =F192-F193 -> 0
B192: I. Zyski nadzwyczajne
B193: II. Straty nadzwyczajne
B194: K. Zysk (strata) brutto (I+J) | C194: =C190+C191 -> 0 | D194: =D190+D191 -> 0 | E194: =E190+E191 -> 0 | F194: =F190+F191 -> 0
B195: L. Podatek dochodowy
B196: M. Pozostałe obowiązkowe zmniejszenie zysku (zwiększenie straty)
B197: N. Zysk (strata) netto (K-L-M) | C197: =C194-C195-C196 -> 0 | D197: =D194-D195-D196 -> 0 | E197: =E194-E195-E196 -> 0 | F197: =F194-F195-F196 -> 0
C199: =C197=C102 -> TRUE | D199: =D197=D102 -> TRUE | E199: =E197=E102 -> TRUE | F199: =F197=F102 -> TRUE

Sheet Przychody
B2: =IF(ISBLANK(Firma),"Wstaw nazwę firmy",Firma) -> Wstaw nazwę firmy
J11: =Założenia!J25 -> 0 | K11: =Założenia!K25 -> 1 | L11: =Założenia!L25 -> 2 | M11: =Założenia!M25 -> 3 | N11: =Założenia!N25 -> 4 | O11: =Założenia!O25 -> 5 | P11: =Założenia!P25 -> 6 | Q11: =Założenia!Q25 -> 7 | R11: =Założenia!R25 -> 8 | S11: =Założenia!S25 -> 9 | T11: =Założenia!T25 -> 10 | U11: =Założenia!U25 -> 11 | V11: =Założenia!V25 -> 12 | W11: =Założenia!W25 -> 13
B12: Działalność dotychczasowa (bez Projektu) | F12: =Założenia!F26 -> 0 | G12: =Założenia!G26 -> 0 | H12: =Założenia!H26 -> 0 | I12: =Założenia!I26 ->  | J12: =LataProjekcji -> Uzupełnij dane
B14: Przychody netto ze sprzedaży produktów Nazwa / Ilość produktów
B20: Cena produktu
B21: =IF(ISBLANK(B15),"",B15) -> 
B22: =IF(ISBLANK(B16),"",B16) -> 
B23: =IF(ISBLANK(B17),"",B17) -> 
B24: =IF(ISBLANK(B18),"",B18) -> 
B25: =IF(ISBLANK(B19),"",B19) -> 
B26: Wartość sprzedaży produktów
B27: =IF(ISBLANK(B21),"",B21) ->  | J27: =ROUND(J21*J15,0) -> 0 | K27: 0 | L27: 0 | M27: 0 | N27: 0 | O27: 0 | P27: 0 | Q27: 0 | R27: 0 | S27: 0 | T27: 0 | U27: 0 | V27: 0 | W27: 0
B28: =IF(ISBLANK(B22),"",B22) ->  | J28: =ROUND(J22*J16,0) -> 0 | K28: 0 | L28: 0 | M28: 0 | N28: 0 | O28: 0 | P28: 0 | Q28: 0 | R28: 0 | S28: 0 | T28: 0 | U28: 0 | V28: 0 | W28: 0
B29: =IF(ISBLANK(B23),"",B23) ->  | J29: =ROUND(J23*J17,0) -> 0 | K29: 0 | L29: 0 | M29: 0 | N29: 0 | O29: 0 | P29: 0 | Q29: 0 | R29: 0 | S29: 0 | T29: 0 | U29: 0 | V29: 0 | W29: 0
B30: =IF(ISBLANK(B24),"",B24) ->  | J30: =ROUND(J24*J18,0) -> 0 | K30: 0 | L30: 0 | M30: 0 | N30: 0 | O30: 0 | P30: 0 | Q30: 0 | R30: 0 | S30: 0 | T30: 0 | U30: 0 | V30: 0 | W30: 0
B31: =IF(ISBLANK(B25),"",B25) ->  | J31: =ROUND(J25*J19,0) -> 0 | K31: 0 | L31: 0 | M31: 0 | N31: 0 | O31: 0 | P31: 0 | Q31: 0 | R31: 0 | S31: 0 | T31: 0 | U31: 0 | V31: 0 | W31: 0
B32: Razem Sprzedaż produktów | J32: =IF(LataProjekcji<=Koniec,ROUND(SUM(J27:J31),0),0) -> 0 | K32: 0 | L32: 0 | M32: 0 | N32: 0 | O32: 0 | P32: 0 | Q32: 0 | R32: 0 | S32: 0 | T32: 0 | U32: 0 | V32: 0 | W32: 0
B35: Zmiana stanu produktów ([+] zwiększenie / [-] zmiejszenie) | J35: =LataProjekcji -> Uzupełnij dane
B41: Razem Zmiana stanu produktów | J41: =IF(LataProjekcji<=Koniec,ROUND(SUM(J36:J40),0),0) -> 0 | K41: 0 | L41: 0 | M41: 0 | N41: 0 | O41: 0 | P41: 0 | Q41: 0 | R41: 0 | S41: 0 | T41: 0 | U41: 0 | V41: 0 | W41: 0
B44: Koszt wytworzenia produktów na własne potrzeby jednostki | J44: =LataProjekcji -> Uzupełnij dane
B50: Razem Koszt wytworzenia produktów na własne potrzeby jednostki | J50: =IF(LataProjekcji<=Koniec,ROUND(SUM(J45:J49),0),0) -> 0 | K50: 0 | L50: 0 | M50: 0 | N50: 0 | O50: 0 | P50: 0 | Q50: 0 | R50: 0 | S50: 0 | T50: 0 | U50: 0 | V50: 0 | W50: 0
B53: Przychody ze sprzedaży towarów i materiałów Nazwa / Ilość towaru | J53: =LataProjekcji -> Uzupełnij dane
B59: Cena za towar
B60: =IF(ISBLANK(B54),"",B54) -> 
B61: =IF(ISBLANK(B55),"",B55) -> 
B62: =IF(ISBLANK(B56),"",B56) -> 
B63: =IF(ISBLANK(B57),"",B57) -> 
B64: =IF(ISBLANK(B58),"",B58) -> 
B65: Wartość sprzedaży towarów i materiałów
B66: =IF(ISBLANK(B60),"",B60) ->  | J66: =ROUND(J60*J54,0) -> 0 | K66: 0 | L66: 0 | M66: 0 | N66: 0 | O66: 0 | P66: 0 | Q66: 0 | R66: 0 | S66: 0 | T66: 0 | U66: 0 | V66: 0 | W66: 0
B67: =IF(ISBLANK(B61),"",B61) ->  | J67: =ROUND(J61*J55,0) -> 0 | K67: 0 | L67: 0 | M67: 0 | N67: 0 | O67: 0 | P67: 0 | Q67: 0 | R67: 0 | S67: 0 | T67: 0 | U67: 0 | V67: 0 | W67: 0
B68: =IF(ISBLANK(B62),"",B62) ->  | J68: =ROUND(J62*J56,0) -> 0 | K68: 0 | L68: 0 | M68: 0 | N68: 0 | O68: 0 | P68: 0 | Q68: 0 | R68: 0 | S68: 0 | T68: 0 | U68: 0 | V68: 0 | W68: 0
B69: =IF(ISBLANK(B63),"",B63) ->  | J69: =ROUND(J63*J57,0) -> 0 | K69: 0 | L69: 0 | M69: 0 | N69: 0 | O69: 0 | P69: 0 | Q69: 0 | R69: 0 | S69: 0 | T69: 0 | U69: 0 | V69: 0 | W69: 0
B70: =IF(ISBLANK(B64),"",B64) ->  | J70: =ROUND(J64*J58,0) -> 0 | K70: 0 | L70: 0 | M70: 0 | N70: 0 | O70: 0 | P70: 0 | Q70: 0 | R70: 0 | S70: 0 | T70: 0 | U70: 0 | V70: 0 | W70: 0
B71: Razem Sprzedaż towarów i materiałów | J71: =IF(LataProjekcji<=Koniec,ROUND(SUM(J66:J70),0),0) -> 0 | K71: =IF(LataProjekcji<=Koniec,ROUND(SUM(K66:K70),0),0) -> 0 | L71: 0 | M71: 0 | N71: 0 | O71: 0 | P71: 0 | Q71: 0 | R71: 0 | S71: 0 | T71: 0 | U71: 0 | V71: 0 | W71: 0
B74: Wartość sprzedanych towarów i materiałów (Koszty operacyjne) / Ilość towaru | J74: =LataProjekcji -> Uzupełnij dane
B80: Cena za towar
B81: =IF(ISBLANK(B75),"",B75) -> 
B82: =IF(ISBLANK(B76),"",B76) -> 
B83: =IF(ISBLANK(B77),"",B77) -> 
B84: =IF(ISBLANK(B78),"",B78) -> 
B85: =IF(ISBLANK(B79),"",B79) -> 
B86: Wartość w cenie nabycia
B87: =IF(ISBLANK(B81),"",B81) ->  | J87: =ROUND(J81*J75,0) -> 0 | K87: 0 | L87: 0 | M87: 0 | N87: 0 | O87: 0 | P87: 0 | Q87: 0 | R87: 0 | S87: 0 | T87: 0 | U87: 0 | V87: 0 | W87: 0
B88: =IF(ISBLANK(B82),"",B82) ->  | J88: =ROUND(J82*J76,0) -> 0 | K88: 0 | L88: 0 | M88: 0 | N88: 0 | O88: 0 | P88: 0 | Q88: 0 | R88: 0 | S88: 0 | T88: 0 | U88: 0 | V88: 0 | W88: 0
B89: =IF(ISBLANK(B83),"",B83) ->  | J89: =ROUND(J83*J77,0) -> 0 | K89: 0 | L89: 0 | M89: 0 | N89: 0 | O89: 0 | P89: 0 | Q89: 0 | R89: 0 | S89: 0 | T89: 0 | U89: 0 | V89: 0 | W89: 0
B90: =IF(ISBLANK(B84),"",B84) ->  | J90: =ROUND(J84*J78,0) -> 0 | K90: 0 | L90: 0 | M90: 0 | N90: 0 | O90: 0 | P90: 0 | Q90: 0 | R90: 0 | S90: 0 | T90: 0 | U90: 0 | V90: 0 | W90: 0
B91: =IF(ISBLANK(B85),"",B85) ->  | J91: =ROUND(J85*J79,0) -> 0 | K91: 0 | L91: 0 | M91: 0 | N91: 0 | O91: 0 | P91: 0 | Q91: 0 | R91: 0 | S91: 0 | T91: 0 | U91: 0 | V91: 0 | W91: 0
B92: Razem Wartość sprzedanych towarów i materiałów | J92: =IF(LataProjekcji<=Koniec,ROUND(SUM(J87:J91),0),0) -> 0 | K92: 0 | L92: 0 | M92: 0 | N92: 0 | O92: 0 | P92: 0 | Q92: 0 | R92: 0 | S92: 0 | T92: 0 | U92: 0 | V92: 0 | W92: 0
B95: Pozostałe przychody operacyjne | J95: =LataProjekcji -> Uzupełnij dane
B100: Dotacje z lat poprzednich | J100: =ROUND('Rozliczenie dotacji'!J20,0) -> 0 | K100: =ROUND('Rozliczenie dotacji'!K20,0) -> 0 | L100: =ROUND('Rozliczenie dotacji'!L20,0) -> 0 | M100: =ROUND('Rozliczenie dotacji'!M20,0) -> 0 | N100: =ROUND('Rozliczenie dotacji'!N20,0) -> 0 | O100: =ROUND('Rozliczenie dotacji'!O20,0) -> 0 | P100: =ROUND('Rozliczenie dotacji'!P20,0) -> 0 | Q100: =ROUND('Rozliczenie dotacji'!Q20,0) -> 0 | R100: =ROUND('Rozliczenie dotacji'!R20,0) -> 0 | S100: =ROUND('Rozliczenie dotacji'!S20,0) -> 0 | T100: =ROUND('Rozliczenie dotacji'!T20,0) -> 0 | U100: =ROUND('Rozliczenie dotacji'!U20,0) -> 0 | V100: =ROUND('Rozliczenie dotacji'!V20,0) -> 0 | W100: =ROUND('Rozliczenie dotacji'!W20,0) -> 0
B101: Razem Pozostałe przychody operacyjne | J101: =IF(LataProjekcji<=Koniec,ROUND(SUM(J96:J100),0),0) -> 0 | K101: 0 | L101: 0 | M101: 0 | N101: 0 | O101: 0 | P101: 0 | Q101: 0 | R101: 0 | S101: 0 | T101: 0 | U101: 0 | V101: 0 | W101: 0
B104: Przychody finansowe | J104: =LataProjekcji -> Uzupełnij dane
B105: Przychody z tytułu oprocentowania środków pieniężnych | J105: =ROUND(Finansowanie!J29,0) -> 0 | K105: =ROUND(Finansowanie!K29,0) -> 0 | L105: =ROUND(Finansowanie!L29,0) -> 0 | M105: =ROUND(Finansowanie!M29,0) -> 0 | N105: =ROUND(Finansowanie!N29,0) -> 0 | O105: =ROUND(Finansowanie!O29,0) -> 0 | P105: =ROUND(Finansowanie!P29,0) -> 0 | Q105: =ROUND(Finansowanie!Q29,0) -> 0 | R105: =ROUND(Finansowanie!R29,0) -> 0 | S105: =ROUND(Finansowanie!S29,0) -> 0 | T105: =ROUND(Finansowanie!T29,0) -> 0 | U105: =ROUND(Finansowanie!U29,0) -> 0 | V105: =ROUND(Finansowanie!V29,0) -> 0 | W105: =ROUND(Finansowanie!W29,0) -> 0
B106: Przychody z tytułu oprocentowania depozytów bankowych | J106: =ROUND(Finansowanie!J38,2) -> 0 | K106: =ROUND(Finansowanie!K38,2) -> 0 | L106: =ROUND(Finansowanie!L38,2) -> 0 | M106: =ROUND(Finansowanie!M38,2) -> 0 | N106: =ROUND(Finansowanie!N38,2) -> 0 | O106: =ROUND(Finansowanie!O38,2) -> 0 | P106: =ROUND(Finansowanie!P38,2) -> 0 | Q106: =ROUND(Finansowanie!Q38,2) -> 0 | R106: =ROUND(Finansowanie!R38,2) -> 0 | S106: =ROUND(Finansowanie!S38,2) -> 0 | T106: =ROUND(Finansowanie!T38,2) -> 0 | U106: =ROUND(Finansowanie!U38,2) -> 0 | V106: =ROUND(Finansowanie!V38,2) -> 0 | W106: =ROUND(Finansowanie!W38,2) -> 0
B110: Razem Przychody finansowe | J110: =IF(LataProjekcji<=Koniec,ROUND(SUM(J105:J109),0),0) -> 0 | K110: 0 | L110: 0 | M110: 0 | N110: 0 | O110: 0 | P110: 0 | Q110: 0 | R110: 0 | S110: 0 | T110: 0 | U110: 0 | V110: 0 | W110: 0
B113: Podsumowanie | J113: =LataProjekcji -> Uzupełnij dane
B114: Sprzedaż produktów | J114: =J32 -> 0 | K114: 0 | L114: 0 | M114: 0 | N114: 0 | O114: 0 | P114: 0 | Q114: 0 | R114: 0 | S114: 0 | T114: 0 | U114: 0 | V114: 0 | W114: 0
B115: Zmiana stanu produktów ([+] zwiększenie / [-] zmniejszenie) | J115: =J41 -> 0 | K115: =K41 -> 0 | L115: 0 | M115: 0 | N115: 0 | O115: 0 | P115: 0 | Q115: 0 | R115: 0 | S115: 0 | T115: 0 | U115: 0 | V115: 0 | W115: 0
B116: Koszt wytworzenia produktów na własne potrzeby jednostki | J116: =J50 -> 0 | K116: =K50 -> 0 | L116: 0 | M116: 0 | N116: 0 | O116: 0 | P116: 0 | Q116: 0 | R116: 0 | S116: 0 | T116: 0 | U116: 0 | V116: 0 | W116: 0
B117: Sprzedaż towarów i materiałów | J117: =J71 -> 0 | K117: 0 | L117: 0 | M117: 0 | N117: 0 | O117: 0 | P117: 0 | Q117: 0 | R117: 0 | S117: 0 | T117: 0 | U117: 0 | V117: 0 | W117: 0
B118: Przychody netto ze sprzedaży | J118: =SUM(J114:J117) -> 0 | K118: =SUM(K114:K117) -> 0 | L118: 0 | M118: 0 | N118: 0 | O118: 0 | P118: 0 | Q118: 0 | R118: 0 | S118: 0 | T118: 0 | U118: 0 | V118: 0 | W118: 0
B119: Wartość sprzedanych towarów i materiałów (koszty operacyjne) | J119: =J92 -> 0 | K119: 0 | L119: 0 | M119: 0 | N119: 0 | O119: 0 | P119: 0 | Q119: 0 | R119: 0 | S119: 0 | T119: 0 | U119: 0 | V119: 0 | W119: 0
B120: Pozostałe przychody operacyjne | J120: =J101 -> 0 | K120: 0 | L120: 0 | M120: 0 | N120: 0 | O120: 0 | P120: 0 | Q120: 0 | R120: 0 | S120: 0 | T120: 0 | U120: 0 | V120: 0 | W120: 0
B121: Przychody finansowe | J121: =J110 -> 0 | K121: =K110 -> 0 | L121: 0 | M121: 0 | N121: 0 | O121: 0 | P121: 0 | Q121: 0 | R121: 0 | S121: 0 | T121: 0 | U121: 0 | V121: 0 | W121: 0
B124: Projekt | F124: =F12 -> 0 | G124: =G12 -> 0 | H124: =H12 -> 0 | I124: =I12 ->  | J124: =LataProjekcji -> Uzupełnij dane
B126: Przychody netto ze sprzedaży produktów (Projekt) Nazwa / Ilość
B132: Cena produktu
B133: =IF(ISBLANK(B127),"",B127) -> 
B134: =IF(ISBLANK(B128),"",B128) -> 
B135: =IF(ISBLANK(B129),"",B129) -> 
B136: =IF(ISBLANK(B130),"",B130) -> 
B137: =IF(ISBLANK(B131),"",B131) -> 
B138: Wartość sprzedaży produktów
B139: =IF(ISBLANK(B133),"",B133) ->  | J139: =ROUND(J133*J127,0) -> 0 | K139: 0 | L139: 0 | M139: 0 | N139: 0 | O139: 0 | P139: 0 | Q139: 0 | R139: 0 | S139: 0 | T139: 0 | U139: 0 | V139: 0 | W139: 0
B140: =IF(ISBLANK(B134),"",B134) ->  | J140: =ROUND(J134*J128,0) -> 0 | K140: 0 | L140: 0 | M140: 0 | N140: 0 | O140: 0 | P140: 0 | Q140: 0 | R140: 0 | S140: 0 | T140: 0 | U140: 0 | V140: 0 | W140: 0
B141: =IF(ISBLANK(B135),"",B135) ->  | J141: =ROUND(J135*J129,0) -> 0 | K141: 0 | L141: 0 | M141: 0 | N141: 0 | O141: 0 | P141: 0 | Q141: 0 | R141: 0 | S141: 0 | T141: 0 | U141: 0 | V141: 0 | W141: 0
B142: =IF(ISBLANK(B136),"",B136) ->  | J142: =ROUND(J136*J130,0) -> 0 | K142: 0 | L142: 0 | M142: 0 | N142: 0 | O142: 0 | P142: 0 | Q142: 0 | R142: 0 | S142: 0 | T142: 0 | U142: 0 | V142: 0 | W142: 0
B143: =IF(ISBLANK(B137),"",B137) ->  | J143: =ROUND(J137*J131,0) -> 0 | K143: 0 | L143: 0 | M143: 0 | N143: 0 | O143: 0 | P143: 0 | Q143: 0 | R143: 0 | S143: 0 | T143: 0 | U143: 0 | V143: 0 | W143: 0
B144: Razem Sprzedaż produktów (Projekt) | J144: =IF(LataProjekcji<=Koniec,SUM(J139:J143),0) -> 0 | K144: 0 | L144: 0 | M144: 0 | N144: 0 | O144: 0 | P144: 0 | Q144: 0 | R144: 0 | S144: 0 | T144: 0 | U144: 0 | V144: 0 | W144: 0
B147: Zmiana stanu produktów ([+] zwiększenie / [-] zmiejszenie) | J147: =LataProjekcji -> Uzupełnij dane
B153: Razem Zmiana stanu produktów | J153: =IF(LataProjekcji<=Koniec,ROUND(SUM(J148:J152),0),0) -> 0 | K153: 0 | L153: 0 | M153: 0 | N153: 0 | O153: 0 | P153: 0 | Q153: 0 | R153: 0 | S153: 0 | T153: 0 | U153: 0 | V153: 0 | W153: 0
B156: Koszt wytworzenia produktów na własne potrzeby jednostki | J156: =LataProjekcji -> Uzupełnij dane
B162: Razem Koszt wytworzenia produktów na własne potrzeby jednostki | J162: =IF(LataProjekcji<=Koniec,ROUND(SUM(J157:J161),0),0) -> 0 | K162: 0 | L162: 0 | M162: 0 | N162: 0 | O162: 0 | P162: 0 | Q162: 0 | R162: 0 | S162: 0 | T162: 0 | U162: 0 | V162: 0 | W162: 0
B165: Przychody ze sprzedaży towarów i materiałów (Projekt) Nazwa / Ilość | J165: =LataProjekcji -> Uzupełnij dane
B171: Cena za towar
B172: =IF(ISBLANK(B166),"",B166) -> 
B173: =IF(ISBLANK(B167),"",B167) -> 
B174: =IF(ISBLANK(B168),"",B168) -> 
B175: =IF(ISBLANK(B169),"",B169) -> 
B176: =IF(ISBLANK(B170),"",B170) -> 
B177: Wartość sprzedaży towarów i materiałów
B178: =IF(ISBLANK(B172),"",B172) ->  | J178: =ROUND(J172*J166,0) -> 0 | K178: 0 | L178: 0 | M178: 0 | N178: 0 | O178: 0 | P178: 0 | Q178: 0 | R178: 0 | S178: 0 | T178: 0 | U178: 0 | V178: 0 | W178: 0
B179: =IF(ISBLANK(B173),"",B173) ->  | J179: =ROUND(J173*J167,0) -> 0 | K179: 0 | L179: 0 | M179: 0 | N179: 0 | O179: 0 | P179: 0 | Q179: 0 | R179: 0 | S179: 0 | T179: 0 | U179: 0 | V179: 0 | W179: 0
B180: =IF(ISBLANK(B174),"",B174) ->  | J180: =ROUND(J174*J168,0) -> 0 | K180: 0 | L180: 0 | M180: 0 | N180: 0 | O180: 0 | P180: 0 | Q180: 0 | R180: 0 | S180: 0 | T180: 0 | U180: 0 | V180: 0 | W180: 0
B181: =IF(ISBLANK(B175),"",B175) ->  | J181: =ROUND(J175*J169,0) -> 0 | K181: 0 | L181: 0 | M181: 0 | N181: 0 | O181: 0 | P181: 0 | Q181: 0 | R181: 0 | S181: 0 | T181: 0 | U181: 0 | V181: 0 | W181: 0
B182: =IF(ISBLANK(B176),"",B176) ->  | J182: =ROUND(J176*J170,0) -> 0 | K182: 0 | L182: 0 | M182: 0 | N182: 0 | O182: 0 | P182: 0 | Q182: 0 | R182: 0 | S182: 0 | T182: 0 | U182: 0 | V182: 0 | W182: 0
B183: Razem Sprzedaż towarów i materiałów (Projekt) | J183: =IF(LataProjekcji<=Koniec,SUM(J178:J182),0) -> 0 | K183: 0 | L183: 0 | M183: 0 | N183: 0 | O183: 0 | P183: 0 | Q183: 0 | R183: 0 | S183: 0 | T183: 0 | U183: 0 | V183: 0 | W183: 0
B186: Wartość sprzedanych towarów i materiałów (Projekt, Koszty operacyjne) | J186: =LataProjekcji -> Uzupełnij dane
B192: Cena za towar
B193: =IF(ISBLANK(B187),"",B187) -> 
B194: =IF(ISBLANK(B188),"",B188) -> 
B195: =IF(ISBLANK(B189),"",B189) -> 
B196: =IF(ISBLANK(B190),"",B190) -> 
B197: =IF(ISBLANK(B191),"",B191) -> 
B198: Wartość w cenie nabycia
B199: =IF(ISBLANK(B193),"",B193) ->  | J199: =ROUND(J193*J187,0) -> 0 | K199: 0 | L199: 0 | M199: 0 | N199: 0 | O199: 0 | P199: 0 | Q199: 0 | R199: 0 | S199: 0 | T199: 0 | U199: 0 | V199: 0 | W199: 0
B200: =IF(ISBLANK(B194),"",B194) ->  | J200: =ROUND(J194*J188,0) -> 0 | K200: 0 | L200: 0 | M200: 0 | N200: 0 | O200: 0 | P200: 0 | Q200: 0 | R200: 0 | S200: 0 | T200: 0 | U200: 0 | V200: 0 | W200: 0
B201: =IF(ISBLANK(B195),"",B195) ->  | J201: =ROUND(J195*J189,0) -> 0 | K201: 0 | L201: 0 | M201: 0 | N201: 0 | O201: 0 | P201: 0 | Q201: 0 | R201: 0 | S201: 0 | T201: 0 | U201: 0 | V201: 0 | W201: 0
B202: =IF(ISBLANK(B196),"",B196) ->  | J202: =ROUND(J196*J190,0) -> 0 | K202: 0 | L202: 0 | M202: 0 | N202: 0 | O202: 0 | P202: 0 | Q202: 0 | R202: 0 | S202: 0 | T202: 0 | U202: 0 | V202: 0 | W202: 0
B203: =IF(ISBLANK(B197),"",B197) ->  | J203: =ROUND(J197*J191,0) -> 0 | K203: 0 | L203: 0 | M203: 0 | N203: 0 | O203: 0 | P203: 0 | Q203: 0 | R203: 0 | S203: 0 | T203: 0 | U203: 0 | V203: 0 | W203: 0
B204: Razem Wartość sprzedanych towarów i materiałów (Projekt) | J204: =IF(LataProjekcji<=Koniec,SUM(J199:J203),0) -> 0 | K204: 0 | L204: 0 | M204: 0 | N204: 0 | O204: 0 | P204: 0 | Q204: 0 | R204: 0 | S204: 0 | T204: 0 | U204: 0 | V204: 0 | W204: 0
B207: Pozostałe przychody operacyjne (Projekt) | J207: =LataProjekcji -> Uzupełnij dane
B212: Dotacje | J212: ='Rozliczenie dotacji'!J427 -> 0 | K212: ='Rozliczenie dotacji'!K427 -> 0 | L212: ='Rozliczenie dotacji'!L427 -> 0 | M212: ='Rozliczenie dotacji'!M427 -> 0 | N212: ='Rozliczenie dotacji'!N427 -> 0 | O212: ='Rozliczenie dotacji'!O427 -> 0 | P212: ='Rozliczenie dotacji'!P427 -> 0 | Q212: ='Rozliczenie dotacji'!Q427 -> 0 | R212: ='Rozliczenie dotacji'!R427 -> 0 | S212: ='Rozliczenie dotacji'!S427 -> 0 | T212: ='Rozliczenie dotacji'!T427 -> 0 | U212: ='Rozliczenie dotacji'!U427 -> 0 | V212: ='Rozliczenie dotacji'!V427 -> 0 | W212: ='Rozliczenie dotacji'!W427 -> 0
B213: Razem Pozostałe przychody operacyjne (Projekt) | J213: =IF(LataProjekcji<=Koniec,SUM(J208:J212),0) -> 0 | K213: 0 | L213: 0 | M213: 0 | N213: 0 | O213: 0 | P213: 0 | Q213: 0 | R213: 0 | S213: 0 | T213: 0 | U213: 0 | V213: 0 | W213: 0
B216: Przychody finansowe (Projekt) | J216: =LataProjekcji -> Uzupełnij dane
B217: Przychody z tytułu oprocentowania środków pieniężnych | J217: =IFERROR(ROUND(Finansowanie!J93+Finansowanie!J102,0),0) -> 0 | K217: =IFERROR(ROUND(Finansowanie!K93+Finansowanie!K102,0),0) -> 0 | L217: =IFERROR(ROUND(Finansowanie!L93+Finansowanie!L102,0),0) -> 0 | M217: =IFERROR(ROUND(Finansowanie!M93+Finansowanie!M102,0),0) -> 0 | N217: =IFERROR(ROUND(Finansowanie!N93+Finansowanie!N102,0),0) -> 0 | O217: =IFERROR(ROUND(Finansowanie!O93+Finansowanie!O102,0),0) -> 0 | P217: =IFERROR(ROUND(Finansowanie!P93+Finansowanie!P102,0),0) -> 0 | Q217: =IFERROR(ROUND(Finansowanie!Q93+Finansowanie!Q102,0),0) -> 0 | R217: =IFERROR(ROUND(Finansowanie!R93+Finansowanie!R102,0),0) -> 0 | S217: =IFERROR(ROUND(Finansowanie!S93+Finansowanie!S102,0),0) -> 0 | T217: =IFERROR(ROUND(Finansowanie!T93+Finansowanie!T102,0),0) -> 0 | U217: =IFERROR(ROUND(Finansowanie!U93+Finansowanie!U102,0),0) -> 0 | V217: =IFERROR(ROUND(Finansowanie!V93+Finansowanie!V102,0),0) -> 0 | W217: =IFERROR(ROUND(Finansowanie!W93+Finansowanie!W102,0),0) -> 0
B222: Razem Przychody finansowe (Projekt) | J222: =IF(LataProjekcji<=Koniec,SUM(J217:J221),0) -> 0 | K222: 0 | L222: 0 | M222: 0 | N222: 0 | O222: 0 | P222: 0 | Q222: 0 | R222: 0 | S222: 0 | T222: 0 | U222: 0 | V222: 0 | W222: 0
B225: Podsumowanie (Projekt) | J225: =LataProjekcji -> Uzupełnij dane
B226: Sprzedaż produktów | J226: =IF(LataProjekcji<=Koniec,J144,0) -> 0 | K226: 0 | L226: 0 | M226: 0 | N226: 0 | O226: 0 | P226: 0 | Q226: 0 | R226: 0 | S226: 0 | T226: 0 | U226: 0 | V226: 0 | W226: 0
B227: Zmiana stanu produktów ([+] zwiększenie / [-] zmniejszenie) | J227: =J153 -> 0 | K227: =K153 -> 0 | L227: 0 | M227: 0 | N227: 0 | O227: 0 | P227: 0 | Q227: 0 | R227: 0 | S227: 0 | T227: 0 | U227: 0 | V227: 0 | W227: 0
B228: Koszt wytworzenia produktów na własne potrzeby jednostki | J228: =J162 -> 0 | K228: =K162 -> 0 | L228: 0 | M228: 0 | N228: 0 | O228: 0 | P228: 0 | Q228: 0 | R228: 0 | S228: 0 | T228: 0 | U228: 0 | V228: 0 | W228: 0
B229: Sprzedaż towarów i materiałów | J229: =IF(LataProjekcji<=Koniec,J183,0) -> 0 | K229: 0 | L229: 0 | M229: 0 | N229: 0 | O229: 0 | P229: 0 | Q229: 0 | R229: 0 | S229: 0 | T229: 0 | U229: 0 | V229: 0 | W229: 0
B230: Przychody netto ze sprzedaży | J230: =SUM(J226:J229) -> 0 | K230: =SUM(K226:K229) -> 0 | L230: 0 | M230: 0 | N230: 0 | O230: 0 | P230: 0 | Q230: 0 | R230: 0 | S230: 0 | T230: 0 | U230: 0 | V230: 0 | W230: 0
B231: Wartość sprzedanych towarów i materiałów (koszty operacyjne) | J231: =J204 -> 0 | K231: 0 | L231: 0 | M231: 0 | N231: 0 | O231: 0 | P231: 0 | Q231: 0 | R231: 0 | S231: 0 | T231: 0 | U231: 0 | V231: 0 | W231: 0
B232: Pozostałe przychody operacyjne | J232: =J213 -> 0 | K232: =K213 -> 0 | L232: 0 | M232: 0 | N232: 0 | O232: 0 | P232: 0 | Q232: 0 | R232: 0 | S232: 0 | T232: 0 | U232: 0 | V232: 0 | W232: 0
B233: Przychody finansowe | J233: =J222 -> 0 | K233: =K222 -> 0 | L233: 0 | M233: 0 | N233: 0 | O233: 0 | P233: 0 | Q233: 0 | R233: 0 | S233: 0 | T233: 0 | U233: 0 | V233: 0 | W233: 0
B237: Komentarz:
C391: TRUE

Sheet Koszty operacyjne
B2: =IF(ISBLANK(Firma),"Wstaw nazwę firmy",Firma) -> Wstaw nazwę firmy
J11: =Założenia!J25 -> 0 | K11: =Założenia!K25 -> 1 | L11: =Założenia!L25 -> 2 | M11: =Założenia!M25 -> 3 | N11: =Założenia!N25 -> 4 | O11: =Założenia!O25 -> 5 | P11: =Założenia!P25 -> 6 | Q11: =Założenia!Q25 -> 7 | R11: =Założenia!R25 -> 8 | S11: =Założenia!S25 -> 9 | T11: =Założenia!T25 -> 10 | U11: =Założenia!U25 -> 11 | V11: =Założenia!V25 -> 12 | W11: =Założenia!W25 -> 13
B12: Działalność dotychczasowa (bez Projektu) | F12: =Założenia!F26 -> 0 | G12: =Założenia!G26 -> 0 | H12: =Założenia!H26 -> 0 | I12: =Założenia!I26 ->  | J12: =LataProjekcji -> Uzupełnij dane
B14: Zużycie materiałów i eneregii
B20: Razem Zużycie materiałów i energii | J20: =IF(LataProjekcji<=Koniec,ROUND(SUM(J15:J19),0),0) -> 0 | K20: 0 | L20: 0 | M20: 0 | N20: 0 | O20: 0 | P20: 0 | Q20: 0 | R20: 0 | S20: 0 | T20: 0 | U20: 0 | V20: 0 | W20: 0
B23: Usługi obce | J23: =LataProjekcji -> Uzupełnij dane
B29: Razem Usługi obce | J29: =IF(LataProjekcji<=Koniec,ROUND(SUM(J24:J28),0),0) -> 0 | K29: 0 | L29: 0 | M29: 0 | N29: 0 | O29: 0 | P29: 0 | Q29: 0 | R29: 0 | S29: 0 | T29: 0 | U29: 0 | V29: 0 | W29: 0
B32: Podatki i opłaty | J32: =LataProjekcji -> Uzupełnij dane
B38: Razem Podatki i opłaty | J38: =IF(LataProjekcji<=Koniec,ROUND(SUM(J33:J37),0),0) -> 0 | K38: 0 | L38: 0 | M38: 0 | N38: 0 | O38: 0 | P38: 0 | Q38: 0 | R38: 0 | S38: 0 | T38: 0 | U38: 0 | V38: 0 | W38: 0
B41: Wynagrodzenia (brutto)
B42: Stanowisko / Grupa Średnie miesięczne wynagrodzenie brutto | J42: =LataProjekcji -> Uzupełnij dane
B48: Ilość etatów na danym stanowisku / w danej grupie
B49: =IF(ISBLANK(B43),"",B43) -> 
B50: =IF(ISBLANK(B44),"",B44) -> 
B51: =IF(ISBLANK(B45),"",B45) -> 
B52: =IF(ISBLANK(B46),"",B46) -> 
B53: =IF(ISBLANK(B47),"",B47) -> 
B54: Koszty rocznych wynagrodzeń na danym stanowisku / w danej grupie
B55: =IF(ISBLANK(B49),"",B49) ->  | J55: =ROUND(J49*J43*12,0) -> 0 | K55: 0 | L55: 0 | M55: 0 | N55: 0 | O55: 0 | P55: 0 | Q55: 0 | R55: 0 | S55: 0 | T55: 0 | U55: 0 | V55: 0 | W55: 0
B56: =IF(ISBLANK(B50),"",B50) ->  | J56: =ROUND(J50*J44*12,0) -> 0 | K56: 0 | L56: 0 | M56: 0 | N56: 0 | O56: 0 | P56: 0 | Q56: 0 | R56: 0 | S56: 0 | T56: 0 | U56: 0 | V56: 0 | W56: 0
B57: =IF(ISBLANK(B51),"",B51) ->  | J57: =ROUND(J51*J45*12,0) -> 0 | K57: 0 | L57: 0 | M57: 0 | N57: 0 | O57: 0 | P57: 0 | Q57: 0 | R57: 0 | S57: 0 | T57: 0 | U57: 0 | V57: 0 | W57: 0
B58: =IF(ISBLANK(B52),"",B52) ->  | J58: =ROUND(J52*J46*12,0) -> 0 | K58: 0 | L58: 0 | M58: 0 | N58: 0 | O58: 0 | P58: 0 | Q58: 0 | R58: 0 | S58: 0 | T58: 0 | U58: 0 | V58: 0 | W58: 0
B59: =IF(ISBLANK(B53),"",B53) ->  | J59: =ROUND(J53*J47*12,0) -> 0 | K59: 0 | L59: 0 | M59: 0 | N59: 0 | O59: 0 | P59: 0 | Q59: 0 | R59: 0 | S59: 0 | T59: 0 | U59: 0 | V59: 0 | W59: 0
B60: Razem Wynagrodzenia | J60: =IF(LataProjekcji<=Koniec,ROUND(SUM(J55:J59),0),0) -> 0 | K60: 0 | L60: 0 | M60: 0 | N60: 0 | O60: 0 | P60: 0 | Q60: 0 | R60: 0 | S60: 0 | T60: 0 | U60: 0 | V60: 0 | W60: 0
B63: Ubezpieczenia społeczne i inne świadczenia | J63: =LataProjekcji -> Uzupełnij dane
B64: Stanowisko / Grupa
B65: =IF(ISBLANK(B43),"",B43) ->  | J65: =ROUND(J55*ZUS,0) -> 0 | K65: 0 | L65: 0 | M65: 0 | N65: 0 | O65: 0 | P65: 0 | Q65: 0 | R65: 0 | S65: 0 | T65: 0 | U65: 0 | V65: 0 | W65: 0
B66: =IF(ISBLANK(B44),"",B44) ->  | J66: =ROUND(J56*ZUS,0) -> 0 | K66: 0 | L66: 0 | M66: 0 | N66: 0 | O66: 0 | P66: 0 | Q66: 0 | R66: 0 | S66: 0 | T66: 0 | U66: 0 | V66: 0 | W66: 0
B67: =IF(ISBLANK(B45),"",B45) ->  | J67: =ROUND(J57*ZUS,0) -> 0 | K67: 0 | L67: 0 | M67: 0 | N67: 0 | O67: 0 | P67: 0 | Q67: 0 | R67: 0 | S67: 0 | T67: 0 | U67: 0 | V67: 0 | W67: 0
B68: =IF(ISBLANK(B46),"",B46) ->  | J68: =ROUND(J58*ZUS,0) -> 0 | K68: 0 | L68: 0 | M68: 0 | N68: 0 | O68: 0 | P68: 0 | Q68: 0 | R68: 0 | S68: 0 | T68: 0 | U68: 0 | V68: 0 | W68: 0
B69: =IF(ISBLANK(B47),"",B47) ->  | J69: =ROUND(J59*ZUS,0) -> 0 | K69: 0 | L69: 0 | M69: 0 | N69: 0 | O69: 0 | P69: 0 | Q69: 0 | R69: 0 | S69: 0 | T69: 0 | U69: 0 | V69: 0 | W69: 0
B70: Razem Ubezpieczenia społeczne i inne świadczenia | J70: =IF(LataProjekcji<=Koniec,ROUND(SUM(J65:J69),0),0) -> 0 | K70: 0 | L70: 0 | M70: 0 | N70: 0 | O70: 0 | P70: 0 | Q70: 0 | R70: 0 | S70: 0 | T70: 0 | U70: 0 | V70: 0 | W70: 0
B73: Pozostałe koszty rodzajowe | J73: =LataProjekcji -> Uzupełnij dane
B79: Razem Pozostałe koszty | J79: =IF(LataProjekcji<=Koniec,ROUND(SUM(J74:J78),0),0) -> 0 | K79: 0 | L79: 0 | M79: 0 | N79: 0 | O79: 0 | P79: 0 | Q79: 0 | R79: 0 | S79: 0 | T79: 0 | U79: 0 | V79: 0 | W79: 0
B82: Pozostałe koszty operacyjne | J82: =LataProjekcji -> Uzupełnij dane
B88: Razem Pozostałe koszty operacyjne | J88: =IF(LataProjekcji<=Koniec,ROUND(SUM(J83:J87),0),0) -> 0 | K88: 0 | L88: 0 | M88: 0 | N88: 0 | O88: 0 | P88: 0 | Q88: 0 | R88: 0 | S88: 0 | T88: 0 | U88: 0 | V88: 0 | W88: 0
B91: Koszty finansowe | J91: =LataProjekcji -> Uzupełnij dane
B92: Koszty z tytułu oprocentowania kredytów i pożyczek | J92: =ROUND(Finansowanie!J47+Finansowanie!J56+Finansowanie!J65,0) -> 0 | K92: =ROUND(Finansowanie!K47+Finansowanie!K56+Finansowanie!K65,0) -> 0 | L92: =ROUND(Finansowanie!L47+Finansowanie!L56+Finansowanie!L65,0) -> 0 | M92: =ROUND(Finansowanie!M47+Finansowanie!M56+Finansowanie!M65,0) -> 0 | N92: =ROUND(Finansowanie!N47+Finansowanie!N56+Finansowanie!N65,0) -> 0 | O92: =ROUND(Finansowanie!O47+Finansowanie!O56+Finansowanie!O65,0) -> 0 | P92: =ROUND(Finansowanie!P47+Finansowanie!P56+Finansowanie!P65,0) -> 0 | Q92: =ROUND(Finansowanie!Q47+Finansowanie!Q56+Finansowanie!Q65,0) -> 0 | R92: =ROUND(Finansowanie!R47+Finansowanie!R56+Finansowanie!R65,0) -> 0 | S92: =ROUND(Finansowanie!S47+Finansowanie!S56+Finansowanie!S65,0) -> 0 | T92: =ROUND(Finansowanie!T47+Finansowanie!T56+Finansowanie!T65,0) -> 0 | U92: =ROUND(Finansowanie!U47+Finansowanie!U56+Finansowanie!U65,0) -> 0 | V92: =ROUND(Finansowanie!V47+Finansowanie!V56+Finansowanie!V65,0) -> 0 | W92: =ROUND(Finansowanie!W47+Finansowanie!W56+Finansowanie!W65,0) -> 0
B97: Razem Koszty finansowe | J97: =IF(LataProjekcji<=Koniec,ROUND(SUM(J92:J96),0),0) -> 0 | K97: 0 | L97: 0 | M97: 0 | N97: 0 | O97: 0 | P97: 0 | Q97: 0 | R97: 0 | S97: 0 | T97: 0 | U97: 0 | V97: 0 | W97: 0
B100: Koszty dotychczasowej działalności operacyjnej | J100: =LataProjekcji -> Uzupełnij dane
B101: Amortyzacja | J101: ='Środki trwałe'!J83 -> 0 | K101: ='Środki trwałe'!K83 -> 0 | L101: ='Środki trwałe'!L83 -> 0 | M101: ='Środki trwałe'!M83 -> 0 | N101: ='Środki trwałe'!N83 -> 0 | O101: ='Środki trwałe'!O83 -> 0 | P101: ='Środki trwałe'!P83 -> 0 | Q101: ='Środki trwałe'!Q83 -> 0 | R101: ='Środki trwałe'!R83 -> 0 | S101: ='Środki trwałe'!S83 -> 0 | T101: ='Środki trwałe'!T83 -> 0 | U101: ='Środki trwałe'!U83 -> 0 | V101: ='Środki trwałe'!V83 -> 0 | W101: ='Środki trwałe'!W83 -> 0
B102: Zużycie materiałów i energii | J102: =ROUND(J20,0) -> 0 | K102: =K20 -> 0 | L102: 0 | M102: 0 | N102: 0 | O102: 0 | P102: 0 | Q102: 0 | R102: 0 | S102: 0 | T102: 0 | U102: 0 | V102: 0 | W102: 0
B103: Usługi obce | J103: =ROUND(J29,0) -> 0 | K103: =K29 -> 0 | L103: 0 | M103: 0 | N103: 0 | O103: 0 | P103: 0 | Q103: 0 | R103: 0 | S103: 0 | T103: 0 | U103: 0 | V103: 0 | W103: 0
B104: Podatki i opłaty | J104: =ROUND(J38,0) -> 0 | K104: =K38 -> 0 | L104: 0 | M104: 0 | N104: 0 | O104: 0 | P104: 0 | Q104: 0 | R104: 0 | S104: 0 | T104: 0 | U104: 0 | V104: 0 | W104: 0
B105: Wynagrodzenia | J105: =ROUND(J60,0) -> 0 | K105: =K60 -> 0 | L105: 0 | M105: 0 | N105: 0 | O105: 0 | P105: 0 | Q105: 0 | R105: 0 | S105: 0 | T105: 0 | U105: 0 | V105: 0 | W105: 0
B106: Ubezpieczenia społeczne i inne świadczenia | J106: =ROUND(J70,0) -> 0 | K106: =K70 -> 0 | L106: 0 | M106: 0 | N106: 0 | O106: 0 | P106: 0 | Q106: 0 | R106: 0 | S106: 0 | T106: 0 | U106: 0 | V106: 0 | W106: 0
B107: Pozostałe koszty rodzajowe | J107: =ROUND(J79,0) -> 0 | K107: =K79 -> 0 | L107: 0 | M107: 0 | N107: 0 | O107: 0 | P107: 0 | Q107: 0 | R107: 0 | S107: 0 | T107: 0 | U107: 0 | V107: 0 | W107: 0
B108: Wartość sprzedanych towarów i materiałów | J108: =ROUND(Przychody!J92,0) -> 0 | K108: =ROUND(Przychody!K92,0) -> 0 | L108: =ROUND(Przychody!L92,0) -> 0 | M108: =ROUND(Przychody!M92,0) -> 0 | N108: =ROUND(Przychody!N92,0) -> 0 | O108: =ROUND(Przychody!O92,0) -> 0 | P108: =ROUND(Przychody!P92,0) -> 0 | Q108: =ROUND(Przychody!Q92,0) -> 0 | R108: =ROUND(Przychody!R92,0) -> 0 | S108: =ROUND(Przychody!S92,0) -> 0 | T108: =ROUND(Przychody!T92,0) -> 0 | U108: =ROUND(Przychody!U92,0) -> 0 | V108: =ROUND(Przychody!V92,0) -> 0 | W108: =ROUND(Przychody!W92,0) -> 0
B109: Razem | J109: =SUM(J101:J108) -> 0 | K109: =SUM(K101:K108) -> 0 | L109: 0 | M109: 0 | N109: 0 | O109: 0 | P109: 0 | Q109: 0 | R109: 0 | S109: 0 | T109: 0 | U109: 0 | V109: 0 | W109: 0
B110: Pozostałe koszty operacyjne | J110: =ROUND(J88,0) -> 0 | K110: =K88 -> 0 | L110: 0 | M110: 0 | N110: 0 | O110: 0 | P110: 0 | Q110: 0 | R110: 0 | S110: 0 | T110: 0 | U110: 0 | V110: 0 | W110: 0
B111: Koszty finansowe | J111: =ROUND(J97,0) -> 0 | K111: =ROUND(K97,0) -> 0 | L111: 0 | M111: 0 | N111: 0 | O111: 0 | P111: 0 | Q111: 0 | R111: 0 | S111: 0 | T111: 0 | U111: 0 | V111: 0 | W111: 0
B114: Projekt | F114: =F12 -> 0 | G114: 0 | H114: 0 | J114: =LataProjekcji -> Uzupełnij dane
B116: Zużycie materiałów i eneregii (Projekt)
B127: Razem Zużycie materiałów i energii (Projekt) | J127: =IF(LataProjekcji<=Koniec,ROUND(SUM(J117:J126),0),0) -> 0 | K127: 0 | L127: 0 | M127: 0 | N127: 0 | O127: 0 | P127: 0 | Q127: 0 | R127: 0 | S127: 0 | T127: 0 | U127: 0 | V127: 0 | W127: 0
B128: Poziom dofinansowania (w %) | J128: w przypadku gdy te koszty są finansowane z dotacji
B129: =IF(ISBLANK(B117),"",B117) -> 
B130: =IF(ISBLANK(B118),"",B118) -> 
B141: Usługi obce (Projekt) | J141: =LataProjekcji -> Uzupełnij dane
B152: Razem Usługi obce (Projekt) | J152: =IF(LataProjekcji<=Koniec,ROUND(SUM(J142:J151),0),0) -> 0 | K152: 0 | L152: 0 | M152: 0 | N152: 0 | O152: 0 | P152: 0 | Q152: 0 | R152: 0 | S152: 0 | T152: 0 | U152: 0 | V152: 0 | W152: 0
B153: Poziom dofinansowania (w %) | J153: w przypadku gdy te koszty są finansowane z dotacji
B154: =IF(ISBLANK(B142),"",B142) -> 
B155: =IF(ISBLANK(B143),"",B143) -> 
B166: Podatki i opłaty (Projekt) | J166: =LataProjekcji -> Uzupełnij dane
B172: Razem Podatki i opłaty (Projekt) | J172: =IF(LataProjekcji<=Koniec,ROUND(SUM(J167:J171),0),0) -> 0 | K172: 0 | L172: 0 | M172: 0 | N172: 0 | O172: 0 | P172: 0 | Q172: 0 | R172: 0 | S172: 0 | T172: 0 | U172: 0 | V172: 0 | W172: 0
B173: Poziom dofinansowania (w %) | J173: w przypadku gdy te koszty są finansowane z dotacji
B174: =IF(ISBLANK(B167),"",B167) -> 
B175: =IF(ISBLANK(B168),"",B168) -> 
B176: =IF(ISBLANK(B169),"",B169) -> 
B177: =IF(ISBLANK(B170),"",B170) -> 
B178: =IF(ISBLANK(B171),"",B171) -> 
B181: Wynagrodzenia (brutto) (Projekt)
B182: Stanowisko / Grupa Średnie miesięczne wynagrodzenie brutto | J182: =LataProjekcji -> Uzupełnij dane
B193: Pozostałe
B194: Ilość etatów na danym stanowisku / w danej grupie
B195: =IF(ISBLANK(B183),"",B183) -> 
B196: =IF(ISBLANK(B184),"",B184) -> 
B205: Pozostałe
B206: Ilość miesięcy zatrudnienia w danym roku na danym stanowisku
B207: =IF(ISBLANK(B195),"",B195) -> 
B208: =IF(ISBLANK(B196),"",B196) -> 
B217: Pozostałe
B218: Stanowisko / Grupa | J218: Poziom dofinansowania (w %) Kosztów wynagrodzeń (w przypadku gdy wynagrodzenia są finansowane z dotacji)
B220: =IF(ISBLANK(B196),"",B196) -> 
B229: Pozostałe
B230: Stanowisko / Grupa | J230: Koszty rocznych wynagrodzeń na danym stanowisku / w danej grupie
B231: =IF(ISBLANK(B195),"",B195) ->  | J231: =ROUND(J195*J183*J207,0) -> 0 | K231: =ROUND(K195*K183*K207,0) -> 0 | L231: 0 | M231: 0 | N231: 0 | O231: 0 | P231: 0 | Q231: 0 | R231: 0 | S231: 0 | T231: 0 | U231: 0 | V231: 0 | W231: 0
J232: =ROUND(J196*J184*J208,0) -> 0 | K232: 0 | L232: =ROUND(L196*L184*L208,0) -> 0 | M232: =ROUND(M196*M184*M208,0) -> 0 | N232: 0 | O232: 0 | P232: 0 | Q232: 0 | R232: 0 | S232: 0 | T232: 0 | U232: 0 | V232: 0 | W232: 0
J233: 0 | K233: 0 | L233: 0 | M233: 0 | N233: 0 | O233: 0 | P233: 0 | Q233: 0 | R233: 0 | S233: 0 | T233: 0 | U233: 0 | V233: 0 | W233: 0
J234: 0 | K234: 0 | L234: 0 | M234: 0 | N234: 0 | O234: =ROUND(O198*O186*O210,0) -> 0 | P234: =ROUND(P198*P186*P210,0) -> 0 | Q234: 0 | R234: 0 | S234: 0 | T234: 0 | U234: 0 | V234: 0 | W234: 0
J235: 0 | K235: 0 | L235: 0 | M235: 0 | N235: 0 | O235: 0 | P235: 0 | Q235: 0 | R235: 0 | S235: 0 | T235: 0 | U235: 0 | V235: 0 | W235: 0
J236: 0 | K236: 0 | L236: 0 | M236: 0 | N236: 0 | O236: 0 | P236: 0 | Q236: 0 | R236: 0 | S236: 0 | T236: 0 | U236: 0 | V236: 0 | W236: 0
J237: 0 | K237: 0 | L237: 0 | M237: 0 | N237: 0 | O237: 0 | P237: 0 | Q237: 0 | R237: 0 | S237: 0 | T237: 0 | U237: 0 | V237: 0 | W237: 0
J238: 0 | K238: 0 | L238: 0 | M238: 0 | N238: 0 | O238: 0 | P238: 0 | Q238: 0 | R238: 0 | S238: 0 | T238: 0 | U238: 0 | V238: 0 | W238: 0
J239: 0 | K239: 0 | L239: 0 | M239: 0 | N239: 0 | O239: 0 | P239: 0 | Q239: 0 | R239: 0 | S239: 0 | T239: 0 | U239: 0 | V239: 0 | W239: 0
J240: 0 | K240: 0 | L240: 0 | M240: 0 | N240: 0 | O240: 0 | P240: 0 | Q240: 0 | R240: 0 | S240: 0 | T240: 0 | U240: 0 | V240: 0 | W240: 0
B241: Pozostałe | J241: 0 | K241: 0 | L241: 0 | M241: 0 | N241: 0 | O241: 0 | P241: 0 | Q241: 0 | R241: 0 | S241: 0 | T241: 0 | U241: 0 | V241: 0 | W241: 0
B242: Razem Wynagrodzenia | J242: =IF(LataProjekcji<=Koniec,ROUND(SUM(J231:J241),0),0) -> 0 | K242: 0 | L242: 0 | M242: 0 | N242: 0 | O242: 0 | P242: 0 | Q242: 0 | R242: 0 | S242: 0 | T242: 0 | U242: 0 | V242: 0 | W242: 0
B245: Ubezpieczenia społeczne i inne świadczenia | J245: =LataProjekcji -> Uzupełnij dane
B246: Stanowisko / Grupa
B247: =IF(ISBLANK(B183),"",B183) ->  | J247: =ROUND(J231*ZUS,0) -> 0 | K247: =ROUND(K231*ZUS,0) -> 0 | L247: 0 | M247: 0 | N247: 0 | O247: 0 | P247: 0 | Q247: 0 | R247: 0 | S247: 0 | T247: 0 | U247: 0 | V247: 0 | W247: 0
J248: =ROUND(J232*ZUS,0) -> 0 | K248: 0 | L248: 0 | M248: 0 | N248: 0 | O248: 0 | P248: 0 | Q248: 0 | R248: 0 | S248: 0 | T248: 0 | U248: 0 | V248: 0 | W248: 0
J249: =ROUND(J233*ZUS,0) -> 0 | K249: 0 | L249: 0 | M249: 0 | N249: 0 | O249: 0 | P249: 0 | Q249: 0 | R249: 0 | S249: 0 | T249: 0 | U249: 0 | V249: 0 | W249: 0
J250: =ROUND(J234*ZUS,0) -> 0 | K250: 0 | L250: 0 | M250: 0 | N250: 0 | O250: 0 | P250: 0 | Q250: 0 | R250: 0 | S250: 0 | T250: 0 | U250: 0 | V250: 0 | W250: 0
J251: =ROUND(J235*ZUS,0) -> 0 | K251: 0 | L251: 0 | M251: 0 | N251: 0 | O251: 0 | P251: 0 | Q251: 0 | R251: 0 | S251: 0 | T251: 0 | U251: 0 | V251: 0 | W251: 0
J252: =ROUND(J236*ZUS,0) -> 0 | K252: 0 | L252: 0 | M252: 0 | N252: 0 | O252: 0 | P252: 0 | Q252: 0 | R252: 0 | S252: 0 | T252: 0 | U252: 0 | V252: 0 | W252: 0
J253: =ROUND(J237*ZUS,0) -> 0 | K253: 0 | L253: 0 | M253: 0 | N253: 0 | O253: 0 | P253: 0 | Q253: 0 | R253: 0 | S253: 0 | T253: 0 | U253: 0 | V253: 0 | W253: 0
J254: =ROUND(J238*ZUS,0) -> 0 | K254: 0 | L254: 0 | M254: 0 | N254: 0 | O254: 0 | P254: 0 | Q254: 0 | R254: 0 | S254: 0 | T254: 0 | U254: 0 | V254: 0 | W254: 0
J255: =ROUND(J239*ZUS,0) -> 0 | K255: 0 | L255: 0 | M255: 0 | N255: 0 | O255: 0 | P255: 0 | Q255: 0 | R255: 0 | S255: 0 | T255: 0 | U255: 0 | V255: 0 | W255: 0
J256: =ROUND(J240*ZUS,0) -> 0 | K256: 0 | L256: 0 | M256: 0 | N256: 0 | O256: 0 | P256: 0 | Q256: 0 | R256: 0 | S256: 0 | T256: 0 | U256: 0 | V256: 0 | W256: 0
B257: Pozostałe | J257: =ROUND(J241*ZUS,0) -> 0 | K257: 0 | L257: 0 | M257: 0 | N257: 0 | O257: 0 | P257: 0 | Q257: 0 | R257: 0 | S257: 0 | T257: 0 | U257: 0 | V257: 0 | W257: 0
B258: Razem Ubezpieczenia społeczne i inne świadczenia | J258: =IF(LataProjekcji<=Koniec,ROUND(SUM(J247:J257),0),0) -> 0 | K258: 0 | L258: 0 | M258: 0 | N258: 0 | O258: 0 | P258: 0 | Q258: 0 | R258: 0 | S258: 0 | T258: 0 | U258: 0 | V258: 0 | W258: 0
B259: Stanowisko / Grupa | J259: Poziom dofinansowania (w %) Kosztów wynagrodzeń (w przypadku gdy wynagrodzenia są finansowane z dotacji)
B260: =IF(ISBLANK(B195),"",B195) ->  | J260: =ROUND(J219,2) -> 0 | K260: =ROUND(K219,2) -> 0 | L260: 0 | M260: 0 | N260: 0 | O260: 0 | P260: 0 | Q260: 0 | R260: 0 | S260: 0 | T260: 0 | U260: 0 | V260: 0 | W260: 0
J261: 0 | K261: =ROUND(K220,2) -> 0 | L261: 0 | M261: 0 | N261: 0 | O261: 0 | P261: 0 | Q261: 0 | R261: 0 | S261: 0 | T261: 0 | U261: 0 | V261: 0 | W261: 0
J262: 0 | K262: =ROUND(K221,2) -> 0 | L262: 0 | M262: 0 | N262: 0 | O262: 0 | P262: 0 | Q262: 0 | R262: 0 | S262: 0 | T262: 0 | U262: 0 | V262: 0 | W262: 0
J263: 0 | K263: =ROUND(K222,2) -> 0 | L263: 0 | M263: 0 | N263: 0 | O263: 0 | P263: 0 | Q263: 0 | R263: 0 | S263: 0 | T263: 0 | U263: 0 | V263: 0 | W263: 0
J264: 0 | K264: =ROUND(K223,2) -> 0 | L264: 0 | M264: 0 | N264: 0 | O264: 0 | P264: 0 | Q264: 0 | R264: 0 | S264: 0 | T264: 0 | U264: 0 | V264: 0 | W264: 0
J265: 0 | K265: =ROUND(K224,2) -> 0 | L265: 0 | M265: 0 | N265: 0 | O265: 0 | P265: 0 | Q265: 0 | R265: 0 | S265: 0 | T265: 0 | U265: 0 | V265: 0 | W265: 0
J266: 0 | K266: =ROUND(K225,2) -> 0 | L266: 0 | M266: 0 | N266: 0 | O266: 0 | P266: 0 | Q266: 0 | R266: 0 | S266: 0 | T266: 0 | U266: 0 | V266: 0 | W266: 0
J267: 0 | K267: =ROUND(K226,2) -> 0 | L267: 0 | M267: 0 | N267: 0 | O267: 0 | P267: 0 | Q267: 0 | R267: 0 | S267: 0 | T267: 0 | U267: 0 | V267: 0 | W267: 0
J268: 0 | K268: =ROUND(K227,2) -> 0 | L268: 0 | M268: 0 | N268: 0 | O268: 0 | P268: 0 | Q268: 0 | R268: 0 | S268: 0 | T268: 0 | U268: 0 | V268: 0 | W268: 0
J269: 0 | K269: =ROUND(K228,2) -> 0 | L269: 0 | M269: 0 | N269: 0 | O269: 0 | P269: 0 | Q269: 0 | R269: 0 | S269: 0 | T269: 0 | U269: 0 | V269: 0 | W269: 0
B270: Pozostałe | J270: 0 | K270: =ROUND(K229,2) -> 0 | L270: 0 | M270: 0 | N270: 0 | O270: 0 | P270: 0 | Q270: 0 | R270: 0 | S270: 0 | T270: 0 | U270: 0 | V270: 0 | W270: 0
B273: Pozostałe koszty rodzajowe | J273: =LataProjekcji -> Uzupełnij dane
B284: Razem Pozostałe koszty rodzajowe | J284: =IF(LataProjekcji<=Koniec,ROUND(SUM(J274:J283),0),0) -> 0 | K284: 0 | L284: 0 | M284: 0 | N284: 0 | O284: 0 | P284: 0 | Q284: 0 | R284: 0 | S284: 0 | T284: 0 | U284: 0 | V284: 0 | W284: 0
B285: Poziom dofinansowania (w %) | J285: w przypadku gdy te koszty są finansowane z dotacji
B286: =IF(ISBLANK(B274),"",B274) -> 
B287: =IF(ISBLANK(B275),"",B275) -> 
B298: Pozostałe koszty operacyjne | J298: =LataProjekcji -> Uzupełnij dane
B304: Razem Pozostałe koszty operacyjne | J304: =IF(LataProjekcji<=Koniec,ROUND(SUM(J299:J303),0),0) -> 0 | K304: 0 | L304: 0 | M304: 0 | N304: 0 | O304: 0 | P304: 0 | Q304: 0 | R304: 0 | S304: 0 | T304: 0 | U304: 0 | V304: 0 | W304: 0
B307: Koszty finansowe | J307: =LataProjekcji -> Uzupełnij dane
B308: Koszty z tytułu oprocentowania kredytów i pożyczek | J308: =IF(LataProjekcji<=Koniec,Finansowanie!J111+Finansowanie!J120+Finansowanie!J129+Finansowanie!J137,0) -> 0 | K308: =IF(LataProjekcji<=Koniec,Finansowanie!K111+Finansowanie!K120+Finansowanie!K129+Finansowanie!K137,0) -> 0 | L308: =IF(LataProjekcji<=Koniec,Finansowanie!L111+Finansowanie!L120+Finansowanie!L129+Finansowanie!L137,0) -> 0 | M308: =IF(LataProjekcji<=Koniec,Finansowanie!M111+Finansowanie!M120+Finansowanie!M129+Finansowanie!M137,0) -> 0 | N308: =IF(LataProjekcji<=Koniec,Finansowanie!N111+Finansowanie!N120+Finansowanie!N129+Finansowanie!N137,0) -> 0 | O308: =IF(LataProjekcji<=Koniec,Finansowanie!O111+Finansowanie!O120+Finansowanie!O129+Finansowanie!O137,0) -> 0 | P308: =IF(LataProjekcji<=Koniec,Finansowanie!P111+Finansowanie!P120+Finansowanie!P129+Finansowanie!P137,0) -> 0 | Q308: =IF(LataProjekcji<=Koniec,Finansowanie!Q111+Finansowanie!Q120+Finansowanie!Q129+Finansowanie!Q137,0) -> 0 | R308: =IF(LataProjekcji<=Koniec,Finansowanie!R111+Finansowanie!R120+Finansowanie!R129+Finansowanie!R137,0) -> 0 | S308: =IF(LataProjekcji<=Koniec,Finansowanie!S111+Finansowanie!S120+Finansowanie!S129+Finansowanie!S137,0) -> 0 | T308: =IF(LataProjekcji<=Koniec,Finansowanie!T111+Finansowanie!T120+Finansowanie!T129+Finansowanie!T137,0) -> 0 | U308: =IF(LataProjekcji<=Koniec,Finansowanie!U111+Finansowanie!U120+Finansowanie!U129+Finansowanie!U137,0) -> 0 | V308: =IF(LataProjekcji<=Koniec,Finansowanie!V111+Finansowanie!V120+Finansowanie!V129+Finansowanie!V137,0) -> 0 | W308: =IF(LataProjekcji<=Koniec,Finansowanie!W111+Finansowanie!W120+Finansowanie!W129+Finansowanie!W137,0) -> 0
B313: Razem Koszty finansowe | J313: =IF(LataProjekcji<=Koniec,ROUND(SUM(J308:J312),0),0) -> 0 | K313: 0 | L313: 0 | M313: 0 | N313: 0 | O313: 0 | P313: 0 | Q313: 0 | R313: 0 | S313: 0 | T313: 0 | U313: 0 | V313: 0 | W313: 0
B316: Koszty planowanej działalności operacyjnej (Projekt) | J316: =LataProjekcji -> Uzupełnij dane
B317: Amortyzacja | J317: ='Środki trwałe'!J554 -> 0 | K317: ='Środki trwałe'!K554 -> 0 | L317: ='Środki trwałe'!L554 -> 0 | M317: ='Środki trwałe'!M554 -> 0 | N317: ='Środki trwałe'!N554 -> 0 | O317: ='Środki trwałe'!O554 -> 0 | P317: ='Środki trwałe'!P554 -> 0 | Q317: ='Środki trwałe'!Q554 -> 0 | R317: ='Środki trwałe'!R554 -> 0 | S317: ='Środki trwałe'!S554 -> 0 | T317: ='Środki trwałe'!T554 -> 0 | U317: ='Środki trwałe'!U554 -> 0 | V317: ='Środki trwałe'!V554 -> 0 | W317: ='Środki trwałe'!W554 -> 0
B318: Zużycie materiałów i energii | J318: =IF(LataProjekcji<=Koniec,ROUND(J127,0),0) -> 0 | K318: 0 | L318: 0 | M318: 0 | N318: 0 | O318: 0 | P318: 0 | Q318: 0 | R318: 0 | S318: 0 | T318: 0 | U318: 0 | V318: 0 | W318: 0
B319: Usługi obce | J319: =IF(LataProjekcji<=Koniec,ROUND(J152,0),0) -> 0 | K319: 0 | L319: 0 | M319: 0 | N319: 0 | O319: 0 | P319: 0 | Q319: 0 | R319: 0 | S319: 0 | T319: 0 | U319: 0 | V319: 0 | W319: 0
B320: Podatki i opłaty | J320: =IF(LataProjekcji<=Koniec,ROUND(J172,0),0) -> 0 | K320: 0 | L320: 0 | M320: 0 | N320: 0 | O320: 0 | P320: 0 | Q320: 0 | R320: 0 | S320: 0 | T320: 0 | U320: 0 | V320: 0 | W320: 0
B321: Wynagrodzenia | J321: =IF(LataProjekcji<=Koniec,ROUND(J242,0),0) -> 0 | K321: 0 | L321: 0 | M321: 0 | N321: 0 | O321: 0 | P321: 0 | Q321: 0 | R321: 0 | S321: 0 | T321: 0 | U321: 0 | V321: 0 | W321: 0
B322: Ubezpieczenia społeczne i inne świadczenia | J322: =IF(LataProjekcji<=Koniec,ROUND(J258,0),0) -> 0 | K322: 0 | L322: 0 | M322: 0 | N322: 0 | O322: 0 | P322: 0 | Q322: 0 | R322: 0 | S322: 0 | T322: 0 | U322: 0 | V322: 0 | W322: 0
B323: Pozostałe koszty rodzajowe | J323: =IF(LataProjekcji<=Koniec,ROUND(J284,0),0) -> 0 | K323: 0 | L323: 0 | M323: 0 | N323: 0 | O323: 0 | P323: 0 | Q323: 0 | R323: 0 | S323: 0 | T323: 0 | U323: 0 | V323: 0 | W323: 0
B324: Wartość sprzedanych towarów i materiałów | J324: =IF(LataProjekcji<=Koniec,Przychody!J231,0) -> 0 | K324: =IF(LataProjekcji<=Koniec,Przychody!K231,0) -> 0 | L324: =IF(LataProjekcji<=Koniec,Przychody!L231,0) -> 0 | M324: =IF(LataProjekcji<=Koniec,Przychody!M231,0) -> 0 | N324: =IF(LataProjekcji<=Koniec,Przychody!N231,0) -> 0 | O324: =IF(LataProjekcji<=Koniec,Przychody!O231,0) -> 0 | P324: =IF(LataProjekcji<=Koniec,Przychody!P231,0) -> 0 | Q324: =IF(LataProjekcji<=Koniec,Przychody!Q231,0) -> 0 | R324: =IF(LataProjekcji<=Koniec,Przychody!R231,0) -> 0 | S324: =IF(LataProjekcji<=Koniec,Przychody!S231,0) -> 0 | T324: =IF(LataProjekcji<=Koniec,Przychody!T231,0) -> 0 | U324: =IF(LataProjekcji<=Koniec,Przychody!U231,0) -> 0 | V324: =IF(LataProjekcji<=Koniec,Przychody!V231,0) -> 0 | W324: =IF(LataProjekcji<=Koniec,Przychody!W231,0) -> 0
B325: Razem | J325: =SUM(J317:J324) -> 0 | K325: =SUM(K317:K324) -> 0 | L325: 0 | M325: 0 | N325: 0 | O325: 0 | P325: 0 | Q325: 0 | R325: 0 | S325: 0 | T325: 0 | U325: 0 | V325: 0 | W325: 0
B326: Pozostałe koszty operacyjne | J326: =IF(LataProjekcji<=Koniec,ROUND(J304,0),0) -> 0 | K326: 0 | L326: 0 | M326: 0 | N326: 0 | O326: 0 | P326: 0 | Q326: 0 | R326: 0 | S326: 0 | T326: 0 | U326: 0 | V326: 0 | W326: 0
B327: Koszty finansowe | J327: =IF(LataProjekcji<=Koniec,ROUND(J313,0),0) -> 0 | K327: 0 | L327: 0 | M327: 0 | N327: 0 | O327: 0 | P327: 0 | Q327: 0 | R327: 0 | S327: 0 | T327: 0 | U327: 0 | V327: 0 | W327: 0
B330: Koszty planowanej działalności operacyjnej (Projekt, bez kosztów B+R, dotacja w RZiS) | J330: =LataProjekcji -> Uzupełnij dane
B331: Zużycie materiałów i energii | J331: =IF(LataProjekcji<=Koniec,ROUND(J318-J343,0),0) -> 0 | K331: 0 | L331: 0 | M331: 0 | N331: 0 | O331: 0 | P331: 0 | Q331: 0 | R331: 0 | S331: 0 | T331: 0 | U331: 0 | V331: 0 | W331: 0
B332: Usługi obce | J332: =IF(LataProjekcji<=Koniec,ROUND(J319-J344,0),0) -> 0 | K332: 0 | L332: 0 | M332: 0 | N332: 0 | O332: 0 | P332: 0 | Q332: 0 | R332: 0 | S332: 0 | T332: 0 | U332: 0 | V332: 0 | W332: 0
B333: Podatki i opłaty | J333: =IF(LataProjekcji<=Koniec,ROUND(J320-J345,0),0) -> 0 | K333: 0 | L333: 0 | M333: 0 | N333: 0 | O333: 0 | P333: 0 | Q333: 0 | R333: 0 | S333: 0 | T333: 0 | U333: 0 | V333: 0 | W333: 0
B334: Wynagrodzenia | J334: =IF(LataProjekcji<=Koniec,ROUND(J321-J346,0),0) -> 0 | K334: 0 | L334: 0 | M334: 0 | N334: 0 | O334: 0 | P334: 0 | Q334: 0 | R334: 0 | S334: 0 | T334: 0 | U334: 0 | V334: 0 | W334: 0
B335: Ubezpieczenia społeczne i inne świadczenia | J335: =IF(LataProjekcji<=Koniec,ROUND(J322-J347,0),0) -> 0 | K335: 0 | L335: 0 | M335: 0 | N335: 0 | O335: 0 | P335: 0 | Q335: 0 | R335: 0 | S335: 0 | T335: 0 | U335: 0 | V335: 0 | W335: 0
B336: Pozostałe koszty rodzajowe | J336: =IF(LataProjekcji<=Koniec,ROUND(J323-J348,0),0) -> 0 | K336: 0 | L336: 0 | M336: 0 | N336: 0 | O336: 0 | P336: 0 | Q336: 0 | R336: 0 | S336: 0 | T336: 0 | U336: 0 | V336: 0 | W336: 0
B337: Wartość sprzedanych towarów i materiałów | J337: =IF(LataProjekcji<=Koniec,ROUND(J324-J349,0),0) -> 0 | K337: 0 | L337: 0 | M337: 0 | N337: 0 | O337: 0 | P337: 0 | Q337: 0 | R337: 0 | S337: 0 | T337: 0 | U337: 0 | V337: 0 | W337: 0
B338: Pozostałe koszty operacyjne | J338: =IF(LataProjekcji<=Koniec,ROUND(J326-J350,0),0) -> 0 | K338: 0 | L338: 0 | M338: 0 | N338: 0 | O338: 0 | P338: 0 | Q338: 0 | R338: 0 | S338: 0 | T338: 0 | U338: 0 | V338: 0 | W338: 0
B339: Koszty finansowe | J339: =IF(LataProjekcji<=Koniec,ROUND(J327-J351,0),0) -> 0 | K339: 0 | L339: 0 | M339: 0 | N339: 0 | O339: 0 | P339: 0 | Q339: 0 | R339: 0 | S339: 0 | T339: 0 | U339: 0 | V339: 0 | W339: 0
B342: Koszty planowanej działalności operacyjnej (Projekt, B+R, rozliczane w czasie) | J342: =LataProjekcji -> Uzupełnij dane
B343: Zużycie materiałów i energii | J343: =IF(LataProjekcji<=Koniec,J498,0) -> 0 | K343: 0 | L343: 0 | M343: 0 | N343: 0 | O343: 0 | P343: 0 | Q343: 0 | R343: 0 | S343: 0 | T343: 0 | U343: 0 | V343: 0 | W343: 0
B344: Usługi obce | J344: =IF(LataProjekcji<=Koniec,J499,0) -> 0 | K344: 0 | L344: 0 | M344: 0 | N344: 0 | O344: 0 | P344: 0 | Q344: 0 | R344: 0 | S344: 0 | T344: 0 | U344: 0 | V344: 0 | W344: 0
B345: Podatki i opłaty | J345: =IF(LataProjekcji<=Koniec,J500,0) -> 0 | K345: 0 | L345: 0 | M345: 0 | N345: 0 | O345: 0 | P345: 0 | Q345: 0 | R345: 0 | S345: 0 | T345: 0 | U345: 0 | V345: 0 | W345: 0
B346: Wynagrodzenia | J346: =IF(LataProjekcji<=Koniec,J501,0) -> 0 | K346: 0 | L346: 0 | M346: 0 | N346: 0 | O346: 0 | P346: 0 | Q346: 0 | R346: 0 | S346: 0 | T346: 0 | U346: 0 | V346: 0 | W346: 0
B347: Ubezpieczenia społeczne i inne świadczenia | J347: =IF(LataProjekcji<=Koniec,J502,0) -> 0 | K347: 0 | L347: 0 | M347: 0 | N347: 0 | O347: 0 | P347: 0 | Q347: 0 | R347: 0 | S347: 0 | T347: 0 | U347: 0 | V347: 0 | W347: 0
B348: Pozostałe koszty rodzajowe | J348: =IF(LataProjekcji<=Koniec,J503,0) -> 0 | K348: 0 | L348: 0 | M348: 0 | N348: 0 | O348: 0 | P348: 0 | Q348: 0 | R348: 0 | S348: 0 | T348: 0 | U348: 0 | V348: 0 | W348: 0
B349: Wartość sprzedanych towarów i materiałów | J349: =IF(LataProjekcji<=Koniec,J504,0) -> 0 | K349: 0 | L349: 0 | M349: 0 | N349: 0 | O349: 0 | P349: 0 | Q349: 0 | R349: 0 | S349: 0 | T349: 0 | U349: 0 | V349: 0 | W349: 0
B350: Pozostałe koszty operacyjne | J350: =IF(LataProjekcji<=Koniec,J505,0) -> 0 | K350: 0 | L350: 0 | M350: 0 | N350: 0 | O350: 0 | P350: 0 | Q350: 0 | R350: 0 | S350: 0 | T350: 0 | U350: 0 | V350: 0 | W350: 0
B351: Koszty finansowe | J351: =IF(LataProjekcji<=Koniec,J506,0) -> 0 | K351: 0 | L351: 0 | M351: 0 | N351: 0 | O351: 0 | P351: 0 | Q351: 0 | R351: 0 | S351: 0 | T351: 0 | U351: 0 | V351: 0 | W351: 0
B354: Komentarz
B385: Rozliczenie kosztów B+R projektu do rozliczeń międzyokresowych | J385: =LataProjekcji -> Uzupełnij dane
B387: Zużycie materiałów i eneregii (Projekt)
B388: =IF(ISBLANK(B117),"",B117) ->  | C388: FALSE | J388: =IF(AND($C388,LataProjekcji<=Koniec_Projekt),ROUND(J117,0),0) -> 0 | K388: =IF((AND($C388,LataProjekcji<=Koniec_Projekt)),ROUND(K117,0),0) -> 0 | L388: 0 | M388: 0 | N388: 0 | O388: 0 | P388: 0 | Q388: 0 | R388: 0 | S388: 0 | T388: 0 | U388: 0 | V388: 0 | W388: 0
C389: FALSE | J389: =IF((AND($C389,LataProjekcji<=Koniec_Projekt)),ROUND(J118,0),0) -> 0 | K389: =IF((AND($C389,LataProjekcji<=Koniec_Projekt)),ROUND(K118,0),0) -> 0 | L389: 0 | M389: 0 | N389: 0 | O389: 0 | P389: 0 | Q389: 0 | R389: 0 | S389: 0 | T389: 0 | U389: 0 | V389: 0 | W389: 0
C390: FALSE | J390: 0 | K390: =IF((AND($C390,LataProjekcji<=Koniec_Projekt)),ROUND(K119,0),0) -> 0 | L390: 0 | M390: 0 | N390: 0 | O390: 0 | P390: 0 | Q390: 0 | R390: 0 | S390: 0 | T390: 0 | U390: 0 | V390: 0 | W390: 0
C391: FALSE | J391: 0 | K391: =IF((AND($C391,LataProjekcji<=Koniec_Projekt)),ROUND(K120,0),0) -> 0 | L391: 0 | M391: 0 | N391: 0 | O391: 0 | P391: 0 | Q391: 0 | R391: 0 | S391: 0 | T391: 0 | U391: 0 | V391: 0 | W391: 0
C392: FALSE | J392: 0 | K392: =IF((AND($C392,LataProjekcji<=Koniec_Projekt)),ROUND(K121,0),0) -> 0 | L392: 0 | M392: 0 | N392: 0 | O392: 0 | P392: 0 | Q392: 0 | R392: 0 | S392: 0 | T392: 0 | U392: 0 | V392: 0 | W392: 0
C393: FALSE | J393: 0 | K393: =IF((AND($C393,LataProjekcji<=Koniec_Projekt)),ROUND(K122,0),0) -> 0 | L393: 0 | M393: 0 | N393: 0 | O393: 0 | P393: 0 | Q393: 0 | R393: 0 | S393: 0 | T393: 0 | U393: 0 | V393: 0 | W393: 0
C394: FALSE | J394: 0 | K394: =IF((AND($C394,LataProjekcji<=Koniec_Projekt)),ROUND(K123,0),0) -> 0 | L394: 0 | M394: 0 | N394: 0 | O394: 0 | P394: 0 | Q394: 0 | R394: 0 | S394: 0 | T394: 0 | U394: 0 | V394: 0 | W394: 0
C395: FALSE | J395: 0 | K395: =IF((AND($C395,LataProjekcji<=Koniec_Projekt)),ROUND(K124,0),0) -> 0 | L395: 0 | M395: 0 | N395: 0 | O395: 0 | P395: 0 | Q395: 0 | R395: 0 | S395: 0 | T395: 0 | U395: 0 | V395: 0 | W395: 0
C396: FALSE | J396: 0 | K396: =IF((AND($C396,LataProjekcji<=Koniec_Projekt)),ROUND(K125,0),0) -> 0 | L396: 0 | M396: 0 | N396: 0 | O396: 0 | P396: 0 | Q396: 0 | R396: 0 | S396: 0 | T396: 0 | U396: 0 | V396: 0 | W396: 0
C397: FALSE | J397: 0 | K397: =IF((AND($C397,LataProjekcji<=Koniec_Projekt)),ROUND(K126,0),0) -> 0 | L397: 0 | M397: 0 | N397: 0 | O397: 0 | P397: 0 | Q397: 0 | R397: 0 | S397: 0 | T397: 0 | U397: 0 | V397: 0 | W397: 0
B398: Razem Zużycie materiałów i energii (Projekt) | J398: =ROUND(SUM(J388:J397),0) -> 0 | K398: 0 | L398: 0 | M398: 0 | N398: 0 | O398: 0 | P398: 0 | Q398: 0 | R398: 0 | S398: 0 | T398: 0 | U398: 0 | V398: 0 | W398: 0
B401: Usługi obce (Projekt)
B402: =IF(ISBLANK(B142),"",B142) ->  | C402: FALSE | J402: =IF(AND($C402,LataProjekcji<=Koniec_Projekt),ROUND(J142,0),0) -> 0 | K402: 0 | L402: 0 | M402: 0 | N402: 0 | O402: 0 | P402: 0 | Q402: 0 | R402: 0 | S402: 0 | T402: 0 | U402: 0 | V402: 0 | W402: 0
C403: FALSE | J403: =IF(AND($C403,LataProjekcji<=Koniec_Projekt),ROUND(J143,0),0) -> 0 | K403: 0 | L403: 0 | M403: 0 | N403: 0 | O403: 0 | P403: 0 | Q403: 0 | R403: 0 | S403: 0 | T403: 0 | U403: 0 | V403: 0 | W403: 0
C404: FALSE | J404: =IF(AND($C404,LataProjekcji<=Koniec_Projekt),ROUND(J144,0),0) -> 0 | K404: 0 | L404: 0 | M404: 0 | N404: 0 | O404: 0 | P404: 0 | Q404: 0 | R404: 0 | S404: 0 | T404: 0 | U404: 0 | V404: 0 | W404: 0
C405: FALSE | J405: =IF(AND($C405,LataProjekcji<=Koniec_Projekt),ROUND(J145,0),0) -> 0 | K405: 0 | L405: 0 | M405: 0 | N405: 0 | O405: 0 | P405: 0 | Q405: 0 | R405: 0 | S405: 0 | T405: 0 | U405: 0 | V405: 0 | W405: 0
C406: FALSE | J406: =IF(AND($C406,LataProjekcji<=Koniec_Projekt),ROUND(J146,0),0) -> 0 | K406: 0 | L406: 0 | M406: 0 | N406: 0 | O406: 0 | P406: 0 | Q406: 0 | R406: 0 | S406: 0 | T406: 0 | U406: 0 | V406: 0 | W406: 0
C407: FALSE | J407: =IF(AND($C407,LataProjekcji<=Koniec_Projekt),ROUND(J147,0),0) -> 0 | K407: 0 | L407: 0 | M407: 0 | N407: 0 | O407: 0 | P407: 0 | Q407: 0 | R407: 0 | S407: 0 | T407: 0 | U407: 0 | V407: 0 | W407: 0
C408: FALSE | J408: =IF(AND($C408,LataProjekcji<=Koniec_Projekt),ROUND(J148,0),0) -> 0 | K408: 0 | L408: 0 | M408: 0 | N408: 0 | O408: 0 | P408: 0 | Q408: 0 | R408: 0 | S408: 0 | T408: 0 | U408: 0 | V408: 0 | W408: 0
C409: FALSE | J409: =IF(AND($C409,LataProjekcji<=Koniec_Projekt),ROUND(J149,0),0) -> 0 | K409: 0 | L409: 0 | M409: 0 | N409: 0 | O409: 0 | P409: 0 | Q409: 0 | R409: 0 | S409: 0 | T409: 0 | U409: 0 | V409: 0 | W409: 0
C410: FALSE | J410: =IF(AND($C410,LataProjekcji<=Koniec_Projekt),ROUND(J150,0),0) -> 0 | K410: 0 | L410: 0 | M410: 0 | N410: 0 | O410: 0 | P410: 0 | Q410: 0 | R410: 0 | S410: 0 | T410: 0 | U410: 0 | V410: 0 | W410: 0
C411: FALSE | J411: =IF(AND($C411,LataProjekcji<=Koniec_Projekt),ROUND(J151,0),0) -> 0 | K411: 0 | L411: 0 | M411: 0 | N411: 0 | O411: 0 | P411: 0 | Q411: 0 | R411: 0 | S411: 0 | T411: 0 | U411: 0 | V411: 0 | W411: 0
B412: Razem Usługi obce (Projekt) | J412: =ROUND(SUM(J402:J411),0) -> 0 | K412: 0 | L412: 0 | M412: 0 | N412: 0 | O412: 0 | P412: 0 | Q412: 0 | R412: 0 | S412: 0 | T412: 0 | U412: 0 | V412: 0 | W412: 0
B415: Podatki i opłaty (Projekt)
B416: =IF(ISBLANK(B167),"",B167) ->  | C416: FALSE | J416: =IF(AND($C416,LataProjekcji<=Koniec_Projekt),ROUND(J167,0),0) -> 0 | K416: 0 | L416: 0 | M416: 0 | N416: 0 | O416: 0 | P416: 0 | Q416: 0 | R416: 0 | S416: 0 | T416: 0 | U416: 0 | V416: 0 | W416: 0
B417: =IF(ISBLANK(B168),"",B168) ->  | C417: FALSE | J417: =IF(AND($C417,LataProjekcji<=Koniec_Projekt),ROUND(J168,0),0) -> 0 | K417: 0 | L417: 0 | M417: 0 | N417: 0 | O417: 0 | P417: 0 | Q417: 0 | R417: 0 | S417: 0 | T417: 0 | U417: 0 | V417: 0 | W417: 0
B418: =IF(ISBLANK(B169),"",B169) ->  | C418: FALSE | J418: =IF(AND($C418,LataProjekcji<=Koniec_Projekt),ROUND(J169,0),0) -> 0 | K418: 0 | L418: 0 | M418: 0 | N418: 0 | O418: 0 | P418: 0 | Q418: 0 | R418: 0 | S418: 0 | T418: 0 | U418: 0 | V418: 0 | W418: 0
B419: =IF(ISBLANK(B170),"",B170) ->  | C419: FALSE | J419: =IF(AND($C419,LataProjekcji<=Koniec_Projekt),ROUND(J170,0),0) -> 0 | K419: 0 | L419: 0 | M419: 0 | N419: 0 | O419: 0 | P419: 0 | Q419: 0 | R419: 0 | S419: 0 | T419: 0 | U419: 0 | V419: 0 | W419: 0
B420: =IF(ISBLANK(B171),"",B171) ->  | C420: FALSE | J420: =IF(AND($C420,LataProjekcji<=Koniec_Projekt),ROUND(J171,0),0) -> 0 | K420: 0 | L420: 0 | M420: 0 | N420: 0 | O420: 0 | P420: 0 | Q420: 0 | R420: 0 | S420: 0 | T420: 0 | U420: 0 | V420: 0 | W420: 0
B421: Razem Podatki i opłaty (Projekt) | J421: =ROUND(SUM(J416:J420),0) -> 0 | K421: 0 | L421: 0 | M421: 0 | N421: 0 | O421: 0 | P421: 0 | Q421: 0 | R421: 0 | S421: 0 | T421: 0 | U421: 0 | V421: 0 | W421: 0
B424: Wynagrodzenia (brutto) (Projekt)
B425: Stanowisko / Grupa | J425: Koszty rocznych wynagrodzeń na danym stanowisku / w danej grupie
... 569 more rows

Sheet Środki trwałe
B2: =IF(ISBLANK(Firma),"Wstaw nazwę firmy",Firma) -> Wstaw nazwę firmy
J11: =Założenia!J25 -> 0 | K11: =Założenia!K25 -> 1 | L11: =Założenia!L25 -> 2 | M11: =Założenia!M25 -> 3 | N11: =Założenia!N25 -> 4 | O11: =Założenia!O25 -> 5 | P11: =Założenia!P25 -> 6 | Q11: =Założenia!Q25 -> 7 | R11: =Założenia!R25 -> 8 | S11: =Założenia!S25 -> 9 | T11: =Założenia!T25 -> 10 | U11: =Założenia!U25 -> 11 | V11: =Założenia!V25 -> 12 | W11: =Założenia!W25 -> 13
B12: Działalność dotychczasowa (bez Projektu) | I12: =Założenia!I26 ->  | J12: =Założenia!J26 -> Uzupełnij dane | K12: =Założenia!K26 ->  | L12: =Założenia!L26 ->  | M12: =Założenia!M26 ->  | N12: =Założenia!N26 ->  | O12: =Założenia!O26 ->  | P12: =Założenia!P26 ->  | Q12: =Założenia!Q26 ->  | R12: =Założenia!R26 ->  | S12: =Założenia!S26 ->  | T12: =Założenia!T26 ->  | U12: =Założenia!U26 ->  | V12: =Założenia!V26 ->  | W12: =Założenia!W26 -> 
B14: koszty zakończonych prac rozwojowych
B15: - wartość netto | C15: =MAX('Sprawozdania finansowe'!E15,'Sprawozdania finansowe'!F15) -> 0 | I15: =ROUND(C15,0) -> 0
B16: - stopa amortyzacji | C16: =am_prace_rozwojowe -> 0
B17: - amortyzacja | J17: =IFERROR(ROUND(MIN($C16*$I15,$I15),0),0) -> 0 | K17: =IFERROR(ROUND(MIN($C16*$I15,$I15-J18),0),0) -> 0 | L17: 0 | M17: 0 | N17: 0 | O17: 0 | P17: 0 | Q17: 0 | R17: 0 | S17: 0 | T17: 0 | U17: 0 | V17: 0 | W17: 0
B18: - umorzenie | J18: =ROUND(J17,0) -> 0 | K18: =ROUND(K17+J18,0) -> 0 | L18: 0 | M18: 0 | N18: 0 | O18: 0 | P18: 0 | Q18: 0 | R18: 0 | S18: 0 | T18: 0 | U18: 0 | V18: 0 | W18: 0
B19: - wartość księgowa netto | J19: =ROUND($I15-J18,0) -> 0 | K19: 0 | L19: 0 | M19: 0 | N19: 0 | O19: 0 | P19: 0 | Q19: 0 | R19: 0 | S19: 0 | T19: 0 | U19: 0 | V19: 0 | W19: 0
B21: wartość firmy | J21: =LataProjekcji -> Uzupełnij dane
B22: - wartość netto | C22: =MAX('Sprawozdania finansowe'!E16,'Sprawozdania finansowe'!F16) -> 0 | I22: =ROUND(C22,0) -> 0
B23: - stopa amortyzacji | C23: =am_wartosc_firmy -> 0
B24: - amortyzacja | J24: =IFERROR(ROUND(MIN($C23*$I22,$I22),0),0) -> 0 | K24: =IFERROR(ROUND(MIN($C23*$I22,$I22-J25),0),0) -> 0 | L24: 0 | M24: 0 | N24: 0 | O24: 0 | P24: 0 | Q24: 0 | R24: 0 | S24: 0 | T24: 0 | U24: 0 | V24: 0 | W24: 0
B25: - umorzenie | J25: =ROUND(J24,0) -> 0 | K25: =ROUND(K24+J25,0) -> 0 | L25: 0 | M25: 0 | N25: 0 | O25: 0 | P25: 0 | Q25: 0 | R25: 0 | S25: 0 | T25: 0 | U25: 0 | V25: 0 | W25: 0
B26: - wartość księgowa netto | J26: =ROUND($I22-J25,0) -> 0 | K26: 0 | L26: 0 | M26: 0 | N26: 0 | O26: 0 | P26: 0 | Q26: 0 | R26: 0 | S26: 0 | T26: 0 | U26: 0 | V26: 0 | W26: 0
B28: inne wartości niematerialne i prawne | J28: =LataProjekcji -> Uzupełnij dane
B29: - wartość netto | C29: =MAX('Sprawozdania finansowe'!E17,'Sprawozdania finansowe'!F17) -> 0 | I29: =ROUND(C29,0) -> 0
B30: - stopa amortyzacji | C30: =am_wnip -> 0
B31: - amortyzacja | J31: =IFERROR(ROUND(MIN($C30*$I29,$I29),0),0) -> 0 | K31: =IFERROR(ROUND(MIN($C30*$I29,$I29-J32),0),0) -> 0 | L31: 0 | M31: 0 | N31: 0 | O31: 0 | P31: 0 | Q31: 0 | R31: 0 | S31: 0 | T31: 0 | U31: 0 | V31: 0 | W31: 0
B32: - umorzenie | J32: =ROUND(J31,0) -> 0 | K32: =ROUND(K31+J32,0) -> 0 | L32: 0 | M32: 0 | N32: 0 | O32: 0 | P32: 0 | Q32: 0 | R32: 0 | S32: 0 | T32: 0 | U32: 0 | V32: 0 | W32: 0
B33: - wartość księgowa netto | J33: =ROUND($I29-J32,0) -> 0 | K33: 0 | L33: 0 | M33: 0 | N33: 0 | O33: 0 | P33: 0 | Q33: 0 | R33: 0 | S33: 0 | T33: 0 | U33: 0 | V33: 0 | W33: 0
B35: grunty | J35: =LataProjekcji -> Uzupełnij dane
B36: - wartość netto | C36: =MAX('Sprawozdania finansowe'!E21,'Sprawozdania finansowe'!F21) -> 0 | I36: =ROUND(C36,0) -> 0
B37: - stopa amortyzacji | C37: =am_grunty -> 0
B38: - amortyzacja | J38: =IFERROR(ROUND(MIN($C37*$I36,$I36),0),0) -> 0 | K38: =IFERROR(ROUND(MIN($C37*$I36,$I36-J39),0),0) -> 0 | L38: 0 | M38: 0 | N38: 0 | O38: 0 | P38: 0 | Q38: 0 | R38: 0 | S38: 0 | T38: 0 | U38: 0 | V38: 0 | W38: 0
B39: - umorzenie | J39: =ROUND(J38,0) -> 0 | K39: =ROUND(K38+J39,0) -> 0 | L39: 0 | M39: 0 | N39: 0 | O39: 0 | P39: 0 | Q39: 0 | R39: 0 | S39: 0 | T39: 0 | U39: 0 | V39: 0 | W39: 0
B40: - wartość księgowa netto | J40: =ROUND($I36-J39,0) -> 0 | K40: 0 | L40: 0 | M40: 0 | N40: 0 | O40: 0 | P40: 0 | Q40: 0 | R40: 0 | S40: 0 | T40: 0 | U40: 0 | V40: 0 | W40: 0
B42: budynki i budowle | J42: =LataProjekcji -> Uzupełnij dane
B43: - wartość netto | C43: =MAX('Sprawozdania finansowe'!E22,'Sprawozdania finansowe'!F22) -> 0 | I43: =ROUND(C43,0) -> 0
B44: - stopa amortyzacji | C44: =am_budynki -> 0
B45: - amortyzacja | J45: =IFERROR(ROUND(MIN($C44*$I43,$I43),0),0) -> 0 | K45: =IFERROR(ROUND(MIN($C44*$I43,$I43-J46),0),0) -> 0 | L45: 0 | M45: 0 | N45: 0 | O45: 0 | P45: 0 | Q45: 0 | R45: 0 | S45: 0 | T45: 0 | U45: 0 | V45: 0 | W45: 0
B46: - umorzenie | J46: =ROUND(J45,0) -> 0 | K46: =ROUND(K45+J46,0) -> 0 | L46: 0 | M46: 0 | N46: 0 | O46: 0 | P46: 0 | Q46: 0 | R46: 0 | S46: 0 | T46: 0 | U46: 0 | V46: 0 | W46: 0
B47: - wartość księgowa netto | J47: =ROUND($I43-J46,0) -> 0 | K47: 0 | L47: 0 | M47: 0 | N47: 0 | O47: 0 | P47: 0 | Q47: 0 | R47: 0 | S47: 0 | T47: 0 | U47: 0 | V47: 0 | W47: 0
B49: urządzenia techniczne i maszyny | J49: =LataProjekcji -> Uzupełnij dane
B50: - wartość netto | C50: =MAX('Sprawozdania finansowe'!E23,'Sprawozdania finansowe'!F23) -> 0 | I50: =ROUND(C50,0) -> 0
B51: - stopa amortyzacji | C51: =am_maszyny -> 0
B52: - amortyzacja | J52: =IFERROR(ROUND(MIN($C51*$I50,$I50),0),0) -> 0 | K52: =IFERROR(ROUND(MIN($C51*$I50,$I50-J53),0),0) -> 0 | L52: 0 | M52: 0 | N52: 0 | O52: 0 | P52: 0 | Q52: 0 | R52: 0 | S52: 0 | T52: 0 | U52: 0 | V52: 0 | W52: 0
B53: - umorzenie | J53: =ROUND(J52,0) -> 0 | K53: =ROUND(K52+J53,0) -> 0 | L53: 0 | M53: 0 | N53: 0 | O53: 0 | P53: 0 | Q53: 0 | R53: 0 | S53: 0 | T53: 0 | U53: 0 | V53: 0 | W53: 0
B54: - wartość księgowa netto | J54: =ROUND($I50-J53,0) -> 0 | K54: 0 | L54: 0 | M54: 0 | N54: 0 | O54: 0 | P54: 0 | Q54: 0 | R54: 0 | S54: 0 | T54: 0 | U54: 0 | V54: 0 | W54: 0
B56: środki transportu | J56: =LataProjekcji -> Uzupełnij dane
B57: - wartość netto | C57: =MAX('Sprawozdania finansowe'!E24,'Sprawozdania finansowe'!F24) -> 0 | I57: =ROUND(C57,0) -> 0
B58: - stopa amortyzacji | C58: =am_transport -> 0
B59: - amortyzacja | J59: =IFERROR(ROUND(MIN($C58*$I57,$I57),0),0) -> 0 | K59: =IFERROR(ROUND(MIN($C58*$I57,$I57-J60),0),0) -> 0 | L59: 0 | M59: 0 | N59: 0 | O59: 0 | P59: 0 | Q59: 0 | R59: 0 | S59: 0 | T59: 0 | U59: 0 | V59: 0 | W59: 0
B60: - umorzenie | J60: =ROUND(J59,0) -> 0 | K60: =ROUND(K59+J60,0) -> 0 | L60: =ROUND(L59+K60,0) -> 0 | M60: 0 | N60: 0 | O60: 0 | P60: 0 | Q60: 0 | R60: 0 | S60: 0 | T60: 0 | U60: 0 | V60: 0 | W60: 0
B61: - wartość księgowa netto | J61: =ROUND($I57-J60,0) -> 0 | K61: =ROUND($I57-K60,0) -> 0 | L61: =ROUND($I57-L60,0) -> 0 | M61: 0 | N61: 0 | O61: 0 | P61: 0 | Q61: 0 | R61: 0 | S61: 0 | T61: 0 | U61: 0 | V61: 0 | W61: 0
B63: inne środki trwałe | J63: =LataProjekcji -> Uzupełnij dane
B64: - wartość netto | C64: =MAX('Sprawozdania finansowe'!E25,'Sprawozdania finansowe'!F25) -> 0 | I64: =ROUND(C64,0) -> 0
B65: - stopa amortyzacji | C65: =am_inneST -> 0
B66: - amortyzacja | J66: =IFERROR(ROUND(MIN($C65*$I64,$I64),0),0) -> 0 | K66: =IFERROR(ROUND(MIN($C65*$I64,$I64-J67),0),0) -> 0 | L66: 0 | M66: 0 | N66: 0 | O66: 0 | P66: 0 | Q66: 0 | R66: 0 | S66: 0 | T66: 0 | U66: 0 | V66: 0 | W66: 0
B67: - umorzenie | J67: =ROUND(J66,0) -> 0 | K67: =ROUND(K66+J67,0) -> 0 | L67: =ROUND(L66+K67,0) -> 0 | M67: 0 | N67: 0 | O67: 0 | P67: 0 | Q67: 0 | R67: 0 | S67: 0 | T67: 0 | U67: 0 | V67: 0 | W67: 0
B68: - wartość księgowa netto | J68: =ROUND($I64-J67,0) -> 0 | K68: =ROUND($I64-K67,0) -> 0 | L68: =ROUND($I64-L67,0) -> 0 | M68: 0 | N68: 0 | O68: 0 | P68: 0 | Q68: 0 | R68: 0 | S68: 0 | T68: 0 | U68: 0 | V68: 0 | W68: 0
B71: Wartość księgowa netto | J71: =LataProjekcji -> Uzupełnij dane
B72: Wartości niematerialne i prawne | J72: =SUM(J73:J75) -> 0 | K72: =SUM(K73:K75) -> 0 | L72: 0 | M72: 0 | N72: 0 | O72: 0 | P72: 0 | Q72: 0 | R72: 0 | S72: 0 | T72: 0 | U72: 0 | V72: 0 | W72: 0
B73: a) koszty zakończonych prac rozwojowych | J73: =ROUND(J19,0) -> 0 | K73: =ROUND(K19,0) -> 0 | L73: 0 | M73: 0 | N73: 0 | O73: 0 | P73: 0 | Q73: 0 | R73: 0 | S73: 0 | T73: 0 | U73: 0 | V73: 0 | W73: 0
B74: b) wartość firmy | J74: =ROUND(J26,0) -> 0 | K74: =ROUND(K26,0) -> 0 | L74: 0 | M74: 0 | N74: 0 | O74: 0 | P74: 0 | Q74: 0 | R74: 0 | S74: 0 | T74: 0 | U74: 0 | V74: 0 | W74: 0
B75: c) inne wartości niematerialne i prawne | J75: =ROUND(J33,0) -> 0 | K75: =ROUND(K33,0) -> 0 | L75: 0 | M75: 0 | N75: 0 | O75: 0 | P75: 0 | Q75: 0 | R75: 0 | S75: 0 | T75: 0 | U75: 0 | V75: 0 | W75: 0
B76: Środki trwałe | J76: =SUM(J77:J81) -> 0 | K76: =SUM(K77:K81) -> 0 | L76: 0 | M76: 0 | N76: 0 | O76: 0 | P76: 0 | Q76: 0 | R76: 0 | S76: 0 | T76: 0 | U76: 0 | V76: 0 | W76: 0
B77: a) grunty | J77: =ROUND(J40,0) -> 0 | K77: =ROUND(K40,0) -> 0 | L77: 0 | M77: 0 | N77: 0 | O77: 0 | P77: 0 | Q77: 0 | R77: 0 | S77: 0 | T77: 0 | U77: 0 | V77: 0 | W77: 0
B78: b) budynki i budowle | J78: =ROUND(J47,0) -> 0 | K78: =ROUND(K47,0) -> 0 | L78: 0 | M78: 0 | N78: 0 | O78: 0 | P78: 0 | Q78: 0 | R78: 0 | S78: 0 | T78: 0 | U78: 0 | V78: 0 | W78: 0
B79: c) urządzenia techniczne i maszyny | J79: =ROUND(J54,0) -> 0 | K79: =ROUND(K54,0) -> 0 | L79: 0 | M79: 0 | N79: 0 | O79: 0 | P79: 0 | Q79: 0 | R79: 0 | S79: 0 | T79: 0 | U79: 0 | V79: 0 | W79: 0
B80: d) środki transportu | J80: =ROUND(J61,0) -> 0 | K80: =ROUND(K61,0) -> 0 | L80: 0 | M80: 0 | N80: 0 | O80: 0 | P80: 0 | Q80: 0 | R80: 0 | S80: 0 | T80: 0 | U80: 0 | V80: 0 | W80: 0
B81: e) inne środki trwałe | J81: =ROUND(J68,0) -> 0 | K81: =ROUND(K68,0) -> 0 | L81: 0 | M81: 0 | N81: 0 | O81: 0 | P81: 0 | Q81: 0 | R81: 0 | S81: 0 | T81: 0 | U81: 0 | V81: 0 | W81: 0
B83: Amortyzacja (Rachunek zysków i strat) | J83: =ROUND(J66+J59+J52+J45+J38+J31+J24+J17,0) -> 0 | K83: =ROUND(K66+K59+K52+K45+K38+K31+K24+K17,0) -> 0 | L83: 0 | M83: 0 | N83: 0 | O83: 0 | P83: 0 | Q83: 0 | R83: 0 | S83: 0 | T83: 0 | U83: 0 | V83: 0 | W83: 0
B86: Projekt | J86: =J12 -> Uzupełnij dane
B88: koszty zakończonych prac rozwojowych | C88: wartość netto | D88: rok i miesiąc zakończenia | E88: dofinansowanie % | F88: dofinansowanie PLN
C89: =MAX('Koszty operacyjne'!J519:W519) -> 0 | D89: =IF(C89=0,"",DATE(Koniec_Projekt,Założenia!D20,1)) ->  | E89: ='Rozliczenie dotacji'!E28 -> 0 | F89: ='Rozliczenie dotacji'!F28 -> 0 | I89: =IF(OR(AND(ISNUMBER(C89),ISBLANK(D89)),AND(ISNUMBER(D89),ISBLANK(C89))),"uzupełnij dane","") ->  | J89: =IFERROR(ROUND(IF(AND(YEAR($D89)=LataProjekcji,$C89>0),$C89,0),0),0) -> 0 | K89: 0 | L89: 0 | M89: 0 | N89: 0 | O89: 0 | P89: 0 | Q89: 0 | R89: 0 | S89: 0 | T89: 0 | U89: 0 | V89: 0 | W89: 0
F90: =IF(E90=0,0,ROUND(E90*C90,0)) -> 0 | J90: 0 | K90: 0 | L90: 0 | M90: 0 | N90: 0 | O90: 0 | P90: 0 | Q90: 0 | R90: 0 | S90: 0 | T90: 0 | U90: 0 | V90: 0 | W90: 0
F91: =IF(E91=0,0,ROUND(E91*C91,0)) -> 0 | J91: 0 | K91: 0 | L91: 0 | M91: 0 | N91: 0 | O91: 0 | P91: 0 | Q91: 0 | R91: 0 | S91: 0 | T91: 0 | U91: 0 | V91: 0 | W91: 0
F92: =IF(E92=0,0,ROUND(E92*C92,0)) -> 0 | J92: 0 | K92: 0 | L92: 0 | M92: 0 | N92: 0 | O92: 0 | P92: 0 | Q92: 0 | R92: 0 | S92: 0 | T92: 0 | U92: 0 | V92: 0 | W92: 0
F93: =IF(E93=0,0,ROUND(E93*C93,0)) -> 0 | J93: 0 | K93: 0 | L93: 0 | M93: 0 | N93: 0 | O93: 0 | P93: 0 | Q93: 0 | R93: 0 | S93: 0 | T93: 0 | U93: 0 | V93: 0 | W93: 0
B94: Razem | C94: =SUM(C89:C93) -> 0 | F94: =SUM(F89:F93) -> 0 | J94: =SUM(J89:J93) -> 0 | K94: 0 | L94: 0 | M94: 0 | N94: 0 | O94: 0 | P94: 0 | Q94: 0 | R94: 0 | S94: 0 | T94: 0 | U94: 0 | V94: 0 | W94: 0
B95: - amortyzacja | J95: =J102+J109+J116+J123+J130 -> 0 | K95: =K102+K109+K116+K123+K130 -> 0 | L95: 0 | M95: 0 | N95: 0 | O95: 0 | P95: 0 | Q95: 0 | R95: 0 | S95: 0 | T95: 0 | U95: 0 | V95: 0 | W95: 0
B96: - umorzenie | J96: =J103+J110+J117+J124+J131 -> 0 | K96: =K103+K110+K117+K124+K131 -> 0 | L96: 0 | M96: 0 | N96: 0 | O96: 0 | P96: 0 | Q96: 0 | R96: 0 | S96: 0 | T96: 0 | U96: 0 | V96: 0 | W96: 0
B97: - wartość księgowa netto | J97: =J104+J111+J118+J125+J132 -> 0 | K97: =K104+K111+K118+K125+K132 -> 0 | L97: 0 | M97: 0 | N97: 0 | O97: 0 | P97: 0 | Q97: 0 | R97: 0 | S97: 0 | T97: 0 | U97: 0 | V97: 0 | W97: 0
B99: A&D1 | C99: 0 | E99: ile miesiący do końca roku | G99: niekwalifikowalne | H99: spr
B100: rok zakupu | C100: =IFERROR(YEAR(OFFSET($D$89,C99,0)),0) -> 0 | D100: =IFERROR(MONTH(OFFSET($D$89,C99,0)),0) -> 0 | E100: =12-$D100 -> 12 | G100: =C94-F100 -> 0 | H100: =C94-F100-G100 -> 0
B101: wartość netto | C101: =IF(D101<0,0,ROUND(D101,0)) -> 0 | D101: =OFFSET($C$89,C99,0) -> 0 | E101: =IF(D101>3.5,ROUND(($C102/12)*$E100,0),$C101) -> 0
B102: amortyzacja roczna | C102: =IF(ISBLANK(OFFSET($D$89,C99,0)),0,IF(D101>3.5,ROUND(C101*am_prace_rozwojowe,0),IF(C101<0,0,C101))) -> 0 | J102: =ROUND(IF(($C100+1)=J$86,$C102,0),0) -> 0 | K102: =ROUND(IF(OR(AND($C100=LataProjekcji,$E100>0),AND($C100=LataProjekcji,$E100=0,$D101<=3.5)),$E101,IF($C100<LataProjekcji,IF((SUM($J102:J102)+$C102)<$C101,$C102,$C101-SUM($J102:J102)),0)),0) -> 0 | L102: =ROUND(IF(OR(AND($C100=LataProjekcji,$E100>0),AND($C100=LataProjekcji,$E100=0,$D101<=3.5)),$E101,IF($C100<LataProjekcji,IF((SUM($J102:K102)+$C102)<$C101,$C102,$C101-SUM($J102:K102)),0)),0) -> 0 | M102: =ROUND(IF(OR(AND($C100=LataProjekcji,$E100>0),AND($C100=LataProjekcji,$E100=0,$D101<=3.5)),$E101,IF($C100<LataProjekcji,IF((SUM($J102:L102)+$C102)<$C101,$C102,$C101-SUM($J102:L102)),0)),0) -> 0 | N102: =ROUND(IF(OR(AND($C100=LataProjekcji,$E100>0),AND($C100=LataProjekcji,$E100=0,$D101<=3.5)),$E101,IF($C100<LataProjekcji,IF((SUM($J102:M102)+$C102)<$C101,$C102,$C101-SUM($J102:M102)),0)),0) -> 0 | O102: =ROUND(IF(OR(AND($C100=LataProjekcji,$E100>0),AND($C100=LataProjekcji,$E100=0,$D101<=3.5)),$E101,IF($C100<LataProjekcji,IF((SUM($J102:N102)+$C102)<$C101,$C102,$C101-SUM($J102:N102)),0)),0) -> 0 | P102: =ROUND(IF(OR(AND($C100=LataProjekcji,$E100>0),AND($C100=LataProjekcji,$E100=0,$D101<=3.5)),$E101,IF($C100<LataProjekcji,IF((SUM($J102:O102)+$C102)<$C101,$C102,$C101-SUM($J102:O102)),0)),0) -> 0 | Q102: =ROUND(IF(OR(AND($C100=LataProjekcji,$E100>0),AND($C100=LataProjekcji,$E100=0,$D101<=3.5)),$E101,IF($C100<LataProjekcji,IF((SUM($J102:P102)+$C102)<$C101,$C102,$C101-SUM($J102:P102)),0)),0) -> 0 | R102: =ROUND(IF(OR(AND($C100=LataProjekcji,$E100>0),AND($C100=LataProjekcji,$E100=0,$D101<=3.5)),$E101,IF($C100<LataProjekcji,IF((SUM($J102:Q102)+$C102)<$C101,$C102,$C101-SUM($J102:Q102)),0)),0) -> 0 | S102: =ROUND(IF(OR(AND($C100=LataProjekcji,$E100>0),AND($C100=LataProjekcji,$E100=0,$D101<=3.5)),$E101,IF($C100<LataProjekcji,IF((SUM($J102:R102)+$C102)<$C101,$C102,$C101-SUM($J102:R102)),0)),0) -> 0 | T102: =ROUND(IF(OR(AND($C100=LataProjekcji,$E100>0),AND($C100=LataProjekcji,$E100=0,$D101<=3.5)),$E101,IF($C100<LataProjekcji,IF((SUM($J102:S102)+$C102)<$C101,$C102,$C101-SUM($J102:S102)),0)),0) -> 0 | U102: =ROUND(IF(OR(AND($C100=LataProjekcji,$E100>0),AND($C100=LataProjekcji,$E100=0,$D101<=3.5)),$E101,IF($C100<LataProjekcji,IF((SUM($J102:T102)+$C102)<$C101,$C102,$C101-SUM($J102:T102)),0)),0) -> 0 | V102: =ROUND(IF(OR(AND($C100=LataProjekcji,$E100>0),AND($C100=LataProjekcji,$E100=0,$D101<=3.5)),$E101,IF($C100<LataProjekcji,IF((SUM($J102:U102)+$C102)<$C101,$C102,$C101-SUM($J102:U102)),0)),0) -> 0 | W102: =ROUND(IF(OR(AND($C100=LataProjekcji,$E100>0),AND($C100=LataProjekcji,$E100=0,$D101<=3.5)),$E101,IF($C100<LataProjekcji,IF((SUM($J102:V102)+$C102)<$C101,$C102,$C101-SUM($J102:V102)),0)),0) -> 0
B103: umorzenie | J103: =ROUND(J102,0) -> 0 | K103: =ROUND(J103+K102,0) -> 0 | L103: =ROUND(K103+L102,0) -> 0 | M103: =ROUND(L103+M102,0) -> 0 | N103: =ROUND(M103+N102,0) -> 0 | O103: =ROUND(N103+O102,0) -> 0 | P103: =ROUND(O103+P102,0) -> 0 | Q103: =ROUND(P103+Q102,0) -> 0 | R103: =ROUND(Q103+R102,0) -> 0 | S103: =ROUND(R103+S102,0) -> 0 | T103: =ROUND(S103+T102,0) -> 0 | U103: =ROUND(T103+U102,0) -> 0 | V103: =ROUND(U103+V102,0) -> 0 | W103: =ROUND(V103+W102,0) -> 0
B104: wartość netto | J104: =IF($C100=LataProjekcji,ROUND($C101-J103,0),ROUND(IF(J102=0,0,$C101-J103),0)) -> 0 | K104: =IF($C100=LataProjekcji,ROUND($C101-K103,0),ROUND(IF(AND(K102=0,J104>0),$C101-K103,IF(K102=0,0,$C101-K103)),0)) -> 0 | L104: =IF($C100=LataProjekcji,ROUND($C101-L103,0),ROUND(IF(AND(L102=0,K104>0),$C101-L103,IF(L102=0,0,$C101-L103)),0)) -> 0 | M104: =IF($C100=LataProjekcji,ROUND($C101-M103,0),ROUND(IF(AND(M102=0,L104>0),$C101-M103,IF(M102=0,0,$C101-M103)),0)) -> 0 | N104: =IF($C100=LataProjekcji,ROUND($C101-N103,0),ROUND(IF(AND(N102=0,M104>0),$C101-N103,IF(N102=0,0,$C101-N103)),0)) -> 0 | O104: =IF($C100=LataProjekcji,ROUND($C101-O103,0),ROUND(IF(AND(O102=0,N104>0),$C101-O103,IF(O102=0,0,$C101-O103)),0)) -> 0 | P104: =IF($C100=LataProjekcji,ROUND($C101-P103,0),ROUND(IF(AND(P102=0,O104>0),$C101-P103,IF(P102=0,0,$C101-P103)),0)) -> 0 | Q104: =IF($C100=LataProjekcji,ROUND($C101-Q103,0),ROUND(IF(AND(Q102=0,P104>0),$C101-Q103,IF(Q102=0,0,$C101-Q103)),0)) -> 0 | R104: =IF($C100=LataProjekcji,ROUND($C101-R103,0),ROUND(IF(AND(R102=0,Q104>0),$C101-R103,IF(R102=0,0,$C101-R103)),0)) -> 0 | S104: =IF($C100=LataProjekcji,ROUND($C101-S103,0),ROUND(IF(AND(S102=0,R104>0),$C101-S103,IF(S102=0,0,$C101-S103)),0)) -> 0 | T104: =IF($C100=LataProjekcji,ROUND($C101-T103,0),ROUND(IF(AND(T102=0,S104>0),$C101-T103,IF(T102=0,0,$C101-T103)),0)) -> 0 | U104: =IF($C100=LataProjekcji,ROUND($C101-U103,0),ROUND(IF(AND(U102=0,T104>0),$C101-U103,IF(U102=0,0,$C101-U103)),0)) -> 0 | V104: =IF($C100=LataProjekcji,ROUND($C101-V103,0),ROUND(IF(AND(V102=0,U104>0),$C101-V103,IF(V102=0,0,$C101-V103)),0)) -> 0 | W104: =IF($C100=LataProjekcji,ROUND($C101-W103,0),ROUND(IF(AND(W102=0,V104>0),$C101-W103,IF(W102=0,0,$C101-W103)),0)) -> 0
B106: A&D2 | C106: =C99+1 -> 1
B107: rok zakupu | C107: =YEAR(OFFSET($D$89,C106,0)) -> 1900 | D107: =MONTH(OFFSET($D$89,C106,0)) -> 1 | E107: =12-$D107 -> 11
B108: wartość netto | C108: =IF(D108<0,0,ROUND(D108,0)) -> 0 | D108: =OFFSET($C$89,C106,0) -> 0 | E108: =IF(D108>3.5,ROUND(($C109/12)*$E107,0),$C108) -> 0
B109: amortyzacja roczna | C109: =IF(ISBLANK(OFFSET($D$89,C106,0)),0,IF(D108>3.5,ROUND(C108*am_prace_rozwojowe,0),IF(C108<0,0,C108))) -> 0 | J109: =ROUND(IF(($C107+1)=J$86,$C109,0),0) -> 0 | K109: =ROUND(IF(OR(AND($C107=LataProjekcji,$E107>0),AND($C107=LataProjekcji,$E107=0,$D108<=3.5)),$E108,IF($C107<LataProjekcji,IF((SUM($J109:J109)+$C109)<$C108,$C109,$C108-SUM($J109:J109)),0)),0) -> 0 | L109: =ROUND(IF(OR(AND($C107=LataProjekcji,$E107>0),AND($C107=LataProjekcji,$E107=0,$D108<=3.5)),$E108,IF($C107<LataProjekcji,IF((SUM($J109:K109)+$C109)<$C108,$C109,$C108-SUM($J109:K109)),0)),0) -> 0 | M109: =ROUND(IF(OR(AND($C107=LataProjekcji,$E107>0),AND($C107=LataProjekcji,$E107=0,$D108<=3.5)),$E108,IF($C107<LataProjekcji,IF((SUM($J109:L109)+$C109)<$C108,$C109,$C108-SUM($J109:L109)),0)),0) -> 0 | N109: =ROUND(IF(OR(AND($C107=LataProjekcji,$E107>0),AND($C107=LataProjekcji,$E107=0,$D108<=3.5)),$E108,IF($C107<LataProjekcji,IF((SUM($J109:M109)+$C109)<$C108,$C109,$C108-SUM($J109:M109)),0)),0) -> 0 | O109: =ROUND(IF(OR(AND($C107=LataProjekcji,$E107>0),AND($C107=LataProjekcji,$E107=0,$D108<=3.5)),$E108,IF($C107<LataProjekcji,IF((SUM($J109:N109)+$C109)<$C108,$C109,$C108-SUM($J109:N109)),0)),0) -> 0 | P109: =ROUND(IF(OR(AND($C107=LataProjekcji,$E107>0),AND($C107=LataProjekcji,$E107=0,$D108<=3.5)),$E108,IF($C107<LataProjekcji,IF((SUM($J109:O109)+$C109)<$C108,$C109,$C108-SUM($J109:O109)),0)),0) -> 0 | Q109: =ROUND(IF(OR(AND($C107=LataProjekcji,$E107>0),AND($C107=LataProjekcji,$E107=0,$D108<=3.5)),$E108,IF($C107<LataProjekcji,IF((SUM($J109:P109)+$C109)<$C108,$C109,$C108-SUM($J109:P109)),0)),0) -> 0 | R109: =ROUND(IF(OR(AND($C107=LataProjekcji,$E107>0),AND($C107=LataProjekcji,$E107=0,$D108<=3.5)),$E108,IF($C107<LataProjekcji,IF((SUM($J109:Q109)+$C109)<$C108,$C109,$C108-SUM($J109:Q109)),0)),0) -> 0 | S109: =ROUND(IF(OR(AND($C107=LataProjekcji,$E107>0),AND($C107=LataProjekcji,$E107=0,$D108<=3.5)),$E108,IF($C107<LataProjekcji,IF((SUM($J109:R109)+$C109)<$C108,$C109,$C108-SUM($J109:R109)),0)),0) -> 0 | T109: =ROUND(IF(OR(AND($C107=LataProjekcji,$E107>0),AND($C107=LataProjekcji,$E107=0,$D108<=3.5)),$E108,IF($C107<LataProjekcji,IF((SUM($J109:S109)+$C109)<$C108,$C109,$C108-SUM($J109:S109)),0)),0) -> 0 | U109: =ROUND(IF(OR(AND($C107=LataProjekcji,$E107>0),AND($C107=LataProjekcji,$E107=0,$D108<=3.5)),$E108,IF($C107<LataProjekcji,IF((SUM($J109:T109)+$C109)<$C108,$C109,$C108-SUM($J109:T109)),0)),0) -> 0 | V109: =ROUND(IF(OR(AND($C107=LataProjekcji,$E107>0),AND($C107=LataProjekcji,$E107=0,$D108<=3.5)),$E108,IF($C107<LataProjekcji,IF((SUM($J109:U109)+$C109)<$C108,$C109,$C108-SUM($J109:U109)),0)),0) -> 0 | W109: =ROUND(IF(OR(AND($C107=LataProjekcji,$E107>0),AND($C107=LataProjekcji,$E107=0,$D108<=3.5)),$E108,IF($C107<LataProjekcji,IF((SUM($J109:V109)+$C109)<$C108,$C109,$C108-SUM($J109:V109)),0)),0) -> 0
B110: umorzenie | J110: =ROUND(J109,0) -> 0 | K110: =ROUND(J110+K109,0) -> 0 | L110: =ROUND(K110+L109,0) -> 0 | M110: =ROUND(L110+M109,0) -> 0 | N110: =ROUND(M110+N109,0) -> 0 | O110: =ROUND(N110+O109,0) -> 0 | P110: =ROUND(O110+P109,0) -> 0 | Q110: =ROUND(P110+Q109,0) -> 0 | R110: =ROUND(Q110+R109,0) -> 0 | S110: =ROUND(R110+S109,0) -> 0 | T110: =ROUND(S110+T109,0) -> 0 | U110: =ROUND(T110+U109,0) -> 0 | V110: =ROUND(U110+V109,0) -> 0 | W110: =ROUND(V110+W109,0) -> 0
B111: wartość netto | J111: =IF($C107=LataProjekcji,ROUND($C108-J110,0),ROUND(IF(J109=0,0,$C108-J110),0)) -> 0 | K111: =IF($C107=LataProjekcji,ROUND($C108-K110,0),ROUND(IF(AND(K109=0,J111>0),$C108-K110,IF(K109=0,0,$C108-K110)),0)) -> 0 | L111: =IF($C107=LataProjekcji,ROUND($C108-L110,0),ROUND(IF(AND(L109=0,K111>0),$C108-L110,IF(L109=0,0,$C108-L110)),0)) -> 0 | M111: =IF($C107=LataProjekcji,ROUND($C108-M110,0),ROUND(IF(AND(M109=0,L111>0),$C108-M110,IF(M109=0,0,$C108-M110)),0)) -> 0 | N111: =IF($C107=LataProjekcji,ROUND($C108-N110,0),ROUND(IF(AND(N109=0,M111>0),$C108-N110,IF(N109=0,0,$C108-N110)),0)) -> 0 | O111: =IF($C107=LataProjekcji,ROUND($C108-O110,0),ROUND(IF(AND(O109=0,N111>0),$C108-O110,IF(O109=0,0,$C108-O110)),0)) -> 0 | P111: =IF($C107=LataProjekcji,ROUND($C108-P110,0),ROUND(IF(AND(P109=0,O111>0),$C108-P110,IF(P109=0,0,$C108-P110)),0)) -> 0 | Q111: =IF($C107=LataProjekcji,ROUND($C108-Q110,0),ROUND(IF(AND(Q109=0,P111>0),$C108-Q110,IF(Q109=0,0,$C108-Q110)),0)) -> 0 | R111: =IF($C107=LataProjekcji,ROUND($C108-R110,0),ROUND(IF(AND(R109=0,Q111>0),$C108-R110,IF(R109=0,0,$C108-R110)),0)) -> 0 | S111: =IF($C107=LataProjekcji,ROUND($C108-S110,0),ROUND(IF(AND(S109=0,R111>0),$C108-S110,IF(S109=0,0,$C108-S110)),0)) -> 0 | T111: =IF($C107=LataProjekcji,ROUND($C108-T110,0),ROUND(IF(AND(T109=0,S111>0),$C108-T110,IF(T109=0,0,$C108-T110)),0)) -> 0 | U111: =IF($C107=LataProjekcji,ROUND($C108-U110,0),ROUND(IF(AND(U109=0,T111>0),$C108-U110,IF(U109=0,0,$C108-U110)),0)) -> 0 | V111: =IF($C107=LataProjekcji,ROUND($C108-V110,0),ROUND(IF(AND(V109=0,U111>0),$C108-V110,IF(V109=0,0,$C108-V110)),0)) -> 0 | W111: =IF($C107=LataProjekcji,ROUND($C108-W110,0),ROUND(IF(AND(W109=0,V111>0),$C108-W110,IF(W109=0,0,$C108-W110)),0)) -> 0
B113: A&3 | C113: =C106+1 -> 2
B114: rok zakupu | C114: =YEAR(OFFSET($D$89,C113,0)) -> 1900 | D114: =MONTH(OFFSET($D$89,C113,0)) -> 1 | E114: =12-$D114 -> 11
B115: wartość netto | C115: =IF(D115<0,0,ROUND(D115,0)) -> 0 | D115: =OFFSET($C$89,C113,0) -> 0 | E115: =IF(D115>3.5,ROUND(($C116/12)*$E114,0),$C115) -> 0
B116: amortyzacja roczna | C116: =IF(ISBLANK(OFFSET($D$89,C113,0)),0,IF(D115>3.5,ROUND(C115*am_prace_rozwojowe,0),IF(C115<0,0,C115))) -> 0 | J116: =ROUND(IF(($C114+1)=J$86,$C116,0),0) -> 0 | K116: =ROUND(IF(OR(AND($C114=LataProjekcji,$E114>0),AND($C114=LataProjekcji,$E114=0,$D115<=3.5)),$E115,IF($C114<LataProjekcji,IF((SUM($J116:J116)+$C116)<$C115,$C116,$C115-SUM($J116:J116)),0)),0) -> 0 | L116: =ROUND(IF(OR(AND($C114=LataProjekcji,$E114>0),AND($C114=LataProjekcji,$E114=0,$D115<=3.5)),$E115,IF($C114<LataProjekcji,IF((SUM($J116:K116)+$C116)<$C115,$C116,$C115-SUM($J116:K116)),0)),0) -> 0 | M116: =ROUND(IF(OR(AND($C114=LataProjekcji,$E114>0),AND($C114=LataProjekcji,$E114=0,$D115<=3.5)),$E115,IF($C114<LataProjekcji,IF((SUM($J116:L116)+$C116)<$C115,$C116,$C115-SUM($J116:L116)),0)),0) -> 0 | N116: =ROUND(IF(OR(AND($C114=LataProjekcji,$E114>0),AND($C114=LataProjekcji,$E114=0,$D115<=3.5)),$E115,IF($C114<LataProjekcji,IF((SUM($J116:M116)+$C116)<$C115,$C116,$C115-SUM($J116:M116)),0)),0) -> 0 | O116: =ROUND(IF(OR(AND($C114=LataProjekcji,$E114>0),AND($C114=LataProjekcji,$E114=0,$D115<=3.5)),$E115,IF($C114<LataProjekcji,IF((SUM($J116:N116)+$C116)<$C115,$C116,$C115-SUM($J116:N116)),0)),0) -> 0 | P116: =ROUND(IF(OR(AND($C114=LataProjekcji,$E114>0),AND($C114=LataProjekcji,$E114=0,$D115<=3.5)),$E115,IF($C114<LataProjekcji,IF((SUM($J116:O116)+$C116)<$C115,$C116,$C115-SUM($J116:O116)),0)),0) -> 0 | Q116: =ROUND(IF(OR(AND($C114=LataProjekcji,$E114>0),AND($C114=LataProjekcji,$E114=0,$D115<=3.5)),$E115,IF($C114<LataProjekcji,IF((SUM($J116:P116)+$C116)<$C115,$C116,$C115-SUM($J116:P116)),0)),0) -> 0 | R116: =ROUND(IF(OR(AND($C114=LataProjekcji,$E114>0),AND($C114=LataProjekcji,$E114=0,$D115<=3.5)),$E115,IF($C114<LataProjekcji,IF((SUM($J116:Q116)+$C116)<$C115,$C116,$C115-SUM($J116:Q116)),0)),0) -> 0 | S116: =ROUND(IF(OR(AND($C114=LataProjekcji,$E114>0),AND($C114=LataProjekcji,$E114=0,$D115<=3.5)),$E115,IF($C114<LataProjekcji,IF((SUM($J116:R116)+$C116)<$C115,$C116,$C115-SUM($J116:R116)),0)),0) -> 0 | T116: =ROUND(IF(OR(AND($C114=LataProjekcji,$E114>0),AND($C114=LataProjekcji,$E114=0,$D115<=3.5)),$E115,IF($C114<LataProjekcji,IF((SUM($J116:S116)+$C116)<$C115,$C116,$C115-SUM($J116:S116)),0)),0) -> 0 | U116: =ROUND(IF(OR(AND($C114=LataProjekcji,$E114>0),AND($C114=LataProjekcji,$E114=0,$D115<=3.5)),$E115,IF($C114<LataProjekcji,IF((SUM($J116:T116)+$C116)<$C115,$C116,$C115-SUM($J116:T116)),0)),0) -> 0 | V116: =ROUND(IF(OR(AND($C114=LataProjekcji,$E114>0),AND($C114=LataProjekcji,$E114=0,$D115<=3.5)),$E115,IF($C114<LataProjekcji,IF((SUM($J116:U116)+$C116)<$C115,$C116,$C115-SUM($J116:U116)),0)),0) -> 0 | W116: =ROUND(IF(OR(AND($C114=LataProjekcji,$E114>0),AND($C114=LataProjekcji,$E114=0,$D115<=3.5)),$E115,IF($C114<LataProjekcji,IF((SUM($J116:V116)+$C116)<$C115,$C116,$C115-SUM($J116:V116)),0)),0) -> 0
B117: umorzenie | J117: =ROUND(J116,0) -> 0 | K117: =ROUND(J117+K116,0) -> 0 | L117: =ROUND(K117+L116,0) -> 0 | M117: =ROUND(L117+M116,0) -> 0 | N117: =ROUND(M117+N116,0) -> 0 | O117: =ROUND(N117+O116,0) -> 0 | P117: =ROUND(O117+P116,0) -> 0 | Q117: =ROUND(P117+Q116,0) -> 0 | R117: =ROUND(Q117+R116,0) -> 0 | S117: =ROUND(R117+S116,0) -> 0 | T117: =ROUND(S117+T116,0) -> 0 | U117: =ROUND(T117+U116,0) -> 0 | V117: =ROUND(U117+V116,0) -> 0 | W117: =ROUND(V117+W116,0) -> 0
B118: wartość netto | J118: =IF($C114=LataProjekcji,ROUND($C115-J117,0),ROUND(IF(J116=0,0,$C115-J117),0)) -> 0 | K118: =IF($C114=LataProjekcji,ROUND($C115-K117,0),ROUND(IF(AND(K116=0,J118>0),$C115-K117,IF(K116=0,0,$C115-K117)),0)) -> 0 | L118: =IF($C114=LataProjekcji,ROUND($C115-L117,0),ROUND(IF(AND(L116=0,K118>0),$C115-L117,IF(L116=0,0,$C115-L117)),0)) -> 0 | M118: =IF($C114=LataProjekcji,ROUND($C115-M117,0),ROUND(IF(AND(M116=0,L118>0),$C115-M117,IF(M116=0,0,$C115-M117)),0)) -> 0 | N118: =IF($C114=LataProjekcji,ROUND($C115-N117,0),ROUND(IF(AND(N116=0,M118>0),$C115-N117,IF(N116=0,0,$C115-N117)),0)) -> 0 | O118: =IF($C114=LataProjekcji,ROUND($C115-O117,0),ROUND(IF(AND(O116=0,N118>0),$C115-O117,IF(O116=0,0,$C115-O117)),0)) -> 0 | P118: =IF($C114=LataProjekcji,ROUND($C115-P117,0),ROUND(IF(AND(P116=0,O118>0),$C115-P117,IF(P116=0,0,$C115-P117)),0)) -> 0 | Q118: =IF($C114=LataProjekcji,ROUND($C115-Q117,0),ROUND(IF(AND(Q116=0,P118>0),$C115-Q117,IF(Q116=0,0,$C115-Q117)),0)) -> 0 | R118: =IF($C114=LataProjekcji,ROUND($C115-R117,0),ROUND(IF(AND(R116=0,Q118>0),$C115-R117,IF(R116=0,0,$C115-R117)),0)) -> 0 | S118: =IF($C114=LataProjekcji,ROUND($C115-S117,0),ROUND(IF(AND(S116=0,R118>0),$C115-S117,IF(S116=0,0,$C115-S117)),0)) -> 0 | T118: =IF($C114=LataProjekcji,ROUND($C115-T117,0),ROUND(IF(AND(T116=0,S118>0),$C115-T117,IF(T116=0,0,$C115-T117)),0)) -> 0 | U118: =IF($C114=LataProjekcji,ROUND($C115-U117,0),ROUND(IF(AND(U116=0,T118>0),$C115-U117,IF(U116=0,0,$C115-U117)),0)) -> 0 | V118: =IF($C114=LataProjekcji,ROUND($C115-V117,0),ROUND(IF(AND(V116=0,U118>0),$C115-V117,IF(V116=0,0,$C115-V117)),0)) -> 0 | W118: =IF($C114=LataProjekcji,ROUND($C115-W117,0),ROUND(IF(AND(W116=0,V118>0),$C115-W117,IF(W116=0,0,$C115-W117)),0)) -> 0
B120: A&D4 | C120: =C113+1 -> 3
B121: rok zakupu | C121: =YEAR(OFFSET($D$89,C120,0)) -> 1900 | D121: =MONTH(OFFSET($D$89,C120,0)) -> 1 | E121: =12-$D121 -> 11
B122: wartość netto | C122: =IF(D122<0,0,ROUND(D122,0)) -> 0 | D122: =OFFSET($C$89,C120,0) -> 0 | E122: =IF(D122>3.5,ROUND(($C123/12)*$E121,0),$C122) -> 0
B123: amortyzacja roczna | C123: =IF(ISBLANK(OFFSET($D$89,C120,0)),0,IF(D122>3.5,ROUND(C122*am_prace_rozwojowe,0),IF(C122<0,0,C122))) -> 0 | J123: =ROUND(IF(($C121+1)=J$86,$C123,0),0) -> 0 | K123: =ROUND(IF(OR(AND($C121=LataProjekcji,$E121>0),AND($C121=LataProjekcji,$E121=0,$D122<=3.5)),$E122,IF($C121<LataProjekcji,IF((SUM($J123:J123)+$C123)<$C122,$C123,$C122-SUM($J123:J123)),0)),0) -> 0 | L123: =ROUND(IF(OR(AND($C121=LataProjekcji,$E121>0),AND($C121=LataProjekcji,$E121=0,$D122<=3.5)),$E122,IF($C121<LataProjekcji,IF((SUM($J123:K123)+$C123)<$C122,$C123,$C122-SUM($J123:K123)),0)),0) -> 0 | M123: =ROUND(IF(OR(AND($C121=LataProjekcji,$E121>0),AND($C121=LataProjekcji,$E121=0,$D122<=3.5)),$E122,IF($C121<LataProjekcji,IF((SUM($J123:L123)+$C123)<$C122,$C123,$C122-SUM($J123:L123)),0)),0) -> 0 | N123: =ROUND(IF(OR(AND($C121=LataProjekcji,$E121>0),AND($C121=LataProjekcji,$E121=0,$D122<=3.5)),$E122,IF($C121<LataProjekcji,IF((SUM($J123:M123)+$C123)<$C122,$C123,$C122-SUM($J123:M123)),0)),0) -> 0 | O123: =ROUND(IF(OR(AND($C121=LataProjekcji,$E121>0),AND($C121=LataProjekcji,$E121=0,$D122<=3.5)),$E122,IF($C121<LataProjekcji,IF((SUM($J123:N123)+$C123)<$C122,$C123,$C122-SUM($J123:N123)),0)),0) -> 0 | P123: =ROUND(IF(OR(AND($C121=LataProjekcji,$E121>0),AND($C121=LataProjekcji,$E121=0,$D122<=3.5)),$E122,IF($C121<LataProjekcji,IF((SUM($J123:O123)+$C123)<$C122,$C123,$C122-SUM($J123:O123)),0)),0) -> 0 | Q123: =ROUND(IF(OR(AND($C121=LataProjekcji,$E121>0),AND($C121=LataProjekcji,$E121=0,$D122<=3.5)),$E122,IF($C121<LataProjekcji,IF((SUM($J123:P123)+$C123)<$C122,$C123,$C122-SUM($J123:P123)),0)),0) -> 0 | R123: =ROUND(IF(OR(AND($C121=LataProjekcji,$E121>0),AND($C121=LataProjekcji,$E121=0,$D122<=3.5)),$E122,IF($C121<LataProjekcji,IF((SUM($J123:Q123)+$C123)<$C122,$C123,$C122-SUM($J123:Q123)),0)),0) -> 0 | S123: =ROUND(IF(OR(AND($C121=LataProjekcji,$E121>0),AND($C121=LataProjekcji,$E121=0,$D122<=3.5)),$E122,IF($C121<LataProjekcji,IF((SUM($J123:R123)+$C123)<$C122,$C123,$C122-SUM($J123:R123)),0)),0) -> 0 | T123: =ROUND(IF(OR(AND($C121=LataProjekcji,$E121>0),AND($C121=LataProjekcji,$E121=0,$D122<=3.5)),$E122,IF($C121<LataProjekcji,IF((SUM($J123:S123)+$C123)<$C122,$C123,$C122-SUM($J123:S123)),0)),0) -> 0 | U123: =ROUND(IF(OR(AND($C121=LataProjekcji,$E121>0),AND($C121=LataProjekcji,$E121=0,$D122<=3.5)),$E122,IF($C121<LataProjekcji,IF((SUM($J123:T123)+$C123)<$C122,$C123,$C122-SUM($J123:T123)),0)),0) -> 0 | V123: =ROUND(IF(OR(AND($C121=LataProjekcji,$E121>0),AND($C121=LataProjekcji,$E121=0,$D122<=3.5)),$E122,IF($C121<LataProjekcji,IF((SUM($J123:U123)+$C123)<$C122,$C123,$C122-SUM($J123:U123)),0)),0) -> 0 | W123: =ROUND(IF(OR(AND($C121=LataProjekcji,$E121>0),AND($C121=LataProjekcji,$E121=0,$D122<=3.5)),$E122,IF($C121<LataProjekcji,IF((SUM($J123:V123)+$C123)<$C122,$C123,$C122-SUM($J123:V123)),0)),0) -> 0
B124: umorzenie | J124: =ROUND(J123,0) -> 0 | K124: =ROUND(J124+K123,0) -> 0 | L124: =ROUND(K124+L123,0) -> 0 | M124: =ROUND(L124+M123,0) -> 0 | N124: =ROUND(M124+N123,0) -> 0 | O124: =ROUND(N124+O123,0) -> 0 | P124: =ROUND(O124+P123,0) -> 0 | Q124: =ROUND(P124+Q123,0) -> 0 | R124: =ROUND(Q124+R123,0) -> 0 | S124: =ROUND(R124+S123,0) -> 0 | T124: =ROUND(S124+T123,0) -> 0 | U124: =ROUND(T124+U123,0) -> 0 | V124: =ROUND(U124+V123,0) -> 0 | W124: =ROUND(V124+W123,0) -> 0
B125: wartość netto | J125: =IF($C121=LataProjekcji,ROUND($C122-J124,0),ROUND(IF(J123=0,0,$C122-J124),0)) -> 0 | K125: =IF($C121=LataProjekcji,ROUND($C122-K124,0),ROUND(IF(AND(K123=0,J125>0),$C122-K124,IF(K123=0,0,$C122-K124)),0)) -> 0 | L125: =IF($C121=LataProjekcji,ROUND($C122-L124,0),ROUND(IF(AND(L123=0,K125>0),$C122-L124,IF(L123=0,0,$C122-L124)),0)) -> 0 | M125: =IF($C121=LataProjekcji,ROUND($C122-M124,0),ROUND(IF(AND(M123=0,L125>0),$C122-M124,IF(M123=0,0,$C122-M124)),0)) -> 0 | N125: =IF($C121=LataProjekcji,ROUND($C122-N124,0),ROUND(IF(AND(N123=0,M125>0),$C122-N124,IF(N123=0,0,$C122-N124)),0)) -> 0 | O125: =IF($C121=LataProjekcji,ROUND($C122-O124,0),ROUND(IF(AND(O123=0,N125>0),$C122-O124,IF(O123=0,0,$C122-O124)),0)) -> 0 | P125: =IF($C121=LataProjekcji,ROUND($C122-P124,0),ROUND(IF(AND(P123=0,O125>0),$C122-P124,IF(P123=0,0,$C122-P124)),0)) -> 0 | Q125: =IF($C121=LataProjekcji,ROUND($C122-Q124,0),ROUND(IF(AND(Q123=0,P125>0),$C122-Q124,IF(Q123=0,0,$C122-Q124)),0)) -> 0 | R125: =IF($C121=LataProjekcji,ROUND($C122-R124,0),ROUND(IF(AND(R123=0,Q125>0),$C122-R124,IF(R123=0,0,$C122-R124)),0)) -> 0 | S125: =IF($C121=LataProjekcji,ROUND($C122-S124,0),ROUND(IF(AND(S123=0,R125>0),$C122-S124,IF(S123=0,0,$C122-S124)),0)) -> 0 | T125: =IF($C121=LataProjekcji,ROUND($C122-T124,0),ROUND(IF(AND(T123=0,S125>0),$C122-T124,IF(T123=0,0,$C122-T124)),0)) -> 0 | U125: =IF($C121=LataProjekcji,ROUND($C122-U124,0),ROUND(IF(AND(U123=0,T125>0),$C122-U124,IF(U123=0,0,$C122-U124)),0)) -> 0 | V125: =IF($C121=LataProjekcji,ROUND($C122-V124,0),ROUND(IF(AND(V123=0,U125>0),$C122-V124,IF(V123=0,0,$C122-V124)),0)) -> 0 | W125: =IF($C121=LataProjekcji,ROUND($C122-W124,0),ROUND(IF(AND(W123=0,V125>0),$C122-W124,IF(W123=0,0,$C122-W124)),0)) -> 0
B127: A&D5 | C127: =C120+1 -> 4
B128: rok zakupu | C128: =YEAR(OFFSET($D$89,C127,0)) -> 1900 | D128: =MONTH(OFFSET($D$89,C127,0)) -> 1 | E128: =12-$D128 -> 11
B129: wartość netto | C129: =IF(D129<0,0,ROUND(D129,0)) -> 0 | D129: =OFFSET($C$89,C127,0) -> 0 | E129: =IF(D129>3.5,ROUND(($C130/12)*$E128,0),$C129) -> 0
B130: amortyzacja roczna | C130: =IF(ISBLANK(OFFSET($D$89,C127,0)),0,IF(D129>3.5,ROUND(C129*am_prace_rozwojowe,0),IF(C129<0,0,C129))) -> 0 | J130: =ROUND(IF(($C128+1)=J$86,$C130,0),0) -> 0 | K130: =ROUND(IF(OR(AND($C128=LataProjekcji,$E128>0),AND($C128=LataProjekcji,$E128=0,$D129<=3.5)),$E129,IF($C128<LataProjekcji,IF((SUM($J130:J130)+$C130)<$C129,$C130,$C129-SUM($J130:J130)),0)),0) -> 0 | L130: =ROUND(IF(OR(AND($C128=LataProjekcji,$E128>0),AND($C128=LataProjekcji,$E128=0,$D129<=3.5)),$E129,IF($C128<LataProjekcji,IF((SUM($J130:K130)+$C130)<$C129,$C130,$C129-SUM($J130:K130)),0)),0) -> 0 | M130: =ROUND(IF(OR(AND($C128=LataProjekcji,$E128>0),AND($C128=LataProjekcji,$E128=0,$D129<=3.5)),$E129,IF($C128<LataProjekcji,IF((SUM($J130:L130)+$C130)<$C129,$C130,$C129-SUM($J130:L130)),0)),0) -> 0 | N130: =ROUND(IF(OR(AND($C128=LataProjekcji,$E128>0),AND($C128=LataProjekcji,$E128=0,$D129<=3.5)),$E129,IF($C128<LataProjekcji,IF((SUM($J130:M130)+$C130)<$C129,$C130,$C129-SUM($J130:M130)),0)),0) -> 0 | O130: =ROUND(IF(OR(AND($C128=LataProjekcji,$E128>0),AND($C128=LataProjekcji,$E128=0,$D129<=3.5)),$E129,IF($C128<LataProjekcji,IF((SUM($J130:N130)+$C130)<$C129,$C130,$C129-SUM($J130:N130)),0)),0) -> 0 | P130: =ROUND(IF(OR(AND($C128=LataProjekcji,$E128>0),AND($C128=LataProjekcji,$E128=0,$D129<=3.5)),$E129,IF($C128<LataProjekcji,IF((SUM($J130:O130)+$C130)<$C129,$C130,$C129-SUM($J130:O130)),0)),0) -> 0 | Q130: =ROUND(IF(OR(AND($C128=LataProjekcji,$E128>0),AND($C128=LataProjekcji,$E128=0,$D129<=3.5)),$E129,IF($C128<LataProjekcji,IF((SUM($J130:P130)+$C130)<$C129,$C130,$C129-SUM($J130:P130)),0)),0) -> 0 | R130: =ROUND(IF(OR(AND($C128=LataProjekcji,$E128>0),AND($C128=LataProjekcji,$E128=0,$D129<=3.5)),$E129,IF($C128<LataProjekcji,IF((SUM($J130:Q130)+$C130)<$C129,$C130,$C129-SUM($J130:Q130)),0)),0) -> 0 | S130: =ROUND(IF(OR(AND($C128=LataProjekcji,$E128>0),AND($C128=LataProjekcji,$E128=0,$D129<=3.5)),$E129,IF($C128<LataProjekcji,IF((SUM($J130:R130)+$C130)<$C129,$C130,$C129-SUM($J130:R130)),0)),0) -> 0 | T130: =ROUND(IF(OR(AND($C128=LataProjekcji,$E128>0),AND($C128=LataProjekcji,$E128=0,$D129<=3.5)),$E129,IF($C128<LataProjekcji,IF((SUM($J130:S130)+$C130)<$C129,$C130,$C129-SUM($J130:S130)),0)),0) -> 0 | U130: =ROUND(IF(OR(AND($C128=LataProjekcji,$E128>0),AND($C128=LataProjekcji,$E128=0,$D129<=3.5)),$E129,IF($C128<LataProjekcji,IF((SUM($J130:T130)+$C130)<$C129,$C130,$C129-SUM($J130:T130)),0)),0) -> 0 | V130: =ROUND(IF(OR(AND($C128=LataProjekcji,$E128>0),AND($C128=LataProjekcji,$E128=0,$D129<=3.5)),$E129,IF($C128<LataProjekcji,IF((SUM($J130:U130)+$C130)<$C129,$C130,$C129-SUM($J130:U130)),0)),0) -> 0 | W130: =ROUND(IF(OR(AND($C128=LataProjekcji,$E128>0),AND($C128=LataProjekcji,$E128=0,$D129<=3.5)),$E129,IF($C128<LataProjekcji,IF((SUM($J130:V130)+$C130)<$C129,$C130,$C129-SUM($J130:V130)),0)),0) -> 0
B131: umorzenie | J131: =ROUND(J130,0) -> 0 | K131: =ROUND(J131+K130,0) -> 0 | L131: =ROUND(K131+L130,0) -> 0 | M131: =ROUND(L131+M130,0) -> 0 | N131: =ROUND(M131+N130,0) -> 0 | O131: =ROUND(N131+O130,0) -> 0 | P131: =ROUND(O131+P130,0) -> 0 | Q131: =ROUND(P131+Q130,0) -> 0 | R131: =ROUND(Q131+R130,0) -> 0 | S131: =ROUND(R131+S130,0) -> 0 | T131: =ROUND(S131+T130,0) -> 0 | U131: =ROUND(T131+U130,0) -> 0 | V131: =ROUND(U131+V130,0) -> 0 | W131: =ROUND(V131+W130,0) -> 0
B132: wartość netto | J132: =IF($C128=LataProjekcji,ROUND($C129-J131,0),ROUND(IF(J130=0,0,$C129-J131),0)) -> 0 | K132: =IF($C128=LataProjekcji,ROUND($C129-K131,0),ROUND(IF(AND(K130=0,J132>0),$C129-K131,IF(K130=0,0,$C129-K131)),0)) -> 0 | L132: =IF($C128=LataProjekcji,ROUND($C129-L131,0),ROUND(IF(AND(L130=0,K132>0),$C129-L131,IF(L130=0,0,$C129-L131)),0)) -> 0 | M132: =IF($C128=LataProjekcji,ROUND($C129-M131,0),ROUND(IF(AND(M130=0,L132>0),$C129-M131,IF(M130=0,0,$C129-M131)),0)) -> 0 | N132: =IF($C128=LataProjekcji,ROUND($C129-N131,0),ROUND(IF(AND(N130=0,M132>0),$C129-N131,IF(N130=0,0,$C129-N131)),0)) -> 0 | O132: =IF($C128=LataProjekcji,ROUND($C129-O131,0),ROUND(IF(AND(O130=0,N132>0),$C129-O131,IF(O130=0,0,$C129-O131)),0)) -> 0 | P132: =IF($C128=LataProjekcji,ROUND($C129-P131,0),ROUND(IF(AND(P130=0,O132>0),$C129-P131,IF(P130=0,0,$C129-P131)),0)) -> 0 | Q132: =IF($C128=LataProjekcji,ROUND($C129-Q131,0),ROUND(IF(AND(Q130=0,P132>0),$C129-Q131,IF(Q130=0,0,$C129-Q131)),0)) -> 0 | R132: =IF($C128=LataProjekcji,ROUND($C129-R131,0),ROUND(IF(AND(R130=0,Q132>0),$C129-R131,IF(R130=0,0,$C129-R131)),0)) -> 0 | S132: =IF($C128=LataProjekcji,ROUND($C129-S131,0),ROUND(IF(AND(S130=0,R132>0),$C129-S131,IF(S130=0,0,$C129-S131)),0)) -> 0 | T132: =IF($C128=LataProjekcji,ROUND($C129-T131,0),ROUND(IF(AND(T130=0,S132>0),$C129-T131,IF(T130=0,0,$C129-T131)),0)) -> 0 | U132: =IF($C128=LataProjekcji,ROUND($C129-U131,0),ROUND(IF(AND(U130=0,T132>0),$C129-U131,IF(U130=0,0,$C129-U131)),0)) -> 0 | V132: =IF($C128=LataProjekcji,ROUND($C129-V131,0),ROUND(IF(AND(V130=0,U132>0),$C129-V131,IF(V130=0,0,$C129-V131)),0)) -> 0 | W132: =IF($C128=LataProjekcji,ROUND($C129-W131,0),ROUND(IF(AND(W130=0,V132>0),$C129-W131,IF(W130=0,0,$C129-W131)),0)) -> 0
B135: inne wartości niematerialne i prawne | C135: wartość netto | D135: rok i miesiąc zakupu | E135: dofinansowanie % | F135: dofinansowanie PLN | J135: =LataProjekcji -> Uzupełnij dane
F136: =IF(E136=0,0,ROUND(E136*C136,0)) -> 0 | I136: =IF(OR(AND(ISNUMBER(C136),ISBLANK(D136)),AND(ISNUMBER(D136),ISBLANK(C136))),"uzupełnij dane","") ->  | J136: =ROUND(IF(AND(YEAR($D136)=LataProjekcji,$C136>0),$C136,0),0) -> 0 | K136: 0 | L136: 0 | M136: 0 | N136: 0 | O136: 0 | P136: 0 | Q136: 0 | R136: 0 | S136: 0 | T136: 0 | U136: 0 | V136: 0 | W136: 0
F137: =IF(E137=0,0,ROUND(E137*C137,0)) -> 0 | J137: 0 | K137: 0 | L137: 0 | M137: 0 | N137: 0 | O137: 0 | P137: 0 | Q137: 0 | R137: 0 | S137: 0 | T137: 0 | U137: 0 | V137: 0 | W137: 0
F138: =IF(E138=0,0,ROUND(E138*C138,0)) -> 0 | J138: 0 | K138: 0 | L138: 0 | M138: 0 | N138: 0 | O138: 0 | P138: 0 | Q138: 0 | R138: 0 | S138: 0 | T138: 0 | U138: 0 | V138: 0 | W138: 0
F139: =IF(E139=0,0,ROUND(E139*C139,0)) -> 0 | J139: 0 | K139: 0 | L139: 0 | M139: 0 | N139: 0 | O139: 0 | P139: 0 | Q139: 0 | R139: 0 | S139: 0 | T139: 0 | U139: 0 | V139: 0 | W139: 0
F140: =IF(E140=0,0,ROUND(E140*C140,0)) -> 0 | J140: 0 | K140: 0 | L140: 0 | M140: 0 | N140: 0 | O140: 0 | P140: 0 | Q140: 0 | R140: 0 | S140: 0 | T140: 0 | U140: 0 | V140: 0 | W140: 0
B141: Razem | C141: =SUM(C136:C140) -> 0 | F141: =SUM(F136:F140) -> 0 | J141: =SUM(J136:J140) -> 0 | K141: 0 | L141: 0 | M141: 0 | N141: 0 | O141: 0 | P141: 0 | Q141: 0 | R141: 0 | S141: 0 | T141: 0 | U141: 0 | V141: 0 | W141: 0
B142: - amortyzacja | J142: =J149+J156+J163+J170+J177 -> 0 | K142: =K149+K156+K163+K170+K177 -> 0 | L142: 0 | M142: 0 | N142: 0 | O142: 0 | P142: 0 | Q142: 0 | R142: 0 | S142: 0 | T142: 0 | U142: 0 | V142: 0 | W142: 0
B143: - umorzenie | J143: =J150+J157+J164+J171+J178 -> 0 | K143: =K150+K157+K164+K171+K178 -> 0 | L143: 0 | M143: 0 | N143: 0 | O143: 0 | P143: 0 | Q143: 0 | R143: 0 | S143: 0 | T143: 0 | U143: 0 | V143: 0 | W143: 0
B144: - wartość księgowa netto | J144: =J151+J158+J165+J172+J179 -> 0 | K144: =K151+K158+K165+K172+K179 -> 0 | L144: 0 | M144: 0 | N144: 0 | O144: 0 | P144: 0 | Q144: 0 | R144: 0 | S144: 0 | T144: 0 | U144: 0 | V144: 0 | W144: 0
B146: A&D1 | C146: 0 | E146: ile miesiący do końca roku | G146: niekwalifikowalne | H146: spr
B147: rok zakupu i miesiąc zakupu | C147: =YEAR(OFFSET($D$136,C146,0)) -> 1900 | D147: =MONTH(OFFSET($D$136,C146,0)) -> 1 | E147: =12-$D147 -> 11 | G147: =C141-F147 -> 0 | H147: =C141-F147-G147 -> 0
B148: wartość netto | C148: =IF(D148<0,0,ROUND(D148,0)) -> 0 | D148: =OFFSET($C$136,C146,0) -> 0 | E148: =IF(D148>3.5,ROUND(($C149/12)*$E147,0),$C148) -> 0 | F148: <- am. Do końca roku
B149: amortyzacja roczna | C149: =IF(ISBLANK(OFFSET($D$136,C146,0)),0,IF(D148>3.5,ROUND(C148*am_wnip,0),IF(C148<0,0,C148))) -> 0 | J149: =ROUND(IF($C147=LataProjekcji,$E148,IF($C147=LataProjekcji,$C149,0)),0) -> 0 | K149: =ROUND(IF(OR(AND($C147=LataProjekcji,$E147>0),AND($C147=LataProjekcji,$E147=0,$D148<=3.5)),$E148,IF($C147<LataProjekcji,IF((SUM($J149:J149)+$C149)<$C148,$C149,$C148-SUM($J149:J149)),0)),0) -> 0 | L149: =ROUND(IF(OR(AND($C147=LataProjekcji,$E147>0),AND($C147=LataProjekcji,$E147=0,$D148<=3.5)),$E148,IF($C147<LataProjekcji,IF((SUM($J149:K149)+$C149)<$C148,$C149,$C148-SUM($J149:K149)),0)),0) -> 0 | M149: =ROUND(IF(OR(AND($C147=LataProjekcji,$E147>0),AND($C147=LataProjekcji,$E147=0,$D148<=3.5)),$E148,IF($C147<LataProjekcji,IF((SUM($J149:L149)+$C149)<$C148,$C149,$C148-SUM($J149:L149)),0)),0) -> 0 | N149: =ROUND(IF(OR(AND($C147=LataProjekcji,$E147>0),AND($C147=LataProjekcji,$E147=0,$D148<=3.5)),$E148,IF($C147<LataProjekcji,IF((SUM($J149:M149)+$C149)<$C148,$C149,$C148-SUM($J149:M149)),0)),0) -> 0 | O149: =ROUND(IF(OR(AND($C147=LataProjekcji,$E147>0),AND($C147=LataProjekcji,$E147=0,$D148<=3.5)),$E148,IF($C147<LataProjekcji,IF((SUM($J149:N149)+$C149)<$C148,$C149,$C148-SUM($J149:N149)),0)),0) -> 0 | P149: =ROUND(IF(OR(AND($C147=LataProjekcji,$E147>0),AND($C147=LataProjekcji,$E147=0,$D148<=3.5)),$E148,IF($C147<LataProjekcji,IF((SUM($J149:O149)+$C149)<$C148,$C149,$C148-SUM($J149:O149)),0)),0) -> 0 | Q149: =ROUND(IF(OR(AND($C147=LataProjekcji,$E147>0),AND($C147=LataProjekcji,$E147=0,$D148<=3.5)),$E148,IF($C147<LataProjekcji,IF((SUM($J149:P149)+$C149)<$C148,$C149,$C148-SUM($J149:P149)),0)),0) -> 0 | R149: =ROUND(IF(OR(AND($C147=LataProjekcji,$E147>0),AND($C147=LataProjekcji,$E147=0,$D148<=3.5)),$E148,IF($C147<LataProjekcji,IF((SUM($J149:Q149)+$C149)<$C148,$C149,$C148-SUM($J149:Q149)),0)),0) -> 0 | S149: =ROUND(IF(OR(AND($C147=LataProjekcji,$E147>0),AND($C147=LataProjekcji,$E147=0,$D148<=3.5)),$E148,IF($C147<LataProjekcji,IF((SUM($J149:R149)+$C149)<$C148,$C149,$C148-SUM($J149:R149)),0)),0) -> 0 | T149: =ROUND(IF(OR(AND($C147=LataProjekcji,$E147>0),AND($C147=LataProjekcji,$E147=0,$D148<=3.5)),$E148,IF($C147<LataProjekcji,IF((SUM($J149:S149)+$C149)<$C148,$C149,$C148-SUM($J149:S149)),0)),0) -> 0 | U149: =ROUND(IF(OR(AND($C147=LataProjekcji,$E147>0),AND($C147=LataProjekcji,$E147=0,$D148<=3.5)),$E148,IF($C147<LataProjekcji,IF((SUM($J149:T149)+$C149)<$C148,$C149,$C148-SUM($J149:T149)),0)),0) -> 0 | V149: =ROUND(IF(OR(AND($C147=LataProjekcji,$E147>0),AND($C147=LataProjekcji,$E147=0,$D148<=3.5)),$E148,IF($C147<LataProjekcji,IF((SUM($J149:U149)+$C149)<$C148,$C149,$C148-SUM($J149:U149)),0)),0) -> 0 | W149: =ROUND(IF(OR(AND($C147=LataProjekcji,$E147>0),AND($C147=LataProjekcji,$E147=0,$D148<=3.5)),$E148,IF($C147<LataProjekcji,IF((SUM($J149:V149)+$C149)<$C148,$C149,$C148-SUM($J149:V149)),0)),0) -> 0
B150: umorzenie | J150: =ROUND(J149,0) -> 0 | K150: =ROUND(J150+K149,0) -> 0 | L150: 0 | M150: 0 | N150: 0 | O150: 0 | P150: 0 | Q150: 0 | R150: 0 | S150: 0 | T150: 0 | U150: 0 | V150: 0 | W150: 0
B151: wartość netto | J151: =IF($C147=LataProjekcji,ROUND($C148-J150,0),ROUND(IF(J149=0,0,$C148-J150),0)) -> 0 | K151: =IF($C147=LataProjekcji,ROUND($C148-K150,0),ROUND(IF(AND(K149=0,J151>0),$C148-K150,IF(K149=0,0,$C148-K150)),0)) -> 0 | L151: =IF($C147=LataProjekcji,ROUND($C148-L150,0),ROUND(IF(AND(L149=0,K151>0),$C148-L150,IF(L149=0,0,$C148-L150)),0)) -> 0 | M151: =IF($C147=LataProjekcji,ROUND($C148-M150,0),ROUND(IF(AND(M149=0,L151>0),$C148-M150,IF(M149=0,0,$C148-M150)),0)) -> 0 | N151: =IF($C147=LataProjekcji,ROUND($C148-N150,0),ROUND(IF(AND(N149=0,M151>0),$C148-N150,IF(N149=0,0,$C148-N150)),0)) -> 0 | O151: =IF($C147=LataProjekcji,ROUND($C148-O150,0),ROUND(IF(AND(O149=0,N151>0),$C148-O150,IF(O149=0,0,$C148-O150)),0)) -> 0 | P151: =IF($C147=LataProjekcji,ROUND($C148-P150,0),ROUND(IF(AND(P149=0,O151>0),$C148-P150,IF(P149=0,0,$C148-P150)),0)) -> 0 | Q151: =IF($C147=LataProjekcji,ROUND($C148-Q150,0),ROUND(IF(AND(Q149=0,P151>0),$C148-Q150,IF(Q149=0,0,$C148-Q150)),0)) -> 0 | R151: =IF($C147=LataProjekcji,ROUND($C148-R150,0),ROUND(IF(AND(R149=0,Q151>0),$C148-R150,IF(R149=0,0,$C148-R150)),0)) -> 0 | S151: =IF($C147=LataProjekcji,ROUND($C148-S150,0),ROUND(IF(AND(S149=0,R151>0),$C148-S150,IF(S149=0,0,$C148-S150)),0)) -> 0 | T151: =IF($C147=LataProjekcji,ROUND($C148-T150,0),ROUND(IF(AND(T149=0,S151>0),$C148-T150,IF(T149=0,0,$C148-T150)),0)) -> 0 | U151: =IF($C147=LataProjekcji,ROUND($C148-U150,0),ROUND(IF(AND(U149=0,T151>0),$C148-U150,IF(U149=0,0,$C148-U150)),0)) -> 0 | V151: =IF($C147=LataProjekcji,ROUND($C148-V150,0),ROUND(IF(AND(V149=0,U151>0),$C148-V150,IF(V149=0,0,$C148-V150)),0)) -> 0 | W151: =IF($C147=LataProjekcji,ROUND($C148-W150,0),ROUND(IF(AND(W149=0,V151>0),$C148-W150,IF(W149=0,0,$C148-W150)),0)) -> 0
B153: A&D2 | C153: =C146+1 -> 1
B154: rok zakupu i miesiąc zakupu | C154: =YEAR(OFFSET($D$136,C153,0)) -> 1900 | D154: =MONTH(OFFSET($D$136,C153,0)) -> 1 | E154: =12-$D154 -> 11
B155: wartość netto | C155: =IF(D155<0,0,ROUND(D155,0)) -> 0 | D155: =OFFSET($C$136,C153,0) -> 0 | E155: =IF(D155>3.5,ROUND(($C156/12)*$E154,0),$C155) -> 0
B156: amortyzacja roczna | C156: =IF(ISBLANK(OFFSET($D$136,C153,0)),0,IF(D155>3.5,ROUND(C155*am_wnip,0),IF(C155<0,0,C155))) -> 0 | J156: =ROUND(IF($C154=LataProjekcji,$E155,IF($C154=LataProjekcji,$C156,0)),0) -> 0 | K156: =ROUND(IF(OR(AND($C154=LataProjekcji,$E154>0),AND($C154=LataProjekcji,$E154=0,$D155<=3.5)),$E155,IF($C154<LataProjekcji,IF((SUM($J156:J156)+$C156)<$C155,$C156,$C155-SUM($J156:J156)),0)),0) -> 0 | L156: =ROUND(IF(OR(AND($C154=LataProjekcji,$E154>0),AND($C154=LataProjekcji,$E154=0,$D155<=3.5)),$E155,IF($C154<LataProjekcji,IF((SUM($J156:K156)+$C156)<$C155,$C156,$C155-SUM($J156:K156)),0)),0) -> 0 | M156: =ROUND(IF(OR(AND($C154=LataProjekcji,$E154>0),AND($C154=LataProjekcji,$E154=0,$D155<=3.5)),$E155,IF($C154<LataProjekcji,IF((SUM($J156:L156)+$C156)<$C155,$C156,$C155-SUM($J156:L156)),0)),0) -> 0 | N156: =ROUND(IF(OR(AND($C154=LataProjekcji,$E154>0),AND($C154=LataProjekcji,$E154=0,$D155<=3.5)),$E155,IF($C154<LataProjekcji,IF((SUM($J156:M156)+$C156)<$C155,$C156,$C155-SUM($J156:M156)),0)),0) -> 0 | O156: =ROUND(IF(OR(AND($C154=LataProjekcji,$E154>0),AND($C154=LataProjekcji,$E154=0,$D155<=3.5)),$E155,IF($C154<LataProjekcji,IF((SUM($J156:N156)+$C156)<$C155,$C156,$C155-SUM($J156:N156)),0)),0) -> 0 | P156: =ROUND(IF(OR(AND($C154=LataProjekcji,$E154>0),AND($C154=LataProjekcji,$E154=0,$D155<=3.5)),$E155,IF($C154<LataProjekcji,IF((SUM($J156:O156)+$C156)<$C155,$C156,$C155-SUM($J156:O156)),0)),0) -> 0 | Q156: =ROUND(IF(OR(AND($C154=LataProjekcji,$E154>0),AND($C154=LataProjekcji,$E154=0,$D155<=3.5)),$E155,IF($C154<LataProjekcji,IF((SUM($J156:P156)+$C156)<$C155,$C156,$C155-SUM($J156:P156)),0)),0) -> 0 | R156: =ROUND(IF(OR(AND($C154=LataProjekcji,$E154>0),AND($C154=LataProjekcji,$E154=0,$D155<=3.5)),$E155,IF($C154<LataProjekcji,IF((SUM($J156:Q156)+$C156)<$C155,$C156,$C155-SUM($J156:Q156)),0)),0) -> 0 | S156: =ROUND(IF(OR(AND($C154=LataProjekcji,$E154>0),AND($C154=LataProjekcji,$E154=0,$D155<=3.5)),$E155,IF($C154<LataProjekcji,IF((SUM($J156:R156)+$C156)<$C155,$C156,$C155-SUM($J156:R156)),0)),0) -> 0 | T156: =ROUND(IF(OR(AND($C154=LataProjekcji,$E154>0),AND($C154=LataProjekcji,$E154=0,$D155<=3.5)),$E155,IF($C154<LataProjekcji,IF((SUM($J156:S156)+$C156)<$C155,$C156,$C155-SUM($J156:S156)),0)),0) -> 0 | U156: =ROUND(IF(OR(AND($C154=LataProjekcji,$E154>0),AND($C154=LataProjekcji,$E154=0,$D155<=3.5)),$E155,IF($C154<LataProjekcji,IF((SUM($J156:T156)+$C156)<$C155,$C156,$C155-SUM($J156:T156)),0)),0) -> 0 | V156: =ROUND(IF(OR(AND($C154=LataProjekcji,$E154>0),AND($C154=LataProjekcji,$E154=0,$D155<=3.5)),$E155,IF($C154<LataProjekcji,IF((SUM($J156:U156)+$C156)<$C155,$C156,$C155-SUM($J156:U156)),0)),0) -> 0 | W156: =ROUND(IF(OR(AND($C154=LataProjekcji,$E154>0),AND($C154=LataProjekcji,$E154=0,$D155<=3.5)),$E155,IF($C154<LataProjekcji,IF((SUM($J156:V156)+$C156)<$C155,$C156,$C155-SUM($J156:V156)),0)),0) -> 0
B157: umorzenie | J157: =ROUND(J156,0) -> 0 | K157: =ROUND(J157+K156,0) -> 0 | L157: =ROUND(K157+L156,0) -> 0 | M157: =ROUND(L157+M156,0) -> 0 | N157: =ROUND(M157+N156,0) -> 0 | O157: =ROUND(N157+O156,0) -> 0 | P157: =ROUND(O157+P156,0) -> 0 | Q157: =ROUND(P157+Q156,0) -> 0 | R157: =ROUND(Q157+R156,0) -> 0 | S157: =ROUND(R157+S156,0) -> 0 | T157: =ROUND(S157+T156,0) -> 0 | U157: =ROUND(T157+U156,0) -> 0 | V157: =ROUND(U157+V156,0) -> 0 | W157: =ROUND(V157+W156,0) -> 0
B158: wartość netto | J158: =IF($C154=LataProjekcji,ROUND($C155-J157,0),ROUND(IF(J156=0,0,$C155-J157),0)) -> 0 | K158: =IF($C154=LataProjekcji,ROUND($C155-K157,0),ROUND(IF(AND(K156=0,J158>0),$C155-K157,IF(K156=0,0,$C155-K157)),0)) -> 0 | L158: =IF($C154=LataProjekcji,ROUND($C155-L157,0),ROUND(IF(AND(L156=0,K158>0),$C155-L157,IF(L156=0,0,$C155-L157)),0)) -> 0 | M158: =IF($C154=LataProjekcji,ROUND($C155-M157,0),ROUND(IF(AND(M156=0,L158>0),$C155-M157,IF(M156=0,0,$C155-M157)),0)) -> 0 | N158: =IF($C154=LataProjekcji,ROUND($C155-N157,0),ROUND(IF(AND(N156=0,M158>0),$C155-N157,IF(N156=0,0,$C155-N157)),0)) -> 0 | O158: =IF($C154=LataProjekcji,ROUND($C155-O157,0),ROUND(IF(AND(O156=0,N158>0),$C155-O157,IF(O156=0,0,$C155-O157)),0)) -> 0 | P158: =IF($C154=LataProjekcji,ROUND($C155-P157,0),ROUND(IF(AND(P156=0,O158>0),$C155-P157,IF(P156=0,0,$C155-P157)),0)) -> 0 | Q158: =IF($C154=LataProjekcji,ROUND($C155-Q157,0),ROUND(IF(AND(Q156=0,P158>0),$C155-Q157,IF(Q156=0,0,$C155-Q157)),0)) -> 0 | R158: =IF($C154=LataProjekcji,ROUND($C155-R157,0),ROUND(IF(AND(R156=0,Q158>0),$C155-R157,IF(R156=0,0,$C155-R157)),0)) -> 0 | S158: =IF($C154=LataProjekcji,ROUND($C155-S157,0),ROUND(IF(AND(S156=0,R158>0),$C155-S157,IF(S156=0,0,$C155-S157)),0)) -> 0 | T158: =IF($C154=LataProjekcji,ROUND($C155-T157,0),ROUND(IF(AND(T156=0,S158>0),$C155-T157,IF(T156=0,0,$C155-T157)),0)) -> 0 | U158: =IF($C154=LataProjekcji,ROUND($C155-U157,0),ROUND(IF(AND(U156=0,T158>0),$C155-U157,IF(U156=0,0,$C155-U157)),0)) -> 0 | V158: =IF($C154=LataProjekcji,ROUND($C155-V157,0),ROUND(IF(AND(V156=0,U158>0),$C155-V157,IF(V156=0,0,$C155-V157)),0)) -> 0 | W158: =IF($C154=LataProjekcji,ROUND($C155-W157,0),ROUND(IF(AND(W156=0,V158>0),$C155-W157,IF(W156=0,0,$C155-W157)),0)) -> 0
B160: A&3 | C160: =C153+1 -> 2
B161: rok zakupu i miesiąc zakupu | C161: =YEAR(OFFSET($D$136,C160,0)) -> 1900 | D161: =MONTH(OFFSET($D$136,C160,0)) -> 1 | E161: =12-$D161 -> 11
B162: wartość netto | C162: =IF(D162<0,0,ROUND(D162,0)) -> 0 | D162: =OFFSET($C$136,C160,0) -> 0 | E162: =IF(D162>3.5,ROUND(($C163/12)*$E161,0),$C162) -> 0
B163: amortyzacja roczna | C163: =IF(ISBLANK(OFFSET($D$136,C160,0)),0,IF(D162>3.5,ROUND(C162*am_wnip,0),IF(C162<0,0,C162))) -> 0 | J163: =ROUND(IF($C161=LataProjekcji,$E162,IF($C161=LataProjekcji,$C163,0)),0) -> 0 | K163: =ROUND(IF(OR(AND($C161=LataProjekcji,$E161>0),AND($C161=LataProjekcji,$E161=0,$D162<=3.5)),$E162,IF($C161<LataProjekcji,IF((SUM($J163:J163)+$C163)<$C162,$C163,$C162-SUM($J163:J163)),0)),0) -> 0 | L163: =ROUND(IF(OR(AND($C161=LataProjekcji,$E161>0),AND($C161=LataProjekcji,$E161=0,$D162<=3.5)),$E162,IF($C161<LataProjekcji,IF((SUM($J163:K163)+$C163)<$C162,$C163,$C162-SUM($J163:K163)),0)),0) -> 0 | M163: =ROUND(IF(OR(AND($C161=LataProjekcji,$E161>0),AND($C161=LataProjekcji,$E161=0,$D162<=3.5)),$E162,IF($C161<LataProjekcji,IF((SUM($J163:L163)+$C163)<$C162,$C163,$C162-SUM($J163:L163)),0)),0) -> 0 | N163: =ROUND(IF(OR(AND($C161=LataProjekcji,$E161>0),AND($C161=LataProjekcji,$E161=0,$D162<=3.5)),$E162,IF($C161<LataProjekcji,IF((SUM($J163:M163)+$C163)<$C162,$C163,$C162-SUM($J163:M163)),0)),0) -> 0 | O163: =ROUND(IF(OR(AND($C161=LataProjekcji,$E161>0),AND($C161=LataProjekcji,$E161=0,$D162<=3.5)),$E162,IF($C161<LataProjekcji,IF((SUM($J163:N163)+$C163)<$C162,$C163,$C162-SUM($J163:N163)),0)),0) -> 0 | P163: =ROUND(IF(OR(AND($C161=LataProjekcji,$E161>0),AND($C161=LataProjekcji,$E161=0,$D162<=3.5)),$E162,IF($C161<LataProjekcji,IF((SUM($J163:O163)+$C163)<$C162,$C163,$C162-SUM($J163:O163)),0)),0) -> 0 | Q163: =ROUND(IF(OR(AND($C161=LataProjekcji,$E161>0),AND($C161=LataProjekcji,$E161=0,$D162<=3.5)),$E162,IF($C161<LataProjekcji,IF((SUM($J163:P163)+$C163)<$C162,$C163,$C162-SUM($J163:P163)),0)),0) -> 0 | R163: =ROUND(IF(OR(AND($C161=LataProjekcji,$E161>0),AND($C161=LataProjekcji,$E161=0,$D162<=3.5)),$E162,IF($C161<LataProjekcji,IF((SUM($J163:Q163)+$C163)<$C162,$C163,$C162-SUM($J163:Q163)),0)),0) -> 0 | S163: =ROUND(IF(OR(AND($C161=LataProjekcji,$E161>0),AND($C161=LataProjekcji,$E161=0,$D162<=3.5)),$E162,IF($C161<LataProjekcji,IF((SUM($J163:R163)+$C163)<$C162,$C163,$C162-SUM($J163:R163)),0)),0) -> 0 | T163: =ROUND(IF(OR(AND($C161=LataProjekcji,$E161>0),AND($C161=LataProjekcji,$E161=0,$D162<=3.5)),$E162,IF($C161<LataProjekcji,IF((SUM($J163:S163)+$C163)<$C162,$C163,$C162-SUM($J163:S163)),0)),0) -> 0 | U163: =ROUND(IF(OR(AND($C161=LataProjekcji,$E161>0),AND($C161=LataProjekcji,$E161=0,$D162<=3.5)),$E162,IF($C161<LataProjekcji,IF((SUM($J163:T163)+$C163)<$C162,$C163,$C162-SUM($J163:T163)),0)),0) -> 0 | V163: =ROUND(IF(OR(AND($C161=LataProjekcji,$E161>0),AND($C161=LataProjekcji,$E161=0,$D162<=3.5)),$E162,IF($C161<LataProjekcji,IF((SUM($J163:U163)+$C163)<$C162,$C163,$C162-SUM($J163:U163)),0)),0) -> 0 | W163: =ROUND(IF(OR(AND($C161=LataProjekcji,$E161>0),AND($C161=LataProjekcji,$E161=0,$D162<=3.5)),$E162,IF($C161<LataProjekcji,IF((SUM($J163:V163)+$C163)<$C162,$C163,$C162-SUM($J163:V163)),0)),0) -> 0
B164: umorzenie | J164: =ROUND(J163,0) -> 0 | K164: =ROUND(J164+K163,0) -> 0 | L164: =ROUND(K164+L163,0) -> 0 | M164: =ROUND(L164+M163,0) -> 0 | N164: =ROUND(M164+N163,0) -> 0 | O164: =ROUND(N164+O163,0) -> 0 | P164: =ROUND(O164+P163,0) -> 0 | Q164: =ROUND(P164+Q163,0) -> 0 | R164: =ROUND(Q164+R163,0) -> 0 | S164: =ROUND(R164+S163,0) -> 0 | T164: =ROUND(S164+T163,0) -> 0 | U164: =ROUND(T164+U163,0) -> 0 | V164: =ROUND(U164+V163,0) -> 0 | W164: =ROUND(V164+W163,0) -> 0
B165: wartość netto | J165: =IF($C161=LataProjekcji,ROUND($C162-J164,0),ROUND(IF(J163=0,0,$C162-J164),0)) -> 0 | K165: =IF($C161=LataProjekcji,ROUND($C162-K164,0),ROUND(IF(AND(K163=0,J165>0),$C162-K164,IF(K163=0,0,$C162-K164)),0)) -> 0 | L165: =IF($C161=LataProjekcji,ROUND($C162-L164,0),ROUND(IF(AND(L163=0,K165>0),$C162-L164,IF(L163=0,0,$C162-L164)),0)) -> 0 | M165: =IF($C161=LataProjekcji,ROUND($C162-M164,0),ROUND(IF(AND(M163=0,L165>0),$C162-M164,IF(M163=0,0,$C162-M164)),0)) -> 0 | N165: =IF($C161=LataProjekcji,ROUND($C162-N164,0),ROUND(IF(AND(N163=0,M165>0),$C162-N164,IF(N163=0,0,$C162-N164)),0)) -> 0 | O165: =IF($C161=LataProjekcji,ROUND($C162-O164,0),ROUND(IF(AND(O163=0,N165>0),$C162-O164,IF(O163=0,0,$C162-O164)),0)) -> 0 | P165: =IF($C161=LataProjekcji,ROUND($C162-P164,0),ROUND(IF(AND(P163=0,O165>0),$C162-P164,IF(P163=0,0,$C162-P164)),0)) -> 0 | Q165: =IF($C161=LataProjekcji,ROUND($C162-Q164,0),ROUND(IF(AND(Q163=0,P165>0),$C162-Q164,IF(Q163=0,0,$C162-Q164)),0)) -> 0 | R165: =IF($C161=LataProjekcji,ROUND($C162-R164,0),ROUND(IF(AND(R163=0,Q165>0),$C162-R164,IF(R163=0,0,$C162-R164)),0)) -> 0 | S165: =IF($C161=LataProjekcji,ROUND($C162-S164,0),ROUND(IF(AND(S163=0,R165>0),$C162-S164,IF(S163=0,0,$C162-S164)),0)) -> 0 | T165: =IF($C161=LataProjekcji,ROUND($C162-T164,0),ROUND(IF(AND(T163=0,S165>0),$C162-T164,IF(T163=0,0,$C162-T164)),0)) -> 0 | U165: =IF($C161=LataProjekcji,ROUND($C162-U164,0),ROUND(IF(AND(U163=0,T165>0),$C162-U164,IF(U163=0,0,$C162-U164)),0)) -> 0 | V165: =IF($C161=LataProjekcji,ROUND($C162-V164,0),ROUND(IF(AND(V163=0,U165>0),$C162-V164,IF(V163=0,0,$C162-V164)),0)) -> 0 | W165: =IF($C161=LataProjekcji,ROUND($C162-W164,0),ROUND(IF(AND(W163=0,V165>0),$C162-W164,IF(W163=0,0,$C162-W164)),0)) -> 0
B167: A&D4 | C167: =C160+1 -> 3
B168: rok zakupu i miesiąc zakupu | C168: =YEAR(OFFSET($D$136,C167,0)) -> 1900 | D168: =MONTH(OFFSET($D$136,C167,0)) -> 1 | E168: =12-$D168 -> 11
B169: wartość netto | C169: =IF(D169<0,0,ROUND(D169,0)) -> 0 | D169: =OFFSET($C$136,C167,0) -> 0 | E169: =IF(D169>3.5,ROUND(($C170/12)*$E168,0),$C169) -> 0
B170: amortyzacja roczna | C170: =IF(ISBLANK(OFFSET($D$136,C167,0)),0,IF(D169>3.5,ROUND(C169*am_wnip,0),IF(C169<0,0,C169))) -> 0 | J170: =ROUND(IF($C168=LataProjekcji,$E169,IF($C168=LataProjekcji,$C170,0)),0) -> 0 | K170: =ROUND(IF(OR(AND($C168=LataProjekcji,$E168>0),AND($C168=LataProjekcji,$E168=0,$D169<=3.5)),$E169,IF($C168<LataProjekcji,IF((SUM($J170:J170)+$C170)<$C169,$C170,$C169-SUM($J170:J170)),0)),0) -> 0 | L170: =ROUND(IF(OR(AND($C168=LataProjekcji,$E168>0),AND($C168=LataProjekcji,$E168=0,$D169<=3.5)),$E169,IF($C168<LataProjekcji,IF((SUM($J170:K170)+$C170)<$C169,$C170,$C169-SUM($J170:K170)),0)),0) -> 0 | M170: =ROUND(IF(OR(AND($C168=LataProjekcji,$E168>0),AND($C168=LataProjekcji,$E168=0,$D169<=3.5)),$E169,IF($C168<LataProjekcji,IF((SUM($J170:L170)+$C170)<$C169,$C170,$C169-SUM($J170:L170)),0)),0) -> 0 | N170: =ROUND(IF(OR(AND($C168=LataProjekcji,$E168>0),AND($C168=LataProjekcji,$E168=0,$D169<=3.5)),$E169,IF($C168<LataProjekcji,IF((SUM($J170:M170)+$C170)<$C169,$C170,$C169-SUM($J170:M170)),0)),0) -> 0 | O170: =ROUND(IF(OR(AND($C168=LataProjekcji,$E168>0),AND($C168=LataProjekcji,$E168=0,$D169<=3.5)),$E169,IF($C168<LataProjekcji,IF((SUM($J170:N170)+$C170)<$C169,$C170,$C169-SUM($J170:N170)),0)),0) -> 0 | P170: =ROUND(IF(OR(AND($C168=LataProjekcji,$E168>0),AND($C168=LataProjekcji,$E168=0,$D169<=3.5)),$E169,IF($C168<LataProjekcji,IF((SUM($J170:O170)+$C170)<$C169,$C170,$C169-SUM($J170:O170)),0)),0) -> 0 | Q170: =ROUND(IF(OR(AND($C168=LataProjekcji,$E168>0),AND($C168=LataProjekcji,$E168=0,$D169<=3.5)),$E169,IF($C168<LataProjekcji,IF((SUM($J170:P170)+$C170)<$C169,$C170,$C169-SUM($J170:P170)),0)),0) -> 0 | R170: =ROUND(IF(OR(AND($C168=LataProjekcji,$E168>0),AND($C168=LataProjekcji,$E168=0,$D169<=3.5)),$E169,IF($C168<LataProjekcji,IF((SUM($J170:Q170)+$C170)<$C169,$C170,$C169-SUM($J170:Q170)),0)),0) -> 0 | S170: =ROUND(IF(OR(AND($C168=LataProjekcji,$E168>0),AND($C168=LataProjekcji,$E168=0,$D169<=3.5)),$E169,IF($C168<LataProjekcji,IF((SUM($J170:R170)+$C170)<$C169,$C170,$C169-SUM($J170:R170)),0)),0) -> 0 | T170: =ROUND(IF(OR(AND($C168=LataProjekcji,$E168>0),AND($C168=LataProjekcji,$E168=0,$D169<=3.5)),$E169,IF($C168<LataProjekcji,IF((SUM($J170:S170)+$C170)<$C169,$C170,$C169-SUM($J170:S170)),0)),0) -> 0 | U170: =ROUND(IF(OR(AND($C168=LataProjekcji,$E168>0),AND($C168=LataProjekcji,$E168=0,$D169<=3.5)),$E169,IF($C168<LataProjekcji,IF((SUM($J170:T170)+$C170)<$C169,$C170,$C169-SUM($J170:T170)),0)),0) -> 0 | V170: =ROUND(IF(OR(AND($C168=LataProjekcji,$E168>0),AND($C168=LataProjekcji,$E168=0,$D169<=3.5)),$E169,IF($C168<LataProjekcji,IF((SUM($J170:U170)+$C170)<$C169,$C170,$C169-SUM($J170:U170)),0)),0) -> 0 | W170: =ROUND(IF(OR(AND($C168=LataProjekcji,$E168>0),AND($C168=LataProjekcji,$E168=0,$D169<=3.5)),$E169,IF($C168<LataProjekcji,IF((SUM($J170:V170)+$C170)<$C169,$C170,$C169-SUM($J170:V170)),0)),0) -> 0
B171: umorzenie | J171: =ROUND(J170,0) -> 0 | K171: =ROUND(J171+K170,0) -> 0 | L171: =ROUND(K171+L170,0) -> 0 | M171: =ROUND(L171+M170,0) -> 0 | N171: =ROUND(M171+N170,0) -> 0 | O171: =ROUND(N171+O170,0) -> 0 | P171: =ROUND(O171+P170,0) -> 0 | Q171: =ROUND(P171+Q170,0) -> 0 | R171: =ROUND(Q171+R170,0) -> 0 | S171: =ROUND(R171+S170,0) -> 0 | T171: =ROUND(S171+T170,0) -> 0 | U171: =ROUND(T171+U170,0) -> 0 | V171: =ROUND(U171+V170,0) -> 0 | W171: =ROUND(V171+W170,0) -> 0
B172: wartość netto | J172: =IF($C168=LataProjekcji,ROUND($C169-J171,0),ROUND(IF(J170=0,0,$C169-J171),0)) -> 0 | K172: =IF($C168=LataProjekcji,ROUND($C169-K171,0),ROUND(IF(AND(K170=0,J172>0),$C169-K171,IF(K170=0,0,$C169-K171)),0)) -> 0 | L172: =IF($C168=LataProjekcji,ROUND($C169-L171,0),ROUND(IF(AND(L170=0,K172>0),$C169-L171,IF(L170=0,0,$C169-L171)),0)) -> 0 | M172: =IF($C168=LataProjekcji,ROUND($C169-M171,0),ROUND(IF(AND(M170=0,L172>0),$C169-M171,IF(M170=0,0,$C169-M171)),0)) -> 0 | N172: =IF($C168=LataProjekcji,ROUND($C169-N171,0),ROUND(IF(AND(N170=0,M172>0),$C169-N171,IF(N170=0,0,$C169-N171)),0)) -> 0 | O172: =IF($C168=LataProjekcji,ROUND($C169-O171,0),ROUND(IF(AND(O170=0,N172>0),$C169-O171,IF(O170=0,0,$C169-O171)),0)) -> 0 | P172: =IF($C168=LataProjekcji,ROUND($C169-P171,0),ROUND(IF(AND(P170=0,O172>0),$C169-P171,IF(P170=0,0,$C169-P171)),0)) -> 0 | Q172: =IF($C168=LataProjekcji,ROUND($C169-Q171,0),ROUND(IF(AND(Q170=0,P172>0),$C169-Q171,IF(Q170=0,0,$C169-Q171)),0)) -> 0 | R172: =IF($C168=LataProjekcji,ROUND($C169-R171,0),ROUND(IF(AND(R170=0,Q172>0),$C169-R171,IF(R170=0,0,$C169-R171)),0)) -> 0 | S172: =IF($C168=LataProjekcji,ROUND($C169-S171,0),ROUND(IF(AND(S170=0,R172>0),$C169-S171,IF(S170=0,0,$C169-S171)),0)) -> 0 | T172: =IF($C168=LataProjekcji,ROUND($C169-T171,0),ROUND(IF(AND(T170=0,S172>0),$C169-T171,IF(T170=0,0,$C169-T171)),0)) -> 0 | U172: =IF($C168=LataProjekcji,ROUND($C169-U171,0),ROUND(IF(AND(U170=0,T172>0),$C169-U171,IF(U170=0,0,$C169-U171)),0)) -> 0 | V172: =IF($C168=LataProjekcji,ROUND($C169-V171,0),ROUND(IF(AND(V170=0,U172>0),$C169-V171,IF(V170=0,0,$C169-V171)),0)) -> 0 | W172: =IF($C168=LataProjekcji,ROUND($C169-W171,0),ROUND(IF(AND(W170=0,V172>0),$C169-W171,IF(W170=0,0,$C169-W171)),0)) -> 0
B174: A&D5 | C174: =C167+1 -> 4
B175: rok zakupu i miesiąc zakupu | C175: =YEAR(OFFSET($D$136,C174,0)) -> 1900 | D175: =MONTH(OFFSET($D$136,C174,0)) -> 1 | E175: =12-$D175 -> 11
B176: wartość netto | C176: =IF(D176<0,0,ROUND(D176,0)) -> 0 | D176: =OFFSET($C$136,C174,0) -> 0 | E176: =IF(D176>3.5,ROUND(($C177/12)*$E175,0),$C176) -> 0
B177: amortyzacja roczna | C177: =IF(ISBLANK(OFFSET($D$136,C174,0)),0,IF(D176>3.5,ROUND(C176*am_wnip,0),IF(C176<0,0,C176))) -> 0 | J177: =ROUND(IF($C175=LataProjekcji,$E176,IF($C175=LataProjekcji,$C177,0)),0) -> 0 | K177: =ROUND(IF(OR(AND($C175=LataProjekcji,$E175>0),AND($C175=LataProjekcji,$E175=0,$D176<=3.5)),$E176,IF($C175<LataProjekcji,IF((SUM($J177:J177)+$C177)<$C176,$C177,$C176-SUM($J177:J177)),0)),0) -> 0 | L177: =ROUND(IF(OR(AND($C175=LataProjekcji,$E175>0),AND($C175=LataProjekcji,$E175=0,$D176<=3.5)),$E176,IF($C175<LataProjekcji,IF((SUM($J177:K177)+$C177)<$C176,$C177,$C176-SUM($J177:K177)),0)),0) -> 0 | M177: =ROUND(IF(OR(AND($C175=LataProjekcji,$E175>0),AND($C175=LataProjekcji,$E175=0,$D176<=3.5)),$E176,IF($C175<LataProjekcji,IF((SUM($J177:L177)+$C177)<$C176,$C177,$C176-SUM($J177:L177)),0)),0) -> 0 | N177: =ROUND(IF(OR(AND($C175=LataProjekcji,$E175>0),AND($C175=LataProjekcji,$E175=0,$D176<=3.5)),$E176,IF($C175<LataProjekcji,IF((SUM($J177:M177)+$C177)<$C176,$C177,$C176-SUM($J177:M177)),0)),0) -> 0 | O177: =ROUND(IF(OR(AND($C175=LataProjekcji,$E175>0),AND($C175=LataProjekcji,$E175=0,$D176<=3.5)),$E176,IF($C175<LataProjekcji,IF((SUM($J177:N177)+$C177)<$C176,$C177,$C176-SUM($J177:N177)),0)),0) -> 0 | P177: =ROUND(IF(OR(AND($C175=LataProjekcji,$E175>0),AND($C175=LataProjekcji,$E175=0,$D176<=3.5)),$E176,IF($C175<LataProjekcji,IF((SUM($J177:O177)+$C177)<$C176,$C177,$C176-SUM($J177:O177)),0)),0) -> 0 | Q177: =ROUND(IF(OR(AND($C175=LataProjekcji,$E175>0),AND($C175=LataProjekcji,$E175=0,$D176<=3.5)),$E176,IF($C175<LataProjekcji,IF((SUM($J177:P177)+$C177)<$C176,$C177,$C176-SUM($J177:P177)),0)),0) -> 0 | R177: =ROUND(IF(OR(AND($C175=LataProjekcji,$E175>0),AND($C175=LataProjekcji,$E175=0,$D176<=3.5)),$E176,IF($C175<LataProjekcji,IF((SUM($J177:Q177)+$C177)<$C176,$C177,$C176-SUM($J177:Q177)),0)),0) -> 0 | S177: =ROUND(IF(OR(AND($C175=LataProjekcji,$E175>0),AND($C175=LataProjekcji,$E175=0,$D176<=3.5)),$E176,IF($C175<LataProjekcji,IF((SUM($J177:R177)+$C177)<$C176,$C177,$C176-SUM($J177:R177)),0)),0) -> 0 | T177: =ROUND(IF(OR(AND($C175=LataProjekcji,$E175>0),AND($C175=LataProjekcji,$E175=0,$D176<=3.5)),$E176,IF($C175<LataProjekcji,IF((SUM($J177:S177)+$C177)<$C176,$C177,$C176-SUM($J177:S177)),0)),0) -> 0 | U177: =ROUND(IF(OR(AND($C175=LataProjekcji,$E175>0),AND($C175=LataProjekcji,$E175=0,$D176<=3.5)),$E176,IF($C175<LataProjekcji,IF((SUM($J177:T177)+$C177)<$C176,$C177,$C176-SUM($J177:T177)),0)),0) -> 0 | V177: =ROUND(IF(OR(AND($C175=LataProjekcji,$E175>0),AND($C175=LataProjekcji,$E175=0,$D176<=3.5)),$E176,IF($C175<LataProjekcji,IF((SUM($J177:U177)+$C177)<$C176,$C177,$C176-SUM($J177:U177)),0)),0) -> 0 | W177: =ROUND(IF(OR(AND($C175=LataProjekcji,$E175>0),AND($C175=LataProjekcji,$E175=0,$D176<=3.5)),$E176,IF($C175<LataProjekcji,IF((SUM($J177:V177)+$C177)<$C176,$C177,$C176-SUM($J177:V177)),0)),0) -> 0
B178: umorzenie | J178: =ROUND(J177,0) -> 0 | K178: =ROUND(J178+K177,0) -> 0 | L178: =ROUND(K178+L177,0) -> 0 | M178: =ROUND(L178+M177,0) -> 0 | N178: =ROUND(M178+N177,0) -> 0 | O178: =ROUND(N178+O177,0) -> 0 | P178: =ROUND(O178+P177,0) -> 0 | Q178: =ROUND(P178+Q177,0) -> 0 | R178: =ROUND(Q178+R177,0) -> 0 | S178: =ROUND(R178+S177,0) -> 0 | T178: =ROUND(S178+T177,0) -> 0 | U178: =ROUND(T178+U177,0) -> 0 | V178: =ROUND(U178+V177,0) -> 0 | W178: =ROUND(V178+W177,0) -> 0
B179: wartość netto | J179: =IF($C175=LataProjekcji,ROUND($C176-J178,0),ROUND(IF(J177=0,0,$C176-J178),0)) -> 0 | K179: =IF($C175=LataProjekcji,ROUND($C176-K178,0),ROUND(IF(AND(K177=0,J179>0),$C176-K178,IF(K177=0,0,$C176-K178)),0)) -> 0 | L179: =IF($C175=LataProjekcji,ROUND($C176-L178,0),ROUND(IF(AND(L177=0,K179>0),$C176-L178,IF(L177=0,0,$C176-L178)),0)) -> 0 | M179: =IF($C175=LataProjekcji,ROUND($C176-M178,0),ROUND(IF(AND(M177=0,L179>0),$C176-M178,IF(M177=0,0,$C176-M178)),0)) -> 0 | N179: =IF($C175=LataProjekcji,ROUND($C176-N178,0),ROUND(IF(AND(N177=0,M179>0),$C176-N178,IF(N177=0,0,$C176-N178)),0)) -> 0 | O179: =IF($C175=LataProjekcji,ROUND($C176-O178,0),ROUND(IF(AND(O177=0,N179>0),$C176-O178,IF(O177=0,0,$C176-O178)),0)) -> 0 | P179: =IF($C175=LataProjekcji,ROUND($C176-P178,0),ROUND(IF(AND(P177=0,O179>0),$C176-P178,IF(P177=0,0,$C176-P178)),0)) -> 0 | Q179: =IF($C175=LataProjekcji,ROUND($C176-Q178,0),ROUND(IF(AND(Q177=0,P179>0),$C176-Q178,IF(Q177=0,0,$C176-Q178)),0)) -> 0 | R179: =IF($C175=LataProjekcji,ROUND($C176-R178,0),ROUND(IF(AND(R177=0,Q179>0),$C176-R178,IF(R177=0,0,$C176-R178)),0)) -> 0 | S179: =IF($C175=LataProjekcji,ROUND($C176-S178,0),ROUND(IF(AND(S177=0,R179>0),$C176-S178,IF(S177=0,0,$C176-S178)),0)) -> 0 | T179: =IF($C175=LataProjekcji,ROUND($C176-T178,0),ROUND(IF(AND(T177=0,S179>0),$C176-T178,IF(T177=0,0,$C176-T178)),0)) -> 0 | U179: =IF($C175=LataProjekcji,ROUND($C176-U178,0),ROUND(IF(AND(U177=0,T179>0),$C176-U178,IF(U177=0,0,$C176-U178)),0)) -> 0 | V179: =IF($C175=LataProjekcji,ROUND($C176-V178,0),ROUND(IF(AND(V177=0,U179>0),$C176-V178,IF(V177=0,0,$C176-V178)),0)) -> 0 | W179: =IF($C175=LataProjekcji,ROUND($C176-W178,0),ROUND(IF(AND(W177=0,V179>0),$C176-W178,IF(W177=0,0,$C176-W178)),0)) -> 0
B183: grunty | C183: wartość netto | D183: rok i miesiąc zakupu | E183: dofinansowanie % | F183: dofinansowanie PLN | J183: =LataProjekcji -> Uzupełnij dane
F184: =IF(E184=0,0,ROUND(E184*C184,0)) -> 0 | I184: =IF(OR(AND(ISNUMBER(C184),ISBLANK(D184)),AND(ISNUMBER(D184),ISBLANK(C184))),"uzupełnij dane","") ->  | J184: =ROUND(IF(AND(YEAR($D184)=LataProjekcji,$C184>0),$C184,0),0) -> 0 | K184: 0 | L184: 0 | M184: 0 | N184: 0 | O184: 0 | P184: 0 | Q184: 0 | R184: 0 | S184: 0 | T184: 0 | U184: 0 | V184: 0 | W184: 0
F185: =IF(E185=0,0,ROUND(E185*C185,0)) -> 0 | J185: 0 | K185: 0 | L185: 0 | M185: 0 | N185: 0 | O185: 0 | P185: 0 | Q185: 0 | R185: 0 | S185: 0 | T185: 0 | U185: 0 | V185: 0 | W185: 0
F186: =IF(E186=0,0,ROUND(E186*C186,0)) -> 0 | J186: 0 | K186: 0 | L186: 0 | M186: 0 | N186: 0 | O186: 0 | P186: 0 | Q186: 0 | R186: 0 | S186: 0 | T186: 0 | U186: 0 | V186: 0 | W186: 0
F187: =IF(E187=0,0,ROUND(E187*C187,0)) -> 0 | J187: 0 | K187: 0 | L187: 0 | M187: 0 | N187: 0 | O187: 0 | P187: 0 | Q187: 0 | R187: 0 | S187: 0 | T187: 0 | U187: 0 | V187: 0 | W187: 0
F188: =IF(E188=0,0,ROUND(E188*C188,0)) -> 0 | J188: 0 | K188: 0 | L188: 0 | M188: 0 | N188: 0 | O188: 0 | P188: 0 | Q188: 0 | R188: 0 | S188: 0 | T188: 0 | U188: 0 | V188: 0 | W188: 0
B189: Razem | C189: =SUM(C184:C188) -> 0 | F189: =SUM(F184:F188) -> 0 | J189: =SUM(J184:J188) -> 0 | K189: =SUM(K184:K188) -> 0 | L189: 0 | M189: 0 | N189: 0 | O189: 0 | P189: 0 | Q189: 0 | R189: 0 | S189: 0 | T189: 0 | U189: 0 | V189: 0 | W189: 0
B190: - amortyzacja | J190: =J197+J204+J211+J218+J225 -> 0 | K190: =K197+K204+K211+K218+K225 -> 0 | L190: 0 | M190: 0 | N190: 0 | O190: 0 | P190: 0 | Q190: 0 | R190: 0 | S190: 0 | T190: 0 | U190: 0 | V190: 0 | W190: 0
B191: - umorzenie | J191: =J198+J205+J212+J219+J226 -> 0 | K191: =K198+K205+K212+K219+K226 -> 0 | L191: 0 | M191: 0 | N191: 0 | O191: 0 | P191: 0 | Q191: 0 | R191: 0 | S191: 0 | T191: 0 | U191: 0 | V191: 0 | W191: 0
B192: - wartość księgowa netto | J192: =J199+J206+J213+J220+J227 -> 0 | K192: =K199+K206+K213+K220+K227 -> 0 | L192: 0 | M192: 0 | N192: 0 | O192: 0 | P192: 0 | Q192: 0 | R192: 0 | S192: 0 | T192: 0 | U192: 0 | V192: 0 | W192: 0
B194: A&D1 | C194: 48 | E194: ile miesiący do końca roku | G194: niekwalifikowalne | H194: spr
B195: rok zakupu | C195: =YEAR(OFFSET($D$136,C194,0)) -> 1900 | D195: =MONTH(OFFSET($D$136,C194,0)) -> 1 | E195: =12-$D195 -> 11 | G195: =C189-F195 -> 0 | H195: =C189-F195-G195 -> 0
B196: wartość netto | C196: =IF(D196<0,0,ROUND(D196,0)) -> 0 | D196: =OFFSET($C$136,C194,0) -> 0 | E196: =IF(D196>3.5,ROUND(($C197/12)*$E195,0),$C196) -> 0 | F196: <- am. Do końca roku
B197: amortyzacja roczna | C197: =IF(ISBLANK(OFFSET($D$136,C194,0)),0,IF(D196>3.5,ROUND(C196*am_grunty,0),IF(C196<0,0,C196))) -> 0 | J197: =ROUND(IF($C195=LataProjekcji,$E196,IF($C195=LataProjekcji,$C197,0)),0) -> 0 | K197: =ROUND(IF(OR(AND($C195=LataProjekcji,$E195>0),AND($C195=LataProjekcji,$E195=0,$D196<=3.5)),$E196,IF($C195<LataProjekcji,IF((SUM($J197:J197)+$C197)<$C196,$C197,$C196-SUM($J197:J197)),0)),0) -> 0 | L197: =ROUND(IF(OR(AND($C195=LataProjekcji,$E195>0),AND($C195=LataProjekcji,$E195=0,$D196<=3.5)),$E196,IF($C195<LataProjekcji,IF((SUM($J197:K197)+$C197)<$C196,$C197,$C196-SUM($J197:K197)),0)),0) -> 0 | M197: =ROUND(IF(OR(AND($C195=LataProjekcji,$E195>0),AND($C195=LataProjekcji,$E195=0,$D196<=3.5)),$E196,IF($C195<LataProjekcji,IF((SUM($J197:L197)+$C197)<$C196,$C197,$C196-SUM($J197:L197)),0)),0) -> 0 | N197: =ROUND(IF(OR(AND($C195=LataProjekcji,$E195>0),AND($C195=LataProjekcji,$E195=0,$D196<=3.5)),$E196,IF($C195<LataProjekcji,IF((SUM($J197:M197)+$C197)<$C196,$C197,$C196-SUM($J197:M197)),0)),0) -> 0 | O197: =ROUND(IF(OR(AND($C195=LataProjekcji,$E195>0),AND($C195=LataProjekcji,$E195=0,$D196<=3.5)),$E196,IF($C195<LataProjekcji,IF((SUM($J197:N197)+$C197)<$C196,$C197,$C196-SUM($J197:N197)),0)),0) -> 0 | P197: =ROUND(IF(OR(AND($C195=LataProjekcji,$E195>0),AND($C195=LataProjekcji,$E195=0,$D196<=3.5)),$E196,IF($C195<LataProjekcji,IF((SUM($J197:O197)+$C197)<$C196,$C197,$C196-SUM($J197:O197)),0)),0) -> 0 | Q197: =ROUND(IF(OR(AND($C195=LataProjekcji,$E195>0),AND($C195=LataProjekcji,$E195=0,$D196<=3.5)),$E196,IF($C195<LataProjekcji,IF((SUM($J197:P197)+$C197)<$C196,$C197,$C196-SUM($J197:P197)),0)),0) -> 0 | R197: =ROUND(IF(OR(AND($C195=LataProjekcji,$E195>0),AND($C195=LataProjekcji,$E195=0,$D196<=3.5)),$E196,IF($C195<LataProjekcji,IF((SUM($J197:Q197)+$C197)<$C196,$C197,$C196-SUM($J197:Q197)),0)),0) -> 0 | S197: =ROUND(IF(OR(AND($C195=LataProjekcji,$E195>0),AND($C195=LataProjekcji,$E195=0,$D196<=3.5)),$E196,IF($C195<LataProjekcji,IF((SUM($J197:R197)+$C197)<$C196,$C197,$C196-SUM($J197:R197)),0)),0) -> 0 | T197: =ROUND(IF(OR(AND($C195=LataProjekcji,$E195>0),AND($C195=LataProjekcji,$E195=0,$D196<=3.5)),$E196,IF($C195<LataProjekcji,IF((SUM($J197:S197)+$C197)<$C196,$C197,$C196-SUM($J197:S197)),0)),0) -> 0 | U197: =ROUND(IF(OR(AND($C195=LataProjekcji,$E195>0),AND($C195=LataProjekcji,$E195=0,$D196<=3.5)),$E196,IF($C195<LataProjekcji,IF((SUM($J197:T197)+$C197)<$C196,$C197,$C196-SUM($J197:T197)),0)),0) -> 0 | V197: =ROUND(IF(OR(AND($C195=LataProjekcji,$E195>0),AND($C195=LataProjekcji,$E195=0,$D196<=3.5)),$E196,IF($C195<LataProjekcji,IF((SUM($J197:U197)+$C197)<$C196,$C197,$C196-SUM($J197:U197)),0)),0) -> 0 | W197: =ROUND(IF(OR(AND($C195=LataProjekcji,$E195>0),AND($C195=LataProjekcji,$E195=0,$D196<=3.5)),$E196,IF($C195<LataProjekcji,IF((SUM($J197:V197)+$C197)<$C196,$C197,$C196-SUM($J197:V197)),0)),0) -> 0
B198: umorzenie | J198: =ROUND(J197,0) -> 0 | K198: =ROUND(J198+K197,0) -> 0 | L198: =ROUND(K198+L197,0) -> 0 | M198: =ROUND(L198+M197,0) -> 0 | N198: =ROUND(M198+N197,0) -> 0 | O198: =ROUND(N198+O197,0) -> 0 | P198: =ROUND(O198+P197,0) -> 0 | Q198: =ROUND(P198+Q197,0) -> 0 | R198: =ROUND(Q198+R197,0) -> 0 | S198: =ROUND(R198+S197,0) -> 0 | T198: =ROUND(S198+T197,0) -> 0 | U198: =ROUND(T198+U197,0) -> 0 | V198: =ROUND(U198+V197,0) -> 0 | W198: =ROUND(V198+W197,0) -> 0
B199: wartość netto | J199: =IF($C195=LataProjekcji,ROUND($C196-J198,0),ROUND(IF(J197=0,0,$C196-J198),0)) -> 0 | K199: =IF($C195=LataProjekcji,ROUND($C196-K198,0),ROUND(IF(AND(K197=0,J199>0),$C196-K198,IF(K197=0,0,$C196-K198)),0)) -> 0 | L199: 0 | M199: 0 | N199: 0 | O199: 0 | P199: 0 | Q199: 0 | R199: 0 | S199: 0 | T199: 0 | U199: 0 | V199: 0 | W199: 0
B201: A&D2 | C201: =C194+1 -> 49
B202: rok zakupu | C202: =YEAR(OFFSET($D$136,C201,0)) -> 1900 | D202: =MONTH(OFFSET($D$136,C201,0)) -> 1 | E202: =12-$D202 -> 11
B203: wartość netto | C203: =IF(D203<0,0,ROUND(D203,0)) -> 0 | D203: =OFFSET($C$136,C201,0) -> 0 | E203: =IF(D203>3.5,ROUND(($C204/12)*$E202,0),$C203) -> 0
B204: amortyzacja roczna | C204: =IF(ISBLANK(OFFSET($D$136,C201,0)),0,IF(D203>3.5,ROUND(C203*am_grunty,0),IF(C203<0,0,C203))) -> 0 | J204: =ROUND(IF($C202=LataProjekcji,$E203,IF($C202=LataProjekcji,$C204,0)),0) -> 0 | K204: =ROUND(IF(OR(AND($C202=LataProjekcji,$E202>0),AND($C202=LataProjekcji,$E202=0,$D203<=3.5)),$E203,IF($C202<LataProjekcji,IF((SUM($J204:J204)+$C204)<$C203,$C204,$C203-SUM($J204:J204)),0)),0) -> 0 | L204: =ROUND(IF(OR(AND($C202=LataProjekcji,$E202>0),AND($C202=LataProjekcji,$E202=0,$D203<=3.5)),$E203,IF($C202<LataProjekcji,IF((SUM($J204:K204)+$C204)<$C203,$C204,$C203-SUM($J204:K204)),0)),0) -> 0 | M204: =ROUND(IF(OR(AND($C202=LataProjekcji,$E202>0),AND($C202=LataProjekcji,$E202=0,$D203<=3.5)),$E203,IF($C202<LataProjekcji,IF((SUM($J204:L204)+$C204)<$C203,$C204,$C203-SUM($J204:L204)),0)),0) -> 0 | N204: =ROUND(IF(OR(AND($C202=LataProjekcji,$E202>0),AND($C202=LataProjekcji,$E202=0,$D203<=3.5)),$E203,IF($C202<LataProjekcji,IF((SUM($J204:M204)+$C204)<$C203,$C204,$C203-SUM($J204:M204)),0)),0) -> 0 | O204: =ROUND(IF(OR(AND($C202=LataProjekcji,$E202>0),AND($C202=LataProjekcji,$E202=0,$D203<=3.5)),$E203,IF($C202<LataProjekcji,IF((SUM($J204:N204)+$C204)<$C203,$C204,$C203-SUM($J204:N204)),0)),0) -> 0 | P204: =ROUND(IF(OR(AND($C202=LataProjekcji,$E202>0),AND($C202=LataProjekcji,$E202=0,$D203<=3.5)),$E203,IF($C202<LataProjekcji,IF((SUM($J204:O204)+$C204)<$C203,$C204,$C203-SUM($J204:O204)),0)),0) -> 0 | Q204: =ROUND(IF(OR(AND($C202=LataProjekcji,$E202>0),AND($C202=LataProjekcji,$E202=0,$D203<=3.5)),$E203,IF($C202<LataProjekcji,IF((SUM($J204:P204)+$C204)<$C203,$C204,$C203-SUM($J204:P204)),0)),0) -> 0 | R204: =ROUND(IF(OR(AND($C202=LataProjekcji,$E202>0),AND($C202=LataProjekcji,$E202=0,$D203<=3.5)),$E203,IF($C202<LataProjekcji,IF((SUM($J204:Q204)+$C204)<$C203,$C204,$C203-SUM($J204:Q204)),0)),0) -> 0 | S204: =ROUND(IF(OR(AND($C202=LataProjekcji,$E202>0),AND($C202=LataProjekcji,$E202=0,$D203<=3.5)),$E203,IF($C202<LataProjekcji,IF((SUM($J204:R204)+$C204)<$C203,$C204,$C203-SUM($J204:R204)),0)),0) -> 0 | T204: =ROUND(IF(OR(AND($C202=LataProjekcji,$E202>0),AND($C202=LataProjekcji,$E202=0,$D203<=3.5)),$E203,IF($C202<LataProjekcji,IF((SUM($J204:S204)+$C204)<$C203,$C204,$C203-SUM($J204:S204)),0)),0) -> 0 | U204: =ROUND(IF(OR(AND($C202=LataProjekcji,$E202>0),AND($C202=LataProjekcji,$E202=0,$D203<=3.5)),$E203,IF($C202<LataProjekcji,IF((SUM($J204:T204)+$C204)<$C203,$C204,$C203-SUM($J204:T204)),0)),0) -> 0 | V204: =ROUND(IF(OR(AND($C202=LataProjekcji,$E202>0),AND($C202=LataProjekcji,$E202=0,$D203<=3.5)),$E203,IF($C202<LataProjekcji,IF((SUM($J204:U204)+$C204)<$C203,$C204,$C203-SUM($J204:U204)),0)),0) -> 0 | W204: =ROUND(IF(OR(AND($C202=LataProjekcji,$E202>0),AND($C202=LataProjekcji,$E202=0,$D203<=3.5)),$E203,IF($C202<LataProjekcji,IF((SUM($J204:V204)+$C204)<$C203,$C204,$C203-SUM($J204:V204)),0)),0) -> 0
B205: umorzenie | J205: =ROUND(J204,0) -> 0 | K205: =ROUND(J205+K204,0) -> 0 | L205: =ROUND(K205+L204,0) -> 0 | M205: =ROUND(L205+M204,0) -> 0 | N205: =ROUND(M205+N204,0) -> 0 | O205: =ROUND(N205+O204,0) -> 0 | P205: =ROUND(O205+P204,0) -> 0 | Q205: =ROUND(P205+Q204,0) -> 0 | R205: =ROUND(Q205+R204,0) -> 0 | S205: =ROUND(R205+S204,0) -> 0 | T205: =ROUND(S205+T204,0) -> 0 | U205: =ROUND(T205+U204,0) -> 0 | V205: =ROUND(U205+V204,0) -> 0 | W205: =ROUND(V205+W204,0) -> 0
B206: wartość netto | J206: =IF($C202=LataProjekcji,ROUND($C203-J205,0),ROUND(IF(J204=0,0,$C203-J205),0)) -> 0 | K206: =IF($C202=LataProjekcji,ROUND($C203-K205,0),ROUND(IF(AND(K204=0,J206>0),$C203-K205,IF(K204=0,0,$C203-K205)),0)) -> 0 | L206: =IF($C202=LataProjekcji,ROUND($C203-L205,0),ROUND(IF(AND(L204=0,K206>0),$C203-L205,IF(L204=0,0,$C203-L205)),0)) -> 0 | M206: =IF($C202=LataProjekcji,ROUND($C203-M205,0),ROUND(IF(AND(M204=0,L206>0),$C203-M205,IF(M204=0,0,$C203-M205)),0)) -> 0 | N206: =IF($C202=LataProjekcji,ROUND($C203-N205,0),ROUND(IF(AND(N204=0,M206>0),$C203-N205,IF(N204=0,0,$C203-N205)),0)) -> 0 | O206: =IF($C202=LataProjekcji,ROUND($C203-O205,0),ROUND(IF(AND(O204=0,N206>0),$C203-O205,IF(O204=0,0,$C203-O205)),0)) -> 0 | P206: =IF($C202=LataProjekcji,ROUND($C203-P205,0),ROUND(IF(AND(P204=0,O206>0),$C203-P205,IF(P204=0,0,$C203-P205)),0)) -> 0 | Q206: =IF($C202=LataProjekcji,ROUND($C203-Q205,0),ROUND(IF(AND(Q204=0,P206>0),$C203-Q205,IF(Q204=0,0,$C203-Q205)),0)) -> 0 | R206: =IF($C202=LataProjekcji,ROUND($C203-R205,0),ROUND(IF(AND(R204=0,Q206>0),$C203-R205,IF(R204=0,0,$C203-R205)),0)) -> 0 | S206: =IF($C202=LataProjekcji,ROUND($C203-S205,0),ROUND(IF(AND(S204=0,R206>0),$C203-S205,IF(S204=0,0,$C203-S205)),0)) -> 0 | T206: =IF($C202=LataProjekcji,ROUND($C203-T205,0),ROUND(IF(AND(T204=0,S206>0),$C203-T205,IF(T204=0,0,$C203-T205)),0)) -> 0 | U206: =IF($C202=LataProjekcji,ROUND($C203-U205,0),ROUND(IF(AND(U204=0,T206>0),$C203-U205,IF(U204=0,0,$C203-U205)),0)) -> 0 | V206: =IF($C202=LataProjekcji,ROUND($C203-V205,0),ROUND(IF(AND(V204=0,U206>0),$C203-V205,IF(V204=0,0,$C203-V205)),0)) -> 0 | W206: =IF($C202=LataProjekcji,ROUND($C203-W205,0),ROUND(IF(AND(W204=0,V206>0),$C203-W205,IF(W204=0,0,$C203-W205)),0)) -> 0
B208: A&3 | C208: =C201+1 -> 50
B209: rok zakupu | C209: =YEAR(OFFSET($D$136,C208,0)) -> 1900 | D209: =MONTH(OFFSET($D$136,C208,0)) -> 1 | E209: =12-$D209 -> 11
B210: wartość netto | C210: =IF(D210<0,0,ROUND(D210,0)) -> 0 | D210: =OFFSET($C$136,C208,0) -> 0 | E210: =IF(D210>3.5,ROUND(($C211/12)*$E209,0),$C210) -> 0
B211: amortyzacja roczna | C211: =IF(ISBLANK(OFFSET($D$136,C208,0)),0,IF(D210>3.5,ROUND(C210*am_grunty,0),IF(C210<0,0,C210))) -> 0 | J211: =ROUND(IF($C209=LataProjekcji,$E210,IF($C209=LataProjekcji,$C211,0)),0) -> 0 | K211: =ROUND(IF(OR(AND($C209=LataProjekcji,$E209>0),AND($C209=LataProjekcji,$E209=0,$D210<=3.5)),$E210,IF($C209<LataProjekcji,IF((SUM($J211:J211)+$C211)<$C210,$C211,$C210-SUM($J211:J211)),0)),0) -> 0 | L211: =ROUND(IF(OR(AND($C209=LataProjekcji,$E209>0),AND($C209=LataProjekcji,$E209=0,$D210<=3.5)),$E210,IF($C209<LataProjekcji,IF((SUM($J211:K211)+$C211)<$C210,$C211,$C210-SUM($J211:K211)),0)),0) -> 0 | M211: =ROUND(IF(OR(AND($C209=LataProjekcji,$E209>0),AND($C209=LataProjekcji,$E209=0,$D210<=3.5)),$E210,IF($C209<LataProjekcji,IF((SUM($J211:L211)+$C211)<$C210,$C211,$C210-SUM($J211:L211)),0)),0) -> 0 | N211: =ROUND(IF(OR(AND($C209=LataProjekcji,$E209>0),AND($C209=LataProjekcji,$E209=0,$D210<=3.5)),$E210,IF($C209<LataProjekcji,IF((SUM($J211:M211)+$C211)<$C210,$C211,$C210-SUM($J211:M211)),0)),0) -> 0 | O211: =ROUND(IF(OR(AND($C209=LataProjekcji,$E209>0),AND($C209=LataProjekcji,$E209=0,$D210<=3.5)),$E210,IF($C209<LataProjekcji,IF((SUM($J211:N211)+$C211)<$C210,$C211,$C210-SUM($J211:N211)),0)),0) -> 0 | P211: =ROUND(IF(OR(AND($C209=LataProjekcji,$E209>0),AND($C209=LataProjekcji,$E209=0,$D210<=3.5)),$E210,IF($C209<LataProjekcji,IF((SUM($J211:O211)+$C211)<$C210,$C211,$C210-SUM($J211:O211)),0)),0) -> 0 | Q211: =ROUND(IF(OR(AND($C209=LataProjekcji,$E209>0),AND($C209=LataProjekcji,$E209=0,$D210<=3.5)),$E210,IF($C209<LataProjekcji,IF((SUM($J211:P211)+$C211)<$C210,$C211,$C210-SUM($J211:P211)),0)),0) -> 0 | R211: =ROUND(IF(OR(AND($C209=LataProjekcji,$E209>0),AND($C209=LataProjekcji,$E209=0,$D210<=3.5)),$E210,IF($C209<LataProjekcji,IF((SUM($J211:Q211)+$C211)<$C210,$C211,$C210-SUM($J211:Q211)),0)),0) -> 0 | S211: =ROUND(IF(OR(AND($C209=LataProjekcji,$E209>0),AND($C209=LataProjekcji,$E209=0,$D210<=3.5)),$E210,IF($C209<LataProjekcji,IF((SUM($J211:R211)+$C211)<$C210,$C211,$C210-SUM($J211:R211)),0)),0) -> 0 | T211: =ROUND(IF(OR(AND($C209=LataProjekcji,$E209>0),AND($C209=LataProjekcji,$E209=0,$D210<=3.5)),$E210,IF($C209<LataProjekcji,IF((SUM($J211:S211)+$C211)<$C210,$C211,$C210-SUM($J211:S211)),0)),0) -> 0 | U211: =ROUND(IF(OR(AND($C209=LataProjekcji,$E209>0),AND($C209=LataProjekcji,$E209=0,$D210<=3.5)),$E210,IF($C209<LataProjekcji,IF((SUM($J211:T211)+$C211)<$C210,$C211,$C210-SUM($J211:T211)),0)),0) -> 0 | V211: =ROUND(IF(OR(AND($C209=LataProjekcji,$E209>0),AND($C209=LataProjekcji,$E209=0,$D210<=3.5)),$E210,IF($C209<LataProjekcji,IF((SUM($J211:U211)+$C211)<$C210,$C211,$C210-SUM($J211:U211)),0)),0) -> 0 | W211: =ROUND(IF(OR(AND($C209=LataProjekcji,$E209>0),AND($C209=LataProjekcji,$E209=0,$D210<=3.5)),$E210,IF($C209<LataProjekcji,IF((SUM($J211:V211)+$C211)<$C210,$C211,$C210-SUM($J211:V211)),0)),0) -> 0
B212: umorzenie | J212: =ROUND(J211,0) -> 0 | K212: =ROUND(J212+K211,0) -> 0 | L212: =ROUND(K212+L211,0) -> 0 | M212: =ROUND(L212+M211,0) -> 0 | N212: =ROUND(M212+N211,0) -> 0 | O212: =ROUND(N212+O211,0) -> 0 | P212: =ROUND(O212+P211,0) -> 0 | Q212: =ROUND(P212+Q211,0) -> 0 | R212: =ROUND(Q212+R211,0) -> 0 | S212: =ROUND(R212+S211,0) -> 0 | T212: =ROUND(S212+T211,0) -> 0 | U212: =ROUND(T212+U211,0) -> 0 | V212: =ROUND(U212+V211,0) -> 0 | W212: =ROUND(V212+W211,0) -> 0
B213: wartość netto | J213: =IF($C209=LataProjekcji,ROUND($C210-J212,0),ROUND(IF(J211=0,0,$C210-J212),0)) -> 0 | K213: =IF($C209=LataProjekcji,ROUND($C210-K212,0),ROUND(IF(AND(K211=0,J213>0),$C210-K212,IF(K211=0,0,$C210-K212)),0)) -> 0 | L213: =IF($C209=LataProjekcji,ROUND($C210-L212,0),ROUND(IF(AND(L211=0,K213>0),$C210-L212,IF(L211=0,0,$C210-L212)),0)) -> 0 | M213: =IF($C209=LataProjekcji,ROUND($C210-M212,0),ROUND(IF(AND(M211=0,L213>0),$C210-M212,IF(M211=0,0,$C210-M212)),0)) -> 0 | N213: =IF($C209=LataProjekcji,ROUND($C210-N212,0),ROUND(IF(AND(N211=0,M213>0),$C210-N212,IF(N211=0,0,$C210-N212)),0)) -> 0 | O213: =IF($C209=LataProjekcji,ROUND($C210-O212,0),ROUND(IF(AND(O211=0,N213>0),$C210-O212,IF(O211=0,0,$C210-O212)),0)) -> 0 | P213: =IF($C209=LataProjekcji,ROUND($C210-P212,0),ROUND(IF(AND(P211=0,O213>0),$C210-P212,IF(P211=0,0,$C210-P212)),0)) -> 0 | Q213: =IF($C209=LataProjekcji,ROUND($C210-Q212,0),ROUND(IF(AND(Q211=0,P213>0),$C210-Q212,IF(Q211=0,0,$C210-Q212)),0)) -> 0 | R213: =IF($C209=LataProjekcji,ROUND($C210-R212,0),ROUND(IF(AND(R211=0,Q213>0),$C210-R212,IF(R211=0,0,$C210-R212)),0)) -> 0 | S213: =IF($C209=LataProjekcji,ROUND($C210-S212,0),ROUND(IF(AND(S211=0,R213>0),$C210-S212,IF(S211=0,0,$C210-S212)),0)) -> 0 | T213: =IF($C209=LataProjekcji,ROUND($C210-T212,0),ROUND(IF(AND(T211=0,S213>0),$C210-T212,IF(T211=0,0,$C210-T212)),0)) -> 0 | U213: =IF($C209=LataProjekcji,ROUND($C210-U212,0),ROUND(IF(AND(U211=0,T213>0),$C210-U212,IF(U211=0,0,$C210-U212)),0)) -> 0 | V213: =IF($C209=LataProjekcji,ROUND($C210-V212,0),ROUND(IF(AND(V211=0,U213>0),$C210-V212,IF(V211=0,0,$C210-V212)),0)) -> 0 | W213: =IF($C209=LataProjekcji,ROUND($C210-W212,0),ROUND(IF(AND(W211=0,V213>0),$C210-W212,IF(W211=0,0,$C210-W212)),0)) -> 0
B215: A&D4 | C215: =C208+1 -> 51
B216: rok zakupu | C216: =YEAR(OFFSET($D$136,C215,0)) -> 1900 | D216: =MONTH(OFFSET($D$136,C215,0)) -> 1 | E216: =12-$D216 -> 11
B217: wartość netto | C217: =IF(D217<0,0,ROUND(D217,0)) -> 0 | D217: =OFFSET($C$136,C215,0) -> 0 | E217: =IF(D217>3.5,ROUND(($C218/12)*$E216,0),$C217) -> 0
B218: amortyzacja roczna | C218: =IF(ISBLANK(OFFSET($D$136,C215,0)),0,IF(D217>3.5,ROUND(C217*am_grunty,0),IF(C217<0,0,C217))) -> 0 | J218: =ROUND(IF($C216=LataProjekcji,$E217,IF($C216=LataProjekcji,$C218,0)),0) -> 0 | K218: =ROUND(IF(OR(AND($C216=LataProjekcji,$E216>0),AND($C216=LataProjekcji,$E216=0,$D217<=3.5)),$E217,IF($C216<LataProjekcji,IF((SUM($J218:J218)+$C218)<$C217,$C218,$C217-SUM($J218:J218)),0)),0) -> 0 | L218: =ROUND(IF(OR(AND($C216=LataProjekcji,$E216>0),AND($C216=LataProjekcji,$E216=0,$D217<=3.5)),$E217,IF($C216<LataProjekcji,IF((SUM($J218:K218)+$C218)<$C217,$C218,$C217-SUM($J218:K218)),0)),0) -> 0 | M218: =ROUND(IF(OR(AND($C216=LataProjekcji,$E216>0),AND($C216=LataProjekcji,$E216=0,$D217<=3.5)),$E217,IF($C216<LataProjekcji,IF((SUM($J218:L218)+$C218)<$C217,$C218,$C217-SUM($J218:L218)),0)),0) -> 0 | N218: =ROUND(IF(OR(AND($C216=LataProjekcji,$E216>0),AND($C216=LataProjekcji,$E216=0,$D217<=3.5)),$E217,IF($C216<LataProjekcji,IF((SUM($J218:M218)+$C218)<$C217,$C218,$C217-SUM($J218:M218)),0)),0) -> 0 | O218: =ROUND(IF(OR(AND($C216=LataProjekcji,$E216>0),AND($C216=LataProjekcji,$E216=0,$D217<=3.5)),$E217,IF($C216<LataProjekcji,IF((SUM($J218:N218)+$C218)<$C217,$C218,$C217-SUM($J218:N218)),0)),0) -> 0 | P218: =ROUND(IF(OR(AND($C216=LataProjekcji,$E216>0),AND($C216=LataProjekcji,$E216=0,$D217<=3.5)),$E217,IF($C216<LataProjekcji,IF((SUM($J218:O218)+$C218)<$C217,$C218,$C217-SUM($J218:O218)),0)),0) -> 0 | Q218: =ROUND(IF(OR(AND($C216=LataProjekcji,$E216>0),AND($C216=LataProjekcji,$E216=0,$D217<=3.5)),$E217,IF($C216<LataProjekcji,IF((SUM($J218:P218)+$C218)<$C217,$C218,$C217-SUM($J218:P218)),0)),0) -> 0 | R218: =ROUND(IF(OR(AND($C216=LataProjekcji,$E216>0),AND($C216=LataProjekcji,$E216=0,$D217<=3.5)),$E217,IF($C216<LataProjekcji,IF((SUM($J218:Q218)+$C218)<$C217,$C218,$C217-SUM($J218:Q218)),0)),0) -> 0 | S218: =ROUND(IF(OR(AND($C216=LataProjekcji,$E216>0),AND($C216=LataProjekcji,$E216=0,$D217<=3.5)),$E217,IF($C216<LataProjekcji,IF((SUM($J218:R218)+$C218)<$C217,$C218,$C217-SUM($J218:R218)),0)),0) -> 0 | T218: =ROUND(IF(OR(AND($C216=LataProjekcji,$E216>0),AND($C216=LataProjekcji,$E216=0,$D217<=3.5)),$E217,IF($C216<LataProjekcji,IF((SUM($J218:S218)+$C218)<$C217,$C218,$C217-SUM($J218:S218)),0)),0) -> 0 | U218: =ROUND(IF(OR(AND($C216=LataProjekcji,$E216>0),AND($C216=LataProjekcji,$E216=0,$D217<=3.5)),$E217,IF($C216<LataProjekcji,IF((SUM($J218:T218)+$C218)<$C217,$C218,$C217-SUM($J218:T218)),0)),0) -> 0 | V218: =ROUND(IF(OR(AND($C216=LataProjekcji,$E216>0),AND($C216=LataProjekcji,$E216=0,$D217<=3.5)),$E217,IF($C216<LataProjekcji,IF((SUM($J218:U218)+$C218)<$C217,$C218,$C217-SUM($J218:U218)),0)),0) -> 0 | W218: =ROUND(IF(OR(AND($C216=LataProjekcji,$E216>0),AND($C216=LataProjekcji,$E216=0,$D217<=3.5)),$E217,IF($C216<LataProjekcji,IF((SUM($J218:V218)+$C218)<$C217,$C218,$C217-SUM($J218:V218)),0)),0) -> 0
B219: umorzenie | J219: =ROUND(J218,0) -> 0 | K219: =ROUND(J219+K218,0) -> 0 | L219: =ROUND(K219+L218,0) -> 0 | M219: =ROUND(L219+M218,0) -> 0 | N219: =ROUND(M219+N218,0) -> 0 | O219: =ROUND(N219+O218,0) -> 0 | P219: =ROUND(O219+P218,0) -> 0 | Q219: =ROUND(P219+Q218,0) -> 0 | R219: =ROUND(Q219+R218,0) -> 0 | S219: =ROUND(R219+S218,0) -> 0 | T219: =ROUND(S219+T218,0) -> 0 | U219: =ROUND(T219+U218,0) -> 0 | V219: =ROUND(U219+V218,0) -> 0 | W219: =ROUND(V219+W218,0) -> 0
B220: wartość netto | J220: =IF($C216=LataProjekcji,ROUND($C217-J219,0),ROUND(IF(J218=0,0,$C217-J219),0)) -> 0 | K220: =IF($C216=LataProjekcji,ROUND($C217-K219,0),ROUND(IF(AND(K218=0,J220>0),$C217-K219,IF(K218=0,0,$C217-K219)),0)) -> 0 | L220: =IF($C216=LataProjekcji,ROUND($C217-L219,0),ROUND(IF(AND(L218=0,K220>0),$C217-L219,IF(L218=0,0,$C217-L219)),0)) -> 0 | M220: =IF($C216=LataProjekcji,ROUND($C217-M219,0),ROUND(IF(AND(M218=0,L220>0),$C217-M219,IF(M218=0,0,$C217-M219)),0)) -> 0 | N220: =IF($C216=LataProjekcji,ROUND($C217-N219,0),ROUND(IF(AND(N218=0,M220>0),$C217-N219,IF(N218=0,0,$C217-N219)),0)) -> 0 | O220: =IF($C216=LataProjekcji,ROUND($C217-O219,0),ROUND(IF(AND(O218=0,N220>0),$C217-O219,IF(O218=0,0,$C217-O219)),0)) -> 0 | P220: =IF($C216=LataProjekcji,ROUND($C217-P219,0),ROUND(IF(AND(P218=0,O220>0),$C217-P219,IF(P218=0,0,$C217-P219)),0)) -> 0 | Q220: =IF($C216=LataProjekcji,ROUND($C217-Q219,0),ROUND(IF(AND(Q218=0,P220>0),$C217-Q219,IF(Q218=0,0,$C217-Q219)),0)) -> 0 | R220: =IF($C216=LataProjekcji,ROUND($C217-R219,0),ROUND(IF(AND(R218=0,Q220>0),$C217-R219,IF(R218=0,0,$C217-R219)),0)) -> 0 | S220: =IF($C216=LataProjekcji,ROUND($C217-S219,0),ROUND(IF(AND(S218=0,R220>0),$C217-S219,IF(S218=0,0,$C217-S219)),0)) -> 0 | T220: =IF($C216=LataProjekcji,ROUND($C217-T219,0),ROUND(IF(AND(T218=0,S220>0),$C217-T219,IF(T218=0,0,$C217-T219)),0)) -> 0 | U220: =IF($C216=LataProjekcji,ROUND($C217-U219,0),ROUND(IF(AND(U218=0,T220>0),$C217-U219,IF(U218=0,0,$C217-U219)),0)) -> 0 | V220: =IF($C216=LataProjekcji,ROUND($C217-V219,0),ROUND(IF(AND(V218=0,U220>0),$C217-V219,IF(V218=0,0,$C217-V219)),0)) -> 0 | W220: =IF($C216=LataProjekcji,ROUND($C217-W219,0),ROUND(IF(AND(W218=0,V220>0),$C217-W219,IF(W218=0,0,$C217-W219)),0)) -> 0
B222: A&D5 | C222: =C215+1 -> 52
B223: rok zakupu | C223: =YEAR(OFFSET($D$136,C222,0)) -> 1900 | D223: =MONTH(OFFSET($D$136,C222,0)) -> 1 | E223: =12-$D223 -> 11
B224: wartość netto | C224: =IF(D224<0,0,ROUND(D224,0)) -> 0 | D224: =OFFSET($C$136,C222,0) -> 0 | E224: =IF(D224>3.5,ROUND(($C225/12)*$E223,0),$C224) -> 0
B225: amortyzacja roczna | C225: =IF(ISBLANK(OFFSET($D$136,C222,0)),0,IF(D224>3.5,ROUND(C224*am_grunty,0),IF(C224<0,0,C224))) -> 0 | J225: =ROUND(IF($C223=LataProjekcji,$E224,IF($C223=LataProjekcji,$C225,0)),0) -> 0 | K225: =ROUND(IF(OR(AND($C223=LataProjekcji,$E223>0),AND($C223=LataProjekcji,$E223=0,$D224<=3.5)),$E224,IF($C223<LataProjekcji,IF((SUM($J225:J225)+$C225)<$C224,$C225,$C224-SUM($J225:J225)),0)),0) -> 0 | L225: =ROUND(IF(OR(AND($C223=LataProjekcji,$E223>0),AND($C223=LataProjekcji,$E223=0,$D224<=3.5)),$E224,IF($C223<LataProjekcji,IF((SUM($J225:K225)+$C225)<$C224,$C225,$C224-SUM($J225:K225)),0)),0) -> 0 | M225: =ROUND(IF(OR(AND($C223=LataProjekcji,$E223>0),AND($C223=LataProjekcji,$E223=0,$D224<=3.5)),$E224,IF($C223<LataProjekcji,IF((SUM($J225:L225)+$C225)<$C224,$C225,$C224-SUM($J225:L225)),0)),0) -> 0 | N225: =ROUND(IF(OR(AND($C223=LataProjekcji,$E223>0),AND($C223=LataProjekcji,$E223=0,$D224<=3.5)),$E224,IF($C223<LataProjekcji,IF((SUM($J225:M225)+$C225)<$C224,$C225,$C224-SUM($J225:M225)),0)),0) -> 0 | O225: =ROUND(IF(OR(AND($C223=LataProjekcji,$E223>0),AND($C223=LataProjekcji,$E223=0,$D224<=3.5)),$E224,IF($C223<LataProjekcji,IF((SUM($J225:N225)+$C225)<$C224,$C225,$C224-SUM($J225:N225)),0)),0) -> 0 | P225: =ROUND(IF(OR(AND($C223=LataProjekcji,$E223>0),AND($C223=LataProjekcji,$E223=0,$D224<=3.5)),$E224,IF($C223<LataProjekcji,IF((SUM($J225:O225)+$C225)<$C224,$C225,$C224-SUM($J225:O225)),0)),0) -> 0 | Q225: =ROUND(IF(OR(AND($C223=LataProjekcji,$E223>0),AND($C223=LataProjekcji,$E223=0,$D224<=3.5)),$E224,IF($C223<LataProjekcji,IF((SUM($J225:P225)+$C225)<$C224,$C225,$C224-SUM($J225:P225)),0)),0) -> 0 | R225: =ROUND(IF(OR(AND($C223=LataProjekcji,$E223>0),AND($C223=LataProjekcji,$E223=0,$D224<=3.5)),$E224,IF($C223<LataProjekcji,IF((SUM($J225:Q225)+$C225)<$C224,$C225,$C224-SUM($J225:Q225)),0)),0) -> 0 | S225: =ROUND(IF(OR(AND($C223=LataProjekcji,$E223>0),AND($C223=LataProjekcji,$E223=0,$D224<=3.5)),$E224,IF($C223<LataProjekcji,IF((SUM($J225:R225)+$C225)<$C224,$C225,$C224-SUM($J225:R225)),0)),0) -> 0 | T225: =ROUND(IF(OR(AND($C223=LataProjekcji,$E223>0),AND($C223=LataProjekcji,$E223=0,$D224<=3.5)),$E224,IF($C223<LataProjekcji,IF((SUM($J225:S225)+$C225)<$C224,$C225,$C224-SUM($J225:S225)),0)),0) -> 0 | U225: =ROUND(IF(OR(AND($C223=LataProjekcji,$E223>0),AND($C223=LataProjekcji,$E223=0,$D224<=3.5)),$E224,IF($C223<LataProjekcji,IF((SUM($J225:T225)+$C225)<$C224,$C225,$C224-SUM($J225:T225)),0)),0) -> 0 | V225: =ROUND(IF(OR(AND($C223=LataProjekcji,$E223>0),AND($C223=LataProjekcji,$E223=0,$D224<=3.5)),$E224,IF($C223<LataProjekcji,IF((SUM($J225:U225)+$C225)<$C224,$C225,$C224-SUM($J225:U225)),0)),0) -> 0 | W225: =ROUND(IF(OR(AND($C223=LataProjekcji,$E223>0),AND($C223=LataProjekcji,$E223=0,$D224<=3.5)),$E224,IF($C223<LataProjekcji,IF((SUM($J225:V225)+$C225)<$C224,$C225,$C224-SUM($J225:V225)),0)),0) -> 0
B226: umorzenie | J226: =ROUND(J225,0) -> 0 | K226: =ROUND(J226+K225,0) -> 0 | L226: =ROUND(K226+L225,0) -> 0 | M226: =ROUND(L226+M225,0) -> 0 | N226: =ROUND(M226+N225,0) -> 0 | O226: =ROUND(N226+O225,0) -> 0 | P226: =ROUND(O226+P225,0) -> 0 | Q226: =ROUND(P226+Q225,0) -> 0 | R226: =ROUND(Q226+R225,0) -> 0 | S226: =ROUND(R226+S225,0) -> 0 | T226: =ROUND(S226+T225,0) -> 0 | U226: =ROUND(T226+U225,0) -> 0 | V226: =ROUND(U226+V225,0) -> 0 | W226: =ROUND(V226+W225,0) -> 0
B227: wartość netto | J227: =IF($C223=LataProjekcji,ROUND($C224-J226,0),ROUND(IF(J225=0,0,$C224-J226),0)) -> 0 | K227: =IF($C223=LataProjekcji,ROUND($C224-K226,0),ROUND(IF(AND(K225=0,J227>0),$C224-K226,IF(K225=0,0,$C224-K226)),0)) -> 0 | L227: =IF($C223=LataProjekcji,ROUND($C224-L226,0),ROUND(IF(AND(L225=0,K227>0),$C224-L226,IF(L225=0,0,$C224-L226)),0)) -> 0 | M227: =IF($C223=LataProjekcji,ROUND($C224-M226,0),ROUND(IF(AND(M225=0,L227>0),$C224-M226,IF(M225=0,0,$C224-M226)),0)) -> 0 | N227: =IF($C223=LataProjekcji,ROUND($C224-N226,0),ROUND(IF(AND(N225=0,M227>0),$C224-N226,IF(N225=0,0,$C224-N226)),0)) -> 0 | O227: =IF($C223=LataProjekcji,ROUND($C224-O226,0),ROUND(IF(AND(O225=0,N227>0),$C224-O226,IF(O225=0,0,$C224-O226)),0)) -> 0 | P227: =IF($C223=LataProjekcji,ROUND($C224-P226,0),ROUND(IF(AND(P225=0,O227>0),$C224-P226,IF(P225=0,0,$C224-P226)),0)) -> 0 | Q227: =IF($C223=LataProjekcji,ROUND($C224-Q226,0),ROUND(IF(AND(Q225=0,P227>0),$C224-Q226,IF(Q225=0,0,$C224-Q226)),0)) -> 0 | R227: =IF($C223=LataProjekcji,ROUND($C224-R226,0),ROUND(IF(AND(R225=0,Q227>0),$C224-R226,IF(R225=0,0,$C224-R226)),0)) -> 0 | S227: =IF($C223=LataProjekcji,ROUND($C224-S226,0),ROUND(IF(AND(S225=0,R227>0),$C224-S226,IF(S225=0,0,$C224-S226)),0)) -> 0 | T227: =IF($C223=LataProjekcji,ROUND($C224-T226,0),ROUND(IF(AND(T225=0,S227>0),$C224-T226,IF(T225=0,0,$C224-T226)),0)) -> 0 | U227: =IF($C223=LataProjekcji,ROUND($C224-U226,0),ROUND(IF(AND(U225=0,T227>0),$C224-U226,IF(U225=0,0,$C224-U226)),0)) -> 0 | V227: =IF($C223=LataProjekcji,ROUND($C224-V226,0),ROUND(IF(AND(V225=0,U227>0),$C224-V226,IF(V225=0,0,$C224-V226)),0)) -> 0 | W227: =IF($C223=LataProjekcji,ROUND($C224-W226,0),ROUND(IF(AND(W225=0,V227>0),$C224-W226,IF(W225=0,0,$C224-W226)),0)) -> 0
B230: budynki i budowle | C230: wartość netto | D230: rok i miesiąc zakupu | E230: dofinansowanie % | F230: dofinansowanie PLN | J230: =LataProjekcji -> Uzupełnij dane
F231: =IF(E231=0,0,ROUND(E231*C231,0)) -> 0 | I231: =IF(OR(AND(ISNUMBER(C231),ISBLANK(D231)),AND(ISNUMBER(D231),ISBLANK(C231))),"uzupełnij dane","") ->  | J231: =ROUND(IF(AND(YEAR($D231)=LataProjekcji,$C231>0),$C231,0),0) -> 0 | K231: 0 | L231: 0 | M231: 0 | N231: 0 | O231: 0 | P231: 0 | Q231: 0 | R231: 0 | S231: 0 | T231: 0 | U231: 0 | V231: 0 | W231: 0
F232: =IF(E232=0,0,ROUND(E232*C232,0)) -> 0 | J232: 0 | K232: 0 | L232: 0 | M232: 0 | N232: 0 | O232: 0 | P232: 0 | Q232: 0 | R232: 0 | S232: 0 | T232: 0 | U232: 0 | V232: 0 | W232: 0
F233: =IF(E233=0,0,ROUND(E233*C233,0)) -> 0 | J233: 0 | K233: 0 | L233: 0 | M233: 0 | N233: 0 | O233: 0 | P233: 0 | Q233: 0 | R233: 0 | S233: 0 | T233: 0 | U233: 0 | V233: 0 | W233: 0
F234: =IF(E234=0,0,ROUND(E234*C234,0)) -> 0 | J234: 0 | K234: 0 | L234: 0 | M234: 0 | N234: 0 | O234: 0 | P234: 0 | Q234: 0 | R234: 0 | S234: 0 | T234: 0 | U234: 0 | V234: 0 | W234: 0
F235: =IF(E235=0,0,ROUND(E235*C235,0)) -> 0 | J235: 0 | K235: 0 | L235: 0 | M235: 0 | N235: 0 | O235: 0 | P235: 0 | Q235: 0 | R235: 0 | S235: 0 | T235: 0 | U235: 0 | V235: 0 | W235: 0
B236: =B292 -> zrealizowane środki trwałe w budowie | C236: 0 | E236: 0 | F236: 0 | J236: =J292 -> 0 | K236: 0 | L236: 0 | M236: 0 | N236: 0 | O236: 0 | P236: 0 | Q236: 0 | R236: 0 | S236: 0 | T236: 0 | U236: 0 | V236: 0 | W236: 0
B237: zrealizowane środki trwałe w budowie | C237: 0 | E237: 0 | F237: 0 | J237: =J293 -> 0 | K237: 0 | L237: 0 | M237: 0 | N237: 0 | O237: 0 | P237: 0 | Q237: 0 | R237: 0 | S237: 0 | T237: 0 | U237: 0 | V237: 0 | W237: 0
B238: zrealizowane środki trwałe w budowie | C238: 0 | E238: 0 | F238: 0 | J238: =J294 -> 0 | K238: 0 | L238: 0 | M238: 0 | N238: 0 | O238: 0 | P238: 0 | Q238: 0 | R238: 0 | S238: 0 | T238: 0 | U238: 0 | V238: 0 | W238: 0
B239: zrealizowane środki trwałe w budowie | C239: 0 | E239: 0 | F239: 0 | J239: =J295 -> 0 | K239: 0 | L239: 0 | M239: 0 | N239: 0 | O239: 0 | P239: 0 | Q239: 0 | R239: 0 | S239: 0 | T239: 0 | U239: 0 | V239: 0 | W239: 0
B240: zrealizowane środki trwałe w budowie | C240: 0 | E240: 0 | F240: 0 | J240: =J296 -> 0 | K240: 0 | L240: 0 | M240: 0 | N240: 0 | O240: 0 | P240: 0 | Q240: 0 | R240: 0 | S240: 0 | T240: 0 | U240: 0 | V240: 0 | W240: 0
B241: Razem | C241: =SUM(C231:C240) -> 0 | F241: =SUM(F231:F240) -> 0 | J241: =SUM(J231:J240) -> 0 | K241: 0 | L241: 0 | M241: 0 | N241: 0 | O241: 0 | P241: 0 | Q241: 0 | R241: 0 | S241: 0 | T241: 0 | U241: 0 | V241: 0 | W241: 0
B242: - amortyzacja | J242: =J258+J265+J272+J279+J286+J298 -> 0 | K242: 0 | L242: 0 | M242: 0 | N242: 0 | O242: 0 | P242: 0 | Q242: 0 | R242: 0 | S242: 0 | T242: 0 | U242: 0 | V242: 0 | W242: 0
B243: - umorzenie | J243: =J259+J266+J273+J280+J287+J299 -> 0 | K243: 0 | L243: 0 | M243: 0 | N243: 0 | O243: 0 | P243: 0 | Q243: 0 | R243: 0 | S243: 0 | T243: 0 | U243: 0 | V243: 0 | W243: 0
B244: - wartość księgowa netto | J244: =J260+J267+J274+J281+J288+J300 -> 0 | K244: 0 | L244: 0 | M244: 0 | N244: 0 | O244: 0 | P244: 0 | Q244: 0 | R244: 0 | S244: 0 | T244: 0 | U244: 0 | V244: 0 | W244: 0
B246: środki trwałe w budowie (prace budowlane > 1 rok) | C246: rok rozpoczęcia prac budowlanych | D246: rok i miesiąc zakończenia prac budowlanych | E246: dofinansowanie % | F246: dofinansowanie PLN | I246: razem prace budowlane | J246: =LataProjekcji -> Uzupełnij dane
... 416 more rows

Sheet Rozliczenie dotacji
B2: =IF(ISBLANK(Firma),"Wstaw nazwę firmy",Firma) -> Wstaw nazwę firmy
J11: =Założenia!J25 -> 0 | K11: =Założenia!K25 -> 1 | L11: =Założenia!L25 -> 2 | M11: =Założenia!M25 -> 3 | N11: =Założenia!N25 -> 4 | O11: =Założenia!O25 -> 5 | P11: =Założenia!P25 -> 6 | Q11: =Założenia!Q25 -> 7 | R11: =Założenia!R25 -> 8 | S11: =Założenia!S25 -> 9 | T11: =Założenia!T25 -> 10 | U11: =Założenia!U25 -> 11 | V11: =Założenia!V25 -> 12 | W11: =Założenia!W25 -> 13
B12: Działalność dotychczasowa (bez Projektu) | I12: =Założenia!I26 ->  | J12: =Założenia!J26 -> Uzupełnij dane | K12: =Założenia!K26 ->  | L12: =Założenia!L26 ->  | M12: =Założenia!M26 ->  | N12: =Założenia!N26 ->  | O12: =Założenia!O26 ->  | P12: =Założenia!P26 ->  | Q12: =Założenia!Q26 ->  | R12: =Założenia!R26 ->  | S12: =Założenia!S26 ->  | T12: =Założenia!T26 ->  | U12: =Założenia!U26 ->  | V12: =Założenia!V26 ->  | W12: =Założenia!W26 -> 
B14: Dotacje otrzymane w latach poprzednich
B20: Razem (do Pozostałych przychodów operacyjnych) | J20: =ROUND(SUM(J15:J19),0) -> 0 | K20: =ROUND(SUM(K15:K19),0) -> 0 | L20: 0 | M20: 0 | N20: 0 | O20: 0 | P20: 0 | Q20: 0 | R20: 0 | S20: 0 | T20: 0 | U20: 0 | V20: 0 | W20: 0
B22: Rozliczenia międzyokresowe bierne (pasywa) | I22: =IF(ISBLANK(DaneBiezace),ROUND('Sprawozdania finansowe'!E141,0),ROUND('Sprawozdania finansowe'!F141,0)) -> 0 | J22: =ROUND(I22-J20,0) -> 0 | K22: =ROUND(J22-K20,0) -> 0 | L22: 0 | M22: 0 | N22: 0 | O22: 0 | P22: 0 | Q22: 0 | R22: 0 | S22: 0 | T22: 0 | U22: 0 | V22: 0 | W22: 0
B25: Projekt | J25: =J12 -> Uzupełnij dane
B27: koszty zakończonych prac rozwojowych | C27: wartość netto | D27: rok i miesiąc zakończenia | E27: dofinansowanie % | F27: dofinansowanie PLN
B28: =IF(ISBLANK('Środki trwałe'!B89),"",'Środki trwałe'!B89) ->  | C28: =IF(ISBLANK('Środki trwałe'!C89),"",'Środki trwałe'!C89) -> 0 | D28: =IF(ISBLANK('Środki trwałe'!D89),"",'Środki trwałe'!D89) ->  | E28: =IFERROR(ROUND(F28/C28,3),0) -> 0 | F28: =MAX('Koszty operacyjne'!J798:W798) -> 0 | J28: =IFERROR(ROUND(IF(AND(YEAR($D28)=LataProjekcji,$F28>0),$F28,0),0),0) -> 0 | K28: 0 | L28: 0 | M28: 0 | N28: 0 | O28: 0 | P28: 0 | Q28: 0 | R28: 0 | S28: 0 | T28: 0 | U28: 0 | V28: 0 | W28: 0
B29: =IF(ISBLANK('Środki trwałe'!B90),"",'Środki trwałe'!B90) ->  | C29: =IF(ISBLANK('Środki trwałe'!C90),"",'Środki trwałe'!C90) ->  | D29: =IF(ISBLANK('Środki trwałe'!D90),"",'Środki trwałe'!D90) ->  | E29: =IF(ISBLANK('Środki trwałe'!E90),"",'Środki trwałe'!E90) ->  | F29: =IFERROR(IF(E29=0,0,ROUND(E29*C29,0)),0) -> 0 | J29: 0 | K29: 0 | L29: 0 | M29: 0 | N29: 0 | O29: 0 | P29: 0 | Q29: 0 | R29: 0 | S29: 0 | T29: 0 | U29: 0 | V29: 0 | W29: 0
B30: =IF(ISBLANK('Środki trwałe'!B91),"",'Środki trwałe'!B91) ->  | C30: =IF(ISBLANK('Środki trwałe'!C91),"",'Środki trwałe'!C91) ->  | D30: =IF(ISBLANK('Środki trwałe'!D91),"",'Środki trwałe'!D91) ->  | E30: =IF(ISBLANK('Środki trwałe'!E91),"",'Środki trwałe'!E91) ->  | F30: =IFERROR(IF(E30=0,0,ROUND(E30*C30,0)),0) -> 0 | J30: 0 | K30: 0 | L30: 0 | M30: 0 | N30: 0 | O30: 0 | P30: 0 | Q30: 0 | R30: 0 | S30: 0 | T30: 0 | U30: 0 | V30: 0 | W30: 0
B31: =IF(ISBLANK('Środki trwałe'!B92),"",'Środki trwałe'!B92) ->  | C31: =IF(ISBLANK('Środki trwałe'!C92),"",'Środki trwałe'!C92) ->  | D31: =IF(ISBLANK('Środki trwałe'!D92),"",'Środki trwałe'!D92) ->  | E31: =IF(ISBLANK('Środki trwałe'!E92),"",'Środki trwałe'!E92) ->  | F31: =IFERROR(IF(E31=0,0,ROUND(E31*C31,0)),0) -> 0 | J31: 0 | K31: 0 | L31: 0 | M31: 0 | N31: 0 | O31: 0 | P31: 0 | Q31: 0 | R31: 0 | S31: 0 | T31: 0 | U31: 0 | V31: 0 | W31: 0
B32: =IF(ISBLANK('Środki trwałe'!B93),"",'Środki trwałe'!B93) ->  | C32: =IF(ISBLANK('Środki trwałe'!C93),"",'Środki trwałe'!C93) ->  | D32: =IF(ISBLANK('Środki trwałe'!D93),"",'Środki trwałe'!D93) ->  | E32: =IF(ISBLANK('Środki trwałe'!E93),"",'Środki trwałe'!E93) ->  | F32: =IFERROR(IF(E32=0,0,ROUND(E32*C32,0)),0) -> 0 | J32: 0 | K32: 0 | L32: 0 | M32: 0 | N32: 0 | O32: 0 | P32: 0 | Q32: 0 | R32: 0 | S32: 0 | T32: 0 | U32: 0 | V32: 0 | W32: 0
B33: Razem | C33: =SUM(C28:C32) -> 0 | F33: =SUM(F28:F32) -> 0 | J33: =ROUND(SUM(J28:J32),0) -> 0 | K33: =ROUND(SUM(K28:K32),0) -> 0 | L33: 0 | M33: 0 | N33: 0 | O33: 0 | P33: 0 | Q33: 0 | R33: 0 | S33: 0 | T33: 0 | U33: 0 | V33: 0 | W33: 0
B34: - dotacja w okresie (pozostałe przychody) | J34: =ROUND(J41+J48+J55+J62+J69,0) -> 0 | K34: =ROUND(K41+K48+K55+K62+K69,0) -> 0 | L34: 0 | M34: 0 | N34: 0 | O34: 0 | P34: 0 | Q34: 0 | R34: 0 | S34: 0 | T34: 0 | U34: 0 | V34: 0 | W34: 0
B35: - dotacja narastająco | J35: =ROUND(J42+J49+J56+J63+J70,0) -> 0 | K35: =ROUND(K42+K49+K56+K63+K70,0) -> 0 | L35: 0 | M35: 0 | N35: 0 | O35: 0 | P35: 0 | Q35: 0 | R35: 0 | S35: 0 | T35: 0 | U35: 0 | V35: 0 | W35: 0
B36: - rozliczenia międzyokresowe bierne | J36: =ROUND(J43+J50+J57+J64+J71,0) -> 0 | K36: =ROUND(K43+K50+K57+K64+K71,0) -> 0 | L36: 0 | M36: 0 | N36: 0 | O36: 0 | P36: 0 | Q36: =ROUND(Q43+Q50+Q57+Q64+Q71,0) -> 0 | R36: 0 | S36: 0 | T36: 0 | U36: 0 | V36: 0 | W36: 0
B38: Koszty zakończonych prac rozwojowych
B39: rok zakupu | C39: =IFERROR(YEAR(D28),0) -> 0 | D39: =IFERROR(MONTH(D28),0) -> 0 | E39: =12-$D39 -> 12
B40: wartość netto | C40: =IF(F28<0,0,F28) -> 0 | D40: =C28 -> 0 | E40: =IF($C28>3.5,ROUND(($C41/12)*$E39,0),$C40) -> 0
B41: amortyzacja roczna | C41: =IF(ISBLANK(D28),0,IF(C28>3.5,ROUND(C40*am_prace_rozwojowe,0),IF(C40<0,0,C40))) -> 0 | J41: =IFERROR(ROUND(IF(($C39+1)=J$25,$C41,0),0),0) -> 0 | K41: =ROUND(IF(OR(AND($C39=LataProjekcji,$E39>0),AND($C39=LataProjekcji,$E39=0,$D40<=3.5)),$E40,IF($C39<LataProjekcji,IF((SUM($J41:J41)+$C41)<$C40,$C41,$C40-SUM($J41:J41)),0)),0) -> 0 | L41: =ROUND(IF(OR(AND($C39=LataProjekcji,$E39>0),AND($C39=LataProjekcji,$E39=0,$D40<=3.5)),$E40,IF($C39<LataProjekcji,IF((SUM($J41:K41)+$C41)<$C40,$C41,$C40-SUM($J41:K41)),0)),0) -> 0 | M41: =ROUND(IF(OR(AND($C39=LataProjekcji,$E39>0),AND($C39=LataProjekcji,$E39=0,$D40<=3.5)),$E40,IF($C39<LataProjekcji,IF((SUM($J41:L41)+$C41)<$C40,$C41,$C40-SUM($J41:L41)),0)),0) -> 0 | N41: =ROUND(IF(OR(AND($C39=LataProjekcji,$E39>0),AND($C39=LataProjekcji,$E39=0,$D40<=3.5)),$E40,IF($C39<LataProjekcji,IF((SUM($J41:M41)+$C41)<$C40,$C41,$C40-SUM($J41:M41)),0)),0) -> 0 | O41: =ROUND(IF(OR(AND($C39=LataProjekcji,$E39>0),AND($C39=LataProjekcji,$E39=0,$D40<=3.5)),$E40,IF($C39<LataProjekcji,IF((SUM($J41:N41)+$C41)<$C40,$C41,$C40-SUM($J41:N41)),0)),0) -> 0 | P41: =ROUND(IF(OR(AND($C39=LataProjekcji,$E39>0),AND($C39=LataProjekcji,$E39=0,$D40<=3.5)),$E40,IF($C39<LataProjekcji,IF((SUM($J41:O41)+$C41)<$C40,$C41,$C40-SUM($J41:O41)),0)),0) -> 0 | Q41: =ROUND(IF(OR(AND($C39=LataProjekcji,$E39>0),AND($C39=LataProjekcji,$E39=0,$D40<=3.5)),$E40,IF($C39<LataProjekcji,IF((SUM($J41:P41)+$C41)<$C40,$C41,$C40-SUM($J41:P41)),0)),0) -> 0 | R41: =ROUND(IF(OR(AND($C39=LataProjekcji,$E39>0),AND($C39=LataProjekcji,$E39=0,$D40<=3.5)),$E40,IF($C39<LataProjekcji,IF((SUM($J41:Q41)+$C41)<$C40,$C41,$C40-SUM($J41:Q41)),0)),0) -> 0 | S41: =ROUND(IF(OR(AND($C39=LataProjekcji,$E39>0),AND($C39=LataProjekcji,$E39=0,$D40<=3.5)),$E40,IF($C39<LataProjekcji,IF((SUM($J41:R41)+$C41)<$C40,$C41,$C40-SUM($J41:R41)),0)),0) -> 0 | T41: =ROUND(IF(OR(AND($C39=LataProjekcji,$E39>0),AND($C39=LataProjekcji,$E39=0,$D40<=3.5)),$E40,IF($C39<LataProjekcji,IF((SUM($J41:S41)+$C41)<$C40,$C41,$C40-SUM($J41:S41)),0)),0) -> 0 | U41: =ROUND(IF(OR(AND($C39=LataProjekcji,$E39>0),AND($C39=LataProjekcji,$E39=0,$D40<=3.5)),$E40,IF($C39<LataProjekcji,IF((SUM($J41:T41)+$C41)<$C40,$C41,$C40-SUM($J41:T41)),0)),0) -> 0 | V41: =ROUND(IF(OR(AND($C39=LataProjekcji,$E39>0),AND($C39=LataProjekcji,$E39=0,$D40<=3.5)),$E40,IF($C39<LataProjekcji,IF((SUM($J41:U41)+$C41)<$C40,$C41,$C40-SUM($J41:U41)),0)),0) -> 0 | W41: =ROUND(IF(OR(AND($C39=LataProjekcji,$E39>0),AND($C39=LataProjekcji,$E39=0,$D40<=3.5)),$E40,IF($C39<LataProjekcji,IF((SUM($J41:V41)+$C41)<$C40,$C41,$C40-SUM($J41:V41)),0)),0) -> 0
B42: umorzenie | J42: =ROUND(J41,0) -> 0 | K42: =ROUND(J42+K41,0) -> 0 | L42: =ROUND(K42+L41,0) -> 0 | M42: 0 | N42: 0 | O42: 0 | P42: 0 | Q42: 0 | R42: 0 | S42: 0 | T42: 0 | U42: 0 | V42: 0 | W42: 0
B43: wartość netto | J43: =IF($C39=J$25,$C40,ROUND(IF(J41=0,0,$C40-J42),0)) -> 0 | K43: =IF($C39=K$25,$C40,ROUND(IF(K41=0,0,$C40-K42),0)) -> 0 | L43: 0 | M43: 0 | N43: 0 | O43: 0 | P43: 0 | Q43: 0 | R43: 0 | S43: 0 | T43: 0 | U43: 0 | V43: 0 | W43: 0
B45: Koszty zakończonych prac rozwojowych
B46: rok zakupu | C46: =D29 -> 
B47: wartość netto | C47: =F29 -> 0
B48: amortyzacja roczna | C48: =ROUND(C47*am_prace_rozwojowe,0) -> 0 | J48: =IFERROR(ROUND(IF(($C46+1)=J$25,$C48,0),0),0) -> 0 | K48: =ROUND(IF(OR(AND($C46=LataProjekcji,$E46>0),AND($C46=LataProjekcji,$E46=0,$D47<=3.5)),$E47,IF($C46<LataProjekcji,IF((SUM($J48:J48)+$C48)<$C47,$C48,$C47-SUM($J48:J48)),0)),0) -> 0 | L48: =ROUND(IF(OR(AND($C46=LataProjekcji,$E46>0),AND($C46=LataProjekcji,$E46=0,$D47<=3.5)),$E47,IF($C46<LataProjekcji,IF((SUM($J48:K48)+$C48)<$C47,$C48,$C47-SUM($J48:K48)),0)),0) -> 0 | M48: =ROUND(IF(OR(AND($C46=LataProjekcji,$E46>0),AND($C46=LataProjekcji,$E46=0,$D47<=3.5)),$E47,IF($C46<LataProjekcji,IF((SUM($J48:L48)+$C48)<$C47,$C48,$C47-SUM($J48:L48)),0)),0) -> 0 | N48: =ROUND(IF(OR(AND($C46=LataProjekcji,$E46>0),AND($C46=LataProjekcji,$E46=0,$D47<=3.5)),$E47,IF($C46<LataProjekcji,IF((SUM($J48:M48)+$C48)<$C47,$C48,$C47-SUM($J48:M48)),0)),0) -> 0 | O48: =ROUND(IF(OR(AND($C46=LataProjekcji,$E46>0),AND($C46=LataProjekcji,$E46=0,$D47<=3.5)),$E47,IF($C46<LataProjekcji,IF((SUM($J48:N48)+$C48)<$C47,$C48,$C47-SUM($J48:N48)),0)),0) -> 0 | P48: =ROUND(IF(OR(AND($C46=LataProjekcji,$E46>0),AND($C46=LataProjekcji,$E46=0,$D47<=3.5)),$E47,IF($C46<LataProjekcji,IF((SUM($J48:O48)+$C48)<$C47,$C48,$C47-SUM($J48:O48)),0)),0) -> 0 | Q48: =ROUND(IF(OR(AND($C46=LataProjekcji,$E46>0),AND($C46=LataProjekcji,$E46=0,$D47<=3.5)),$E47,IF($C46<LataProjekcji,IF((SUM($J48:P48)+$C48)<$C47,$C48,$C47-SUM($J48:P48)),0)),0) -> 0 | R48: =ROUND(IF(OR(AND($C46=LataProjekcji,$E46>0),AND($C46=LataProjekcji,$E46=0,$D47<=3.5)),$E47,IF($C46<LataProjekcji,IF((SUM($J48:Q48)+$C48)<$C47,$C48,$C47-SUM($J48:Q48)),0)),0) -> 0 | S48: =ROUND(IF(OR(AND($C46=LataProjekcji,$E46>0),AND($C46=LataProjekcji,$E46=0,$D47<=3.5)),$E47,IF($C46<LataProjekcji,IF((SUM($J48:R48)+$C48)<$C47,$C48,$C47-SUM($J48:R48)),0)),0) -> 0 | T48: =ROUND(IF(OR(AND($C46=LataProjekcji,$E46>0),AND($C46=LataProjekcji,$E46=0,$D47<=3.5)),$E47,IF($C46<LataProjekcji,IF((SUM($J48:S48)+$C48)<$C47,$C48,$C47-SUM($J48:S48)),0)),0) -> 0 | U48: =ROUND(IF(OR(AND($C46=LataProjekcji,$E46>0),AND($C46=LataProjekcji,$E46=0,$D47<=3.5)),$E47,IF($C46<LataProjekcji,IF((SUM($J48:T48)+$C48)<$C47,$C48,$C47-SUM($J48:T48)),0)),0) -> 0 | V48: =ROUND(IF(OR(AND($C46=LataProjekcji,$E46>0),AND($C46=LataProjekcji,$E46=0,$D47<=3.5)),$E47,IF($C46<LataProjekcji,IF((SUM($J48:U48)+$C48)<$C47,$C48,$C47-SUM($J48:U48)),0)),0) -> 0 | W48: =ROUND(IF(OR(AND($C46=LataProjekcji,$E46>0),AND($C46=LataProjekcji,$E46=0,$D47<=3.5)),$E47,IF($C46<LataProjekcji,IF((SUM($J48:V48)+$C48)<$C47,$C48,$C47-SUM($J48:V48)),0)),0) -> 0
B49: umorzenie | J49: =ROUND(J48,0) -> 0 | K49: =ROUND(J49+K48,0) -> 0 | L49: 0 | M49: 0 | N49: 0 | O49: 0 | P49: 0 | Q49: 0 | R49: 0 | S49: 0 | T49: 0 | U49: 0 | V49: 0 | W49: 0
B50: wartość netto | J50: =IF($C46=J$25,$C47,ROUND(IF(J48=0,0,$C47-J49),0)) -> 0 | K50: 0 | L50: 0 | M50: 0 | N50: 0 | O50: 0 | P50: 0 | Q50: 0 | R50: 0 | S50: 0 | T50: 0 | U50: 0 | V50: 0 | W50: 0
B52: Koszty zakończonych prac rozwojowych
B53: rok zakupu | C53: =D30 -> 
B54: wartość netto | C54: =F30 -> 0
B55: amortyzacja roczna | C55: =ROUND(C54*am_prace_rozwojowe,0) -> 0 | J55: =IFERROR(ROUND(IF(($C53+1)=J$25,$C55,0),0),0) -> 0 | K55: =ROUND(IF(OR(AND($C53=LataProjekcji,$E53>0),AND($C53=LataProjekcji,$E53=0,$D54<=3.5)),$E54,IF($C53<LataProjekcji,IF((SUM($J55:J55)+$C55)<$C54,$C55,$C54-SUM($J55:J55)),0)),0) -> 0 | L55: =ROUND(IF(OR(AND($C53=LataProjekcji,$E53>0),AND($C53=LataProjekcji,$E53=0,$D54<=3.5)),$E54,IF($C53<LataProjekcji,IF((SUM($J55:K55)+$C55)<$C54,$C55,$C54-SUM($J55:K55)),0)),0) -> 0 | M55: =ROUND(IF(OR(AND($C53=LataProjekcji,$E53>0),AND($C53=LataProjekcji,$E53=0,$D54<=3.5)),$E54,IF($C53<LataProjekcji,IF((SUM($J55:L55)+$C55)<$C54,$C55,$C54-SUM($J55:L55)),0)),0) -> 0 | N55: =ROUND(IF(OR(AND($C53=LataProjekcji,$E53>0),AND($C53=LataProjekcji,$E53=0,$D54<=3.5)),$E54,IF($C53<LataProjekcji,IF((SUM($J55:M55)+$C55)<$C54,$C55,$C54-SUM($J55:M55)),0)),0) -> 0 | O55: =ROUND(IF(OR(AND($C53=LataProjekcji,$E53>0),AND($C53=LataProjekcji,$E53=0,$D54<=3.5)),$E54,IF($C53<LataProjekcji,IF((SUM($J55:N55)+$C55)<$C54,$C55,$C54-SUM($J55:N55)),0)),0) -> 0 | P55: =ROUND(IF(OR(AND($C53=LataProjekcji,$E53>0),AND($C53=LataProjekcji,$E53=0,$D54<=3.5)),$E54,IF($C53<LataProjekcji,IF((SUM($J55:O55)+$C55)<$C54,$C55,$C54-SUM($J55:O55)),0)),0) -> 0 | Q55: =ROUND(IF(OR(AND($C53=LataProjekcji,$E53>0),AND($C53=LataProjekcji,$E53=0,$D54<=3.5)),$E54,IF($C53<LataProjekcji,IF((SUM($J55:P55)+$C55)<$C54,$C55,$C54-SUM($J55:P55)),0)),0) -> 0 | R55: =ROUND(IF(OR(AND($C53=LataProjekcji,$E53>0),AND($C53=LataProjekcji,$E53=0,$D54<=3.5)),$E54,IF($C53<LataProjekcji,IF((SUM($J55:Q55)+$C55)<$C54,$C55,$C54-SUM($J55:Q55)),0)),0) -> 0 | S55: =ROUND(IF(OR(AND($C53=LataProjekcji,$E53>0),AND($C53=LataProjekcji,$E53=0,$D54<=3.5)),$E54,IF($C53<LataProjekcji,IF((SUM($J55:R55)+$C55)<$C54,$C55,$C54-SUM($J55:R55)),0)),0) -> 0 | T55: =ROUND(IF(OR(AND($C53=LataProjekcji,$E53>0),AND($C53=LataProjekcji,$E53=0,$D54<=3.5)),$E54,IF($C53<LataProjekcji,IF((SUM($J55:S55)+$C55)<$C54,$C55,$C54-SUM($J55:S55)),0)),0) -> 0 | U55: =ROUND(IF(OR(AND($C53=LataProjekcji,$E53>0),AND($C53=LataProjekcji,$E53=0,$D54<=3.5)),$E54,IF($C53<LataProjekcji,IF((SUM($J55:T55)+$C55)<$C54,$C55,$C54-SUM($J55:T55)),0)),0) -> 0 | V55: =ROUND(IF(OR(AND($C53=LataProjekcji,$E53>0),AND($C53=LataProjekcji,$E53=0,$D54<=3.5)),$E54,IF($C53<LataProjekcji,IF((SUM($J55:U55)+$C55)<$C54,$C55,$C54-SUM($J55:U55)),0)),0) -> 0 | W55: =ROUND(IF(OR(AND($C53=LataProjekcji,$E53>0),AND($C53=LataProjekcji,$E53=0,$D54<=3.5)),$E54,IF($C53<LataProjekcji,IF((SUM($J55:V55)+$C55)<$C54,$C55,$C54-SUM($J55:V55)),0)),0) -> 0
B56: umorzenie | J56: =ROUND(J55,0) -> 0 | K56: =ROUND(J56+K55,0) -> 0 | L56: 0 | M56: 0 | N56: 0 | O56: 0 | P56: 0 | Q56: 0 | R56: 0 | S56: 0 | T56: 0 | U56: 0 | V56: 0 | W56: 0
B57: wartość netto | J57: =IF($C53=J$25,$C54,ROUND(IF(J55=0,0,$C54-J56),0)) -> 0 | K57: 0 | L57: 0 | M57: 0 | N57: 0 | O57: 0 | P57: 0 | Q57: 0 | R57: 0 | S57: 0 | T57: 0 | U57: 0 | V57: 0 | W57: 0
B59: Koszty zakończonych prac rozwojowych
B60: rok zakupu | C60: =D31 -> 
B61: wartość netto | C61: =F31 -> 0
B62: amortyzacja roczna | C62: =ROUND(C61*am_prace_rozwojowe,0) -> 0 | J62: =IFERROR(ROUND(IF(($C60+1)=J$25,$C62,0),0),0) -> 0 | K62: =ROUND(IF(OR(AND($C60=LataProjekcji,$E60>0),AND($C60=LataProjekcji,$E60=0,$D61<=3.5)),$E61,IF($C60<LataProjekcji,IF((SUM($J62:J62)+$C62)<$C61,$C62,$C61-SUM($J62:J62)),0)),0) -> 0 | L62: =ROUND(IF(OR(AND($C60=LataProjekcji,$E60>0),AND($C60=LataProjekcji,$E60=0,$D61<=3.5)),$E61,IF($C60<LataProjekcji,IF((SUM($J62:K62)+$C62)<$C61,$C62,$C61-SUM($J62:K62)),0)),0) -> 0 | M62: =ROUND(IF(OR(AND($C60=LataProjekcji,$E60>0),AND($C60=LataProjekcji,$E60=0,$D61<=3.5)),$E61,IF($C60<LataProjekcji,IF((SUM($J62:L62)+$C62)<$C61,$C62,$C61-SUM($J62:L62)),0)),0) -> 0 | N62: =ROUND(IF(OR(AND($C60=LataProjekcji,$E60>0),AND($C60=LataProjekcji,$E60=0,$D61<=3.5)),$E61,IF($C60<LataProjekcji,IF((SUM($J62:M62)+$C62)<$C61,$C62,$C61-SUM($J62:M62)),0)),0) -> 0 | O62: =ROUND(IF(OR(AND($C60=LataProjekcji,$E60>0),AND($C60=LataProjekcji,$E60=0,$D61<=3.5)),$E61,IF($C60<LataProjekcji,IF((SUM($J62:N62)+$C62)<$C61,$C62,$C61-SUM($J62:N62)),0)),0) -> 0 | P62: =ROUND(IF(OR(AND($C60=LataProjekcji,$E60>0),AND($C60=LataProjekcji,$E60=0,$D61<=3.5)),$E61,IF($C60<LataProjekcji,IF((SUM($J62:O62)+$C62)<$C61,$C62,$C61-SUM($J62:O62)),0)),0) -> 0 | Q62: =ROUND(IF(OR(AND($C60=LataProjekcji,$E60>0),AND($C60=LataProjekcji,$E60=0,$D61<=3.5)),$E61,IF($C60<LataProjekcji,IF((SUM($J62:P62)+$C62)<$C61,$C62,$C61-SUM($J62:P62)),0)),0) -> 0 | R62: =ROUND(IF(OR(AND($C60=LataProjekcji,$E60>0),AND($C60=LataProjekcji,$E60=0,$D61<=3.5)),$E61,IF($C60<LataProjekcji,IF((SUM($J62:Q62)+$C62)<$C61,$C62,$C61-SUM($J62:Q62)),0)),0) -> 0 | S62: =ROUND(IF(OR(AND($C60=LataProjekcji,$E60>0),AND($C60=LataProjekcji,$E60=0,$D61<=3.5)),$E61,IF($C60<LataProjekcji,IF((SUM($J62:R62)+$C62)<$C61,$C62,$C61-SUM($J62:R62)),0)),0) -> 0 | T62: =ROUND(IF(OR(AND($C60=LataProjekcji,$E60>0),AND($C60=LataProjekcji,$E60=0,$D61<=3.5)),$E61,IF($C60<LataProjekcji,IF((SUM($J62:S62)+$C62)<$C61,$C62,$C61-SUM($J62:S62)),0)),0) -> 0 | U62: =ROUND(IF(OR(AND($C60=LataProjekcji,$E60>0),AND($C60=LataProjekcji,$E60=0,$D61<=3.5)),$E61,IF($C60<LataProjekcji,IF((SUM($J62:T62)+$C62)<$C61,$C62,$C61-SUM($J62:T62)),0)),0) -> 0 | V62: =ROUND(IF(OR(AND($C60=LataProjekcji,$E60>0),AND($C60=LataProjekcji,$E60=0,$D61<=3.5)),$E61,IF($C60<LataProjekcji,IF((SUM($J62:U62)+$C62)<$C61,$C62,$C61-SUM($J62:U62)),0)),0) -> 0 | W62: =ROUND(IF(OR(AND($C60=LataProjekcji,$E60>0),AND($C60=LataProjekcji,$E60=0,$D61<=3.5)),$E61,IF($C60<LataProjekcji,IF((SUM($J62:V62)+$C62)<$C61,$C62,$C61-SUM($J62:V62)),0)),0) -> 0
B63: umorzenie | J63: =ROUND(J62,0) -> 0 | K63: =ROUND(J63+K62,0) -> 0 | L63: 0 | M63: 0 | N63: 0 | O63: 0 | P63: 0 | Q63: 0 | R63: 0 | S63: 0 | T63: 0 | U63: 0 | V63: 0 | W63: 0
B64: wartość netto | J64: =IF($C60=J$25,$C61,ROUND(IF(J62=0,0,$C61-J63),0)) -> 0 | K64: 0 | L64: 0 | M64: 0 | N64: 0 | O64: 0 | P64: 0 | Q64: 0 | R64: 0 | S64: 0 | T64: 0 | U64: 0 | V64: 0 | W64: 0
B66: Koszty zakończonych prac rozwojowych
B67: rok zakupu | C67: =D32 -> 
B68: wartość netto | C68: =F32 -> 0
B69: amortyzacja roczna | C69: =ROUND(C68*am_prace_rozwojowe,0) -> 0 | J69: =IFERROR(ROUND(IF(($C67+1)=J$25,$C69,0),0),0) -> 0 | K69: =ROUND(IF(OR(AND($C67=LataProjekcji,$E67>0),AND($C67=LataProjekcji,$E67=0,$D68<=3.5)),$E68,IF($C67<LataProjekcji,IF((SUM($J69:J69)+$C69)<$C68,$C69,$C68-SUM($J69:J69)),0)),0) -> 0 | L69: =ROUND(IF(OR(AND($C67=LataProjekcji,$E67>0),AND($C67=LataProjekcji,$E67=0,$D68<=3.5)),$E68,IF($C67<LataProjekcji,IF((SUM($J69:K69)+$C69)<$C68,$C69,$C68-SUM($J69:K69)),0)),0) -> 0 | M69: =ROUND(IF(OR(AND($C67=LataProjekcji,$E67>0),AND($C67=LataProjekcji,$E67=0,$D68<=3.5)),$E68,IF($C67<LataProjekcji,IF((SUM($J69:L69)+$C69)<$C68,$C69,$C68-SUM($J69:L69)),0)),0) -> 0 | N69: =ROUND(IF(OR(AND($C67=LataProjekcji,$E67>0),AND($C67=LataProjekcji,$E67=0,$D68<=3.5)),$E68,IF($C67<LataProjekcji,IF((SUM($J69:M69)+$C69)<$C68,$C69,$C68-SUM($J69:M69)),0)),0) -> 0 | O69: =ROUND(IF(OR(AND($C67=LataProjekcji,$E67>0),AND($C67=LataProjekcji,$E67=0,$D68<=3.5)),$E68,IF($C67<LataProjekcji,IF((SUM($J69:N69)+$C69)<$C68,$C69,$C68-SUM($J69:N69)),0)),0) -> 0 | P69: =ROUND(IF(OR(AND($C67=LataProjekcji,$E67>0),AND($C67=LataProjekcji,$E67=0,$D68<=3.5)),$E68,IF($C67<LataProjekcji,IF((SUM($J69:O69)+$C69)<$C68,$C69,$C68-SUM($J69:O69)),0)),0) -> 0 | Q69: =ROUND(IF(OR(AND($C67=LataProjekcji,$E67>0),AND($C67=LataProjekcji,$E67=0,$D68<=3.5)),$E68,IF($C67<LataProjekcji,IF((SUM($J69:P69)+$C69)<$C68,$C69,$C68-SUM($J69:P69)),0)),0) -> 0 | R69: =ROUND(IF(OR(AND($C67=LataProjekcji,$E67>0),AND($C67=LataProjekcji,$E67=0,$D68<=3.5)),$E68,IF($C67<LataProjekcji,IF((SUM($J69:Q69)+$C69)<$C68,$C69,$C68-SUM($J69:Q69)),0)),0) -> 0 | S69: =ROUND(IF(OR(AND($C67=LataProjekcji,$E67>0),AND($C67=LataProjekcji,$E67=0,$D68<=3.5)),$E68,IF($C67<LataProjekcji,IF((SUM($J69:R69)+$C69)<$C68,$C69,$C68-SUM($J69:R69)),0)),0) -> 0 | T69: =ROUND(IF(OR(AND($C67=LataProjekcji,$E67>0),AND($C67=LataProjekcji,$E67=0,$D68<=3.5)),$E68,IF($C67<LataProjekcji,IF((SUM($J69:S69)+$C69)<$C68,$C69,$C68-SUM($J69:S69)),0)),0) -> 0 | U69: =ROUND(IF(OR(AND($C67=LataProjekcji,$E67>0),AND($C67=LataProjekcji,$E67=0,$D68<=3.5)),$E68,IF($C67<LataProjekcji,IF((SUM($J69:T69)+$C69)<$C68,$C69,$C68-SUM($J69:T69)),0)),0) -> 0 | V69: =ROUND(IF(OR(AND($C67=LataProjekcji,$E67>0),AND($C67=LataProjekcji,$E67=0,$D68<=3.5)),$E68,IF($C67<LataProjekcji,IF((SUM($J69:U69)+$C69)<$C68,$C69,$C68-SUM($J69:U69)),0)),0) -> 0 | W69: =ROUND(IF(OR(AND($C67=LataProjekcji,$E67>0),AND($C67=LataProjekcji,$E67=0,$D68<=3.5)),$E68,IF($C67<LataProjekcji,IF((SUM($J69:V69)+$C69)<$C68,$C69,$C68-SUM($J69:V69)),0)),0) -> 0
B70: umorzenie | J70: =ROUND(J69,0) -> 0 | K70: =ROUND(J70+K69,0) -> 0 | L70: 0 | M70: 0 | N70: 0 | O70: 0 | P70: 0 | Q70: 0 | R70: 0 | S70: 0 | T70: 0 | U70: 0 | V70: 0 | W70: 0
B71: wartość netto | J71: =IF($C67=J$25,$C68,ROUND(IF(J69=0,0,$C68-J70),0)) -> 0 | K71: 0 | L71: 0 | M71: 0 | N71: 0 | O71: 0 | P71: 0 | Q71: 0 | R71: 0 | S71: 0 | T71: 0 | U71: 0 | V71: 0 | W71: 0
B72: inne wartości niematerialne i prawne | C72: wartość netto | D72: rok i miesiąc zakupu | E72: dofinansowanie % | F72: dofinansowanie PLN | J72: =LataProjekcji -> Uzupełnij dane
B73: =IF(ISBLANK('Środki trwałe'!B136),"",'Środki trwałe'!B136) ->  | C73: =IF(ISBLANK('Środki trwałe'!C136),"",'Środki trwałe'!C136) ->  | D73: =IF(ISBLANK('Środki trwałe'!D136),"",'Środki trwałe'!D136) ->  | E73: =IF(ISBLANK('Środki trwałe'!E136),"",'Środki trwałe'!E136) ->  | F73: =IFERROR(IF(E73=0,0,ROUND(E73*C73,0)),0) -> 0 | J73: =IFERROR(ROUND(IF(AND(YEAR($D73)=LataProjekcji,$F73>0),$F73,0),0),0) -> 0 | K73: 0 | L73: 0 | M73: 0 | N73: 0 | O73: 0 | P73: 0 | Q73: 0 | R73: 0 | S73: 0 | T73: 0 | U73: 0 | V73: 0 | W73: 0
B74: =IF(ISBLANK('Środki trwałe'!B137),"",'Środki trwałe'!B137) ->  | C74: =IF(ISBLANK('Środki trwałe'!C137),"",'Środki trwałe'!C137) ->  | D74: =IF(ISBLANK('Środki trwałe'!D137),"",'Środki trwałe'!D137) ->  | E74: =IF(ISBLANK('Środki trwałe'!E137),"",'Środki trwałe'!E137) ->  | F74: =IFERROR(IF(E74=0,0,ROUND(E74*C74,0)),0) -> 0 | J74: 0 | K74: 0 | L74: 0 | M74: 0 | N74: 0 | O74: 0 | P74: 0 | Q74: 0 | R74: 0 | S74: 0 | T74: 0 | U74: 0 | V74: 0 | W74: 0
B75: =IF(ISBLANK('Środki trwałe'!B138),"",'Środki trwałe'!B138) ->  | C75: =IF(ISBLANK('Środki trwałe'!C138),"",'Środki trwałe'!C138) ->  | D75: =IF(ISBLANK('Środki trwałe'!D138),"",'Środki trwałe'!D138) ->  | E75: =IF(ISBLANK('Środki trwałe'!E138),"",'Środki trwałe'!E138) ->  | F75: =IFERROR(IF(E75=0,0,ROUND(E75*C75,0)),0) -> 0 | J75: 0 | K75: 0 | L75: 0 | M75: 0 | N75: 0 | O75: 0 | P75: 0 | Q75: 0 | R75: 0 | S75: 0 | T75: 0 | U75: 0 | V75: 0 | W75: 0
B76: =IF(ISBLANK('Środki trwałe'!B139),"",'Środki trwałe'!B139) ->  | C76: =IF(ISBLANK('Środki trwałe'!C139),"",'Środki trwałe'!C139) ->  | D76: =IF(ISBLANK('Środki trwałe'!D139),"",'Środki trwałe'!D139) ->  | E76: =IF(ISBLANK('Środki trwałe'!E139),"",'Środki trwałe'!E139) ->  | F76: =IFERROR(IF(E76=0,0,ROUND(E76*C76,0)),0) -> 0 | J76: 0 | K76: 0 | L76: 0 | M76: 0 | N76: 0 | O76: 0 | P76: 0 | Q76: 0 | R76: 0 | S76: 0 | T76: 0 | U76: 0 | V76: 0 | W76: 0
B77: =IF(ISBLANK('Środki trwałe'!B140),"",'Środki trwałe'!B140) ->  | C77: =IF(ISBLANK('Środki trwałe'!C140),"",'Środki trwałe'!C140) ->  | D77: =IF(ISBLANK('Środki trwałe'!D140),"",'Środki trwałe'!D140) ->  | E77: =IF(ISBLANK('Środki trwałe'!E140),"",'Środki trwałe'!E140) ->  | F77: =IFERROR(IF(E77=0,0,ROUND(E77*C77,0)),0) -> 0 | J77: 0 | K77: 0 | L77: 0 | M77: 0 | N77: 0 | O77: 0 | P77: 0 | Q77: 0 | R77: 0 | S77: 0 | T77: 0 | U77: 0 | V77: 0 | W77: 0
B78: Razem | C78: =SUM(C73:C77) -> 0 | F78: =SUM(F73:F77) -> 0 | J78: =ROUND(SUM(J73:J77),0) -> 0 | K78: 0 | L78: 0 | M78: 0 | N78: 0 | O78: 0 | P78: 0 | Q78: 0 | R78: 0 | S78: 0 | T78: 0 | U78: 0 | V78: 0 | W78: 0
B79: - dotacja w okresie (pozostałe przychody) | J79: =ROUND(J86+J93+J100+J107+J114,0) -> 0 | K79: =ROUND(K86+K93+K100+K107+K114,0) -> 0 | L79: 0 | M79: 0 | N79: 0 | O79: 0 | P79: 0 | Q79: 0 | R79: 0 | S79: 0 | T79: 0 | U79: 0 | V79: 0 | W79: 0
B80: - dotacja narastająco | J80: =ROUND(J87+J94+J101+J108+J115,0) -> 0 | K80: =ROUND(K87+K94+K101+K108+K115,0) -> 0 | L80: 0 | M80: 0 | N80: 0 | O80: 0 | P80: 0 | Q80: 0 | R80: 0 | S80: 0 | T80: 0 | U80: 0 | V80: 0 | W80: 0
B81: - rozliczenia międzyokresowe bierne | J81: =ROUND(J88+J95+J102+J109+J116,0) -> 0 | K81: =ROUND(K88+K95+K102+K109+K116,0) -> 0 | L81: 0 | M81: 0 | N81: 0 | O81: 0 | P81: 0 | Q81: 0 | R81: 0 | S81: 0 | T81: 0 | U81: 0 | V81: 0 | W81: 0
B83: inne wartości niematerialne i prawne | E83: ile miesiący do końca roku | G83: niekwalifikowalne | H83: spr
B84: rok zakupu | C84: =IFERROR(YEAR(D73),0) -> 0 | D84: =IFERROR(MONTH(D73),0) -> 0 | E84: =12-$D84 -> 12 | G84: =C78-F84 -> 0 | H84: =C78-F84-G84 -> 0
B85: wartość netto | C85: =IF(F73<0,0,F73) -> 0 | D85: =C73 ->  | E85: =IF($C73>3.5,ROUND(($C86/12)*$E84,0),$C85) -> 0 | F85: <- am. Do końca roku
B86: amortyzacja roczna | C86: =IF(ISBLANK(D73),0,IF(C73>3.5,ROUND(C85*am_wnip,0),IF(C85<0,0,C85))) -> 0 | J86: =ROUND(IF($C84=LataProjekcji,$E85,IF($C84=LataProjekcji,$C86,0)),0) -> 0 | K86: =ROUND(IF(OR(AND($C84=LataProjekcji,$E84>0),AND($C84=LataProjekcji,$E84=0,$D85<=3.5)),$E85,IF($C84<LataProjekcji,IF((SUM($J86:J86)+$C86)<$C85,$C86,$C85-SUM($J86:J86)),0)),0) -> 0 | L86: =ROUND(IF(OR(AND($C84=LataProjekcji,$E84>0),AND($C84=LataProjekcji,$E84=0,$D85<=3.5)),$E85,IF($C84<LataProjekcji,IF((SUM($J86:K86)+$C86)<$C85,$C86,$C85-SUM($J86:K86)),0)),0) -> 0 | M86: =ROUND(IF(OR(AND($C84=LataProjekcji,$E84>0),AND($C84=LataProjekcji,$E84=0,$D85<=3.5)),$E85,IF($C84<LataProjekcji,IF((SUM($J86:L86)+$C86)<$C85,$C86,$C85-SUM($J86:L86)),0)),0) -> 0 | N86: =ROUND(IF(OR(AND($C84=LataProjekcji,$E84>0),AND($C84=LataProjekcji,$E84=0,$D85<=3.5)),$E85,IF($C84<LataProjekcji,IF((SUM($J86:M86)+$C86)<$C85,$C86,$C85-SUM($J86:M86)),0)),0) -> 0 | O86: =ROUND(IF(OR(AND($C84=LataProjekcji,$E84>0),AND($C84=LataProjekcji,$E84=0,$D85<=3.5)),$E85,IF($C84<LataProjekcji,IF((SUM($J86:N86)+$C86)<$C85,$C86,$C85-SUM($J86:N86)),0)),0) -> 0 | P86: =ROUND(IF(OR(AND($C84=LataProjekcji,$E84>0),AND($C84=LataProjekcji,$E84=0,$D85<=3.5)),$E85,IF($C84<LataProjekcji,IF((SUM($J86:O86)+$C86)<$C85,$C86,$C85-SUM($J86:O86)),0)),0) -> 0 | Q86: =ROUND(IF(OR(AND($C84=LataProjekcji,$E84>0),AND($C84=LataProjekcji,$E84=0,$D85<=3.5)),$E85,IF($C84<LataProjekcji,IF((SUM($J86:P86)+$C86)<$C85,$C86,$C85-SUM($J86:P86)),0)),0) -> 0 | R86: =ROUND(IF(OR(AND($C84=LataProjekcji,$E84>0),AND($C84=LataProjekcji,$E84=0,$D85<=3.5)),$E85,IF($C84<LataProjekcji,IF((SUM($J86:Q86)+$C86)<$C85,$C86,$C85-SUM($J86:Q86)),0)),0) -> 0 | S86: =ROUND(IF(OR(AND($C84=LataProjekcji,$E84>0),AND($C84=LataProjekcji,$E84=0,$D85<=3.5)),$E85,IF($C84<LataProjekcji,IF((SUM($J86:R86)+$C86)<$C85,$C86,$C85-SUM($J86:R86)),0)),0) -> 0 | T86: =ROUND(IF(OR(AND($C84=LataProjekcji,$E84>0),AND($C84=LataProjekcji,$E84=0,$D85<=3.5)),$E85,IF($C84<LataProjekcji,IF((SUM($J86:S86)+$C86)<$C85,$C86,$C85-SUM($J86:S86)),0)),0) -> 0 | U86: =ROUND(IF(OR(AND($C84=LataProjekcji,$E84>0),AND($C84=LataProjekcji,$E84=0,$D85<=3.5)),$E85,IF($C84<LataProjekcji,IF((SUM($J86:T86)+$C86)<$C85,$C86,$C85-SUM($J86:T86)),0)),0) -> 0 | V86: =ROUND(IF(OR(AND($C84=LataProjekcji,$E84>0),AND($C84=LataProjekcji,$E84=0,$D85<=3.5)),$E85,IF($C84<LataProjekcji,IF((SUM($J86:U86)+$C86)<$C85,$C86,$C85-SUM($J86:U86)),0)),0) -> 0 | W86: =ROUND(IF(OR(AND($C84=LataProjekcji,$E84>0),AND($C84=LataProjekcji,$E84=0,$D85<=3.5)),$E85,IF($C84<LataProjekcji,IF((SUM($J86:V86)+$C86)<$C85,$C86,$C85-SUM($J86:V86)),0)),0) -> 0
B87: umorzenie | J87: =ROUND(J86,0) -> 0 | K87: =ROUND(J87+K86,0) -> 0 | L87: 0 | M87: 0 | N87: 0 | O87: 0 | P87: 0 | Q87: 0 | R87: 0 | S87: 0 | T87: 0 | U87: 0 | V87: 0 | W87: 0
B88: wartość netto | J88: =IF($C84=LataProjekcji,ROUND($C85-J87,0),ROUND(IF(J86=0,0,$C85-J87),0)) -> 0 | K88: 0 | L88: 0 | M88: 0 | N88: 0 | O88: 0 | P88: 0 | Q88: 0 | R88: 0 | S88: 0 | T88: 0 | U88: 0 | V88: 0 | W88: 0
B90: inne wartości niematerialne i prawne
B91: rok zakupu | C91: =IFERROR(YEAR(D74),0) -> 0 | D91: =IFERROR(MONTH(D74),0) -> 0 | E91: =12-$D91 -> 12
B92: wartość netto | C92: =IF(F74<0,0,F74) -> 0 | D92: =C74 ->  | E92: =IF($C74>3.5,ROUND(($C93/12)*$E91,0),$C92) -> 0
B93: amortyzacja roczna | C93: =IF(ISBLANK(D74),0,IF(C74>3.5,ROUND(C92*am_wnip,0),IF(C92<0,0,C92))) -> 0 | J93: =ROUND(IF($C91=LataProjekcji,$E92,IF($C91=LataProjekcji,$C93,0)),0) -> 0 | K93: =ROUND(IF(OR(AND($C91=LataProjekcji,$E91>0),AND($C91=LataProjekcji,$E91=0,$D92<=3.5)),$E92,IF($C91<LataProjekcji,IF((SUM($J93:J93)+$C93)<$C92,$C93,$C92-SUM($J93:J93)),0)),0) -> 0 | L93: =ROUND(IF(OR(AND($C91=LataProjekcji,$E91>0),AND($C91=LataProjekcji,$E91=0,$D92<=3.5)),$E92,IF($C91<LataProjekcji,IF((SUM($J93:K93)+$C93)<$C92,$C93,$C92-SUM($J93:K93)),0)),0) -> 0 | M93: =ROUND(IF(OR(AND($C91=LataProjekcji,$E91>0),AND($C91=LataProjekcji,$E91=0,$D92<=3.5)),$E92,IF($C91<LataProjekcji,IF((SUM($J93:L93)+$C93)<$C92,$C93,$C92-SUM($J93:L93)),0)),0) -> 0 | N93: =ROUND(IF(OR(AND($C91=LataProjekcji,$E91>0),AND($C91=LataProjekcji,$E91=0,$D92<=3.5)),$E92,IF($C91<LataProjekcji,IF((SUM($J93:M93)+$C93)<$C92,$C93,$C92-SUM($J93:M93)),0)),0) -> 0 | O93: =ROUND(IF(OR(AND($C91=LataProjekcji,$E91>0),AND($C91=LataProjekcji,$E91=0,$D92<=3.5)),$E92,IF($C91<LataProjekcji,IF((SUM($J93:N93)+$C93)<$C92,$C93,$C92-SUM($J93:N93)),0)),0) -> 0 | P93: =ROUND(IF(OR(AND($C91=LataProjekcji,$E91>0),AND($C91=LataProjekcji,$E91=0,$D92<=3.5)),$E92,IF($C91<LataProjekcji,IF((SUM($J93:O93)+$C93)<$C92,$C93,$C92-SUM($J93:O93)),0)),0) -> 0 | Q93: =ROUND(IF(OR(AND($C91=LataProjekcji,$E91>0),AND($C91=LataProjekcji,$E91=0,$D92<=3.5)),$E92,IF($C91<LataProjekcji,IF((SUM($J93:P93)+$C93)<$C92,$C93,$C92-SUM($J93:P93)),0)),0) -> 0 | R93: =ROUND(IF(OR(AND($C91=LataProjekcji,$E91>0),AND($C91=LataProjekcji,$E91=0,$D92<=3.5)),$E92,IF($C91<LataProjekcji,IF((SUM($J93:Q93)+$C93)<$C92,$C93,$C92-SUM($J93:Q93)),0)),0) -> 0 | S93: =ROUND(IF(OR(AND($C91=LataProjekcji,$E91>0),AND($C91=LataProjekcji,$E91=0,$D92<=3.5)),$E92,IF($C91<LataProjekcji,IF((SUM($J93:R93)+$C93)<$C92,$C93,$C92-SUM($J93:R93)),0)),0) -> 0 | T93: =ROUND(IF(OR(AND($C91=LataProjekcji,$E91>0),AND($C91=LataProjekcji,$E91=0,$D92<=3.5)),$E92,IF($C91<LataProjekcji,IF((SUM($J93:S93)+$C93)<$C92,$C93,$C92-SUM($J93:S93)),0)),0) -> 0 | U93: =ROUND(IF(OR(AND($C91=LataProjekcji,$E91>0),AND($C91=LataProjekcji,$E91=0,$D92<=3.5)),$E92,IF($C91<LataProjekcji,IF((SUM($J93:T93)+$C93)<$C92,$C93,$C92-SUM($J93:T93)),0)),0) -> 0 | V93: =ROUND(IF(OR(AND($C91=LataProjekcji,$E91>0),AND($C91=LataProjekcji,$E91=0,$D92<=3.5)),$E92,IF($C91<LataProjekcji,IF((SUM($J93:U93)+$C93)<$C92,$C93,$C92-SUM($J93:U93)),0)),0) -> 0 | W93: =ROUND(IF(OR(AND($C91=LataProjekcji,$E91>0),AND($C91=LataProjekcji,$E91=0,$D92<=3.5)),$E92,IF($C91<LataProjekcji,IF((SUM($J93:V93)+$C93)<$C92,$C93,$C92-SUM($J93:V93)),0)),0) -> 0
B94: umorzenie | J94: =ROUND(J93,0) -> 0 | K94: =ROUND(J94+K93,0) -> 0 | L94: 0 | M94: 0 | N94: 0 | O94: 0 | P94: 0 | Q94: 0 | R94: 0 | S94: 0 | T94: 0 | U94: 0 | V94: 0 | W94: 0
B95: wartość netto | J95: =IF($C91=LataProjekcji,ROUND($C92-J94,0),ROUND(IF(J93=0,0,$C92-J94),0)) -> 0 | K95: 0 | L95: 0 | M95: 0 | N95: 0 | O95: 0 | P95: 0 | Q95: 0 | R95: 0 | S95: 0 | T95: 0 | U95: 0 | V95: 0 | W95: 0
B97: inne wartości niematerialne i prawne
B98: rok zakupu | C98: =IFERROR(YEAR(D75),0) -> 0 | D98: =IFERROR(MONTH(D75),0) -> 0 | E98: =12-$D98 -> 12
B99: wartość netto | C99: =IF(F75<0,0,F75) -> 0 | D99: =C75 ->  | E99: =IF($C75>3.5,ROUND(($C100/12)*$E98,0),$C99) -> 0
B100: amortyzacja roczna | C100: =IF(ISBLANK(D75),0,IF(C75>3.5,ROUND(C99*am_wnip,0),IF(C99<0,0,C99))) -> 0 | J100: =ROUND(IF($C98=LataProjekcji,$E99,IF($C98=LataProjekcji,$C100,0)),0) -> 0 | K100: =ROUND(IF(OR(AND($C98=LataProjekcji,$E98>0),AND($C98=LataProjekcji,$E98=0,$D99<=3.5)),$E99,IF($C98<LataProjekcji,IF((SUM($J100:J100)+$C100)<$C99,$C100,$C99-SUM($J100:J100)),0)),0) -> 0 | L100: =ROUND(IF(OR(AND($C98=LataProjekcji,$E98>0),AND($C98=LataProjekcji,$E98=0,$D99<=3.5)),$E99,IF($C98<LataProjekcji,IF((SUM($J100:K100)+$C100)<$C99,$C100,$C99-SUM($J100:K100)),0)),0) -> 0 | M100: =ROUND(IF(OR(AND($C98=LataProjekcji,$E98>0),AND($C98=LataProjekcji,$E98=0,$D99<=3.5)),$E99,IF($C98<LataProjekcji,IF((SUM($J100:L100)+$C100)<$C99,$C100,$C99-SUM($J100:L100)),0)),0) -> 0 | N100: =ROUND(IF(OR(AND($C98=LataProjekcji,$E98>0),AND($C98=LataProjekcji,$E98=0,$D99<=3.5)),$E99,IF($C98<LataProjekcji,IF((SUM($J100:M100)+$C100)<$C99,$C100,$C99-SUM($J100:M100)),0)),0) -> 0 | O100: =ROUND(IF(OR(AND($C98=LataProjekcji,$E98>0),AND($C98=LataProjekcji,$E98=0,$D99<=3.5)),$E99,IF($C98<LataProjekcji,IF((SUM($J100:N100)+$C100)<$C99,$C100,$C99-SUM($J100:N100)),0)),0) -> 0 | P100: =ROUND(IF(OR(AND($C98=LataProjekcji,$E98>0),AND($C98=LataProjekcji,$E98=0,$D99<=3.5)),$E99,IF($C98<LataProjekcji,IF((SUM($J100:O100)+$C100)<$C99,$C100,$C99-SUM($J100:O100)),0)),0) -> 0 | Q100: =ROUND(IF(OR(AND($C98=LataProjekcji,$E98>0),AND($C98=LataProjekcji,$E98=0,$D99<=3.5)),$E99,IF($C98<LataProjekcji,IF((SUM($J100:P100)+$C100)<$C99,$C100,$C99-SUM($J100:P100)),0)),0) -> 0 | R100: =ROUND(IF(OR(AND($C98=LataProjekcji,$E98>0),AND($C98=LataProjekcji,$E98=0,$D99<=3.5)),$E99,IF($C98<LataProjekcji,IF((SUM($J100:Q100)+$C100)<$C99,$C100,$C99-SUM($J100:Q100)),0)),0) -> 0 | S100: =ROUND(IF(OR(AND($C98=LataProjekcji,$E98>0),AND($C98=LataProjekcji,$E98=0,$D99<=3.5)),$E99,IF($C98<LataProjekcji,IF((SUM($J100:R100)+$C100)<$C99,$C100,$C99-SUM($J100:R100)),0)),0) -> 0 | T100: =ROUND(IF(OR(AND($C98=LataProjekcji,$E98>0),AND($C98=LataProjekcji,$E98=0,$D99<=3.5)),$E99,IF($C98<LataProjekcji,IF((SUM($J100:S100)+$C100)<$C99,$C100,$C99-SUM($J100:S100)),0)),0) -> 0 | U100: =ROUND(IF(OR(AND($C98=LataProjekcji,$E98>0),AND($C98=LataProjekcji,$E98=0,$D99<=3.5)),$E99,IF($C98<LataProjekcji,IF((SUM($J100:T100)+$C100)<$C99,$C100,$C99-SUM($J100:T100)),0)),0) -> 0 | V100: =ROUND(IF(OR(AND($C98=LataProjekcji,$E98>0),AND($C98=LataProjekcji,$E98=0,$D99<=3.5)),$E99,IF($C98<LataProjekcji,IF((SUM($J100:U100)+$C100)<$C99,$C100,$C99-SUM($J100:U100)),0)),0) -> 0 | W100: =ROUND(IF(OR(AND($C98=LataProjekcji,$E98>0),AND($C98=LataProjekcji,$E98=0,$D99<=3.5)),$E99,IF($C98<LataProjekcji,IF((SUM($J100:V100)+$C100)<$C99,$C100,$C99-SUM($J100:V100)),0)),0) -> 0
B101: umorzenie | J101: =ROUND(J100,0) -> 0 | K101: =ROUND(J101+K100,0) -> 0 | L101: 0 | M101: 0 | N101: 0 | O101: 0 | P101: 0 | Q101: 0 | R101: 0 | S101: 0 | T101: 0 | U101: 0 | V101: 0 | W101: 0
B102: wartość netto | J102: =IF($C98=LataProjekcji,ROUND($C99-J101,0),ROUND(IF(J100=0,0,$C99-J101),0)) -> 0 | K102: 0 | L102: 0 | M102: 0 | N102: 0 | O102: 0 | P102: 0 | Q102: 0 | R102: 0 | S102: 0 | T102: 0 | U102: 0 | V102: 0 | W102: 0
B104: inne wartości niematerialne i prawne
B105: rok zakupu | C105: =IFERROR(YEAR(D76),0) -> 0 | D105: =IFERROR(MONTH(D76),0) -> 0 | E105: =12-$D105 -> 12
B106: wartość netto | C106: =IF(F76<0,0,F76) -> 0 | D106: =C76 ->  | E106: =IF($C76>3.5,ROUND(($C107/12)*$E105,0),$C106) -> 0
B107: amortyzacja roczna | C107: =IF(ISBLANK(D76),0,IF(C76>3.5,ROUND(C106*am_wnip,0),IF(C106<0,0,C106))) -> 0 | J107: =ROUND(IF($C105=LataProjekcji,$E106,IF($C105=LataProjekcji,$C107,0)),0) -> 0 | K107: =ROUND(IF(OR(AND($C105=LataProjekcji,$E105>0),AND($C105=LataProjekcji,$E105=0,$D106<=3.5)),$E106,IF($C105<LataProjekcji,IF((SUM($J107:J107)+$C107)<$C106,$C107,$C106-SUM($J107:J107)),0)),0) -> 0 | L107: =ROUND(IF(OR(AND($C105=LataProjekcji,$E105>0),AND($C105=LataProjekcji,$E105=0,$D106<=3.5)),$E106,IF($C105<LataProjekcji,IF((SUM($J107:K107)+$C107)<$C106,$C107,$C106-SUM($J107:K107)),0)),0) -> 0 | M107: =ROUND(IF(OR(AND($C105=LataProjekcji,$E105>0),AND($C105=LataProjekcji,$E105=0,$D106<=3.5)),$E106,IF($C105<LataProjekcji,IF((SUM($J107:L107)+$C107)<$C106,$C107,$C106-SUM($J107:L107)),0)),0) -> 0 | N107: =ROUND(IF(OR(AND($C105=LataProjekcji,$E105>0),AND($C105=LataProjekcji,$E105=0,$D106<=3.5)),$E106,IF($C105<LataProjekcji,IF((SUM($J107:M107)+$C107)<$C106,$C107,$C106-SUM($J107:M107)),0)),0) -> 0 | O107: =ROUND(IF(OR(AND($C105=LataProjekcji,$E105>0),AND($C105=LataProjekcji,$E105=0,$D106<=3.5)),$E106,IF($C105<LataProjekcji,IF((SUM($J107:N107)+$C107)<$C106,$C107,$C106-SUM($J107:N107)),0)),0) -> 0 | P107: =ROUND(IF(OR(AND($C105=LataProjekcji,$E105>0),AND($C105=LataProjekcji,$E105=0,$D106<=3.5)),$E106,IF($C105<LataProjekcji,IF((SUM($J107:O107)+$C107)<$C106,$C107,$C106-SUM($J107:O107)),0)),0) -> 0 | Q107: =ROUND(IF(OR(AND($C105=LataProjekcji,$E105>0),AND($C105=LataProjekcji,$E105=0,$D106<=3.5)),$E106,IF($C105<LataProjekcji,IF((SUM($J107:P107)+$C107)<$C106,$C107,$C106-SUM($J107:P107)),0)),0) -> 0 | R107: =ROUND(IF(OR(AND($C105=LataProjekcji,$E105>0),AND($C105=LataProjekcji,$E105=0,$D106<=3.5)),$E106,IF($C105<LataProjekcji,IF((SUM($J107:Q107)+$C107)<$C106,$C107,$C106-SUM($J107:Q107)),0)),0) -> 0 | S107: =ROUND(IF(OR(AND($C105=LataProjekcji,$E105>0),AND($C105=LataProjekcji,$E105=0,$D106<=3.5)),$E106,IF($C105<LataProjekcji,IF((SUM($J107:R107)+$C107)<$C106,$C107,$C106-SUM($J107:R107)),0)),0) -> 0 | T107: =ROUND(IF(OR(AND($C105=LataProjekcji,$E105>0),AND($C105=LataProjekcji,$E105=0,$D106<=3.5)),$E106,IF($C105<LataProjekcji,IF((SUM($J107:S107)+$C107)<$C106,$C107,$C106-SUM($J107:S107)),0)),0) -> 0 | U107: =ROUND(IF(OR(AND($C105=LataProjekcji,$E105>0),AND($C105=LataProjekcji,$E105=0,$D106<=3.5)),$E106,IF($C105<LataProjekcji,IF((SUM($J107:T107)+$C107)<$C106,$C107,$C106-SUM($J107:T107)),0)),0) -> 0 | V107: =ROUND(IF(OR(AND($C105=LataProjekcji,$E105>0),AND($C105=LataProjekcji,$E105=0,$D106<=3.5)),$E106,IF($C105<LataProjekcji,IF((SUM($J107:U107)+$C107)<$C106,$C107,$C106-SUM($J107:U107)),0)),0) -> 0 | W107: =ROUND(IF(OR(AND($C105=LataProjekcji,$E105>0),AND($C105=LataProjekcji,$E105=0,$D106<=3.5)),$E106,IF($C105<LataProjekcji,IF((SUM($J107:V107)+$C107)<$C106,$C107,$C106-SUM($J107:V107)),0)),0) -> 0
B108: umorzenie | J108: =ROUND(J107,0) -> 0 | K108: =ROUND(J108+K107,0) -> 0 | L108: 0 | M108: 0 | N108: 0 | O108: 0 | P108: 0 | Q108: 0 | R108: 0 | S108: 0 | T108: 0 | U108: 0 | V108: 0 | W108: 0
B109: wartość netto | J109: =IF($C105=LataProjekcji,ROUND($C106-J108,0),ROUND(IF(J107=0,0,$C106-J108),0)) -> 0 | K109: 0 | L109: 0 | M109: 0 | N109: 0 | O109: 0 | P109: 0 | Q109: 0 | R109: 0 | S109: 0 | T109: 0 | U109: 0 | V109: 0 | W109: 0
B111: inne wartości niematerialne i prawne
B112: rok zakupu | C112: =IFERROR(YEAR(D77),0) -> 0 | D112: =IFERROR(MONTH(D77),0) -> 0 | E112: =12-$D112 -> 12
B113: wartość netto | C113: =IF(F77<0,0,F77) -> 0 | D113: =C77 ->  | E113: =IF($C77>3.5,ROUND(($C114/12)*$E112,0),$C113) -> 0
B114: amortyzacja roczna | C114: =IF(ISBLANK(D77),0,IF(C77>3.5,ROUND(C113*am_wnip,0),IF(C113<0,0,C113))) -> 0 | J114: =ROUND(IF($C112=LataProjekcji,$E113,IF($C112=LataProjekcji,$C114,0)),0) -> 0 | K114: =ROUND(IF(OR(AND($C112=LataProjekcji,$E112>0),AND($C112=LataProjekcji,$E112=0,$D113<=3.5)),$E113,IF($C112<LataProjekcji,IF((SUM($J114:J114)+$C114)<$C113,$C114,$C113-SUM($J114:J114)),0)),0) -> 0 | L114: =ROUND(IF(OR(AND($C112=LataProjekcji,$E112>0),AND($C112=LataProjekcji,$E112=0,$D113<=3.5)),$E113,IF($C112<LataProjekcji,IF((SUM($J114:K114)+$C114)<$C113,$C114,$C113-SUM($J114:K114)),0)),0) -> 0 | M114: =ROUND(IF(OR(AND($C112=LataProjekcji,$E112>0),AND($C112=LataProjekcji,$E112=0,$D113<=3.5)),$E113,IF($C112<LataProjekcji,IF((SUM($J114:L114)+$C114)<$C113,$C114,$C113-SUM($J114:L114)),0)),0) -> 0 | N114: =ROUND(IF(OR(AND($C112=LataProjekcji,$E112>0),AND($C112=LataProjekcji,$E112=0,$D113<=3.5)),$E113,IF($C112<LataProjekcji,IF((SUM($J114:M114)+$C114)<$C113,$C114,$C113-SUM($J114:M114)),0)),0) -> 0 | O114: =ROUND(IF(OR(AND($C112=LataProjekcji,$E112>0),AND($C112=LataProjekcji,$E112=0,$D113<=3.5)),$E113,IF($C112<LataProjekcji,IF((SUM($J114:N114)+$C114)<$C113,$C114,$C113-SUM($J114:N114)),0)),0) -> 0 | P114: =ROUND(IF(OR(AND($C112=LataProjekcji,$E112>0),AND($C112=LataProjekcji,$E112=0,$D113<=3.5)),$E113,IF($C112<LataProjekcji,IF((SUM($J114:O114)+$C114)<$C113,$C114,$C113-SUM($J114:O114)),0)),0) -> 0 | Q114: =ROUND(IF(OR(AND($C112=LataProjekcji,$E112>0),AND($C112=LataProjekcji,$E112=0,$D113<=3.5)),$E113,IF($C112<LataProjekcji,IF((SUM($J114:P114)+$C114)<$C113,$C114,$C113-SUM($J114:P114)),0)),0) -> 0 | R114: =ROUND(IF(OR(AND($C112=LataProjekcji,$E112>0),AND($C112=LataProjekcji,$E112=0,$D113<=3.5)),$E113,IF($C112<LataProjekcji,IF((SUM($J114:Q114)+$C114)<$C113,$C114,$C113-SUM($J114:Q114)),0)),0) -> 0 | S114: =ROUND(IF(OR(AND($C112=LataProjekcji,$E112>0),AND($C112=LataProjekcji,$E112=0,$D113<=3.5)),$E113,IF($C112<LataProjekcji,IF((SUM($J114:R114)+$C114)<$C113,$C114,$C113-SUM($J114:R114)),0)),0) -> 0 | T114: =ROUND(IF(OR(AND($C112=LataProjekcji,$E112>0),AND($C112=LataProjekcji,$E112=0,$D113<=3.5)),$E113,IF($C112<LataProjekcji,IF((SUM($J114:S114)+$C114)<$C113,$C114,$C113-SUM($J114:S114)),0)),0) -> 0 | U114: =ROUND(IF(OR(AND($C112=LataProjekcji,$E112>0),AND($C112=LataProjekcji,$E112=0,$D113<=3.5)),$E113,IF($C112<LataProjekcji,IF((SUM($J114:T114)+$C114)<$C113,$C114,$C113-SUM($J114:T114)),0)),0) -> 0 | V114: =ROUND(IF(OR(AND($C112=LataProjekcji,$E112>0),AND($C112=LataProjekcji,$E112=0,$D113<=3.5)),$E113,IF($C112<LataProjekcji,IF((SUM($J114:U114)+$C114)<$C113,$C114,$C113-SUM($J114:U114)),0)),0) -> 0 | W114: =ROUND(IF(OR(AND($C112=LataProjekcji,$E112>0),AND($C112=LataProjekcji,$E112=0,$D113<=3.5)),$E113,IF($C112<LataProjekcji,IF((SUM($J114:V114)+$C114)<$C113,$C114,$C113-SUM($J114:V114)),0)),0) -> 0
B115: umorzenie | J115: =ROUND(J114,0) -> 0 | K115: =ROUND(J115+K114,0) -> 0 | L115: 0 | M115: 0 | N115: 0 | O115: 0 | P115: 0 | Q115: 0 | R115: 0 | S115: 0 | T115: 0 | U115: 0 | V115: 0 | W115: 0
B116: wartość netto | J116: =IF($C112=LataProjekcji,ROUND($C113-J115,0),ROUND(IF(J114=0,0,$C113-J115),0)) -> 0 | K116: 0 | L116: 0 | M116: 0 | N116: 0 | O116: 0 | P116: 0 | Q116: 0 | R116: 0 | S116: 0 | T116: 0 | U116: 0 | V116: 0 | W116: 0
B117: grunty | C117: wartość netto | D117: rok i miesiąc zakupu | E117: dofinansowanie % | F117: dofinansowanie PLN | J117: =LataProjekcji -> Uzupełnij dane
B118: =IF(ISBLANK('Środki trwałe'!B184),"",'Środki trwałe'!B184) ->  | C118: =IF(ISBLANK('Środki trwałe'!C184),"",'Środki trwałe'!C184) ->  | D118: =IF(ISBLANK('Środki trwałe'!D184),"",'Środki trwałe'!D184) ->  | E118: =IF(ISBLANK('Środki trwałe'!E184),"",'Środki trwałe'!E184) ->  | F118: =IFERROR(IF(E118=0,0,ROUND(E118*C118,0)),0) -> 0 | J118: =IFERROR(ROUND(IF(AND(YEAR($D118)=LataProjekcji,$F118>0),$F118,0),0),0) -> 0 | K118: 0 | L118: 0 | M118: 0 | N118: 0 | O118: 0 | P118: 0 | Q118: 0 | R118: 0 | S118: 0 | T118: 0 | U118: 0 | V118: 0 | W118: 0
B119: =IF(ISBLANK('Środki trwałe'!B185),"",'Środki trwałe'!B185) ->  | C119: =IF(ISBLANK('Środki trwałe'!C185),"",'Środki trwałe'!C185) ->  | D119: =IF(ISBLANK('Środki trwałe'!D185),"",'Środki trwałe'!D185) ->  | E119: =IF(ISBLANK('Środki trwałe'!E185),"",'Środki trwałe'!E185) ->  | F119: =IFERROR(IF(E119=0,0,ROUND(E119*C119,0)),0) -> 0 | J119: 0 | K119: 0 | L119: 0 | M119: 0 | N119: 0 | O119: 0 | P119: 0 | Q119: 0 | R119: 0 | S119: 0 | T119: 0 | U119: 0 | V119: 0 | W119: 0
B120: =IF(ISBLANK('Środki trwałe'!B186),"",'Środki trwałe'!B186) ->  | C120: =IF(ISBLANK('Środki trwałe'!C186),"",'Środki trwałe'!C186) ->  | D120: =IF(ISBLANK('Środki trwałe'!D186),"",'Środki trwałe'!D186) ->  | E120: =IF(ISBLANK('Środki trwałe'!E186),"",'Środki trwałe'!E186) ->  | F120: =IFERROR(IF(E120=0,0,ROUND(E120*C120,0)),0) -> 0 | J120: 0 | K120: 0 | L120: 0 | M120: 0 | N120: 0 | O120: 0 | P120: 0 | Q120: 0 | R120: 0 | S120: 0 | T120: 0 | U120: 0 | V120: 0 | W120: 0
B121: =IF(ISBLANK('Środki trwałe'!B187),"",'Środki trwałe'!B187) ->  | C121: =IF(ISBLANK('Środki trwałe'!C187),"",'Środki trwałe'!C187) ->  | D121: =IF(ISBLANK('Środki trwałe'!D187),"",'Środki trwałe'!D187) ->  | E121: =IF(ISBLANK('Środki trwałe'!E187),"",'Środki trwałe'!E187) ->  | F121: =IFERROR(IF(E121=0,0,ROUND(E121*C121,0)),0) -> 0 | J121: 0 | K121: 0 | L121: 0 | M121: 0 | N121: 0 | O121: 0 | P121: 0 | Q121: 0 | R121: 0 | S121: 0 | T121: 0 | U121: 0 | V121: 0 | W121: 0
B122: =IF(ISBLANK('Środki trwałe'!B188),"",'Środki trwałe'!B188) ->  | C122: =IF(ISBLANK('Środki trwałe'!C188),"",'Środki trwałe'!C188) ->  | D122: =IF(ISBLANK('Środki trwałe'!D188),"",'Środki trwałe'!D188) ->  | E122: =IF(ISBLANK('Środki trwałe'!E188),"",'Środki trwałe'!E188) ->  | F122: =IFERROR(IF(E122=0,0,ROUND(E122*C122,0)),0) -> 0 | J122: 0 | K122: 0 | L122: 0 | M122: 0 | N122: 0 | O122: 0 | P122: 0 | Q122: 0 | R122: 0 | S122: 0 | T122: 0 | U122: 0 | V122: 0 | W122: 0
B123: Razem | C123: =SUM(C118:C122) -> 0 | F123: =SUM(F118:F122) -> 0 | J123: =ROUND(SUM(J118:J122),0) -> 0 | K123: 0 | L123: 0 | M123: 0 | N123: 0 | O123: 0 | P123: 0 | Q123: 0 | R123: 0 | S123: 0 | T123: 0 | U123: 0 | V123: 0 | W123: 0
B124: - dotacja w okresie (pozostałe przychody) | J124: =ROUND(J131+J138+J145+J152+J159,0) -> 0 | K124: =ROUND(K131+K138+K145+K152+K159,0) -> 0 | L124: 0 | M124: 0 | N124: 0 | O124: 0 | P124: 0 | Q124: 0 | R124: 0 | S124: 0 | T124: 0 | U124: 0 | V124: 0 | W124: 0
B125: - dotacja narastająco | J125: =ROUND(J132+J139+J146+J153+J160,0) -> 0 | K125: =ROUND(K132+K139+K146+K153+K160,0) -> 0 | L125: 0 | M125: 0 | N125: 0 | O125: 0 | P125: 0 | Q125: 0 | R125: 0 | S125: 0 | T125: 0 | U125: 0 | V125: 0 | W125: 0
B126: - rozliczenia międzyokresowe bierne | J126: =ROUND(J133+J140+J147+J154+J161,0) -> 0 | K126: =ROUND(K133+K140+K147+K154+K161,0) -> 0 | L126: 0 | M126: 0 | N126: 0 | O126: 0 | P126: 0 | Q126: 0 | R126: 0 | S126: 0 | T126: 0 | U126: 0 | V126: 0 | W126: 0
B128: grunty | E128: ile miesiący do końca roku | G128: niekwalifikowalne | H128: spr
B129: rok zakupu | C129: =IFERROR(YEAR(D118),0) -> 0 | D129: =IFERROR(MONTH(D118),0) -> 0 | E129: =12-$D129 -> 12 | G129: =C123-F129 -> 0 | H129: =C123-F129-G129 -> 0
B130: wartość netto | C130: =IF(F118<0,0,F118) -> 0 | D130: =C118 ->  | E130: =IF($C118>3.5,ROUND(($C131/12)*$E129,0),$C130) -> 0 | F130: <- am. Do końca roku
B131: amortyzacja roczna | C131: =IF(ISBLANK(D118),0,IF(C118>3.5,ROUND(C130*am_grunty,0),IF(C130<0,0,C130))) -> 0 | J131: =ROUND(IF($C129=LataProjekcji,$E130,IF($C129=LataProjekcji,$C131,0)),0) -> 0 | K131: =ROUND(IF(OR(AND($C129=LataProjekcji,$E129>0),AND($C129=LataProjekcji,$E129=0,$D130<=3.5)),$E130,IF($C129<LataProjekcji,IF((SUM($J131:J131)+$C131)<$C130,$C131,$C130-SUM($J131:J131)),0)),0) -> 0 | L131: =ROUND(IF(OR(AND($C129=LataProjekcji,$E129>0),AND($C129=LataProjekcji,$E129=0,$D130<=3.5)),$E130,IF($C129<LataProjekcji,IF((SUM($J131:K131)+$C131)<$C130,$C131,$C130-SUM($J131:K131)),0)),0) -> 0 | M131: =ROUND(IF(OR(AND($C129=LataProjekcji,$E129>0),AND($C129=LataProjekcji,$E129=0,$D130<=3.5)),$E130,IF($C129<LataProjekcji,IF((SUM($J131:L131)+$C131)<$C130,$C131,$C130-SUM($J131:L131)),0)),0) -> 0 | N131: =ROUND(IF(OR(AND($C129=LataProjekcji,$E129>0),AND($C129=LataProjekcji,$E129=0,$D130<=3.5)),$E130,IF($C129<LataProjekcji,IF((SUM($J131:M131)+$C131)<$C130,$C131,$C130-SUM($J131:M131)),0)),0) -> 0 | O131: =ROUND(IF(OR(AND($C129=LataProjekcji,$E129>0),AND($C129=LataProjekcji,$E129=0,$D130<=3.5)),$E130,IF($C129<LataProjekcji,IF((SUM($J131:N131)+$C131)<$C130,$C131,$C130-SUM($J131:N131)),0)),0) -> 0 | P131: =ROUND(IF(OR(AND($C129=LataProjekcji,$E129>0),AND($C129=LataProjekcji,$E129=0,$D130<=3.5)),$E130,IF($C129<LataProjekcji,IF((SUM($J131:O131)+$C131)<$C130,$C131,$C130-SUM($J131:O131)),0)),0) -> 0 | Q131: =ROUND(IF(OR(AND($C129=LataProjekcji,$E129>0),AND($C129=LataProjekcji,$E129=0,$D130<=3.5)),$E130,IF($C129<LataProjekcji,IF((SUM($J131:P131)+$C131)<$C130,$C131,$C130-SUM($J131:P131)),0)),0) -> 0 | R131: =ROUND(IF(OR(AND($C129=LataProjekcji,$E129>0),AND($C129=LataProjekcji,$E129=0,$D130<=3.5)),$E130,IF($C129<LataProjekcji,IF((SUM($J131:Q131)+$C131)<$C130,$C131,$C130-SUM($J131:Q131)),0)),0) -> 0 | S131: =ROUND(IF(OR(AND($C129=LataProjekcji,$E129>0),AND($C129=LataProjekcji,$E129=0,$D130<=3.5)),$E130,IF($C129<LataProjekcji,IF((SUM($J131:R131)+$C131)<$C130,$C131,$C130-SUM($J131:R131)),0)),0) -> 0 | T131: =ROUND(IF(OR(AND($C129=LataProjekcji,$E129>0),AND($C129=LataProjekcji,$E129=0,$D130<=3.5)),$E130,IF($C129<LataProjekcji,IF((SUM($J131:S131)+$C131)<$C130,$C131,$C130-SUM($J131:S131)),0)),0) -> 0 | U131: =ROUND(IF(OR(AND($C129=LataProjekcji,$E129>0),AND($C129=LataProjekcji,$E129=0,$D130<=3.5)),$E130,IF($C129<LataProjekcji,IF((SUM($J131:T131)+$C131)<$C130,$C131,$C130-SUM($J131:T131)),0)),0) -> 0 | V131: =ROUND(IF(OR(AND($C129=LataProjekcji,$E129>0),AND($C129=LataProjekcji,$E129=0,$D130<=3.5)),$E130,IF($C129<LataProjekcji,IF((SUM($J131:U131)+$C131)<$C130,$C131,$C130-SUM($J131:U131)),0)),0) -> 0 | W131: =ROUND(IF(OR(AND($C129=LataProjekcji,$E129>0),AND($C129=LataProjekcji,$E129=0,$D130<=3.5)),$E130,IF($C129<LataProjekcji,IF((SUM($J131:V131)+$C131)<$C130,$C131,$C130-SUM($J131:V131)),0)),0) -> 0
B132: umorzenie | J132: =ROUND(J131,0) -> 0 | K132: =ROUND(J132+K131,0) -> 0 | L132: =ROUND(K132+L131,0) -> 0 | M132: =ROUND(L132+M131,0) -> 0 | N132: =ROUND(M132+N131,0) -> 0 | O132: =ROUND(N132+O131,0) -> 0 | P132: =ROUND(O132+P131,0) -> 0 | Q132: =ROUND(P132+Q131,0) -> 0 | R132: =ROUND(Q132+R131,0) -> 0 | S132: =ROUND(R132+S131,0) -> 0 | T132: =ROUND(S132+T131,0) -> 0 | U132: =ROUND(T132+U131,0) -> 0 | V132: =ROUND(U132+V131,0) -> 0 | W132: =ROUND(V132+W131,0) -> 0
B133: wartość netto | J133: =IF($C129=LataProjekcji,ROUND($C130-J132,0),ROUND(IF(J131=0,0,$C130-J132),0)) -> 0 | K133: 0 | L133: 0 | M133: 0 | N133: 0 | O133: 0 | P133: 0 | Q133: 0 | R133: 0 | S133: 0 | T133: 0 | U133: 0 | V133: 0 | W133: 0
B135: grunty
B136: rok zakupu | C136: =IFERROR(YEAR(D119),0) -> 0 | D136: =IFERROR(MONTH(D119),0) -> 0 | E136: =12-$D136 -> 12
B137: wartość netto | C137: =IF(F119<0,0,F119) -> 0 | D137: =C119 ->  | E137: =IF($C119>3.5,ROUND(($C138/12)*$E136,0),$C137) -> 0
B138: amortyzacja roczna | C138: =IF(ISBLANK(D119),0,IF(C119>3.5,ROUND(C137*am_grunty,0),IF(C137<0,0,C137))) -> 0 | J138: =ROUND(IF($C136=LataProjekcji,$E137,IF($C136=LataProjekcji,$C138,0)),0) -> 0 | K138: =ROUND(IF(OR(AND($C136=LataProjekcji,$E136>0),AND($C136=LataProjekcji,$E136=0,$D137<=3.5)),$E137,IF($C136<LataProjekcji,IF((SUM($J138:J138)+$C138)<$C137,$C138,$C137-SUM($J138:J138)),0)),0) -> 0 | L138: =ROUND(IF(OR(AND($C136=LataProjekcji,$E136>0),AND($C136=LataProjekcji,$E136=0,$D137<=3.5)),$E137,IF($C136<LataProjekcji,IF((SUM($J138:K138)+$C138)<$C137,$C138,$C137-SUM($J138:K138)),0)),0) -> 0 | M138: =ROUND(IF(OR(AND($C136=LataProjekcji,$E136>0),AND($C136=LataProjekcji,$E136=0,$D137<=3.5)),$E137,IF($C136<LataProjekcji,IF((SUM($J138:L138)+$C138)<$C137,$C138,$C137-SUM($J138:L138)),0)),0) -> 0 | N138: =ROUND(IF(OR(AND($C136=LataProjekcji,$E136>0),AND($C136=LataProjekcji,$E136=0,$D137<=3.5)),$E137,IF($C136<LataProjekcji,IF((SUM($J138:M138)+$C138)<$C137,$C138,$C137-SUM($J138:M138)),0)),0) -> 0 | O138: =ROUND(IF(OR(AND($C136=LataProjekcji,$E136>0),AND($C136=LataProjekcji,$E136=0,$D137<=3.5)),$E137,IF($C136<LataProjekcji,IF((SUM($J138:N138)+$C138)<$C137,$C138,$C137-SUM($J138:N138)),0)),0) -> 0 | P138: =ROUND(IF(OR(AND($C136=LataProjekcji,$E136>0),AND($C136=LataProjekcji,$E136=0,$D137<=3.5)),$E137,IF($C136<LataProjekcji,IF((SUM($J138:O138)+$C138)<$C137,$C138,$C137-SUM($J138:O138)),0)),0) -> 0 | Q138: =ROUND(IF(OR(AND($C136=LataProjekcji,$E136>0),AND($C136=LataProjekcji,$E136=0,$D137<=3.5)),$E137,IF($C136<LataProjekcji,IF((SUM($J138:P138)+$C138)<$C137,$C138,$C137-SUM($J138:P138)),0)),0) -> 0 | R138: =ROUND(IF(OR(AND($C136=LataProjekcji,$E136>0),AND($C136=LataProjekcji,$E136=0,$D137<=3.5)),$E137,IF($C136<LataProjekcji,IF((SUM($J138:Q138)+$C138)<$C137,$C138,$C137-SUM($J138:Q138)),0)),0) -> 0 | S138: =ROUND(IF(OR(AND($C136=LataProjekcji,$E136>0),AND($C136=LataProjekcji,$E136=0,$D137<=3.5)),$E137,IF($C136<LataProjekcji,IF((SUM($J138:R138)+$C138)<$C137,$C138,$C137-SUM($J138:R138)),0)),0) -> 0 | T138: =ROUND(IF(OR(AND($C136=LataProjekcji,$E136>0),AND($C136=LataProjekcji,$E136=0,$D137<=3.5)),$E137,IF($C136<LataProjekcji,IF((SUM($J138:S138)+$C138)<$C137,$C138,$C137-SUM($J138:S138)),0)),0) -> 0 | U138: =ROUND(IF(OR(AND($C136=LataProjekcji,$E136>0),AND($C136=LataProjekcji,$E136=0,$D137<=3.5)),$E137,IF($C136<LataProjekcji,IF((SUM($J138:T138)+$C138)<$C137,$C138,$C137-SUM($J138:T138)),0)),0) -> 0 | V138: =ROUND(IF(OR(AND($C136=LataProjekcji,$E136>0),AND($C136=LataProjekcji,$E136=0,$D137<=3.5)),$E137,IF($C136<LataProjekcji,IF((SUM($J138:U138)+$C138)<$C137,$C138,$C137-SUM($J138:U138)),0)),0) -> 0 | W138: =ROUND(IF(OR(AND($C136=LataProjekcji,$E136>0),AND($C136=LataProjekcji,$E136=0,$D137<=3.5)),$E137,IF($C136<LataProjekcji,IF((SUM($J138:V138)+$C138)<$C137,$C138,$C137-SUM($J138:V138)),0)),0) -> 0
B139: umorzenie | J139: =ROUND(J138,0) -> 0 | K139: =ROUND(J139+K138,0) -> 0 | L139: =ROUND(K139+L138,0) -> 0 | M139: =ROUND(L139+M138,0) -> 0 | N139: =ROUND(M139+N138,0) -> 0 | O139: =ROUND(N139+O138,0) -> 0 | P139: =ROUND(O139+P138,0) -> 0 | Q139: =ROUND(P139+Q138,0) -> 0 | R139: =ROUND(Q139+R138,0) -> 0 | S139: =ROUND(R139+S138,0) -> 0 | T139: =ROUND(S139+T138,0) -> 0 | U139: =ROUND(T139+U138,0) -> 0 | V139: =ROUND(U139+V138,0) -> 0 | W139: =ROUND(V139+W138,0) -> 0
B140: wartość netto | J140: =IF($C136=LataProjekcji,ROUND($C137-J139,0),ROUND(IF(J138=0,0,$C137-J139),0)) -> 0 | K140: 0 | L140: 0 | M140: 0 | N140: 0 | O140: 0 | P140: 0 | Q140: 0 | R140: 0 | S140: 0 | T140: 0 | U140: 0 | V140: 0 | W140: 0
B142: grunty
B143: rok zakupu | C143: =IFERROR(YEAR(D120),0) -> 0 | D143: =IFERROR(MONTH(D120),0) -> 0 | E143: =12-$D143 -> 12
B144: wartość netto | C144: =IF(F120<0,0,F120) -> 0 | D144: =C120 ->  | E144: =IF($C120>3.5,ROUND(($C145/12)*$E143,0),$C144) -> 0
B145: amortyzacja roczna | C145: =IF(ISBLANK(D120),0,IF(C120>3.5,ROUND(C144*am_grunty,0),IF(C144<0,0,C144))) -> 0 | J145: =ROUND(IF($C143=LataProjekcji,$E144,IF($C143=LataProjekcji,$C145,0)),0) -> 0 | K145: =ROUND(IF(OR(AND($C143=LataProjekcji,$E143>0),AND($C143=LataProjekcji,$E143=0,$D144<=3.5)),$E144,IF($C143<LataProjekcji,IF((SUM($J145:J145)+$C145)<$C144,$C145,$C144-SUM($J145:J145)),0)),0) -> 0 | L145: =ROUND(IF(OR(AND($C143=LataProjekcji,$E143>0),AND($C143=LataProjekcji,$E143=0,$D144<=3.5)),$E144,IF($C143<LataProjekcji,IF((SUM($J145:K145)+$C145)<$C144,$C145,$C144-SUM($J145:K145)),0)),0) -> 0 | M145: =ROUND(IF(OR(AND($C143=LataProjekcji,$E143>0),AND($C143=LataProjekcji,$E143=0,$D144<=3.5)),$E144,IF($C143<LataProjekcji,IF((SUM($J145:L145)+$C145)<$C144,$C145,$C144-SUM($J145:L145)),0)),0) -> 0 | N145: =ROUND(IF(OR(AND($C143=LataProjekcji,$E143>0),AND($C143=LataProjekcji,$E143=0,$D144<=3.5)),$E144,IF($C143<LataProjekcji,IF((SUM($J145:M145)+$C145)<$C144,$C145,$C144-SUM($J145:M145)),0)),0) -> 0 | O145: =ROUND(IF(OR(AND($C143=LataProjekcji,$E143>0),AND($C143=LataProjekcji,$E143=0,$D144<=3.5)),$E144,IF($C143<LataProjekcji,IF((SUM($J145:N145)+$C145)<$C144,$C145,$C144-SUM($J145:N145)),0)),0) -> 0 | P145: =ROUND(IF(OR(AND($C143=LataProjekcji,$E143>0),AND($C143=LataProjekcji,$E143=0,$D144<=3.5)),$E144,IF($C143<LataProjekcji,IF((SUM($J145:O145)+$C145)<$C144,$C145,$C144-SUM($J145:O145)),0)),0) -> 0 | Q145: =ROUND(IF(OR(AND($C143=LataProjekcji,$E143>0),AND($C143=LataProjekcji,$E143=0,$D144<=3.5)),$E144,IF($C143<LataProjekcji,IF((SUM($J145:P145)+$C145)<$C144,$C145,$C144-SUM($J145:P145)),0)),0) -> 0 | R145: =ROUND(IF(OR(AND($C143=LataProjekcji,$E143>0),AND($C143=LataProjekcji,$E143=0,$D144<=3.5)),$E144,IF($C143<LataProjekcji,IF((SUM($J145:Q145)+$C145)<$C144,$C145,$C144-SUM($J145:Q145)),0)),0) -> 0 | S145: =ROUND(IF(OR(AND($C143=LataProjekcji,$E143>0),AND($C143=LataProjekcji,$E143=0,$D144<=3.5)),$E144,IF($C143<LataProjekcji,IF((SUM($J145:R145)+$C145)<$C144,$C145,$C144-SUM($J145:R145)),0)),0) -> 0 | T145: =ROUND(IF(OR(AND($C143=LataProjekcji,$E143>0),AND($C143=LataProjekcji,$E143=0,$D144<=3.5)),$E144,IF($C143<LataProjekcji,IF((SUM($J145:S145)+$C145)<$C144,$C145,$C144-SUM($J145:S145)),0)),0) -> 0 | U145: =ROUND(IF(OR(AND($C143=LataProjekcji,$E143>0),AND($C143=LataProjekcji,$E143=0,$D144<=3.5)),$E144,IF($C143<LataProjekcji,IF((SUM($J145:T145)+$C145)<$C144,$C145,$C144-SUM($J145:T145)),0)),0) -> 0 | V145: =ROUND(IF(OR(AND($C143=LataProjekcji,$E143>0),AND($C143=LataProjekcji,$E143=0,$D144<=3.5)),$E144,IF($C143<LataProjekcji,IF((SUM($J145:U145)+$C145)<$C144,$C145,$C144-SUM($J145:U145)),0)),0) -> 0 | W145: =ROUND(IF(OR(AND($C143=LataProjekcji,$E143>0),AND($C143=LataProjekcji,$E143=0,$D144<=3.5)),$E144,IF($C143<LataProjekcji,IF((SUM($J145:V145)+$C145)<$C144,$C145,$C144-SUM($J145:V145)),0)),0) -> 0
B146: umorzenie | J146: =ROUND(J145,0) -> 0 | K146: =ROUND(J146+K145,0) -> 0 | L146: =ROUND(K146+L145,0) -> 0 | M146: =ROUND(L146+M145,0) -> 0 | N146: =ROUND(M146+N145,0) -> 0 | O146: =ROUND(N146+O145,0) -> 0 | P146: =ROUND(O146+P145,0) -> 0 | Q146: =ROUND(P146+Q145,0) -> 0 | R146: =ROUND(Q146+R145,0) -> 0 | S146: =ROUND(R146+S145,0) -> 0 | T146: =ROUND(S146+T145,0) -> 0 | U146: =ROUND(T146+U145,0) -> 0 | V146: =ROUND(U146+V145,0) -> 0 | W146: =ROUND(V146+W145,0) -> 0
B147: wartość netto | J147: =IF($C143=LataProjekcji,ROUND($C144-J146,0),ROUND(IF(J145=0,0,$C144-J146),0)) -> 0 | K147: 0 | L147: 0 | M147: 0 | N147: 0 | O147: 0 | P147: 0 | Q147: 0 | R147: 0 | S147: 0 | T147: 0 | U147: 0 | V147: 0 | W147: 0
B149: grunty
B150: rok zakupu | C150: =IFERROR(YEAR(D121),0) -> 0 | D150: =IFERROR(MONTH(D121),0) -> 0 | E150: =12-$D150 -> 12
B151: wartość netto | C151: =IF(F121<0,0,F121) -> 0 | D151: =C121 ->  | E151: =IF($C121>3.5,ROUND(($C152/12)*$E150,0),$C151) -> 0
B152: amortyzacja roczna | C152: =IF(ISBLANK(D121),0,IF(C121>3.5,ROUND(C151*am_grunty,0),IF(C151<0,0,C151))) -> 0 | J152: =ROUND(IF($C150=LataProjekcji,$E151,IF($C150=LataProjekcji,$C152,0)),0) -> 0 | K152: =ROUND(IF(OR(AND($C150=LataProjekcji,$E150>0),AND($C150=LataProjekcji,$E150=0,$D151<=3.5)),$E151,IF($C150<LataProjekcji,IF((SUM($J152:J152)+$C152)<$C151,$C152,$C151-SUM($J152:J152)),0)),0) -> 0 | L152: =ROUND(IF(OR(AND($C150=LataProjekcji,$E150>0),AND($C150=LataProjekcji,$E150=0,$D151<=3.5)),$E151,IF($C150<LataProjekcji,IF((SUM($J152:K152)+$C152)<$C151,$C152,$C151-SUM($J152:K152)),0)),0) -> 0 | M152: =ROUND(IF(OR(AND($C150=LataProjekcji,$E150>0),AND($C150=LataProjekcji,$E150=0,$D151<=3.5)),$E151,IF($C150<LataProjekcji,IF((SUM($J152:L152)+$C152)<$C151,$C152,$C151-SUM($J152:L152)),0)),0) -> 0 | N152: =ROUND(IF(OR(AND($C150=LataProjekcji,$E150>0),AND($C150=LataProjekcji,$E150=0,$D151<=3.5)),$E151,IF($C150<LataProjekcji,IF((SUM($J152:M152)+$C152)<$C151,$C152,$C151-SUM($J152:M152)),0)),0) -> 0 | O152: =ROUND(IF(OR(AND($C150=LataProjekcji,$E150>0),AND($C150=LataProjekcji,$E150=0,$D151<=3.5)),$E151,IF($C150<LataProjekcji,IF((SUM($J152:N152)+$C152)<$C151,$C152,$C151-SUM($J152:N152)),0)),0) -> 0 | P152: =ROUND(IF(OR(AND($C150=LataProjekcji,$E150>0),AND($C150=LataProjekcji,$E150=0,$D151<=3.5)),$E151,IF($C150<LataProjekcji,IF((SUM($J152:O152)+$C152)<$C151,$C152,$C151-SUM($J152:O152)),0)),0) -> 0 | Q152: =ROUND(IF(OR(AND($C150=LataProjekcji,$E150>0),AND($C150=LataProjekcji,$E150=0,$D151<=3.5)),$E151,IF($C150<LataProjekcji,IF((SUM($J152:P152)+$C152)<$C151,$C152,$C151-SUM($J152:P152)),0)),0) -> 0 | R152: =ROUND(IF(OR(AND($C150=LataProjekcji,$E150>0),AND($C150=LataProjekcji,$E150=0,$D151<=3.5)),$E151,IF($C150<LataProjekcji,IF((SUM($J152:Q152)+$C152)<$C151,$C152,$C151-SUM($J152:Q152)),0)),0) -> 0 | S152: =ROUND(IF(OR(AND($C150=LataProjekcji,$E150>0),AND($C150=LataProjekcji,$E150=0,$D151<=3.5)),$E151,IF($C150<LataProjekcji,IF((SUM($J152:R152)+$C152)<$C151,$C152,$C151-SUM($J152:R152)),0)),0) -> 0 | T152: =ROUND(IF(OR(AND($C150=LataProjekcji,$E150>0),AND($C150=LataProjekcji,$E150=0,$D151<=3.5)),$E151,IF($C150<LataProjekcji,IF((SUM($J152:S152)+$C152)<$C151,$C152,$C151-SUM($J152:S152)),0)),0) -> 0 | U152: =ROUND(IF(OR(AND($C150=LataProjekcji,$E150>0),AND($C150=LataProjekcji,$E150=0,$D151<=3.5)),$E151,IF($C150<LataProjekcji,IF((SUM($J152:T152)+$C152)<$C151,$C152,$C151-SUM($J152:T152)),0)),0) -> 0 | V152: =ROUND(IF(OR(AND($C150=LataProjekcji,$E150>0),AND($C150=LataProjekcji,$E150=0,$D151<=3.5)),$E151,IF($C150<LataProjekcji,IF((SUM($J152:U152)+$C152)<$C151,$C152,$C151-SUM($J152:U152)),0)),0) -> 0 | W152: =ROUND(IF(OR(AND($C150=LataProjekcji,$E150>0),AND($C150=LataProjekcji,$E150=0,$D151<=3.5)),$E151,IF($C150<LataProjekcji,IF((SUM($J152:V152)+$C152)<$C151,$C152,$C151-SUM($J152:V152)),0)),0) -> 0
B153: umorzenie | J153: =ROUND(J152,0) -> 0 | K153: =ROUND(J153+K152,0) -> 0 | L153: =ROUND(K153+L152,0) -> 0 | M153: =ROUND(L153+M152,0) -> 0 | N153: =ROUND(M153+N152,0) -> 0 | O153: =ROUND(N153+O152,0) -> 0 | P153: =ROUND(O153+P152,0) -> 0 | Q153: =ROUND(P153+Q152,0) -> 0 | R153: =ROUND(Q153+R152,0) -> 0 | S153: =ROUND(R153+S152,0) -> 0 | T153: =ROUND(S153+T152,0) -> 0 | U153: =ROUND(T153+U152,0) -> 0 | V153: =ROUND(U153+V152,0) -> 0 | W153: =ROUND(V153+W152,0) -> 0
B154: wartość netto | J154: =IF($C150=LataProjekcji,ROUND($C151-J153,0),ROUND(IF(J152=0,0,$C151-J153),0)) -> 0 | K154: 0 | L154: 0 | M154: 0 | N154: 0 | O154: 0 | P154: 0 | Q154: 0 | R154: 0 | S154: 0 | T154: 0 | U154: 0 | V154: 0 | W154: 0
B156: grunty
B157: rok zakupu | C157: =IFERROR(YEAR(D122),0) -> 0 | D157: =IFERROR(MONTH(D122),0) -> 0 | E157: =12-$D157 -> 12
B158: wartość netto | C158: =IF(F122<0,0,F122) -> 0 | D158: =C122 ->  | E158: =IF($C122>3.5,ROUND(($C159/12)*$E157,0),$C158) -> 0
B159: amortyzacja roczna | C159: =IF(ISBLANK(D122),0,IF(C122>3.5,ROUND(C158*am_grunty,0),IF(C158<0,0,C158))) -> 0 | J159: =ROUND(IF($C157=LataProjekcji,$E158,IF($C157=LataProjekcji,$C159,0)),0) -> 0 | K159: =ROUND(IF(OR(AND($C157=LataProjekcji,$E157>0),AND($C157=LataProjekcji,$E157=0,$D158<=3.5)),$E158,IF($C157<LataProjekcji,IF((SUM($J159:J159)+$C159)<$C158,$C159,$C158-SUM($J159:J159)),0)),0) -> 0 | L159: =ROUND(IF(OR(AND($C157=LataProjekcji,$E157>0),AND($C157=LataProjekcji,$E157=0,$D158<=3.5)),$E158,IF($C157<LataProjekcji,IF((SUM($J159:K159)+$C159)<$C158,$C159,$C158-SUM($J159:K159)),0)),0) -> 0 | M159: =ROUND(IF(OR(AND($C157=LataProjekcji,$E157>0),AND($C157=LataProjekcji,$E157=0,$D158<=3.5)),$E158,IF($C157<LataProjekcji,IF((SUM($J159:L159)+$C159)<$C158,$C159,$C158-SUM($J159:L159)),0)),0) -> 0 | N159: =ROUND(IF(OR(AND($C157=LataProjekcji,$E157>0),AND($C157=LataProjekcji,$E157=0,$D158<=3.5)),$E158,IF($C157<LataProjekcji,IF((SUM($J159:M159)+$C159)<$C158,$C159,$C158-SUM($J159:M159)),0)),0) -> 0 | O159: =ROUND(IF(OR(AND($C157=LataProjekcji,$E157>0),AND($C157=LataProjekcji,$E157=0,$D158<=3.5)),$E158,IF($C157<LataProjekcji,IF((SUM($J159:N159)+$C159)<$C158,$C159,$C158-SUM($J159:N159)),0)),0) -> 0 | P159: =ROUND(IF(OR(AND($C157=LataProjekcji,$E157>0),AND($C157=LataProjekcji,$E157=0,$D158<=3.5)),$E158,IF($C157<LataProjekcji,IF((SUM($J159:O159)+$C159)<$C158,$C159,$C158-SUM($J159:O159)),0)),0) -> 0 | Q159: =ROUND(IF(OR(AND($C157=LataProjekcji,$E157>0),AND($C157=LataProjekcji,$E157=0,$D158<=3.5)),$E158,IF($C157<LataProjekcji,IF((SUM($J159:P159)+$C159)<$C158,$C159,$C158-SUM($J159:P159)),0)),0) -> 0 | R159: =ROUND(IF(OR(AND($C157=LataProjekcji,$E157>0),AND($C157=LataProjekcji,$E157=0,$D158<=3.5)),$E158,IF($C157<LataProjekcji,IF((SUM($J159:Q159)+$C159)<$C158,$C159,$C158-SUM($J159:Q159)),0)),0) -> 0 | S159: =ROUND(IF(OR(AND($C157=LataProjekcji,$E157>0),AND($C157=LataProjekcji,$E157=0,$D158<=3.5)),$E158,IF($C157<LataProjekcji,IF((SUM($J159:R159)+$C159)<$C158,$C159,$C158-SUM($J159:R159)),0)),0) -> 0 | T159: =ROUND(IF(OR(AND($C157=LataProjekcji,$E157>0),AND($C157=LataProjekcji,$E157=0,$D158<=3.5)),$E158,IF($C157<LataProjekcji,IF((SUM($J159:S159)+$C159)<$C158,$C159,$C158-SUM($J159:S159)),0)),0) -> 0 | U159: =ROUND(IF(OR(AND($C157=LataProjekcji,$E157>0),AND($C157=LataProjekcji,$E157=0,$D158<=3.5)),$E158,IF($C157<LataProjekcji,IF((SUM($J159:T159)+$C159)<$C158,$C159,$C158-SUM($J159:T159)),0)),0) -> 0 | V159: =ROUND(IF(OR(AND($C157=LataProjekcji,$E157>0),AND($C157=LataProjekcji,$E157=0,$D158<=3.5)),$E158,IF($C157<LataProjekcji,IF((SUM($J159:U159)+$C159)<$C158,$C159,$C158-SUM($J159:U159)),0)),0) -> 0 | W159: =ROUND(IF(OR(AND($C157=LataProjekcji,$E157>0),AND($C157=LataProjekcji,$E157=0,$D158<=3.5)),$E158,IF($C157<LataProjekcji,IF((SUM($J159:V159)+$C159)<$C158,$C159,$C158-SUM($J159:V159)),0)),0) -> 0
B160: umorzenie | J160: =ROUND(J159,0) -> 0 | K160: =ROUND(J160+K159,0) -> 0 | L160: =ROUND(K160+L159,0) -> 0 | M160: =ROUND(L160+M159,0) -> 0 | N160: =ROUND(M160+N159,0) -> 0 | O160: =ROUND(N160+O159,0) -> 0 | P160: =ROUND(O160+P159,0) -> 0 | Q160: =ROUND(P160+Q159,0) -> 0 | R160: =ROUND(Q160+R159,0) -> 0 | S160: =ROUND(R160+S159,0) -> 0 | T160: =ROUND(S160+T159,0) -> 0 | U160: =ROUND(T160+U159,0) -> 0 | V160: =ROUND(U160+V159,0) -> 0 | W160: =ROUND(V160+W159,0) -> 0
B161: wartość netto | J161: =IF($C157=LataProjekcji,ROUND($C158-J160,0),ROUND(IF(J159=0,0,$C158-J160),0)) -> 0 | K161: 0 | L161: 0 | M161: 0 | N161: 0 | O161: 0 | P161: 0 | Q161: 0 | R161: 0 | S161: 0 | T161: 0 | U161: 0 | V161: 0 | W161: 0
B162: budynki i budowle | C162: wartość netto | D162: rok i miesiąc zakupu | E162: dofinansowanie % | F162: dofinansowanie PLN | J162: =LataProjekcji -> Uzupełnij dane
B163: =IF(ISBLANK('Środki trwałe'!B231),"",'Środki trwałe'!B231) ->  | C163: =IF(ISBLANK('Środki trwałe'!C231),"",'Środki trwałe'!C231) ->  | D163: =IF(ISBLANK('Środki trwałe'!D231),"",'Środki trwałe'!D231) ->  | E163: =IF(ISBLANK('Środki trwałe'!E231),"",'Środki trwałe'!E231) ->  | F163: =IFERROR(IF(E163=0,0,ROUND(E163*C163,0)),0) -> 0 | J163: =IFERROR(ROUND(IF(AND(YEAR($D163)=LataProjekcji,$F163>0),$F163,0),0),0) -> 0 | K163: 0 | L163: 0 | M163: 0 | N163: 0 | O163: 0 | P163: 0 | Q163: 0 | R163: 0 | S163: 0 | T163: 0 | U163: 0 | V163: 0 | W163: 0
B164: =IF(ISBLANK('Środki trwałe'!B232),"",'Środki trwałe'!B232) ->  | C164: =IF(ISBLANK('Środki trwałe'!C232),"",'Środki trwałe'!C232) ->  | D164: =IF(ISBLANK('Środki trwałe'!D232),"",'Środki trwałe'!D232) ->  | E164: =IF(ISBLANK('Środki trwałe'!E232),"",'Środki trwałe'!E232) ->  | F164: =IFERROR(IF(E164=0,0,ROUND(E164*C164,0)),0) -> 0 | J164: 0 | K164: 0 | L164: 0 | M164: 0 | N164: 0 | O164: 0 | P164: 0 | Q164: 0 | R164: 0 | S164: 0 | T164: 0 | U164: 0 | V164: 0 | W164: 0
B165: =IF(ISBLANK('Środki trwałe'!B233),"",'Środki trwałe'!B233) ->  | C165: =IF(ISBLANK('Środki trwałe'!C233),"",'Środki trwałe'!C233) ->  | D165: =IF(ISBLANK('Środki trwałe'!D233),"",'Środki trwałe'!D233) ->  | E165: =IF(ISBLANK('Środki trwałe'!E233),"",'Środki trwałe'!E233) ->  | F165: =IFERROR(IF(E165=0,0,ROUND(E165*C165,0)),0) -> 0 | J165: 0 | K165: 0 | L165: 0 | M165: 0 | N165: 0 | O165: 0 | P165: 0 | Q165: 0 | R165: 0 | S165: 0 | T165: 0 | U165: 0 | V165: 0 | W165: 0
B166: =IF(ISBLANK('Środki trwałe'!B234),"",'Środki trwałe'!B234) ->  | C166: =IF(ISBLANK('Środki trwałe'!C234),"",'Środki trwałe'!C234) ->  | D166: =IF(ISBLANK('Środki trwałe'!D234),"",'Środki trwałe'!D234) ->  | E166: =IF(ISBLANK('Środki trwałe'!E234),"",'Środki trwałe'!E234) ->  | F166: =IFERROR(IF(E166=0,0,ROUND(E166*C166,0)),0) -> 0 | J166: 0 | K166: 0 | L166: 0 | M166: 0 | N166: 0 | O166: 0 | P166: 0 | Q166: 0 | R166: 0 | S166: 0 | T166: 0 | U166: 0 | V166: 0 | W166: 0
B167: =IF(ISBLANK('Środki trwałe'!B235),"",'Środki trwałe'!B235) ->  | C167: =IF(ISBLANK('Środki trwałe'!C235),"",'Środki trwałe'!C235) ->  | D167: =IF(ISBLANK('Środki trwałe'!D235),"",'Środki trwałe'!D235) ->  | E167: =IF(ISBLANK('Środki trwałe'!E235),"",'Środki trwałe'!E235) ->  | F167: =IFERROR(IF(E167=0,0,ROUND(E167*C167,0)),0) -> 0 | J167: 0 | K167: 0 | L167: 0 | M167: 0 | N167: 0 | O167: 0 | P167: 0 | Q167: 0 | R167: 0 | S167: 0 | T167: 0 | U167: 0 | V167: 0 | W167: 0
B168: =IF(ISBLANK('Środki trwałe'!B236),"",'Środki trwałe'!B236) -> zrealizowane środki trwałe w budowie | C168: =IF(ISBLANK('Środki trwałe'!C236),"",'Środki trwałe'!C236) -> 0 | D168: =IF(ISBLANK('Środki trwałe'!D236),"",'Środki trwałe'!D236) ->  | E168: =IF(ISBLANK('Środki trwałe'!E247),"",'Środki trwałe'!E247) ->  | F168: =IFERROR(IF(E168=0,0,ROUND(E168*C168,0)),0) -> 0 | J168: 0 | K168: 0 | L168: 0 | M168: 0 | N168: 0 | O168: 0 | P168: 0 | Q168: 0 | R168: 0 | S168: 0 | T168: 0 | U168: 0 | V168: 0 | W168: 0
B169: =IF(ISBLANK('Środki trwałe'!B237),"",'Środki trwałe'!B237) -> zrealizowane środki trwałe w budowie | C169: =IF(ISBLANK('Środki trwałe'!C237),"",'Środki trwałe'!C237) -> 0 | D169: =IF(ISBLANK('Środki trwałe'!D237),"",'Środki trwałe'!D237) ->  | E169: =IF(ISBLANK('Środki trwałe'!E248),"",'Środki trwałe'!E248) ->  | F169: 0 | J169: 0 | K169: 0 | L169: 0 | M169: 0 | N169: 0 | O169: 0 | P169: 0 | Q169: 0 | R169: 0 | S169: 0 | T169: 0 | U169: 0 | V169: 0 | W169: 0
B170: =IF(ISBLANK('Środki trwałe'!B238),"",'Środki trwałe'!B238) -> zrealizowane środki trwałe w budowie | C170: =IF(ISBLANK('Środki trwałe'!C238),"",'Środki trwałe'!C238) -> 0 | D170: =IF(ISBLANK('Środki trwałe'!D238),"",'Środki trwałe'!D238) ->  | E170: =IF(ISBLANK('Środki trwałe'!E249),"",'Środki trwałe'!E249) ->  | F170: 0 | J170: 0 | K170: 0 | L170: 0 | M170: 0 | N170: 0 | O170: 0 | P170: 0 | Q170: 0 | R170: 0 | S170: 0 | T170: 0 | U170: 0 | V170: 0 | W170: 0
B171: =IF(ISBLANK('Środki trwałe'!B239),"",'Środki trwałe'!B239) -> zrealizowane środki trwałe w budowie | C171: =IF(ISBLANK('Środki trwałe'!C239),"",'Środki trwałe'!C239) -> 0 | D171: =IF(ISBLANK('Środki trwałe'!D239),"",'Środki trwałe'!D239) ->  | E171: =IF(ISBLANK('Środki trwałe'!E250),"",'Środki trwałe'!E250) ->  | F171: 0 | J171: 0 | K171: 0 | L171: 0 | M171: 0 | N171: 0 | O171: 0 | P171: 0 | Q171: 0 | R171: 0 | S171: 0 | T171: 0 | U171: 0 | V171: 0 | W171: 0
B172: =IF(ISBLANK('Środki trwałe'!B240),"",'Środki trwałe'!B240) -> zrealizowane środki trwałe w budowie | C172: =IF(ISBLANK('Środki trwałe'!C240),"",'Środki trwałe'!C240) -> 0 | D172: =IF(ISBLANK('Środki trwałe'!D240),"",'Środki trwałe'!D240) ->  | E172: =IF(ISBLANK('Środki trwałe'!E251),"",'Środki trwałe'!E251) ->  | F172: 0 | J172: 0 | K172: 0 | L172: 0 | M172: 0 | N172: 0 | O172: 0 | P172: 0 | Q172: 0 | R172: 0 | S172: 0 | T172: 0 | U172: 0 | V172: 0 | W172: 0
B173: Razem | C173: =SUM(C163:C172) -> 0 | F173: =ROUND(SUM(F163:F172),0) -> 0 | J173: =ROUND(SUM(J163:J172),0) -> 0 | K173: =ROUND(SUM(K163:K172),0) -> 0 | L173: 0 | M173: 0 | N173: 0 | O173: 0 | P173: 0 | Q173: 0 | R173: 0 | S173: 0 | T173: 0 | U173: 0 | V173: 0 | W173: 0
B174: - dotacja w okresie (pozostałe przychody) | J174: =ROUND(J181+J188+J195+J202+J209+J216+J223+J230+J237+J244,0) -> 0 | K174: =ROUND(K181+K188+K195+K202+K209+K216+K223+K230+K237+K244,0) -> 0 | L174: 0 | M174: 0 | N174: 0 | O174: 0 | P174: 0 | Q174: 0 | R174: 0 | S174: 0 | T174: 0 | U174: 0 | V174: 0 | W174: 0
B175: - dotacja narastająco | J175: =ROUND(J182+J189+J196+J203+J210+J217+J224+J231+J238+J245,0) -> 0 | K175: =ROUND(K182+K189+K196+K203+K210+K217+K224+K231+K238+K245,0) -> 0 | L175: 0 | M175: 0 | N175: 0 | O175: 0 | P175: 0 | Q175: 0 | R175: 0 | S175: 0 | T175: 0 | U175: 0 | V175: 0 | W175: 0
B176: - rozliczenia międzyokresowe bierne | J176: =ROUND(J183+J190+J197+J204+J211+J218+J225+J232+J239+J246,0) -> 0 | K176: =ROUND(K183+K190+K197+K204+K211+K218+K225+K232+K239+K246,0) -> 0 | L176: 0 | M176: 0 | N176: 0 | O176: 0 | P176: 0 | Q176: 0 | R176: 0 | S176: 0 | T176: 0 | U176: 0 | V176: 0 | W176: 0
B178: budynki i budowle | E178: ile miesiący do końca roku | G178: niekwalifikowalne | H178: spr
B179: rok zakupu | C179: =IFERROR(YEAR(D163),0) -> 0 | D179: =IFERROR(MONTH(D163),0) -> 0 | E179: =12-$D179 -> 12 | G179: =C173-F179 -> 0 | H179: =C173-F179-G179 -> 0
B180: wartość netto | C180: =IF(F163<0,0,F163) -> 0 | D180: =C163 ->  | E180: =IF($C163>3.5,ROUND(($C181/12)*$E179,0),$C180) -> 0 | F180: <- am. Do końca roku
B181: amortyzacja roczna | C181: =IF(ISBLANK(D163),0,IF(C163>3.5,ROUND(C180*am_budynki,0),IF(C180<0,0,C180))) -> 0 | J181: =ROUND(IF($C179=LataProjekcji,$E180,IF($C179=LataProjekcji,$C181,0)),0) -> 0 | K181: =ROUND(IF(OR(AND($C179=LataProjekcji,$E179>0),AND($C179=LataProjekcji,$E179=0,$D180<=3.5)),$E180,IF($C179<LataProjekcji,IF((SUM($J181:J181)+$C181)<$C180,$C181,$C180-SUM($J181:J181)),0)),0) -> 0 | L181: =ROUND(IF(OR(AND($C179=LataProjekcji,$E179>0),AND($C179=LataProjekcji,$E179=0,$D180<=3.5)),$E180,IF($C179<LataProjekcji,IF((SUM($J181:K181)+$C181)<$C180,$C181,$C180-SUM($J181:K181)),0)),0) -> 0 | M181: =ROUND(IF(OR(AND($C179=LataProjekcji,$E179>0),AND($C179=LataProjekcji,$E179=0,$D180<=3.5)),$E180,IF($C179<LataProjekcji,IF((SUM($J181:L181)+$C181)<$C180,$C181,$C180-SUM($J181:L181)),0)),0) -> 0 | N181: =ROUND(IF(OR(AND($C179=LataProjekcji,$E179>0),AND($C179=LataProjekcji,$E179=0,$D180<=3.5)),$E180,IF($C179<LataProjekcji,IF((SUM($J181:M181)+$C181)<$C180,$C181,$C180-SUM($J181:M181)),0)),0) -> 0 | O181: =ROUND(IF(OR(AND($C179=LataProjekcji,$E179>0),AND($C179=LataProjekcji,$E179=0,$D180<=3.5)),$E180,IF($C179<LataProjekcji,IF((SUM($J181:N181)+$C181)<$C180,$C181,$C180-SUM($J181:N181)),0)),0) -> 0 | P181: =ROUND(IF(OR(AND($C179=LataProjekcji,$E179>0),AND($C179=LataProjekcji,$E179=0,$D180<=3.5)),$E180,IF($C179<LataProjekcji,IF((SUM($J181:O181)+$C181)<$C180,$C181,$C180-SUM($J181:O181)),0)),0) -> 0 | Q181: =ROUND(IF(OR(AND($C179=LataProjekcji,$E179>0),AND($C179=LataProjekcji,$E179=0,$D180<=3.5)),$E180,IF($C179<LataProjekcji,IF((SUM($J181:P181)+$C181)<$C180,$C181,$C180-SUM($J181:P181)),0)),0) -> 0 | R181: =ROUND(IF(OR(AND($C179=LataProjekcji,$E179>0),AND($C179=LataProjekcji,$E179=0,$D180<=3.5)),$E180,IF($C179<LataProjekcji,IF((SUM($J181:Q181)+$C181)<$C180,$C181,$C180-SUM($J181:Q181)),0)),0) -> 0 | S181: =ROUND(IF(OR(AND($C179=LataProjekcji,$E179>0),AND($C179=LataProjekcji,$E179=0,$D180<=3.5)),$E180,IF($C179<LataProjekcji,IF((SUM($J181:R181)+$C181)<$C180,$C181,$C180-SUM($J181:R181)),0)),0) -> 0 | T181: =ROUND(IF(OR(AND($C179=LataProjekcji,$E179>0),AND($C179=LataProjekcji,$E179=0,$D180<=3.5)),$E180,IF($C179<LataProjekcji,IF((SUM($J181:S181)+$C181)<$C180,$C181,$C180-SUM($J181:S181)),0)),0) -> 0 | U181: =ROUND(IF(OR(AND($C179=LataProjekcji,$E179>0),AND($C179=LataProjekcji,$E179=0,$D180<=3.5)),$E180,IF($C179<LataProjekcji,IF((SUM($J181:T181)+$C181)<$C180,$C181,$C180-SUM($J181:T181)),0)),0) -> 0 | V181: =ROUND(IF(OR(AND($C179=LataProjekcji,$E179>0),AND($C179=LataProjekcji,$E179=0,$D180<=3.5)),$E180,IF($C179<LataProjekcji,IF((SUM($J181:U181)+$C181)<$C180,$C181,$C180-SUM($J181:U181)),0)),0) -> 0 | W181: =ROUND(IF(OR(AND($C179=LataProjekcji,$E179>0),AND($C179=LataProjekcji,$E179=0,$D180<=3.5)),$E180,IF($C179<LataProjekcji,IF((SUM($J181:V181)+$C181)<$C180,$C181,$C180-SUM($J181:V181)),0)),0) -> 0
B182: umorzenie | J182: =ROUND(J181,0) -> 0 | K182: =ROUND(J182+K181,0) -> 0 | L182: =ROUND(K182+L181,0) -> 0 | M182: =ROUND(L182+M181,0) -> 0 | N182: =ROUND(M182+N181,0) -> 0 | O182: =ROUND(N182+O181,0) -> 0 | P182: =ROUND(O182+P181,0) -> 0 | Q182: =ROUND(P182+Q181,0) -> 0 | R182: =ROUND(Q182+R181,0) -> 0 | S182: =ROUND(R182+S181,0) -> 0 | T182: =ROUND(S182+T181,0) -> 0 | U182: =ROUND(T182+U181,0) -> 0 | V182: =ROUND(U182+V181,0) -> 0 | W182: =ROUND(V182+W181,0) -> 0
B183: wartość netto | J183: =IF($C179=LataProjekcji,ROUND($C180-J182,0),ROUND(IF(J181=0,0,$C180-J182),0)) -> 0 | K183: 0 | L183: 0 | M183: 0 | N183: 0 | O183: 0 | P183: 0 | Q183: 0 | R183: 0 | S183: 0 | T183: 0 | U183: 0 | V183: 0 | W183: 0
B185: budynki i budowle
B186: rok zakupu | C186: =IFERROR(YEAR(D164),0) -> 0 | D186: =IFERROR(MONTH(D164),0) -> 0 | E186: =12-$D186 -> 12
B187: wartość netto | C187: =IF(F164<0,0,F164) -> 0 | D187: =C164 ->  | E187: =IF($C164>3.5,ROUND(($C188/12)*$E186,0),$C187) -> 0
B188: amortyzacja roczna | C188: =IF(ISBLANK(D164),0,IF(C164>3.5,ROUND(C187*am_budynki,0),IF(C187<0,0,C187))) -> 0 | J188: =ROUND(IF($C186=LataProjekcji,$E187,IF($C186=LataProjekcji,$C188,0)),0) -> 0 | K188: =ROUND(IF(OR(AND($C186=LataProjekcji,$E186>0),AND($C186=LataProjekcji,$E186=0,$D187<=3.5)),$E187,IF($C186<LataProjekcji,IF((SUM($J188:J188)+$C188)<$C187,$C188,$C187-SUM($J188:J188)),0)),0) -> 0 | L188: =ROUND(IF(OR(AND($C186=LataProjekcji,$E186>0),AND($C186=LataProjekcji,$E186=0,$D187<=3.5)),$E187,IF($C186<LataProjekcji,IF((SUM($J188:K188)+$C188)<$C187,$C188,$C187-SUM($J188:K188)),0)),0) -> 0 | M188: =ROUND(IF(OR(AND($C186=LataProjekcji,$E186>0),AND($C186=LataProjekcji,$E186=0,$D187<=3.5)),$E187,IF($C186<LataProjekcji,IF((SUM($J188:L188)+$C188)<$C187,$C188,$C187-SUM($J188:L188)),0)),0) -> 0 | N188: =ROUND(IF(OR(AND($C186=LataProjekcji,$E186>0),AND($C186=LataProjekcji,$E186=0,$D187<=3.5)),$E187,IF($C186<LataProjekcji,IF((SUM($J188:M188)+$C188)<$C187,$C188,$C187-SUM($J188:M188)),0)),0) -> 0 | O188: =ROUND(IF(OR(AND($C186=LataProjekcji,$E186>0),AND($C186=LataProjekcji,$E186=0,$D187<=3.5)),$E187,IF($C186<LataProjekcji,IF((SUM($J188:N188)+$C188)<$C187,$C188,$C187-SUM($J188:N188)),0)),0) -> 0 | P188: =ROUND(IF(OR(AND($C186=LataProjekcji,$E186>0),AND($C186=LataProjekcji,$E186=0,$D187<=3.5)),$E187,IF($C186<LataProjekcji,IF((SUM($J188:O188)+$C188)<$C187,$C188,$C187-SUM($J188:O188)),0)),0) -> 0 | Q188: =ROUND(IF(OR(AND($C186=LataProjekcji,$E186>0),AND($C186=LataProjekcji,$E186=0,$D187<=3.5)),$E187,IF($C186<LataProjekcji,IF((SUM($J188:P188)+$C188)<$C187,$C188,$C187-SUM($J188:P188)),0)),0) -> 0 | R188: =ROUND(IF(OR(AND($C186=LataProjekcji,$E186>0),AND($C186=LataProjekcji,$E186=0,$D187<=3.5)),$E187,IF($C186<LataProjekcji,IF((SUM($J188:Q188)+$C188)<$C187,$C188,$C187-SUM($J188:Q188)),0)),0) -> 0 | S188: =ROUND(IF(OR(AND($C186=LataProjekcji,$E186>0),AND($C186=LataProjekcji,$E186=0,$D187<=3.5)),$E187,IF($C186<LataProjekcji,IF((SUM($J188:R188)+$C188)<$C187,$C188,$C187-SUM($J188:R188)),0)),0) -> 0 | T188: =ROUND(IF(OR(AND($C186=LataProjekcji,$E186>0),AND($C186=LataProjekcji,$E186=0,$D187<=3.5)),$E187,IF($C186<LataProjekcji,IF((SUM($J188:S188)+$C188)<$C187,$C188,$C187-SUM($J188:S188)),0)),0) -> 0 | U188: =ROUND(IF(OR(AND($C186=LataProjekcji,$E186>0),AND($C186=LataProjekcji,$E186=0,$D187<=3.5)),$E187,IF($C186<LataProjekcji,IF((SUM($J188:T188)+$C188)<$C187,$C188,$C187-SUM($J188:T188)),0)),0) -> 0 | V188: =ROUND(IF(OR(AND($C186=LataProjekcji,$E186>0),AND($C186=LataProjekcji,$E186=0,$D187<=3.5)),$E187,IF($C186<LataProjekcji,IF((SUM($J188:U188)+$C188)<$C187,$C188,$C187-SUM($J188:U188)),0)),0) -> 0 | W188: =ROUND(IF(OR(AND($C186=LataProjekcji,$E186>0),AND($C186=LataProjekcji,$E186=0,$D187<=3.5)),$E187,IF($C186<LataProjekcji,IF((SUM($J188:V188)+$C188)<$C187,$C188,$C187-SUM($J188:V188)),0)),0) -> 0
B189: umorzenie | J189: =ROUND(J188,0) -> 0 | K189: =ROUND(J189+K188,0) -> 0 | L189: =ROUND(K189+L188,0) -> 0 | M189: =ROUND(L189+M188,0) -> 0 | N189: =ROUND(M189+N188,0) -> 0 | O189: =ROUND(N189+O188,0) -> 0 | P189: =ROUND(O189+P188,0) -> 0 | Q189: =ROUND(P189+Q188,0) -> 0 | R189: =ROUND(Q189+R188,0) -> 0 | S189: =ROUND(R189+S188,0) -> 0 | T189: =ROUND(S189+T188,0) -> 0 | U189: =ROUND(T189+U188,0) -> 0 | V189: =ROUND(U189+V188,0) -> 0 | W189: =ROUND(V189+W188,0) -> 0
B190: wartość netto | J190: =IF($C186=LataProjekcji,ROUND($C187-J189,0),ROUND(IF(J188=0,0,$C187-J189),0)) -> 0 | K190: 0 | L190: 0 | M190: 0 | N190: 0 | O190: 0 | P190: 0 | Q190: 0 | R190: 0 | S190: 0 | T190: 0 | U190: 0 | V190: 0 | W190: 0
B192: budynki i budowle
B193: rok zakupu | C193: =IFERROR(YEAR(D165),0) -> 0 | D193: =IFERROR(MONTH(D165),0) -> 0 | E193: =12-$D193 -> 12
B194: wartość netto | C194: =IF(F165<0,0,F165) -> 0 | D194: =C165 ->  | E194: =IF($C165>3.5,ROUND(($C195/12)*$E193,0),$C194) -> 0
B195: amortyzacja roczna | C195: =IF(ISBLANK(D165),0,IF(C165>3.5,ROUND(C194*am_budynki,0),IF(C194<0,0,C194))) -> 0 | J195: =ROUND(IF($C193=LataProjekcji,$E194,IF($C193=LataProjekcji,$C195,0)),0) -> 0 | K195: =ROUND(IF(OR(AND($C193=LataProjekcji,$E193>0),AND($C193=LataProjekcji,$E193=0,$D194<=3.5)),$E194,IF($C193<LataProjekcji,IF((SUM($J195:J195)+$C195)<$C194,$C195,$C194-SUM($J195:J195)),0)),0) -> 0 | L195: =ROUND(IF(OR(AND($C193=LataProjekcji,$E193>0),AND($C193=LataProjekcji,$E193=0,$D194<=3.5)),$E194,IF($C193<LataProjekcji,IF((SUM($J195:K195)+$C195)<$C194,$C195,$C194-SUM($J195:K195)),0)),0) -> 0 | M195: =ROUND(IF(OR(AND($C193=LataProjekcji,$E193>0),AND($C193=LataProjekcji,$E193=0,$D194<=3.5)),$E194,IF($C193<LataProjekcji,IF((SUM($J195:L195)+$C195)<$C194,$C195,$C194-SUM($J195:L195)),0)),0) -> 0 | N195: =ROUND(IF(OR(AND($C193=LataProjekcji,$E193>0),AND($C193=LataProjekcji,$E193=0,$D194<=3.5)),$E194,IF($C193<LataProjekcji,IF((SUM($J195:M195)+$C195)<$C194,$C195,$C194-SUM($J195:M195)),0)),0) -> 0 | O195: =ROUND(IF(OR(AND($C193=LataProjekcji,$E193>0),AND($C193=LataProjekcji,$E193=0,$D194<=3.5)),$E194,IF($C193<LataProjekcji,IF((SUM($J195:N195)+$C195)<$C194,$C195,$C194-SUM($J195:N195)),0)),0) -> 0 | P195: =ROUND(IF(OR(AND($C193=LataProjekcji,$E193>0),AND($C193=LataProjekcji,$E193=0,$D194<=3.5)),$E194,IF($C193<LataProjekcji,IF((SUM($J195:O195)+$C195)<$C194,$C195,$C194-SUM($J195:O195)),0)),0) -> 0 | Q195: =ROUND(IF(OR(AND($C193=LataProjekcji,$E193>0),AND($C193=LataProjekcji,$E193=0,$D194<=3.5)),$E194,IF($C193<LataProjekcji,IF((SUM($J195:P195)+$C195)<$C194,$C195,$C194-SUM($J195:P195)),0)),0) -> 0 | R195: =ROUND(IF(OR(AND($C193=LataProjekcji,$E193>0),AND($C193=LataProjekcji,$E193=0,$D194<=3.5)),$E194,IF($C193<LataProjekcji,IF((SUM($J195:Q195)+$C195)<$C194,$C195,$C194-SUM($J195:Q195)),0)),0) -> 0 | S195: =ROUND(IF(OR(AND($C193=LataProjekcji,$E193>0),AND($C193=LataProjekcji,$E193=0,$D194<=3.5)),$E194,IF($C193<LataProjekcji,IF((SUM($J195:R195)+$C195)<$C194,$C195,$C194-SUM($J195:R195)),0)),0) -> 0 | T195: =ROUND(IF(OR(AND($C193=LataProjekcji,$E193>0),AND($C193=LataProjekcji,$E193=0,$D194<=3.5)),$E194,IF($C193<LataProjekcji,IF((SUM($J195:S195)+$C195)<$C194,$C195,$C194-SUM($J195:S195)),0)),0) -> 0 | U195: =ROUND(IF(OR(AND($C193=LataProjekcji,$E193>0),AND($C193=LataProjekcji,$E193=0,$D194<=3.5)),$E194,IF($C193<LataProjekcji,IF((SUM($J195:T195)+$C195)<$C194,$C195,$C194-SUM($J195:T195)),0)),0) -> 0 | V195: =ROUND(IF(OR(AND($C193=LataProjekcji,$E193>0),AND($C193=LataProjekcji,$E193=0,$D194<=3.5)),$E194,IF($C193<LataProjekcji,IF((SUM($J195:U195)+$C195)<$C194,$C195,$C194-SUM($J195:U195)),0)),0) -> 0 | W195: =ROUND(IF(OR(AND($C193=LataProjekcji,$E193>0),AND($C193=LataProjekcji,$E193=0,$D194<=3.5)),$E194,IF($C193<LataProjekcji,IF((SUM($J195:V195)+$C195)<$C194,$C195,$C194-SUM($J195:V195)),0)),0) -> 0
B196: umorzenie | J196: =ROUND(J195,0) -> 0 | K196: =ROUND(J196+K195,0) -> 0 | L196: =ROUND(K196+L195,0) -> 0 | M196: =ROUND(L196+M195,0) -> 0 | N196: =ROUND(M196+N195,0) -> 0 | O196: =ROUND(N196+O195,0) -> 0 | P196: =ROUND(O196+P195,0) -> 0 | Q196: =ROUND(P196+Q195,0) -> 0 | R196: =ROUND(Q196+R195,0) -> 0 | S196: =ROUND(R196+S195,0) -> 0 | T196: =ROUND(S196+T195,0) -> 0 | U196: =ROUND(T196+U195,0) -> 0 | V196: =ROUND(U196+V195,0) -> 0 | W196: =ROUND(V196+W195,0) -> 0
B197: wartość netto | J197: =IF($C193=LataProjekcji,ROUND($C194-J196,0),ROUND(IF(J195=0,0,$C194-J196),0)) -> 0 | K197: 0 | L197: 0 | M197: 0 | N197: 0 | O197: 0 | P197: 0 | Q197: 0 | R197: 0 | S197: 0 | T197: 0 | U197: 0 | V197: 0 | W197: 0
B199: budynki i budowle
B200: rok zakupu | C200: =IFERROR(YEAR(D166),0) -> 0 | D200: =IFERROR(MONTH(D166),0) -> 0 | E200: =12-$D200 -> 12
B201: wartość netto | C201: =IF(F166<0,0,F166) -> 0 | D201: =C166 ->  | E201: =IF($C166>3.5,ROUND(($C202/12)*$E200,0),$C201) -> 0
B202: amortyzacja roczna | C202: =IF(ISBLANK(D166),0,IF(C166>3.5,ROUND(C201*am_budynki,0),IF(C201<0,0,C201))) -> 0 | J202: =ROUND(IF($C200=LataProjekcji,$E201,IF($C200=LataProjekcji,$C202,0)),0) -> 0 | K202: =ROUND(IF(OR(AND($C200=LataProjekcji,$E200>0),AND($C200=LataProjekcji,$E200=0,$D201<=3.5)),$E201,IF($C200<LataProjekcji,IF((SUM($J202:J202)+$C202)<$C201,$C202,$C201-SUM($J202:J202)),0)),0) -> 0 | L202: =ROUND(IF(OR(AND($C200=LataProjekcji,$E200>0),AND($C200=LataProjekcji,$E200=0,$D201<=3.5)),$E201,IF($C200<LataProjekcji,IF((SUM($J202:K202)+$C202)<$C201,$C202,$C201-SUM($J202:K202)),0)),0) -> 0 | M202: =ROUND(IF(OR(AND($C200=LataProjekcji,$E200>0),AND($C200=LataProjekcji,$E200=0,$D201<=3.5)),$E201,IF($C200<LataProjekcji,IF((SUM($J202:L202)+$C202)<$C201,$C202,$C201-SUM($J202:L202)),0)),0) -> 0 | N202: =ROUND(IF(OR(AND($C200=LataProjekcji,$E200>0),AND($C200=LataProjekcji,$E200=0,$D201<=3.5)),$E201,IF($C200<LataProjekcji,IF((SUM($J202:M202)+$C202)<$C201,$C202,$C201-SUM($J202:M202)),0)),0) -> 0 | O202: =ROUND(IF(OR(AND($C200=LataProjekcji,$E200>0),AND($C200=LataProjekcji,$E200=0,$D201<=3.5)),$E201,IF($C200<LataProjekcji,IF((SUM($J202:N202)+$C202)<$C201,$C202,$C201-SUM($J202:N202)),0)),0) -> 0 | P202: =ROUND(IF(OR(AND($C200=LataProjekcji,$E200>0),AND($C200=LataProjekcji,$E200=0,$D201<=3.5)),$E201,IF($C200<LataProjekcji,IF((SUM($J202:O202)+$C202)<$C201,$C202,$C201-SUM($J202:O202)),0)),0) -> 0 | Q202: =ROUND(IF(OR(AND($C200=LataProjekcji,$E200>0),AND($C200=LataProjekcji,$E200=0,$D201<=3.5)),$E201,IF($C200<LataProjekcji,IF((SUM($J202:P202)+$C202)<$C201,$C202,$C201-SUM($J202:P202)),0)),0) -> 0 | R202: =ROUND(IF(OR(AND($C200=LataProjekcji,$E200>0),AND($C200=LataProjekcji,$E200=0,$D201<=3.5)),$E201,IF($C200<LataProjekcji,IF((SUM($J202:Q202)+$C202)<$C201,$C202,$C201-SUM($J202:Q202)),0)),0) -> 0 | S202: =ROUND(IF(OR(AND($C200=LataProjekcji,$E200>0),AND($C200=LataProjekcji,$E200=0,$D201<=3.5)),$E201,IF($C200<LataProjekcji,IF((SUM($J202:R202)+$C202)<$C201,$C202,$C201-SUM($J202:R202)),0)),0) -> 0 | T202: =ROUND(IF(OR(AND($C200=LataProjekcji,$E200>0),AND($C200=LataProjekcji,$E200=0,$D201<=3.5)),$E201,IF($C200<LataProjekcji,IF((SUM($J202:S202)+$C202)<$C201,$C202,$C201-SUM($J202:S202)),0)),0) -> 0 | U202: =ROUND(IF(OR(AND($C200=LataProjekcji,$E200>0),AND($C200=LataProjekcji,$E200=0,$D201<=3.5)),$E201,IF($C200<LataProjekcji,IF((SUM($J202:T202)+$C202)<$C201,$C202,$C201-SUM($J202:T202)),0)),0) -> 0 | V202: =ROUND(IF(OR(AND($C200=LataProjekcji,$E200>0),AND($C200=LataProjekcji,$E200=0,$D201<=3.5)),$E201,IF($C200<LataProjekcji,IF((SUM($J202:U202)+$C202)<$C201,$C202,$C201-SUM($J202:U202)),0)),0) -> 0 | W202: =ROUND(IF(OR(AND($C200=LataProjekcji,$E200>0),AND($C200=LataProjekcji,$E200=0,$D201<=3.5)),$E201,IF($C200<LataProjekcji,IF((SUM($J202:V202)+$C202)<$C201,$C202,$C201-SUM($J202:V202)),0)),0) -> 0
B203: umorzenie | J203: =ROUND(J202,0) -> 0 | K203: =ROUND(J203+K202,0) -> 0 | L203: =ROUND(K203+L202,0) -> 0 | M203: =ROUND(L203+M202,0) -> 0 | N203: =ROUND(M203+N202,0) -> 0 | O203: =ROUND(N203+O202,0) -> 0 | P203: =ROUND(O203+P202,0) -> 0 | Q203: =ROUND(P203+Q202,0) -> 0 | R203: =ROUND(Q203+R202,0) -> 0 | S203: =ROUND(R203+S202,0) -> 0 | T203: =ROUND(S203+T202,0) -> 0 | U203: =ROUND(T203+U202,0) -> 0 | V203: =ROUND(U203+V202,0) -> 0 | W203: =ROUND(V203+W202,0) -> 0
B204: wartość netto | J204: =IF($C200=LataProjekcji,ROUND($C201-J203,0),ROUND(IF(J202=0,0,$C201-J203),0)) -> 0 | K204: 0 | L204: 0 | M204: 0 | N204: 0 | O204: 0 | P204: 0 | Q204: 0 | R204: 0 | S204: 0 | T204: 0 | U204: 0 | V204: 0 | W204: 0
B206: budynki i budowle
B207: rok zakupu | C207: =IFERROR(YEAR(D167),0) -> 0 | D207: =IFERROR(MONTH(D167),0) -> 0 | E207: =12-$D207 -> 12
B208: wartość netto | C208: =IF(F167<0,0,F167) -> 0 | D208: =C167 ->  | E208: =IF($C167>3.5,ROUND(($C209/12)*$E207,0),$C208) -> 0
B209: amortyzacja roczna | C209: =IF(ISBLANK(D167),0,IF(C167>3.5,ROUND(C208*am_budynki,0),IF(C208<0,0,C208))) -> 0 | J209: =ROUND(IF($C207=LataProjekcji,$E208,IF($C207=LataProjekcji,$C209,0)),0) -> 0 | K209: =ROUND(IF(OR(AND($C207=LataProjekcji,$E207>0),AND($C207=LataProjekcji,$E207=0,$D208<=3.5)),$E208,IF($C207<LataProjekcji,IF((SUM($J209:J209)+$C209)<$C208,$C209,$C208-SUM($J209:J209)),0)),0) -> 0 | L209: =ROUND(IF(OR(AND($C207=LataProjekcji,$E207>0),AND($C207=LataProjekcji,$E207=0,$D208<=3.5)),$E208,IF($C207<LataProjekcji,IF((SUM($J209:K209)+$C209)<$C208,$C209,$C208-SUM($J209:K209)),0)),0) -> 0 | M209: =ROUND(IF(OR(AND($C207=LataProjekcji,$E207>0),AND($C207=LataProjekcji,$E207=0,$D208<=3.5)),$E208,IF($C207<LataProjekcji,IF((SUM($J209:L209)+$C209)<$C208,$C209,$C208-SUM($J209:L209)),0)),0) -> 0 | N209: =ROUND(IF(OR(AND($C207=LataProjekcji,$E207>0),AND($C207=LataProjekcji,$E207=0,$D208<=3.5)),$E208,IF($C207<LataProjekcji,IF((SUM($J209:M209)+$C209)<$C208,$C209,$C208-SUM($J209:M209)),0)),0) -> 0 | O209: =ROUND(IF(OR(AND($C207=LataProjekcji,$E207>0),AND($C207=LataProjekcji,$E207=0,$D208<=3.5)),$E208,IF($C207<LataProjekcji,IF((SUM($J209:N209)+$C209)<$C208,$C209,$C208-SUM($J209:N209)),0)),0) -> 0 | P209: =ROUND(IF(OR(AND($C207=LataProjekcji,$E207>0),AND($C207=LataProjekcji,$E207=0,$D208<=3.5)),$E208,IF($C207<LataProjekcji,IF((SUM($J209:O209)+$C209)<$C208,$C209,$C208-SUM($J209:O209)),0)),0) -> 0 | Q209: =ROUND(IF(OR(AND($C207=LataProjekcji,$E207>0),AND($C207=LataProjekcji,$E207=0,$D208<=3.5)),$E208,IF($C207<LataProjekcji,IF((SUM($J209:P209)+$C209)<$C208,$C209,$C208-SUM($J209:P209)),0)),0) -> 0 | R209: =ROUND(IF(OR(AND($C207=LataProjekcji,$E207>0),AND($C207=LataProjekcji,$E207=0,$D208<=3.5)),$E208,IF($C207<LataProjekcji,IF((SUM($J209:Q209)+$C209)<$C208,$C209,$C208-SUM($J209:Q209)),0)),0) -> 0 | S209: =ROUND(IF(OR(AND($C207=LataProjekcji,$E207>0),AND($C207=LataProjekcji,$E207=0,$D208<=3.5)),$E208,IF($C207<LataProjekcji,IF((SUM($J209:R209)+$C209)<$C208,$C209,$C208-SUM($J209:R209)),0)),0) -> 0 | T209: =ROUND(IF(OR(AND($C207=LataProjekcji,$E207>0),AND($C207=LataProjekcji,$E207=0,$D208<=3.5)),$E208,IF($C207<LataProjekcji,IF((SUM($J209:S209)+$C209)<$C208,$C209,$C208-SUM($J209:S209)),0)),0) -> 0 | U209: =ROUND(IF(OR(AND($C207=LataProjekcji,$E207>0),AND($C207=LataProjekcji,$E207=0,$D208<=3.5)),$E208,IF($C207<LataProjekcji,IF((SUM($J209:T209)+$C209)<$C208,$C209,$C208-SUM($J209:T209)),0)),0) -> 0 | V209: =ROUND(IF(OR(AND($C207=LataProjekcji,$E207>0),AND($C207=LataProjekcji,$E207=0,$D208<=3.5)),$E208,IF($C207<LataProjekcji,IF((SUM($J209:U209)+$C209)<$C208,$C209,$C208-SUM($J209:U209)),0)),0) -> 0 | W209: =ROUND(IF(OR(AND($C207=LataProjekcji,$E207>0),AND($C207=LataProjekcji,$E207=0,$D208<=3.5)),$E208,IF($C207<LataProjekcji,IF((SUM($J209:V209)+$C209)<$C208,$C209,$C208-SUM($J209:V209)),0)),0) -> 0
B210: umorzenie | J210: =ROUND(J209,0) -> 0 | K210: =ROUND(J210+K209,0) -> 0 | L210: =ROUND(K210+L209,0) -> 0 | M210: =ROUND(L210+M209,0) -> 0 | N210: =ROUND(M210+N209,0) -> 0 | O210: =ROUND(N210+O209,0) -> 0 | P210: =ROUND(O210+P209,0) -> 0 | Q210: =ROUND(P210+Q209,0) -> 0 | R210: =ROUND(Q210+R209,0) -> 0 | S210: =ROUND(R210+S209,0) -> 0 | T210: =ROUND(S210+T209,0) -> 0 | U210: =ROUND(T210+U209,0) -> 0 | V210: =ROUND(U210+V209,0) -> 0 | W210: =ROUND(V210+W209,0) -> 0
B211: wartość netto | J211: =IF($C207=LataProjekcji,ROUND($C208-J210,0),ROUND(IF(J209=0,0,$C208-J210),0)) -> 0 | K211: 0 | L211: 0 | M211: 0 | N211: 0 | O211: 0 | P211: 0 | Q211: 0 | R211: 0 | S211: 0 | T211: 0 | U211: 0 | V211: 0 | W211: 0
B213: =B168 -> zrealizowane środki trwałe w budowie | G213: niekwalifikowalne | H213: spr
B214: rok zakupu | C214: =IFERROR(YEAR(D168),0) -> 0 | D214: =IFERROR(MONTH(D168),0) -> 0 | E214: =12-$D214 -> 12 | G214: =C208-F214 -> 0 | H214: =C208-F214-G214 -> 0
B215: wartość netto | C215: =IF(F168<0,0,F168) -> 0 | D215: =C168 -> 0 | E215: =IF($C168>3.5,ROUND(($C216/12)*$E214,0),$C215) -> 0 | F215: <- am. Do końca roku
B216: amortyzacja roczna | C216: =IF(ISBLANK(D168),0,IF(C168>3.5,ROUND(C215*am_budynki,0),IF(C215<0,0,C215))) -> 0 | J216: =ROUND(IF($C214=LataProjekcji,$E215,IF($C214=LataProjekcji,$C216,0)),0) -> 0 | K216: =ROUND(IF(OR(AND($C214=LataProjekcji,$E214>0),AND($C214=LataProjekcji,$E214=0,$D215<=3.5)),$E215,IF($C214<LataProjekcji,IF((SUM($J216:J216)+$C216)<$C215,$C216,$C215-SUM($J216:J216)),0)),0) -> 0 | L216: =ROUND(IF(OR(AND($C214=LataProjekcji,$E214>0),AND($C214=LataProjekcji,$E214=0,$D215<=3.5)),$E215,IF($C214<LataProjekcji,IF((SUM($J216:K216)+$C216)<$C215,$C216,$C215-SUM($J216:K216)),0)),0) -> 0 | M216: =ROUND(IF(OR(AND($C214=LataProjekcji,$E214>0),AND($C214=LataProjekcji,$E214=0,$D215<=3.5)),$E215,IF($C214<LataProjekcji,IF((SUM($J216:L216)+$C216)<$C215,$C216,$C215-SUM($J216:L216)),0)),0) -> 0 | N216: =ROUND(IF(OR(AND($C214=LataProjekcji,$E214>0),AND($C214=LataProjekcji,$E214=0,$D215<=3.5)),$E215,IF($C214<LataProjekcji,IF((SUM($J216:M216)+$C216)<$C215,$C216,$C215-SUM($J216:M216)),0)),0) -> 0 | O216: =ROUND(IF(OR(AND($C214=LataProjekcji,$E214>0),AND($C214=LataProjekcji,$E214=0,$D215<=3.5)),$E215,IF($C214<LataProjekcji,IF((SUM($J216:N216)+$C216)<$C215,$C216,$C215-SUM($J216:N216)),0)),0) -> 0 | P216: =ROUND(IF(OR(AND($C214=LataProjekcji,$E214>0),AND($C214=LataProjekcji,$E214=0,$D215<=3.5)),$E215,IF($C214<LataProjekcji,IF((SUM($J216:O216)+$C216)<$C215,$C216,$C215-SUM($J216:O216)),0)),0) -> 0 | Q216: =ROUND(IF(OR(AND($C214=LataProjekcji,$E214>0),AND($C214=LataProjekcji,$E214=0,$D215<=3.5)),$E215,IF($C214<LataProjekcji,IF((SUM($J216:P216)+$C216)<$C215,$C216,$C215-SUM($J216:P216)),0)),0) -> 0 | R216: =ROUND(IF(OR(AND($C214=LataProjekcji,$E214>0),AND($C214=LataProjekcji,$E214=0,$D215<=3.5)),$E215,IF($C214<LataProjekcji,IF((SUM($J216:Q216)+$C216)<$C215,$C216,$C215-SUM($J216:Q216)),0)),0) -> 0 | S216: =ROUND(IF(OR(AND($C214=LataProjekcji,$E214>0),AND($C214=LataProjekcji,$E214=0,$D215<=3.5)),$E215,IF($C214<LataProjekcji,IF((SUM($J216:R216)+$C216)<$C215,$C216,$C215-SUM($J216:R216)),0)),0) -> 0 | T216: =ROUND(IF(OR(AND($C214=LataProjekcji,$E214>0),AND($C214=LataProjekcji,$E214=0,$D215<=3.5)),$E215,IF($C214<LataProjekcji,IF((SUM($J216:S216)+$C216)<$C215,$C216,$C215-SUM($J216:S216)),0)),0) -> 0 | U216: =ROUND(IF(OR(AND($C214=LataProjekcji,$E214>0),AND($C214=LataProjekcji,$E214=0,$D215<=3.5)),$E215,IF($C214<LataProjekcji,IF((SUM($J216:T216)+$C216)<$C215,$C216,$C215-SUM($J216:T216)),0)),0) -> 0 | V216: =ROUND(IF(OR(AND($C214=LataProjekcji,$E214>0),AND($C214=LataProjekcji,$E214=0,$D215<=3.5)),$E215,IF($C214<LataProjekcji,IF((SUM($J216:U216)+$C216)<$C215,$C216,$C215-SUM($J216:U216)),0)),0) -> 0 | W216: =ROUND(IF(OR(AND($C214=LataProjekcji,$E214>0),AND($C214=LataProjekcji,$E214=0,$D215<=3.5)),$E215,IF($C214<LataProjekcji,IF((SUM($J216:V216)+$C216)<$C215,$C216,$C215-SUM($J216:V216)),0)),0) -> 0
B217: umorzenie | J217: =ROUND(J216,0) -> 0 | K217: =ROUND(J217+K216,0) -> 0 | L217: =ROUND(K217+L216,0) -> 0 | M217: =ROUND(L217+M216,0) -> 0 | N217: =ROUND(M217+N216,0) -> 0 | O217: =ROUND(N217+O216,0) -> 0 | P217: =ROUND(O217+P216,0) -> 0 | Q217: =ROUND(P217+Q216,0) -> 0 | R217: =ROUND(Q217+R216,0) -> 0 | S217: =ROUND(R217+S216,0) -> 0 | T217: =ROUND(S217+T216,0) -> 0 | U217: =ROUND(T217+U216,0) -> 0 | V217: =ROUND(U217+V216,0) -> 0 | W217: =ROUND(V217+W216,0) -> 0
B218: wartość netto | J218: =IF($C214=LataProjekcji,ROUND($C215-J217,0),ROUND(IF(J216=0,0,$C215-J217),0)) -> 0 | K218: 0 | L218: 0 | M218: =IF($C214=LataProjekcji,ROUND($C215-M217,0),ROUND(IF(M216=0,0,$C215-M217),0)) -> 0 | N218: 0 | O218: 0 | P218: 0 | Q218: 0 | R218: 0 | S218: 0 | T218: 0 | U218: 0 | V218: 0 | W218: 0
B220: =B169 -> zrealizowane środki trwałe w budowie
B221: rok zakupu | C221: =IFERROR(YEAR(D169),0) -> 0 | D221: =IFERROR(MONTH(D169),0) -> 0 | E221: =12-$D221 -> 12
B222: wartość netto | C222: =IF(F169<0,0,F169) -> 0 | D222: =C169 -> 0 | E222: =IF($C169>3.5,ROUND(($C223/12)*$E221,0),$C222) -> 0
B223: amortyzacja roczna | C223: =IF(ISBLANK(D169),0,IF(C169>3.5,ROUND(C222*am_budynki,0),IF(C222<0,0,C222))) -> 0 | J223: =ROUND(IF($C221=LataProjekcji,$E222,IF($C221=LataProjekcji,$C223,0)),0) -> 0 | K223: =ROUND(IF(OR(AND($C221=LataProjekcji,$E221>0),AND($C221=LataProjekcji,$E221=0,$D222<=3.5)),$E222,IF($C221<LataProjekcji,IF((SUM($J223:J223)+$C223)<$C222,$C223,$C222-SUM($J223:J223)),0)),0) -> 0 | L223: =ROUND(IF(OR(AND($C221=LataProjekcji,$E221>0),AND($C221=LataProjekcji,$E221=0,$D222<=3.5)),$E222,IF($C221<LataProjekcji,IF((SUM($J223:K223)+$C223)<$C222,$C223,$C222-SUM($J223:K223)),0)),0) -> 0 | M223: =ROUND(IF(OR(AND($C221=LataProjekcji,$E221>0),AND($C221=LataProjekcji,$E221=0,$D222<=3.5)),$E222,IF($C221<LataProjekcji,IF((SUM($J223:L223)+$C223)<$C222,$C223,$C222-SUM($J223:L223)),0)),0) -> 0 | N223: =ROUND(IF(OR(AND($C221=LataProjekcji,$E221>0),AND($C221=LataProjekcji,$E221=0,$D222<=3.5)),$E222,IF($C221<LataProjekcji,IF((SUM($J223:M223)+$C223)<$C222,$C223,$C222-SUM($J223:M223)),0)),0) -> 0 | O223: =ROUND(IF(OR(AND($C221=LataProjekcji,$E221>0),AND($C221=LataProjekcji,$E221=0,$D222<=3.5)),$E222,IF($C221<LataProjekcji,IF((SUM($J223:N223)+$C223)<$C222,$C223,$C222-SUM($J223:N223)),0)),0) -> 0 | P223: =ROUND(IF(OR(AND($C221=LataProjekcji,$E221>0),AND($C221=LataProjekcji,$E221=0,$D222<=3.5)),$E222,IF($C221<LataProjekcji,IF((SUM($J223:O223)+$C223)<$C222,$C223,$C222-SUM($J223:O223)),0)),0) -> 0 | Q223: =ROUND(IF(OR(AND($C221=LataProjekcji,$E221>0),AND($C221=LataProjekcji,$E221=0,$D222<=3.5)),$E222,IF($C221<LataProjekcji,IF((SUM($J223:P223)+$C223)<$C222,$C223,$C222-SUM($J223:P223)),0)),0) -> 0 | R223: =ROUND(IF(OR(AND($C221=LataProjekcji,$E221>0),AND($C221=LataProjekcji,$E221=0,$D222<=3.5)),$E222,IF($C221<LataProjekcji,IF((SUM($J223:Q223)+$C223)<$C222,$C223,$C222-SUM($J223:Q223)),0)),0) -> 0 | S223: =ROUND(IF(OR(AND($C221=LataProjekcji,$E221>0),AND($C221=LataProjekcji,$E221=0,$D222<=3.5)),$E222,IF($C221<LataProjekcji,IF((SUM($J223:R223)+$C223)<$C222,$C223,$C222-SUM($J223:R223)),0)),0) -> 0 | T223: =ROUND(IF(OR(AND($C221=LataProjekcji,$E221>0),AND($C221=LataProjekcji,$E221=0,$D222<=3.5)),$E222,IF($C221<LataProjekcji,IF((SUM($J223:S223)+$C223)<$C222,$C223,$C222-SUM($J223:S223)),0)),0) -> 0 | U223: =ROUND(IF(OR(AND($C221=LataProjekcji,$E221>0),AND($C221=LataProjekcji,$E221=0,$D222<=3.5)),$E222,IF($C221<LataProjekcji,IF((SUM($J223:T223)+$C223)<$C222,$C223,$C222-SUM($J223:T223)),0)),0) -> 0 | V223: =ROUND(IF(OR(AND($C221=LataProjekcji,$E221>0),AND($C221=LataProjekcji,$E221=0,$D222<=3.5)),$E222,IF($C221<LataProjekcji,IF((SUM($J223:U223)+$C223)<$C222,$C223,$C222-SUM($J223:U223)),0)),0) -> 0 | W223: =ROUND(IF(OR(AND($C221=LataProjekcji,$E221>0),AND($C221=LataProjekcji,$E221=0,$D222<=3.5)),$E222,IF($C221<LataProjekcji,IF((SUM($J223:V223)+$C223)<$C222,$C223,$C222-SUM($J223:V223)),0)),0) -> 0
B224: umorzenie | J224: =ROUND(J223,0) -> 0 | K224: =ROUND(J224+K223,0) -> 0 | L224: =ROUND(K224+L223,0) -> 0 | M224: =ROUND(L224+M223,0) -> 0 | N224: =ROUND(M224+N223,0) -> 0 | O224: =ROUND(N224+O223,0) -> 0 | P224: =ROUND(O224+P223,0) -> 0 | Q224: =ROUND(P224+Q223,0) -> 0 | R224: =ROUND(Q224+R223,0) -> 0 | S224: =ROUND(R224+S223,0) -> 0 | T224: =ROUND(S224+T223,0) -> 0 | U224: =ROUND(T224+U223,0) -> 0 | V224: =ROUND(U224+V223,0) -> 0 | W224: =ROUND(V224+W223,0) -> 0
B225: wartość netto | J225: =IF($C221=LataProjekcji,ROUND($C222-J224,0),ROUND(IF(J223=0,0,$C222-J224),0)) -> 0 | K225: 0 | L225: 0 | M225: 0 | N225: 0 | O225: 0 | P225: 0 | Q225: 0 | R225: 0 | S225: 0 | T225: 0 | U225: 0 | V225: 0 | W225: 0
B227: =B170 -> zrealizowane środki trwałe w budowie
B228: rok zakupu | C228: =IFERROR(YEAR(D170),0) -> 0 | D228: =IFERROR(MONTH(D170),0) -> 0 | E228: =12-$D228 -> 12
B229: wartość netto | C229: =IF(F170<0,0,F170) -> 0 | D229: =C170 -> 0 | E229: =IF($C170>3.5,ROUND(($C230/12)*$E228,0),$C229) -> 0
B230: amortyzacja roczna | C230: =IF(ISBLANK(D170),0,IF(C170>3.5,ROUND(C229*am_budynki,0),IF(C229<0,0,C229))) -> 0 | J230: =ROUND(IF($C228=LataProjekcji,$E229,IF($C228=LataProjekcji,$C230,0)),0) -> 0 | K230: =ROUND(IF(OR(AND($C228=LataProjekcji,$E228>0),AND($C228=LataProjekcji,$E228=0,$D229<=3.5)),$E229,IF($C228<LataProjekcji,IF((SUM($J230:J230)+$C230)<$C229,$C230,$C229-SUM($J230:J230)),0)),0) -> 0 | L230: =ROUND(IF(OR(AND($C228=LataProjekcji,$E228>0),AND($C228=LataProjekcji,$E228=0,$D229<=3.5)),$E229,IF($C228<LataProjekcji,IF((SUM($J230:K230)+$C230)<$C229,$C230,$C229-SUM($J230:K230)),0)),0) -> 0 | M230: =ROUND(IF(OR(AND($C228=LataProjekcji,$E228>0),AND($C228=LataProjekcji,$E228=0,$D229<=3.5)),$E229,IF($C228<LataProjekcji,IF((SUM($J230:L230)+$C230)<$C229,$C230,$C229-SUM($J230:L230)),0)),0) -> 0 | N230: =ROUND(IF(OR(AND($C228=LataProjekcji,$E228>0),AND($C228=LataProjekcji,$E228=0,$D229<=3.5)),$E229,IF($C228<LataProjekcji,IF((SUM($J230:M230)+$C230)<$C229,$C230,$C229-SUM($J230:M230)),0)),0) -> 0 | O230: =ROUND(IF(OR(AND($C228=LataProjekcji,$E228>0),AND($C228=LataProjekcji,$E228=0,$D229<=3.5)),$E229,IF($C228<LataProjekcji,IF((SUM($J230:N230)+$C230)<$C229,$C230,$C229-SUM($J230:N230)),0)),0) -> 0 | P230: =ROUND(IF(OR(AND($C228=LataProjekcji,$E228>0),AND($C228=LataProjekcji,$E228=0,$D229<=3.5)),$E229,IF($C228<LataProjekcji,IF((SUM($J230:O230)+$C230)<$C229,$C230,$C229-SUM($J230:O230)),0)),0) -> 0 | Q230: =ROUND(IF(OR(AND($C228=LataProjekcji,$E228>0),AND($C228=LataProjekcji,$E228=0,$D229<=3.5)),$E229,IF($C228<LataProjekcji,IF((SUM($J230:P230)+$C230)<$C229,$C230,$C229-SUM($J230:P230)),0)),0) -> 0 | R230: =ROUND(IF(OR(AND($C228=LataProjekcji,$E228>0),AND($C228=LataProjekcji,$E228=0,$D229<=3.5)),$E229,IF($C228<LataProjekcji,IF((SUM($J230:Q230)+$C230)<$C229,$C230,$C229-SUM($J230:Q230)),0)),0) -> 0 | S230: =ROUND(IF(OR(AND($C228=LataProjekcji,$E228>0),AND($C228=LataProjekcji,$E228=0,$D229<=3.5)),$E229,IF($C228<LataProjekcji,IF((SUM($J230:R230)+$C230)<$C229,$C230,$C229-SUM($J230:R230)),0)),0) -> 0 | T230: =ROUND(IF(OR(AND($C228=LataProjekcji,$E228>0),AND($C228=LataProjekcji,$E228=0,$D229<=3.5)),$E229,IF($C228<LataProjekcji,IF((SUM($J230:S230)+$C230)<$C229,$C230,$C229-SUM($J230:S230)),0)),0) -> 0 | U230: =ROUND(IF(OR(AND($C228=LataProjekcji,$E228>0),AND($C228=LataProjekcji,$E228=0,$D229<=3.5)),$E229,IF($C228<LataProjekcji,IF((SUM($J230:T230)+$C230)<$C229,$C230,$C229-SUM($J230:T230)),0)),0) -> 0 | V230: =ROUND(IF(OR(AND($C228=LataProjekcji,$E228>0),AND($C228=LataProjekcji,$E228=0,$D229<=3.5)),$E229,IF($C228<LataProjekcji,IF((SUM($J230:U230)+$C230)<$C229,$C230,$C229-SUM($J230:U230)),0)),0) -> 0 | W230: =ROUND(IF(OR(AND($C228=LataProjekcji,$E228>0),AND($C228=LataProjekcji,$E228=0,$D229<=3.5)),$E229,IF($C228<LataProjekcji,IF((SUM($J230:V230)+$C230)<$C229,$C230,$C229-SUM($J230:V230)),0)),0) -> 0
B231: umorzenie | J231: =ROUND(J230,0) -> 0 | K231: =ROUND(J231+K230,0) -> 0 | L231: =ROUND(K231+L230,0) -> 0 | M231: =ROUND(L231+M230,0) -> 0 | N231: =ROUND(M231+N230,0) -> 0 | O231: =ROUND(N231+O230,0) -> 0 | P231: =ROUND(O231+P230,0) -> 0 | Q231: =ROUND(P231+Q230,0) -> 0 | R231: =ROUND(Q231+R230,0) -> 0 | S231: =ROUND(R231+S230,0) -> 0 | T231: =ROUND(S231+T230,0) -> 0 | U231: =ROUND(T231+U230,0) -> 0 | V231: =ROUND(U231+V230,0) -> 0 | W231: =ROUND(V231+W230,0) -> 0
B232: wartość netto | J232: =IF($C228=LataProjekcji,ROUND($C229-J231,0),ROUND(IF(J230=0,0,$C229-J231),0)) -> 0 | K232: 0 | L232: 0 | M232: 0 | N232: 0 | O232: 0 | P232: 0 | Q232: 0 | R232: 0 | S232: 0 | T232: 0 | U232: 0 | V232: 0 | W232: 0
B234: =B171 -> zrealizowane środki trwałe w budowie
B235: rok zakupu | C235: =IFERROR(YEAR(D171),0) -> 0 | D235: =IFERROR(MONTH(D171),0) -> 0 | E235: =12-$D235 -> 12
B236: wartość netto | C236: =IF(F171<0,0,F171) -> 0 | D236: =C171 -> 0 | E236: =IF($C171>3.5,ROUND(($C237/12)*$E235,0),$C236) -> 0
B237: amortyzacja roczna | C237: =IF(ISBLANK(D171),0,IF(C171>3.5,ROUND(C236*am_budynki,0),IF(C236<0,0,C236))) -> 0 | J237: =ROUND(IF($C235=LataProjekcji,$E236,IF($C235=LataProjekcji,$C237,0)),0) -> 0 | K237: =ROUND(IF(OR(AND($C235=LataProjekcji,$E235>0),AND($C235=LataProjekcji,$E235=0,$D236<=3.5)),$E236,IF($C235<LataProjekcji,IF((SUM($J237:J237)+$C237)<$C236,$C237,$C236-SUM($J237:J237)),0)),0) -> 0 | L237: =ROUND(IF(OR(AND($C235=LataProjekcji,$E235>0),AND($C235=LataProjekcji,$E235=0,$D236<=3.5)),$E236,IF($C235<LataProjekcji,IF((SUM($J237:K237)+$C237)<$C236,$C237,$C236-SUM($J237:K237)),0)),0) -> 0 | M237: =ROUND(IF(OR(AND($C235=LataProjekcji,$E235>0),AND($C235=LataProjekcji,$E235=0,$D236<=3.5)),$E236,IF($C235<LataProjekcji,IF((SUM($J237:L237)+$C237)<$C236,$C237,$C236-SUM($J237:L237)),0)),0) -> 0 | N237: =ROUND(IF(OR(AND($C235=LataProjekcji,$E235>0),AND($C235=LataProjekcji,$E235=0,$D236<=3.5)),$E236,IF($C235<LataProjekcji,IF((SUM($J237:M237)+$C237)<$C236,$C237,$C236-SUM($J237:M237)),0)),0) -> 0 | O237: =ROUND(IF(OR(AND($C235=LataProjekcji,$E235>0),AND($C235=LataProjekcji,$E235=0,$D236<=3.5)),$E236,IF($C235<LataProjekcji,IF((SUM($J237:N237)+$C237)<$C236,$C237,$C236-SUM($J237:N237)),0)),0) -> 0 | P237: =ROUND(IF(OR(AND($C235=LataProjekcji,$E235>0),AND($C235=LataProjekcji,$E235=0,$D236<=3.5)),$E236,IF($C235<LataProjekcji,IF((SUM($J237:O237)+$C237)<$C236,$C237,$C236-SUM($J237:O237)),0)),0) -> 0 | Q237: =ROUND(IF(OR(AND($C235=LataProjekcji,$E235>0),AND($C235=LataProjekcji,$E235=0,$D236<=3.5)),$E236,IF($C235<LataProjekcji,IF((SUM($J237:P237)+$C237)<$C236,$C237,$C236-SUM($J237:P237)),0)),0) -> 0 | R237: =ROUND(IF(OR(AND($C235=LataProjekcji,$E235>0),AND($C235=LataProjekcji,$E235=0,$D236<=3.5)),$E236,IF($C235<LataProjekcji,IF((SUM($J237:Q237)+$C237)<$C236,$C237,$C236-SUM($J237:Q237)),0)),0) -> 0 | S237: =ROUND(IF(OR(AND($C235=LataProjekcji,$E235>0),AND($C235=LataProjekcji,$E235=0,$D236<=3.5)),$E236,IF($C235<LataProjekcji,IF((SUM($J237:R237)+$C237)<$C236,$C237,$C236-SUM($J237:R237)),0)),0) -> 0 | T237: =ROUND(IF(OR(AND($C235=LataProjekcji,$E235>0),AND($C235=LataProjekcji,$E235=0,$D236<=3.5)),$E236,IF($C235<LataProjekcji,IF((SUM($J237:S237)+$C237)<$C236,$C237,$C236-SUM($J237:S237)),0)),0) -> 0 | U237: =ROUND(IF(OR(AND($C235=LataProjekcji,$E235>0),AND($C235=LataProjekcji,$E235=0,$D236<=3.5)),$E236,IF($C235<LataProjekcji,IF((SUM($J237:T237)+$C237)<$C236,$C237,$C236-SUM($J237:T237)),0)),0) -> 0 | V237: =ROUND(IF(OR(AND($C235=LataProjekcji,$E235>0),AND($C235=LataProjekcji,$E235=0,$D236<=3.5)),$E236,IF($C235<LataProjekcji,IF((SUM($J237:U237)+$C237)<$C236,$C237,$C236-SUM($J237:U237)),0)),0) -> 0 | W237: =ROUND(IF(OR(AND($C235=LataProjekcji,$E235>0),AND($C235=LataProjekcji,$E235=0,$D236<=3.5)),$E236,IF($C235<LataProjekcji,IF((SUM($J237:V237)+$C237)<$C236,$C237,$C236-SUM($J237:V237)),0)),0) -> 0
B238: umorzenie | J238: =ROUND(J237,0) -> 0 | K238: =ROUND(J238+K237,0) -> 0 | L238: =ROUND(K238+L237,0) -> 0 | M238: =ROUND(L238+M237,0) -> 0 | N238: =ROUND(M238+N237,0) -> 0 | O238: =ROUND(N238+O237,0) -> 0 | P238: =ROUND(O238+P237,0) -> 0 | Q238: =ROUND(P238+Q237,0) -> 0 | R238: =ROUND(Q238+R237,0) -> 0 | S238: =ROUND(R238+S237,0) -> 0 | T238: =ROUND(S238+T237,0) -> 0 | U238: =ROUND(T238+U237,0) -> 0 | V238: =ROUND(U238+V237,0) -> 0 | W238: =ROUND(V238+W237,0) -> 0
B239: wartość netto | J239: =IF($C235=LataProjekcji,ROUND($C236-J238,0),ROUND(IF(J237=0,0,$C236-J238),0)) -> 0 | K239: 0 | L239: 0 | M239: 0 | N239: 0 | O239: 0 | P239: 0 | Q239: 0 | R239: 0 | S239: 0 | T239: 0 | U239: 0 | V239: 0 | W239: 0
B241: =B172 -> zrealizowane środki trwałe w budowie
B242: rok zakupu | C242: =IFERROR(YEAR(D172),0) -> 0 | D242: =IFERROR(MONTH(D172),0) -> 0 | E242: =12-$D242 -> 12
B243: wartość netto | C243: =IF(F172<0,0,F172) -> 0 | D243: =C172 -> 0 | E243: =IF($C172>3.5,ROUND(($C244/12)*$E242,0),$C243) -> 0
B244: amortyzacja roczna | C244: =IF(ISBLANK(D172),0,IF(C172>3.5,ROUND(C243*am_budynki,0),IF(C243<0,0,C243))) -> 0 | J244: =ROUND(IF($C242=LataProjekcji,$E243,IF($C242=LataProjekcji,$C244,0)),0) -> 0 | K244: =ROUND(IF(OR(AND($C242=LataProjekcji,$E242>0),AND($C242=LataProjekcji,$E242=0,$D243<=3.5)),$E243,IF($C242<LataProjekcji,IF((SUM($J244:J244)+$C244)<$C243,$C244,$C243-SUM($J244:J244)),0)),0) -> 0 | L244: =ROUND(IF(OR(AND($C242=LataProjekcji,$E242>0),AND($C242=LataProjekcji,$E242=0,$D243<=3.5)),$E243,IF($C242<LataProjekcji,IF((SUM($J244:K244)+$C244)<$C243,$C244,$C243-SUM($J244:K244)),0)),0) -> 0 | M244: =ROUND(IF(OR(AND($C242=LataProjekcji,$E242>0),AND($C242=LataProjekcji,$E242=0,$D243<=3.5)),$E243,IF($C242<LataProjekcji,IF((SUM($J244:L244)+$C244)<$C243,$C244,$C243-SUM($J244:L244)),0)),0) -> 0 | N244: =ROUND(IF(OR(AND($C242=LataProjekcji,$E242>0),AND($C242=LataProjekcji,$E242=0,$D243<=3.5)),$E243,IF($C242<LataProjekcji,IF((SUM($J244:M244)+$C244)<$C243,$C244,$C243-SUM($J244:M244)),0)),0) -> 0 | O244: =ROUND(IF(OR(AND($C242=LataProjekcji,$E242>0),AND($C242=LataProjekcji,$E242=0,$D243<=3.5)),$E243,IF($C242<LataProjekcji,IF((SUM($J244:N244)+$C244)<$C243,$C244,$C243-SUM($J244:N244)),0)),0) -> 0 | P244: =ROUND(IF(OR(AND($C242=LataProjekcji,$E242>0),AND($C242=LataProjekcji,$E242=0,$D243<=3.5)),$E243,IF($C242<LataProjekcji,IF((SUM($J244:O244)+$C244)<$C243,$C244,$C243-SUM($J244:O244)),0)),0) -> 0 | Q244: =ROUND(IF(OR(AND($C242=LataProjekcji,$E242>0),AND($C242=LataProjekcji,$E242=0,$D243<=3.5)),$E243,IF($C242<LataProjekcji,IF((SUM($J244:P244)+$C244)<$C243,$C244,$C243-SUM($J244:P244)),0)),0) -> 0 | R244: =ROUND(IF(OR(AND($C242=LataProjekcji,$E242>0),AND($C242=LataProjekcji,$E242=0,$D243<=3.5)),$E243,IF($C242<LataProjekcji,IF((SUM($J244:Q244)+$C244)<$C243,$C244,$C243-SUM($J244:Q244)),0)),0) -> 0 | S244: =ROUND(IF(OR(AND($C242=LataProjekcji,$E242>0),AND($C242=LataProjekcji,$E242=0,$D243<=3.5)),$E243,IF($C242<LataProjekcji,IF((SUM($J244:R244)+$C244)<$C243,$C244,$C243-SUM($J244:R244)),0)),0) -> 0 | T244: =ROUND(IF(OR(AND($C242=LataProjekcji,$E242>0),AND($C242=LataProjekcji,$E242=0,$D243<=3.5)),$E243,IF($C242<LataProjekcji,IF((SUM($J244:S244)+$C244)<$C243,$C244,$C243-SUM($J244:S244)),0)),0) -> 0 | U244: =ROUND(IF(OR(AND($C242=LataProjekcji,$E242>0),AND($C242=LataProjekcji,$E242=0,$D243<=3.5)),$E243,IF($C242<LataProjekcji,IF((SUM($J244:T244)+$C244)<$C243,$C244,$C243-SUM($J244:T244)),0)),0) -> 0 | V244: =ROUND(IF(OR(AND($C242=LataProjekcji,$E242>0),AND($C242=LataProjekcji,$E242=0,$D243<=3.5)),$E243,IF($C242<LataProjekcji,IF((SUM($J244:U244)+$C244)<$C243,$C244,$C243-SUM($J244:U244)),0)),0) -> 0 | W244: =ROUND(IF(OR(AND($C242=LataProjekcji,$E242>0),AND($C242=LataProjekcji,$E242=0,$D243<=3.5)),$E243,IF($C242<LataProjekcji,IF((SUM($J244:V244)+$C244)<$C243,$C244,$C243-SUM($J244:V244)),0)),0) -> 0
... 191 more rows

Sheet Kapitał pracujący
B2: ='Rozliczenie dotacji'!$B$2:$E$3 -> Wstaw nazwę firmy
J11: =Założenia!J25 -> 0 | K11: =Założenia!K25 -> 1 | L11: =Założenia!L25 -> 2 | M11: =Założenia!M25 -> 3 | N11: =Założenia!N25 -> 4 | O11: =Założenia!O25 -> 5 | P11: =Założenia!P25 -> 6 | Q11: =Założenia!Q25 -> 7 | R11: =Założenia!R25 -> 8 | S11: =Założenia!S25 -> 9 | T11: =Założenia!T25 -> 10 | U11: =Założenia!U25 -> 11 | V11: =Założenia!V25 -> 12 | W11: =Założenia!W25 -> 13
B12: Dotychczasowa działalność (bez Projektu) | F12: =LataProjekcji -> 0 | G12: 0 | H12: 0 | J12: Uzupełnij dane
B14: Zapasy
B16: Kalkulacja z modelu | F16: =ROUND(IFERROR('Ocena kondycji finansowej'!F66,0),0) -> 0 | G16: =ROUND(IFERROR('Ocena kondycji finansowej'!G66,0),0) -> 0 | H16: =ROUND(IFERROR('Ocena kondycji finansowej'!H66,0),0) -> 0 | I16: =ROUND(IFERROR('Ocena kondycji finansowej'!I66,0),0) -> 0 | J16: =IF($F$165=1,IFERROR(ROUND((J171/J18)*J19,0),0),0) -> 0 | K16: 0 | L16: 0 | M16: 0 | N16: 0 | O16: 0 | P16: 0 | Q16: 0 | R16: 0 | S16: 0 | T16: 0 | U16: 0 | V16: 0 | W16: 0
B17: Rotacja zapasów | F17: ='Ocena kondycji finansowej'!F145 -> bd. | G17: ='Ocena kondycji finansowej'!G145 -> bd. | H17: ='Ocena kondycji finansowej'!H145 -> bd. | I17: ='Ocena kondycji finansowej'!I145 -> bd. | J17: =IF($F$165=1,'Ocena kondycji finansowej'!J145,0) -> bd. | K17: =IF($F$165=1,'Ocena kondycji finansowej'!K145,0) -> bd. | L17: =IF($F$165=1,'Ocena kondycji finansowej'!L145,0) -> bd. | M17: =IF($F$165=1,'Ocena kondycji finansowej'!M145,0) -> bd. | N17: =IF($F$165=1,'Ocena kondycji finansowej'!N145,0) -> bd. | O17: =IF($F$165=1,'Ocena kondycji finansowej'!O145,0) -> bd. | P17: =IF($F$165=1,'Ocena kondycji finansowej'!P145,0) -> bd. | Q17: =IF($F$165=1,'Ocena kondycji finansowej'!Q145,0) -> bd. | R17: =IF($F$165=1,'Ocena kondycji finansowej'!R145,0) -> bd. | S17: =IF($F$165=1,'Ocena kondycji finansowej'!S145,0) -> bd. | T17: =IF($F$165=1,'Ocena kondycji finansowej'!T145,0) -> bd. | U17: =IF($F$165=1,'Ocena kondycji finansowej'!U145,0) -> bd. | V17: =IF($F$165=1,'Ocena kondycji finansowej'!V145,0) -> bd. | W17: =IF($F$165=1,'Ocena kondycji finansowej'!W145,0) -> bd.
B18: Ilość dni w okresie | F18: =dni -> 365 | G18: 365 | H18: 365
B19: Koszty działalności operacyjnej | F19: =ROUND('Ocena kondycji finansowej'!F20,0) -> 0 | G19: =ROUND('Ocena kondycji finansowej'!G20,0) -> 0 | H19: =ROUND('Ocena kondycji finansowej'!H20,0) -> 0 | I19: =ROUND('Ocena kondycji finansowej'!I20,0) -> 0 | J19: =ROUND('Ocena kondycji finansowej'!J20,0) -> 0 | K19: =ROUND('Ocena kondycji finansowej'!K20,0) -> 0 | L19: =ROUND('Ocena kondycji finansowej'!L20,0) -> 0 | M19: =ROUND('Ocena kondycji finansowej'!M20,0) -> 0 | N19: =ROUND('Ocena kondycji finansowej'!N20,0) -> 0 | O19: =ROUND('Ocena kondycji finansowej'!O20,0) -> 0 | P19: =ROUND('Ocena kondycji finansowej'!P20,0) -> 0 | Q19: =ROUND('Ocena kondycji finansowej'!Q20,0) -> 0 | R19: =ROUND('Ocena kondycji finansowej'!R20,0) -> 0 | S19: =ROUND('Ocena kondycji finansowej'!S20,0) -> 0 | T19: =ROUND('Ocena kondycji finansowej'!T20,0) -> 0 | U19: =ROUND('Ocena kondycji finansowej'!U20,0) -> 0 | V19: =ROUND('Ocena kondycji finansowej'!V20,0) -> 0 | W19: =ROUND('Ocena kondycji finansowej'!W20,0) -> 0
B21: Kalkulacja własna | F21: =ROUND(F16,0) -> 0 | G21: =ROUND(G16,0) -> 0 | H21: =ROUND(H16,0) -> 0 | I21: =ROUND(I16,0) -> 0 | J21: =IF($F$165=2,IFERROR(ROUND((J22/J23)*(SUM(J24:J24)),0),0),0) -> 0 | K21: 0 | L21: 0 | M21: 0 | N21: 0 | O21: 0 | P21: 0 | Q21: 0 | R21: 0 | S21: 0 | T21: 0 | U21: 0 | V21: 0 | W21: 0
B22: Rotacja zapasów | F22: =F17 -> bd. | G22: =G17 -> bd. | H22: =H17 -> bd. | I22: =I17 -> bd.
B23: Ilość dni w okresie | F23: =F18 -> 365 | G23: =G18 -> 365 | H23: 365
B24: Koszty działalności operacyjnej | F24: =F19 -> 0 | G24: =G19 -> 0 | H24: 0 | I24: 0 | J24: 0 | K24: 0 | L24: 0 | M24: 0 | N24: 0 | O24: 0 | P24: 0 | Q24: 0 | R24: 0 | S24: 0 | T24: 0 | U24: 0 | V24: 0 | W24: 0
B26: Zapasy do bilansu | F26: =ROUND(F16,0) -> 0 | G26: =ROUND(G16,0) -> 0 | H26: =ROUND(H16,0) -> 0 | I26: =ROUND(I16,0) -> 0 | J26: =ROUND(IF($F$165=1,J16,J21),0) -> 0 | K26: =ROUND(IF($F$165=1,K16,K21),0) -> 0 | L26: 0 | M26: 0 | N26: 0 | O26: 0 | P26: 0 | Q26: 0 | R26: 0 | S26: 0 | T26: 0 | U26: 0 | V26: 0 | W26: 0
B29: Należności | F29: =LataProjekcji -> 0 | G29: 0 | H29: 0 | J29: Uzupełnij dane
B31: Kalkulacja z modelu | F31: =ROUND('Ocena kondycji finansowej'!F67,0) -> 0 | G31: =ROUND('Ocena kondycji finansowej'!G67,0) -> 0 | H31: =ROUND('Ocena kondycji finansowej'!H67,0) -> 0 | I31: =ROUND('Ocena kondycji finansowej'!I67,0) -> 0 | J31: =IF($F$166=1,IFERROR(ROUND((J172/J33)*(J34),0),0),0) -> 0 | K31: 0 | L31: 0 | M31: 0 | N31: 0 | O31: 0 | P31: 0 | Q31: 0 | R31: 0 | S31: 0 | T31: 0 | U31: 0 | V31: 0 | W31: 0
B32: Rotacja należności | F32: ='Ocena kondycji finansowej'!F146 -> bd. | G32: ='Ocena kondycji finansowej'!G146 -> bd. | H32: ='Ocena kondycji finansowej'!H146 -> bd. | I32: ='Ocena kondycji finansowej'!I146 -> bd. | J32: =IF($F$166=1,'Ocena kondycji finansowej'!J146,0) -> bd. | K32: =IF($F$166=1,'Ocena kondycji finansowej'!K146,0) -> bd. | L32: =IF($F$166=1,'Ocena kondycji finansowej'!L146,0) -> bd. | M32: =IF($F$166=1,'Ocena kondycji finansowej'!M146,0) -> bd. | N32: =IF($F$166=1,'Ocena kondycji finansowej'!N146,0) -> bd. | O32: =IF($F$166=1,'Ocena kondycji finansowej'!O146,0) -> bd. | P32: =IF($F$166=1,'Ocena kondycji finansowej'!P146,0) -> bd. | Q32: =IF($F$166=1,'Ocena kondycji finansowej'!Q146,0) -> bd. | R32: =IF($F$166=1,'Ocena kondycji finansowej'!R146,0) -> bd. | S32: =IF($F$166=1,'Ocena kondycji finansowej'!S146,0) -> bd. | T32: =IF($F$166=1,'Ocena kondycji finansowej'!T146,0) -> bd. | U32: =IF($F$166=1,'Ocena kondycji finansowej'!U146,0) -> bd. | V32: =IF($F$166=1,'Ocena kondycji finansowej'!V146,0) -> bd. | W32: =IF($F$166=1,'Ocena kondycji finansowej'!W146,0) -> bd.
B33: Ilość dni w okresie | F33: =dni -> 365 | G33: 365 | H33: 365
B34: Przychody ze sprzedaży | F34: ='Ocena kondycji finansowej'!F15 -> 0 | G34: ='Ocena kondycji finansowej'!G15 -> 0 | H34: ='Ocena kondycji finansowej'!H15 -> 0 | I34: ='Ocena kondycji finansowej'!I15 -> 0 | J34: ='Ocena kondycji finansowej'!J15 -> 0 | K34: ='Ocena kondycji finansowej'!K15 -> 0 | L34: ='Ocena kondycji finansowej'!L15 -> 0 | M34: ='Ocena kondycji finansowej'!M15 -> 0 | N34: ='Ocena kondycji finansowej'!N15 -> 0 | O34: ='Ocena kondycji finansowej'!O15 -> 0 | P34: ='Ocena kondycji finansowej'!P15 -> 0 | Q34: ='Ocena kondycji finansowej'!Q15 -> 0 | R34: ='Ocena kondycji finansowej'!R15 -> 0 | S34: ='Ocena kondycji finansowej'!S15 -> 0 | T34: ='Ocena kondycji finansowej'!T15 -> 0 | U34: ='Ocena kondycji finansowej'!U15 -> 0 | V34: ='Ocena kondycji finansowej'!V15 -> 0 | W34: ='Ocena kondycji finansowej'!W15 -> 0
B36: Kalkulacja własna | F36: =ROUND(F31,0) -> 0 | G36: =ROUND(G31,0) -> 0 | H36: =ROUND(H31,0) -> 0 | I36: =ROUND(I31,0) -> 0 | J36: =IF($F$166=2,IFERROR(ROUND((J37/J38)*(J39),0),0),0) -> 0 | K36: =IF($F$166=2,IFERROR(ROUND((K37/K38)*(K39),0),0),0) -> 0 | L36: 0 | M36: 0 | N36: 0 | O36: 0 | P36: 0 | Q36: 0 | R36: 0 | S36: 0 | T36: 0 | U36: 0 | V36: 0 | W36: 0
B37: Rotacja należności | F37: =F32 -> bd. | G37: bd. | H37: bd. | I37: bd.
B38: Ilość dni w okresie | F38: 365 | G38: 365 | H38: 365 | J38: =J33 -> 
B39: Przychody ze sprzedaży | F39: =F34 -> 0 | G39: =G34 -> 0 | H39: 0 | I39: 0 | J39: 0 | K39: 0 | L39: 0 | M39: 0 | N39: 0 | O39: 0 | P39: 0 | Q39: 0 | R39: 0 | S39: 0 | T39: 0 | U39: 0 | V39: 0 | W39: 0
B41: Należności do bilansu | F41: =ROUND(F31,0) -> 0 | G41: =ROUND(G31,0) -> 0 | H41: =ROUND(H31,0) -> 0 | I41: =ROUND(I31,0) -> 0 | J41: =ROUND(IF($F$166=1,J31,J36),0) -> 0 | K41: 0 | L41: 0 | M41: 0 | N41: 0 | O41: 0 | P41: 0 | Q41: 0 | R41: 0 | S41: 0 | T41: 0 | U41: 0 | V41: 0 | W41: 0
B44: Zobowiązania | F44: =LataProjekcji -> 0 | G44: 0 | H44: 0 | J44: Uzupełnij dane
B46: Kalkulacja z modelu | F46: =ROUND('Ocena kondycji finansowej'!F88,0) -> 0 | G46: =ROUND('Ocena kondycji finansowej'!G88,0) -> 0 | H46: =ROUND('Ocena kondycji finansowej'!H88,0) -> 0 | I46: =ROUND('Ocena kondycji finansowej'!I88,0) -> 0 | J46: =IF($F$167=1,IFERROR(ROUND((J173*J49)/J48,0),0),0) -> 0 | K46: 0 | L46: 0 | M46: 0 | N46: 0 | O46: 0 | P46: 0 | Q46: 0 | R46: 0 | S46: 0 | T46: 0 | U46: 0 | V46: 0 | W46: 0
B47: Rotacja zobowiązań | F47: ='Ocena kondycji finansowej'!F147 -> bd. | G47: ='Ocena kondycji finansowej'!G147 -> bd. | H47: ='Ocena kondycji finansowej'!H147 -> bd. | I47: ='Ocena kondycji finansowej'!I147 -> bd. | J47: =IF($F$167=1,'Ocena kondycji finansowej'!J147,0) -> 0 | K47: =IF($F$167=1,'Ocena kondycji finansowej'!K147,0) -> 0 | L47: =IF($F$167=1,'Ocena kondycji finansowej'!L147,0) -> 0 | M47: =IF($F$167=1,'Ocena kondycji finansowej'!M147,0) -> 0 | N47: =IF($F$167=1,'Ocena kondycji finansowej'!N147,0) -> 0 | O47: =IF($F$167=1,'Ocena kondycji finansowej'!O147,0) -> 0 | P47: =IF($F$167=1,'Ocena kondycji finansowej'!P147,0) -> 0 | Q47: =IF($F$167=1,'Ocena kondycji finansowej'!Q147,0) -> 0 | R47: =IF($F$167=1,'Ocena kondycji finansowej'!R147,0) -> 0 | S47: =IF($F$167=1,'Ocena kondycji finansowej'!S147,0) -> 0 | T47: =IF($F$167=1,'Ocena kondycji finansowej'!T147,0) -> 0 | U47: =IF($F$167=1,'Ocena kondycji finansowej'!U147,0) -> 0 | V47: =IF($F$167=1,'Ocena kondycji finansowej'!V147,0) -> 0 | W47: =IF($F$167=1,'Ocena kondycji finansowej'!W147,0) -> 0
B48: Ilość dni w okresie | F48: =dni -> 365 | G48: 365 | H48: 365
B49: Koszty działalności operacyjnej | F49: ='Ocena kondycji finansowej'!F20 -> 0 | G49: ='Ocena kondycji finansowej'!G20 -> 0 | H49: ='Ocena kondycji finansowej'!H20 -> 0 | I49: ='Ocena kondycji finansowej'!I20 -> 0 | J49: ='Ocena kondycji finansowej'!J20 -> 0 | K49: ='Ocena kondycji finansowej'!K20 -> 0 | L49: ='Ocena kondycji finansowej'!L20 -> 0 | M49: ='Ocena kondycji finansowej'!M20 -> 0 | N49: ='Ocena kondycji finansowej'!N20 -> 0 | O49: ='Ocena kondycji finansowej'!O20 -> 0 | P49: ='Ocena kondycji finansowej'!P20 -> 0 | Q49: ='Ocena kondycji finansowej'!Q20 -> 0 | R49: ='Ocena kondycji finansowej'!R20 -> 0 | S49: ='Ocena kondycji finansowej'!S20 -> 0 | T49: ='Ocena kondycji finansowej'!T20 -> 0 | U49: ='Ocena kondycji finansowej'!U20 -> 0 | V49: ='Ocena kondycji finansowej'!V20 -> 0 | W49: ='Ocena kondycji finansowej'!W20 -> 0
B51: Kalkulacja własna | F51: =ROUND(F46,0) -> 0 | G51: =ROUND(G46,0) -> 0 | H51: =ROUND(H46,0) -> 0 | I51: =ROUND(I46,0) -> 0 | J51: =IF($F$167=2,IFERROR(ROUND(J52*(SUM(J54:J54))/J53,0),0),) -> 0 | K51: 0 | L51: 0 | M51: 0 | N51: 0 | O51: 0 | P51: 0 | Q51: 0 | R51: 0 | S51: 0 | T51: 0 | U51: 0 | V51: 0 | W51: 0
B52: Rotacja zobowiązań | F52: =F47 -> bd. | G52: =G47 -> bd. | H52: =H47 -> bd. | I52: =I47 -> bd.
B53: Ilość dni w okresie | F53: =F48 -> 365 | G53: =G48 -> 365 | H53: 365
B54: Koszty działalności operacyjnej | F54: =F49 -> 0 | G54: =G49 -> 0 | H54: 0 | I54: 0 | J54: 0 | K54: 0 | L54: 0 | M54: 0 | N54: 0 | O54: 0 | P54: 0 | Q54: 0 | R54: 0 | S54: 0 | T54: 0 | U54: 0 | V54: 0 | W54: 0
B56: Zobowiązania do bilansu | F56: =ROUND(F46,0) -> 0 | G56: =ROUND(G46,0) -> 0 | H56: =ROUND(H46,0) -> 0 | I56: =ROUND(I46,0) -> 0 | J56: =ROUND(IF($F$167=1,J46,J51),0) -> 0 | K56: 0 | L56: 0 | M56: 0 | N56: 0 | O56: 0 | P56: 0 | Q56: 0 | R56: 0 | S56: 0 | T56: 0 | U56: 0 | V56: 0 | W56: 0
B59: Kapitał pracujący | F59: =ROUND(F26+F41-F56,0) -> 0 | G59: 0 | H59: 0 | I59: 0 | J59: 0 | K59: 0 | L59: 0 | M59: 0 | N59: 0 | O59: 0 | P59: 0 | Q59: 0 | R59: 0 | S59: 0 | T59: 0 | U59: 0 | V59: 0 | W59: 0
B60: Zmiana kapitału pracującego | G60: =ROUND(F59-G59,0) -> 0 | H60: =ROUND(G59-H59,0) -> 0 | I60: =IF(Rok_n="",0,ROUND(H59-I59,0)) -> 0 | J60: =ROUND(I59-J59,0) -> 0 | K60: =ROUND(J59-K59,0) -> 0 | L60: 0 | M60: 0 | N60: 0 | O60: 0 | P60: 0 | Q60: 0 | R60: 0 | S60: 0 | T60: 0 | U60: 0 | V60: 0 | W60: 0
B63: Projekt | F63: =LataProjekcji -> 0 | G63: 0 | H63: 0 | J63: Uzupełnij dane
B65: Zapasy
B66: Kalkulacja z modelu | J66: =IFERROR(ROUND((J67/J68)*J69,0),0) -> 0 | K66: =IFERROR(ROUND((K67/K68)*K69,0),0) -> 0 | L66: 0 | M66: 0 | N66: 0 | O66: 0 | P66: 0 | Q66: 0 | R66: 0 | S66: 0 | T66: 0 | U66: 0 | V66: 0 | W66: 0
B67: Rotacja zapasów | J67: =IF(ISBLANK(Założenia!J42),"",Założenia!J42) ->  | K67: =IF(ISBLANK(Założenia!K42),"",Założenia!K42) ->  | L67: =IF(ISBLANK(Założenia!L42),"",Założenia!L42) ->  | M67: =IF(ISBLANK(Założenia!M42),"",Założenia!M42) ->  | N67: =IF(ISBLANK(Założenia!N42),"",Założenia!N42) ->  | O67: =IF(ISBLANK(Założenia!O42),"",Założenia!O42) ->  | P67: =IF(ISBLANK(Założenia!P42),"",Założenia!P42) ->  | Q67: =IF(ISBLANK(Założenia!Q42),"",Założenia!Q42) ->  | R67: =IF(ISBLANK(Założenia!R42),"",Założenia!R42) ->  | S67: =IF(ISBLANK(Założenia!S42),"",Założenia!S42) ->  | T67: =IF(ISBLANK(Założenia!T42),"",Założenia!T42) ->  | U67: =IF(ISBLANK(Założenia!U42),"",Założenia!U42) ->  | V67: =IF(ISBLANK(Założenia!V42),"",Założenia!V42) ->  | W67: =IF(ISBLANK(Założenia!W42),"",Założenia!W42) -> 
B68: Ilość dni w okresie | J68: =dni -> 
B69: Koszty działalności operacyjnej | J69: =ROUND('Ocena kondycji finansowej'!J164,0) -> 0 | K69: =ROUND('Ocena kondycji finansowej'!K164,0) -> 0 | L69: =ROUND('Ocena kondycji finansowej'!L164,0) -> 0 | M69: =ROUND('Ocena kondycji finansowej'!M164,0) -> 0 | N69: =ROUND('Ocena kondycji finansowej'!N164,0) -> 0 | O69: =ROUND('Ocena kondycji finansowej'!O164,0) -> 0 | P69: =ROUND('Ocena kondycji finansowej'!P164,0) -> 0 | Q69: =ROUND('Ocena kondycji finansowej'!Q164,0) -> 0 | R69: =ROUND('Ocena kondycji finansowej'!R164,0) -> 0 | S69: =ROUND('Ocena kondycji finansowej'!S164,0) -> 0 | T69: =ROUND('Ocena kondycji finansowej'!T164,0) -> 0 | U69: =ROUND('Ocena kondycji finansowej'!U164,0) -> 0 | V69: =ROUND('Ocena kondycji finansowej'!V164,0) -> 0 | W69: =ROUND('Ocena kondycji finansowej'!W164,0) -> 0
B71: Zapasy do bilansu | J71: =ROUND(J66,0) -> 0 | K71: =ROUND(K66,0) -> 0 | L71: 0 | M71: 0 | N71: 0 | O71: 0 | P71: 0 | Q71: 0 | R71: 0 | S71: 0 | T71: 0 | U71: 0 | V71: 0 | W71: 0
B74: Należności | F74: =LataProjekcji -> 0 | G74: 0 | H74: 0 | J74: Uzupełnij dane
B75: Kalkulacja z modelu | J75: =IFERROR(ROUND((J76/J77)*J78,0),0) -> 0 | K75: =IFERROR(ROUND((K76/K77)*K78,0),0) -> 0 | L75: 0 | M75: 0 | N75: 0 | O75: 0 | P75: 0 | Q75: 0 | R75: 0 | S75: 0 | T75: 0 | U75: 0 | V75: 0 | W75: 0
B76: Rotacja należności | J76: =IF(ISBLANK(Założenia!J41),"",Założenia!J41) ->  | K76: =IF(ISBLANK(Założenia!K41),"",Założenia!K41) ->  | L76: =IF(ISBLANK(Założenia!L41),"",Założenia!L41) ->  | M76: =IF(ISBLANK(Założenia!M41),"",Założenia!M41) ->  | N76: =IF(ISBLANK(Założenia!N41),"",Założenia!N41) ->  | O76: =IF(ISBLANK(Założenia!O41),"",Założenia!O41) ->  | P76: =IF(ISBLANK(Założenia!P41),"",Założenia!P41) ->  | Q76: =IF(ISBLANK(Założenia!Q41),"",Założenia!Q41) ->  | R76: =IF(ISBLANK(Założenia!R41),"",Założenia!R41) ->  | S76: =IF(ISBLANK(Założenia!S41),"",Założenia!S41) ->  | T76: =IF(ISBLANK(Założenia!T41),"",Założenia!T41) ->  | U76: =IF(ISBLANK(Założenia!U41),"",Założenia!U41) ->  | V76: =IF(ISBLANK(Założenia!V41),"",Założenia!V41) ->  | W76: =IF(ISBLANK(Założenia!W41),"",Założenia!W41) -> 
B77: Ilość dni w okresie | J77: =dni -> 
